Workbook

Sheet Instructions
A1: Instructions - Fleet Procurement Analysis Tool
B2: ="Version " & TEXT(MAX(Version[Version]), "#,##0.00") -> Version 1.34
B3: ="Last Updated: " & TEXT(MAX(Version[Date]), "m/d/yyyy") -> Last Updated: 3/20/2025
B5: Input Definitions | E5: Model Overview
C7: User-entered inputs
C9: Default assumptions that can be overridden by user
C11: Calculations or assumptions that cannot be altered
B13: Ownership Structure Definitions
B15: Purchase (Cash) - Vehicles purchased with cash
B16: Purchase (Loan) - Vehicles purchased with debt financing
B17: FMV (Closed-End) Lease - Vehicles leased with Fair Market Value lease structure. Vehicles not purchased at end of lease term.
B18: FMV (Closed-End) Lease w/ Cash Purchase - Vehicles leased with Fair Market Value lease structure. Vehicles purchased at end of lease term with cash.
B19: FMV (Closed-End) Lease w/ Loan Purchase - Vehicles leased with Fair Market Value lease structure. Vehicles purchased at end of lease term with debt financing.
B20: TRAC (Open-End) Lease - Vehicles leased with Terminal Rental Adjustment Clause lease structure. Vehicles not purchased at end of lease term.
B21: TRAC (Open-End) Lease w/ Cash Purchase - Vehicles leased with Terminal Rental Adjustment Clause lease structure. Vehicles purchased at end of lease term with cash.
B22: TRAC (Open-End) Lease w/ Loan Purchase - Vehicles leased with Terminal Rental Adjustment Clause lease structure. Vehicles purchased at end of lease term with debt financing.
B23: Tax-Exempt Lease Purchase (Cash) - Vehicles leased with tax-exempt lease-purchase structure. Vehicles purchased at end of lease term with cash, typically a nominal amount ($1).

Sheet Initital Settings
A1: Initial Settings - Fleet Procurement Analysis Tool | H1: *HIDDEN* | I1: *HIDDEN* | J1: *HIDDEN* | K1: *HIDDEN* | L1: *HIDDEN* | M1: *HIDDEN*
B3: Save/Load
B5: Procurement Name | C5: Demo Fleet Procurement
B7: Load values from previously saved procurement (external file)
B9: After filling out the Inputs tab, save all procurement inputs to an external file you can load later or share after
B12: Sensitivity Settings
B14: Update sensitivity analysis results if Calculation Options is set to Manual or Automatic Excerpt for Tables
B16: Variable | C16: Input Field | D16: Min Value | E16: Max Value | F16: Current Baseline Value | G16: Current Comparison Value | H16: Base Field Code | I16: Base Field Reference | J16: Sensitivity Reference | K16: Comp Field Code | L16: Comp Field Reference | M16: Sensitivity Reference
B17: Market Variables
B18: 1 | C18: Gasoline Price ($/Gallon) | D18: 1 | E18: 4 | F18: =INDIRECT(H18,FALSE) -> 3.52 | G18: =INDIRECT(K18,FALSE) -> 3.52 | H18: =VLOOKUP(sensitivity_01_input_field,DB_Sensitivity_Codes,2,FALSE) -> Gasoline_Price | I18: =MID(CELL("filename",INDIRECT(H18)),FIND("]", CELL("filename",INDIRECT(H18)))+1,32) & "!" & ADDRESS(ROW(INDIRECT(H18)),COLUMN(INDIRECT(H18)),4,1) -> Inputs!K5 | J18: =CELL("address", OFFSET('Sensitivity Tables'!A$9, 16*(B18-1), 0)) -> '[Fleet-Procurement-Analysis-Tool_v1.34.xlsm]Sensitivity Tables'!$A$9 | K18: =VLOOKUP(sensitivity_01_input_field,DB_Sensitivity_Codes,3,FALSE) -> Gasoline_Price | L18: =MID(CELL("filename",INDIRECT(K18)),FIND("]", CELL("filename",INDIRECT(K18)))+1,32) & "!" & ADDRESS(ROW(INDIRECT(K18)),COLUMN(INDIRECT(K18)),4,1) -> Inputs!K5 | M18: =CELL("address", OFFSET('Sensitivity Tables'!A$9, 16*(B18-1), 0)) -> '[Fleet-Procurement-Analysis-Tool_v1.34.xlsm]Sensitivity Tables'!$A$9
B19: Vehicle, Procurement, and Charging Variables
B20: 2 | C20: Number of Vehicles to Procure (#) | D20: 1 | E20: 15 | F20: =INDIRECT(H20,FALSE) -> 1 | G20: =INDIRECT(K20,FALSE) -> 1 | H20: =VLOOKUP(sensitivity_02_input_field,DB_Sensitivity_Codes,2,FALSE) -> Base_V1_Num_Vehicles | I20: =MID(CELL("filename",INDIRECT(H20)),FIND("]", CELL("filename",INDIRECT(H20)))+1,32) & "!" & ADDRESS(ROW(INDIRECT(H20)),COLUMN(INDIRECT(H20)),4,1) -> Inputs!E21 | J20: =CELL("address", OFFSET('Sensitivity Tables'!A$9, 16*(B20-1), 0)) -> '[Fleet-Procurement-Analysis-Tool_v1.34.xlsm]Sensitivity Tables'!$A$25 | K20: =VLOOKUP(sensitivity_02_input_field,DB_Sensitivity_Codes,3,FALSE) -> Comp_V1_Num_Vehicles | L20: =MID(CELL("filename",INDIRECT(K20)),FIND("]", CELL("filename",INDIRECT(K20)))+1,32) & "!" & ADDRESS(ROW(INDIRECT(K20)),COLUMN(INDIRECT(K20)),4,1) -> Inputs!N21 | M20: =CELL("address", OFFSET('Sensitivity Tables'!E$9, 16*(B20-1), 0)) -> '[Fleet-Procurement-Analysis-Tool_v1.34.xlsm]Sensitivity Tables'!$E$25
B21: 3 | C21: Annual Vehicle Mileage (VMT/Year) | D21: 10000 | E21: 30000 | F21: =INDIRECT(H21,FALSE) -> 10917 | G21: =INDIRECT(K21,FALSE) -> 10917 | H21: =VLOOKUP(sensitivity_03_input_field,DB_Sensitivity_Codes,2,FALSE) -> Base_V1_VMT | I21: =MID(CELL("filename",INDIRECT(H21)),FIND("]", CELL("filename",INDIRECT(H21)))+1,32) & "!" & ADDRESS(ROW(INDIRECT(H21)),COLUMN(INDIRECT(H21)),4,1) -> Inputs!E32 | J21: =CELL("address", OFFSET('Sensitivity Tables'!A$9, 16*(B21-1), 0)) -> '[Fleet-Procurement-Analysis-Tool_v1.34.xlsm]Sensitivity Tables'!$A$41 | K21: =VLOOKUP(sensitivity_03_input_field,DB_Sensitivity_Codes,3,FALSE) -> Comp_V1_VMT | L21: =MID(CELL("filename",INDIRECT(K21)),FIND("]", CELL("filename",INDIRECT(K21)))+1,32) & "!" & ADDRESS(ROW(INDIRECT(K21)),COLUMN(INDIRECT(K21)),4,1) -> Inputs!N32 | M21: =CELL("address", OFFSET('Sensitivity Tables'!E$9, 16*(B21-1), 0)) -> '[Fleet-Procurement-Analysis-Tool_v1.34.xlsm]Sensitivity Tables'!$E$41
B22: 4 | C22: Expected Years of Use/Ownership (Years) | D22: 3 | E22: 10 | F22: =INDIRECT(H22,FALSE) -> 7 | G22: =INDIRECT(K22,FALSE) -> 7 | H22: =VLOOKUP(sensitivity_04_input_field,DB_Sensitivity_Codes,2,FALSE) -> Base_V1_Years_Usage | I22: =MID(CELL("filename",INDIRECT(H22)),FIND("]", CELL("filename",INDIRECT(H22)))+1,32) & "!" & ADDRESS(ROW(INDIRECT(H22)),COLUMN(INDIRECT(H22)),4,1) -> Inputs!E31 | J22: =CELL("address", OFFSET('Sensitivity Tables'!A$9, 16*(B22-1), 0)) -> '[Fleet-Procurement-Analysis-Tool_v1.34.xlsm]Sensitivity Tables'!$A$57 | K22: =VLOOKUP(sensitivity_04_input_field,DB_Sensitivity_Codes,3,FALSE) -> Comp_V1_Years_Usage | L22: =MID(CELL("filename",INDIRECT(K22)),FIND("]", CELL("filename",INDIRECT(K22)))+1,32) & "!" & ADDRESS(ROW(INDIRECT(K22)),COLUMN(INDIRECT(K22)),4,1) -> Inputs!N31 | M22: =CELL("address", OFFSET('Sensitivity Tables'!E$9, 16*(B22-1), 0)) -> '[Fleet-Procurement-Analysis-Tool_v1.34.xlsm]Sensitivity Tables'!$E$57

Sheet Inputs
A1: Inputs - Fleet Procurement Analysis Tool | F1: *HIDDEN* | G1: *HIDDEN* | H1: *HIDDEN* | O1: *HIDDEN* | P1: *HIDDEN* | Q1: *HIDDEN*
F2: Autofill Values | G2: Sensitivity Values (to model) | H2: Validation Calcs | O2: Autofill Values | P2: Sensitivity Values (to model) | Q2: Validation Calcs
B3: Market Inputs
B5: Market | C5: U.S. | F5: =IF(_Market="U.S.",VLOOKUP(State_Ex,DB_Fuel_Prices[],3,FALSE),VLOOKUP(Province_Ex,DB_Gasoline_Prices_Canada[],2,FALSE)) -> 3.6667 | G5: =IFERROR(INDIRECT(VLOOKUP(MID(CELL("filename",K5),FIND("]", CELL("filename",K5))+1,32) & "!" & ADDRESS(ROW(K5),COLUMN(K5),4,1), DB_Sensitivity_Indirect_Reference_Base,2, FALSE)), K5) -> 3.52 | J5: ="Gasoline Price ($/" & Constant_Volume_Metric & ")" -> Gasoline Price ($/Gallon) | K5: 3.52
B6: ZIP Code | C6: 20001 | F6: =IF(_Market="U.S.",VLOOKUP(State_Ex,DB_Fuel_Prices[],4,FALSE),VLOOKUP(Province_Ex,DB_Gasoline_Prices_Canada[],2,FALSE)) -> 4.54 | G6: 2.8102 | J6: ="Diesel Price ($/" & Constant_Volume_Metric & ")" -> Diesel Price ($/Gallon) | K6: 2.8102
B7: U.S. State | C7: =VLOOKUP(_Zip_Code,ZipCodeLookup[],3,FALSE) -> DC | F7: =IF(_Market="U.S.",VLOOKUP(State_Ex,DB_Fuel_Prices[],6,FALSE),VLOOKUP(Province_Ex,DB_Electricity_Prices_Canada[],2,FALSE)) -> 0.149 | G7: 0.1593 | J7: Electricity Cost ($/kWh) | K7: 0.1593
B8: Fuel Carbon Credits | C8: =IF(OR(State_Ex="OR", State_Ex="CA"), "Yes", "No") -> No | F8: =_xlfn.SWITCH(Rate_Informed_Electricity_Cost_Only_Ex, "Base Only", Base_Rate_Output_Ex, "Both Base and Comparison", Base_Rate_Output_Ex, Electricity_Price) -> 0.1593 | G8: =_xlfn.SWITCH(Rate_Informed_Electricity_Cost_Only_Ex, "Comp Only", Comp_Rate_Output_Ex, "Both Base and Comparison", Comp_Rate_Output_Ex, Electricity_Price) -> 0.1593 | J8: Rate-Informed Electricity Cost | K8: =IF(AND(_Base_V1_Vehicle_Drivetrain="BEV",Base_Use_Charging_Management="Yes",_Comp_V1_Vehicle_Drivetrain="BEV",Comp_Use_Charging_Management="Yes"),"Both Base and Comparison",IF(AND(_Base_V1_Vehicle_Drivetrain="BEV",Base_Use_Charging_Management="Yes"),"Base Only",IF(AND(_Comp_V1_Vehicle_Drivetrain="BEV",Comp_Use_Charging_Management="Yes"),"Comparison Only","No"))) -> No
B9: PADD Region | C9: =VLOOKUP(_Zip_Code,ZipCodeLookup[],5,FALSE) -> 1b | F9: =IF(_Market="U.S.",0.5, 0.5) -> 0.5 | G9: 0.465 | J9: Public Charging Price ($/kWh) | K9: 0.465
B10: eGRID Region | C10: =VLOOKUP(_Zip_Code,ZipCodeLookup[],6,FALSE) -> RFCE | F10: =IF(_Market="U.S.",VLOOKUP(State_Ex,DB_Fuel_Prices[],6,FALSE),VLOOKUP(Province_Ex,DB_Electricity_Prices_Canada[],2,FALSE)) -> 0.149 | G10: 0.124 | J10: En Route Charging Price ($/kWh) | K10: 0.124
B11: Canadian Province | C11: British Columbia | F11: =IF(_Market="U.S.", DB_General_Inflation[Inflation (U.S.)], DB_General_Inflation[Inflation (Canada)]) -> 0.02 | G11: 0.02 | J11: Inflation Rate (Excluding Fuel) (%/Year) | K11: 0.02
F12: =IF(_Market="U.S.",35, 35) -> 35 | G12: =IFERROR(INDIRECT(VLOOKUP(MID(CELL("filename",K12),FIND("]", CELL("filename",K12))+1,32) & "!" & ADDRESS(ROW(K12),COLUMN(K12),4,1), DB_Sensitivity_Indirect_Reference_Base,2, FALSE)), K12) -> 0 | J12: Cost of Downtime from Public Charging ($/Hour) | K12: 0
J14: Include Cost of Carbon? | K14: No
F15: =IF(_Market="U.S.", DB_Carbon_Price_US, DB_Carbon_Price_Canada) -> 42 | G15: =IFERROR(INDIRECT(VLOOKUP(MID(CELL("filename",K15),FIND("]", CELL("filename",K15))+1,32) & "!" & ADDRESS(ROW(K15),COLUMN(K15),4,1), DB_Sensitivity_Indirect_Reference_Base,2, FALSE)), K15) -> 0 | J15: ="Cost of Carbon " & IF(_Market="U.S.", "($/Metric Ton)", "($/Tonne)") -> Cost of Carbon ($/Metric Ton) | K15: 0
B18: Vehicle Inputs
B19: Procurement 1 (Baseline) | K19: Procurement 2 (Comparison)
B21: Number of Vehicles to Procure (#) | E21: 1 | G21: =IFERROR(INDIRECT(VLOOKUP(MID(CELL("filename",E21),FIND("]", CELL("filename",E21))+1,32) & "!" & ADDRESS(ROW(E21),COLUMN(E21),4,1), DB_Sensitivity_Indirect_Reference_Base,2, FALSE)), E21) -> 1 | K21: Number of Vehicles to Procure (#) | N21: 1 | P21: =IFERROR(INDIRECT(VLOOKUP(MID(CELL("filename",N21),FIND("]", CELL("filename",N21))+1,32) & "!" & ADDRESS(ROW(N21),COLUMN(N21),4,1), DB_Sensitivity_Indirect_Reference_Comp,2, FALSE)), N21) -> 1
B22: Vehicle Drivetrain Type | E22: BEV | K22: Vehicle Drivetrain Type | N22: ICE
B23: Vehicle Class | E23: Passenger Vehicles (Light-Duty) | K23: Vehicle Class | N23: Passenger Vehicles (Light-Duty)
B24: Vehicle Year | E24: 2023 | K24: Vehicle Year | N24: 2024
B25: Vehicle Make | E25: Chevrolet | K25: Vehicle Make | N25: Toyota
B26: Vehicle Model | E26: Bolt EUV | H26: =_Base_V1_Vehicle_Year&" "&_Base_V1_Vehicle_Make&" "&_Base_V1_Vehicle_Model&" "&_Base_V1_Vehicle_Drivetrain -> 2023 Chevrolet Bolt EUV BEV | K26: Vehicle Model | N26: Corolla | Q26: =_Comp_V1_Vehicle_Year&" "&_Comp_V1_Vehicle_Make&" "&_Comp_V1_Vehicle_Model&" "&_Comp_V1_Vehicle_Drivetrain -> 2024 Toyota Corolla ICE
B27: =IF(_Market="U.S.", "Fuel Economy Gasoline/Diesel City (MPG)", "Fuel Consumption Gasoline/Diesel City (L/100 km)") -> Fuel Economy Gasoline/Diesel City (MPG) | E27: 0 | F27: =IF(_Market="U.S.", VLOOKUP(Base_V1_Type_Ex,DB_Vehicles[], COLUMN(DB_Vehicles[[#Headers],[Fuel Economy Gas/Diesel City (MPG)]]),FALSE), VLOOKUP(Base_V1_Type_Ex,DB_Vehicles__Canada[],COLUMN(DB_Vehicles__Canada[[#Headers],[Fuel Consumption Gas/Diesel City (L/100 km)]])-COLUMN(DB_Vehicles__Canada[[#Headers],[Selection Name]])+1,FALSE)) -> 0 | G27: =IFERROR(INDIRECT(VLOOKUP(MID(CELL("filename",E27),FIND("]", CELL("filename",E27))+1,32) & "!" & ADDRESS(ROW(E27),COLUMN(E27),4,1), DB_Sensitivity_Indirect_Reference_Base,2, FALSE)), E27) -> 0 | K27: =IF(_Market="U.S.", "Fuel Economy Gasoline/Diesel City (MPG)", "Fuel Consumption Gasoline/Diesel City (L/100 km)") -> Fuel Economy Gasoline/Diesel City (MPG) | N27: 32 | O27: =IF(_Market="U.S.", VLOOKUP(Comp_V1_Type_Ex,DB_Vehicles[], COLUMN(DB_Vehicles[[#Headers],[Fuel Economy Gas/Diesel City (MPG)]]),FALSE), VLOOKUP(Comp_V1_Type_Ex,DB_Vehicles__Canada[],COLUMN(DB_Vehicles__Canada[[#Headers],[Fuel Consumption Gas/Diesel City (L/100 km)]])-COLUMN(DB_Vehicles__Canada[[#Headers],[Selection Name]])+1,FALSE)) -> 31 | P27: =IFERROR(INDIRECT(VLOOKUP(MID(CELL("filename",N27),FIND("]", CELL("filename",N27))+1,32) & "!" & ADDRESS(ROW(N27),COLUMN(N27),4,1), DB_Sensitivity_Indirect_Reference_Comp,2, FALSE)), N27) -> 32
B28: =IF(_Market="U.S.", "Fuel Economy Gasoline/Diesel Highway (MPG)", "Fuel Consumption Gasoline/Diesel Highway (L/100 km)") -> Fuel Economy Gasoline/Diesel Highway (MPG) | E28: 0 | F28: =IF(_Market="U.S.", VLOOKUP(Base_V1_Type_Ex,DB_Vehicles[], COLUMN(DB_Vehicles[[#Headers],[Fuel Economy Gas/Diesel Hwy (MPG)]]),FALSE), VLOOKUP(Base_V1_Type_Ex,DB_Vehicles__Canada[],COLUMN(DB_Vehicles__Canada[[#Headers],[Fuel Consumption Gas/Diesel Hwy (L/100 km)]])-COLUMN(DB_Vehicles__Canada[[#Headers],[Selection Name]])+1,FALSE)) -> 0 | G28: =IFERROR(INDIRECT(VLOOKUP(MID(CELL("filename",E28),FIND("]", CELL("filename",E28))+1,32) & "!" & ADDRESS(ROW(E28),COLUMN(E28),4,1), DB_Sensitivity_Indirect_Reference_Base,2, FALSE)), E28) -> 0 | K28: =IF(_Market="U.S.", "Fuel Economy Gasoline/Diesel Highway (MPG)", "Fuel Consumption Gasoline/Diesel Highway (L/100 km)") -> Fuel Economy Gasoline/Diesel Highway (MPG) | N28: 41 | O28: =IF(_Market="U.S.", VLOOKUP(Comp_V1_Type_Ex,DB_Vehicles[], COLUMN(DB_Vehicles[[#Headers],[Fuel Economy Gas/Diesel Hwy (MPG)]]),FALSE), VLOOKUP(Comp_V1_Type_Ex,DB_Vehicles__Canada[],COLUMN(DB_Vehicles__Canada[[#Headers],[Fuel Consumption Gas/Diesel City (L/100 km)]])-COLUMN(DB_Vehicles__Canada[[#Headers],[Selection Name]])+1,FALSE)) -> 40 | P28: 41
B29: =IF(_Market="U.S.", DB_Vehicles[[#Headers],[Fuel Economy Electric City (MPGe)]], DB_Vehicles__Canada[[#Headers],[Fuel Consumption Electric City (Le/100 km)]]) -> Fuel Economy Electric City (MPGe) | E29: 125 | F29: =IF(_Market="U.S.", VLOOKUP(Base_V1_Type_Ex,DB_Vehicles[], COLUMN(DB_Vehicles[[#Headers],[Fuel Economy Electric City (MPGe)]]),FALSE), VLOOKUP(Base_V1_Type_Ex,DB_Vehicles__Canada[],COLUMN(DB_Vehicles__Canada[[#Headers],[Fuel Consumption Electric City (Le/100 km)]])-COLUMN(DB_Vehicles__Canada[[#Headers],[Selection Name]])+1,FALSE)) -> 125 | G29: 125 | K29: =IF(_Market="U.S.", DB_Vehicles[[#Headers],[Fuel Economy Electric City (MPGe)]], DB_Vehicles__Canada[[#Headers],[Fuel Consumption Electric City (Le/100 km)]]) -> Fuel Economy Electric City (MPGe) | N29: 0 | O29: =IF(_Market="U.S.", VLOOKUP(Comp_V1_Type_Ex,DB_Vehicles[], COLUMN(DB_Vehicles[[#Headers],[Fuel Economy Electric City (MPGe)]]),FALSE), VLOOKUP(Comp_V1_Type_Ex,DB_Vehicles__Canada[],COLUMN(DB_Vehicles__Canada[[#Headers],[Fuel Consumption Electric City (Le/100 km)]])-COLUMN(DB_Vehicles__Canada[[#Headers],[Selection Name]])+1,FALSE)) -> 0 | P29: 0
B30: =IF(_Market="U.S.", DB_Vehicles[[#Headers],[Fuel Economy Electric Hwy (MPGe)]], DB_Vehicles__Canada[[#Headers],[Fuel Consumption Electric Hwy (Le/100 km)]]) -> Fuel Economy Electric Hwy (MPGe) | E30: 104 | F30: =IF(_Market="U.S.", VLOOKUP(Base_V1_Type_Ex,DB_Vehicles[], COLUMN(DB_Vehicles[[#Headers],[Fuel Economy Electric Hwy (MPGe)]]),FALSE), VLOOKUP(Base_V1_Type_Ex,DB_Vehicles__Canada[],COLUMN(DB_Vehicles__Canada[[#Headers],[Fuel Consumption Electric Hwy (Le/100 km)]])-COLUMN(DB_Vehicles__Canada[[#Headers],[Selection Name]])+1,FALSE)) -> 104 | G30: =IFERROR(INDIRECT(VLOOKUP(MID(CELL("filename",E30),FIND("]", CELL("filename",E30))+1,32) & "!" & ADDRESS(ROW(E30),COLUMN(E30),4,1), DB_Sensitivity_Indirect_Reference_Base,2, FALSE)), E30) -> 104 | K30: =IF(_Market="U.S.", DB_Vehicles[[#Headers],[Fuel Economy Electric Hwy (MPGe)]], DB_Vehicles__Canada[[#Headers],[Fuel Consumption Electric Hwy (Le/100 km)]]) -> Fuel Economy Electric Hwy (MPGe) | N30: 0 | O30: =IF(_Market="U.S.", VLOOKUP(Comp_V1_Type_Ex,DB_Vehicles[], COLUMN(DB_Vehicles[[#Headers],[Fuel Economy Electric Hwy (MPGe)]]),FALSE), VLOOKUP(Comp_V1_Type_Ex,DB_Vehicles__Canada[],COLUMN(DB_Vehicles__Canada[[#Headers],[Fuel Consumption Electric Hwy (Le/100 km)]])-COLUMN(DB_Vehicles__Canada[[#Headers],[Selection Name]])+1,FALSE)) -> 0 | P30: 0
B31: Expected Years of Use/Ownership (Years) | E31: 7 | F31: =DB_Expected_Years_Of_Use_Ownership -> 7 | G31: 7 | K31: Expected Years of Use/Ownership (Years) | N31: 7 | O31: =DB_Expected_Years_Of_Use_Ownership -> 7 | P31: 7
B32: ="Annual Vehicle Mileage (V"&LEFT(Constant_Distance_Metric,1)&"T/Year)" -> Annual Vehicle Mileage (VMT/Year) | E32: 10917 | F32: =IF(_Market="U.S.", DB_Annual_Mileage_US, DB_Annual_Mileage_Canada) -> 15000 | G32: 10917 | K32: ="Annual Vehicle Mileage (V"&LEFT(Constant_Distance_Metric,1)&"T/Year)" -> Annual Vehicle Mileage (VMT/Year) | N32: 10917 | O32: =IF(_Market="U.S.", DB_Annual_Mileage_US, DB_Annual_Mileage_Canada) -> 15000 | P32: 10917
B33: ="% of Annual " & Constant_Distance_Metric & "s on Gasoline/Diesel" -> % of Annual Miles on Gasoline/Diesel | E33: 0 | F33: =IF(_Base_V1_Vehicle_Drivetrain<>"BEV", MAX((Base_V1_VMT/365)-IF(_Market="U.S.", VLOOKUP(Base_V1_Type_Ex,DB_Vehicles[], COLUMN(DB_Vehicles[[#Headers],[Electric Range]]),FALSE), VLOOKUP(Base_V1_Type_Ex,DB_Vehicles__Canada[], COLUMN(DB_Vehicles__Canada[[#Headers],[Electric Range]])-COLUMN(DB_Vehicles__Canada[[#Headers],[Selection Name]])+1,FALSE)),0)/(Base_V1_VMT/365), 0) -> 0 | G33: 0 | K33: ="% of Annual " & Constant_Distance_Metric & "s on Gasoline/Diesel" -> % of Annual Miles on Gasoline/Diesel | N33: 1 | O33: =IF(_Comp_V1_Vehicle_Drivetrain<>"BEV", MAX((Comp_V1_VMT/365)-IF(_Market="U.S.", VLOOKUP(Comp_V1_Type_Ex,DB_Vehicles[], COLUMN(DB_Vehicles[[#Headers],[Electric Range]]),FALSE), VLOOKUP(Comp_V1_Type_Ex,DB_Vehicles__Canada[], COLUMN(DB_Vehicles__Canada[[#Headers],[Electric Range]])-COLUMN(DB_Vehicles__Canada[[#Headers],[Selection Name]])+1,FALSE)),0)/(Comp_V1_VMT/365), 0) -> 1 | P33: 1
B34: ="% of Annual " & Constant_Distance_Metric & "s City Driving" -> % of Annual Miles City Driving | E34: 0.55 | F34: =DB_Percent_Annual_Miles_City_Driving -> 0.55 | G34: 0.55 | K34: ="% of Annual " & Constant_Distance_Metric & "s City Driving" -> % of Annual Miles City Driving | N34: 0.55 | O34: =Data!C272 -> 0.55 | P34: 0.55
B35: Cost to Insure ($/Year) | E35: 1194 | F35: =SUMIFS(DB_Vehicle_Insurance_Table[Cost], DB_Vehicle_Insurance_Table[Vehicle Class], _Base_V1_Vehicle_Vehicle_Class, DB_Vehicle_Insurance_Table[Market], _Market) -> 1194 | G35: 1194 | K35: Cost to Insure ($/Year) | N35: 1194 | O35: =SUMIFS(DB_Vehicle_Insurance_Table[Cost], DB_Vehicle_Insurance_Table[Vehicle Class], _Comp_V1_Vehicle_Vehicle_Class, DB_Vehicle_Insurance_Table[Market], _Market) -> 1194 | P35: 1194
B36: Use Drivetrain Default Maintenance and Repair Costs? | E36: Yes | K36: Use Drivetrain Default Maintenance and Repair Costs? | N36: Yes
B37: ="Maintenance and Repair Cost - Years 1 - 5 ($/" & Constant_Distance_Metric & ")" -> Maintenance and Repair Cost - Years 1 - 5 ($/Mile) | E37: 0.061 | F37: =SUMIFS(DB_Maint_Repair_Costs[[Year 1 ]], DB_Maint_Repair_Costs[Market], _Market, DB_Maint_Repair_Costs[Vehicle Type], _Base_V1_Vehicle_Drivetrain, DB_Maint_Repair_Costs[Vehicle Class], _Base_V1_Vehicle_Vehicle_Class) -> 0.061 | G37: =IFERROR(INDIRECT(VLOOKUP(MID(CELL("filename",E37),FIND("]", CELL("filename",E37))+1,32) & "!" & ADDRESS(ROW(E37),COLUMN(E37),4,1), DB_Sensitivity_Indirect_Reference_Base,2, FALSE)), E37) -> 0.061 | K37: ="Maintenance and Repair Cost - Years 1 - 5 ($/" & Constant_Distance_Metric & ")" -> Maintenance and Repair Cost - Years 1 - 5 ($/Mile) | N37: 0.101 | O37: =SUMIFS(DB_Maint_Repair_Costs[[Year 1 ]], DB_Maint_Repair_Costs[Market], _Market, DB_Maint_Repair_Costs[Vehicle Type], _Comp_V1_Vehicle_Drivetrain, DB_Maint_Repair_Costs[Vehicle Class], _Comp_V1_Vehicle_Vehicle_Class) -> 0.101 | P37: =IFERROR(INDIRECT(VLOOKUP(MID(CELL("filename",N37),FIND("]", CELL("filename",N37))+1,32) & "!" & ADDRESS(ROW(N37),COLUMN(N37),4,1), DB_Sensitivity_Indirect_Reference_Comp,2, FALSE)), N37) -> 0.101
B38: ="Maintenance and Repair Cost - Years 5+ ($/" & Constant_Distance_Metric & ")" -> Maintenance and Repair Cost - Years 5+ ($/Mile) | E38: 0.0793 | F38: =SUMIFS(DB_Maint_Repair_Costs[Year 6], DB_Maint_Repair_Costs[Market], _Market, DB_Maint_Repair_Costs[Vehicle Type], _Base_V1_Vehicle_Drivetrain, DB_Maint_Repair_Costs[Vehicle Class], _Base_V1_Vehicle_Vehicle_Class) -> 0.0793 | G38: =IFERROR(INDIRECT(VLOOKUP(MID(CELL("filename",E38),FIND("]", CELL("filename",E38))+1,32) & "!" & ADDRESS(ROW(E38),COLUMN(E38),4,1), DB_Sensitivity_Indirect_Reference_Base,2, FALSE)), E38) -> 0.0793 | K38: ="Maintenance and Repair Cost - Years 5+ ($/" & Constant_Distance_Metric & ")" -> Maintenance and Repair Cost - Years 5+ ($/Mile) | N38: 0.1313 | O38: =SUMIFS(DB_Maint_Repair_Costs[Year 6], DB_Maint_Repair_Costs[Market], _Market, DB_Maint_Repair_Costs[Vehicle Type], _Comp_V1_Vehicle_Drivetrain, DB_Maint_Repair_Costs[Vehicle Class], _Comp_V1_Vehicle_Vehicle_Class) -> 0.1313 | P38: =IFERROR(INDIRECT(VLOOKUP(MID(CELL("filename",N38),FIND("]", CELL("filename",N38))+1,32) & "!" & ADDRESS(ROW(N38),COLUMN(N38),4,1), DB_Sensitivity_Indirect_Reference_Comp,2, FALSE)), N38) -> 0.1313
B39: Recurring Taxes and Fees ($/Year) | E39: 10 | G39: 10 | K39: Recurring Taxes and Fees ($/Year) | N39: 10 | P39: =IFERROR(INDIRECT(VLOOKUP(MID(CELL("filename",N39),FIND("]", CELL("filename",N39))+1,32) & "!" & ADDRESS(ROW(N39),COLUMN(N39),4,1), DB_Sensitivity_Indirect_Reference_Comp,2, FALSE)), N39) -> 10
C40: =IF(_Market="U.S.", IF(_Base_V1_Vehicle_Vehicle_Class="Passenger Vehicles (Light-Duty)", "Vehicle details from fueleconomy.gov", "More information on this vehicle"), "") -> Vehicle details from fueleconomy.gov | G40: =IF(_Market="U.S.", VLOOKUP(Base_V1_Type_Ex,DB_Vehicles[],COLUMN(DB_Vehicles[[#Headers],[Fueleconomy.gov Link]]),FALSE), VLOOKUP(Base_V1_Type_Ex,DB_Vehicles__Canada[],COLUMN(DB_Vehicles__Canada[[#Headers],[Link]])-COLUMN(DB_Vehicles__Canada[[#Headers],[Selection Name]])+1,FALSE)) -> https://www.fueleconomy.gov/feg/Find.do?action=sbs&id=45750 | M40: =IF(_Market="U.S.", IF(_Comp_V1_Vehicle_Vehicle_Class="Passenger Vehicles (Light-Duty)", "Vehicle details from fueleconomy.gov", "More information on this vehicle"), "") -> Vehicle details from fueleconomy.gov | P40: =IF(_Market="U.S.", VLOOKUP(Comp_V1_Type_Ex,DB_Vehicles[],COLUMN(DB_Vehicles[[#Headers],[Fueleconomy.gov Link]]),FALSE), VLOOKUP(Comp_V1_Type_Ex,DB_Vehicles__Canada[],COLUMN(DB_Vehicles__Canada[[#Headers],[Link]])-COLUMN(DB_Vehicles__Canada[[#Headers],[Selection Name]])+1,FALSE)) -> https://www.fueleconomy.gov/feg/Find.do?action=sbs&id=47344
B43: Financial Inputs
B44: Procurement 1 (Baseline) | K44: Procurement 2 (Comparison)
B46: Discount Rate for NPV Calculations (%) | E46: 0 | G46: =IFERROR(INDIRECT(VLOOKUP(MID(CELL("filename",E46),FIND("]", CELL("filename",E46))+1,32) & "!" & ADDRESS(ROW(E46),COLUMN(E46),4,1), DB_Sensitivity_Indirect_Reference_Base,2, FALSE)), E46) -> 0 | K46: Discount Rate for NPV Calculations (%) | N46: 0 | P46: =IFERROR(INDIRECT(VLOOKUP(MID(CELL("filename",N46),FIND("]", CELL("filename",N46))+1,32) & "!" & ADDRESS(ROW(N46),COLUMN(N46),4,1), DB_Sensitivity_Indirect_Reference_Comp,2, FALSE)), N46) -> 0
B48: Pricing Approach (select one) | E48: MSRP Less Discounts | H48: =IF(IFERROR(FIND("MSRP",_Base_V1_Pricing_Approach,1),0)>0,TRUE,FALSE) -> TRUE | K48: Pricing Approach (select one) | N48: MSRP Less Discounts | Q48: =IF(IFERROR(FIND("MSRP",_Comp_V1_Pricing_Approach,1),0)>0,TRUE,FALSE) -> TRUE
B49: MSRP ($/Vehicle) | E49: 30050 | F49: =IF(_Market="U.S.", VLOOKUP(Base_V1_Type_Ex,DB_Vehicles[],COLUMN(DB_Vehicles[[#Headers],[MSRP]]),FALSE), VLOOKUP(Base_V1_Type_Ex, DB_Vehicles__Canada[], COLUMN(DB_Vehicles__Canada[[#Headers],[MSRP]])-COLUMN(DB_Vehicles__Canada[[#Headers],[Selection Name]])+1,FALSE)) -> 0 | G49: =IFERROR(INDIRECT(VLOOKUP(MID(CELL("filename",E49),FIND("]", CELL("filename",E49))+1,32) & "!" & ADDRESS(ROW(E49),COLUMN(E49),4,1), DB_Sensitivity_Indirect_Reference_Base,2, FALSE)), E49) -> 30050 | K49: MSRP ($) | N49: 22050 | O49: =IF(_Market="U.S.", VLOOKUP(Comp_V1_Type_Ex,DB_Vehicles[],COLUMN(DB_Vehicles[[#Headers],[MSRP]]),FALSE), VLOOKUP(Comp_V1_Type_Ex, DB_Vehicles__Canada[], COLUMN(DB_Vehicles__Canada[[#Headers],[MSRP]])-COLUMN(DB_Vehicles__Canada[[#Headers],[Selection Name]])+1,FALSE)) -> 0 | P49: =IFERROR(INDIRECT(VLOOKUP(MID(CELL("filename",N49),FIND("]", CELL("filename",N49))+1,32) & "!" & ADDRESS(ROW(N49),COLUMN(N49),4,1), DB_Sensitivity_Indirect_Reference_Comp,2, FALSE)), N49) -> 22050
B50: Value of Negotiated Discounts off MSRP ($/Vehicle) | E50: 0 | G50: =IFERROR(INDIRECT(VLOOKUP(MID(CELL("filename",E50),FIND("]", CELL("filename",E50))+1,32) & "!" & ADDRESS(ROW(E50),COLUMN(E50),4,1), DB_Sensitivity_Indirect_Reference_Base,2, FALSE)), E50) -> 0 | K50: Value of Negotiated Discounts off MSRP ($/Vehicle) | N50: 0 | P50: =IFERROR(INDIRECT(VLOOKUP(MID(CELL("filename",N50),FIND("]", CELL("filename",N50))+1,32) & "!" & ADDRESS(ROW(N50),COLUMN(N50),4,1), DB_Sensitivity_Indirect_Reference_Comp,2, FALSE)), N50) -> 0
B51: Dealer Triple Net Price ($/Vehicle) | E51: 18024 | G51: =IFERROR(INDIRECT(VLOOKUP(MID(CELL("filename",E51),FIND("]", CELL("filename",E51))+1,32) & "!" & ADDRESS(ROW(E51),COLUMN(E51),4,1), DB_Sensitivity_Indirect_Reference_Base,2, FALSE)), E51) -> 18024 | K51: Dealer Triple Net Price ($/Vehicle) | N51: 33226 | P51: =IFERROR(INDIRECT(VLOOKUP(MID(CELL("filename",N51),FIND("]", CELL("filename",N51))+1,32) & "!" & ADDRESS(ROW(N51),COLUMN(N51),4,1), DB_Sensitivity_Indirect_Reference_Comp,2, FALSE)), N51) -> 33226
B52: Dealer Markup ($/Vehicle) | E52: 200 | G52: =IFERROR(INDIRECT(VLOOKUP(MID(CELL("filename",E52),FIND("]", CELL("filename",E52))+1,32) & "!" & ADDRESS(ROW(E52),COLUMN(E52),4,1), DB_Sensitivity_Indirect_Reference_Base,2, FALSE)), E52) -> 200 | K52: Dealer Markup ($/Vehicle) | N52: 300 | P52: =IFERROR(INDIRECT(VLOOKUP(MID(CELL("filename",N52),FIND("]", CELL("filename",N52))+1,32) & "!" & ADDRESS(ROW(N52),COLUMN(N52),4,1), DB_Sensitivity_Indirect_Reference_Comp,2, FALSE)), N52) -> 300
B53: Total Base Price | E53: =IF(IFERROR(FIND("MSRP",_Base_V1_Pricing_Approach,1),0)>0,Base_V1_MSRP_Modeled-Base_V1_Discounts_Modeled,Base_V1_List_Price_Modeled+Base_V1_List_Price_Markup_Modeled) -> 30050 | K53: Total Base Price | N53: =IF(IFERROR(FIND("MSRP",_Comp_V1_Pricing_Approach,1),0)>0,Comp_V1_MSRP_Modeled-Comp_V1_Discounts_Modeled,Comp_V1_List_Price_Modeled+Comp_V1_List_Price_Markup_Modeled) -> 22050
B54: Value of Federal Tax Incentives ($/Vehicle) | E54: 7500 | F54: =IF(1, 0, IFERROR(IF(_Market="U.S.", VLOOKUP(Base_V1_Type_Ex, DB_Vehicle_Incentives[], MATCH("Federal Tax Credit", DB_Vehicle_Incentives[#Headers],0),FALSE), VLOOKUP(Base_V1_Type_Ex, DB_Vehicle_Incentives__Canada[], MATCH("Federal", DB_Vehicle_Incentives__Canada[#Headers],0),FALSE)), 0)) -> 0 | G54: =IFERROR(INDIRECT(VLOOKUP(MID(CELL("filename",E54),FIND("]", CELL("filename",E54))+1,32) & "!" & ADDRESS(ROW(E54),COLUMN(E54),4,1), DB_Sensitivity_Indirect_Reference_Base,2, FALSE)), E54) -> 7500 | K54: Value of Federal Tax Credits ($/Vehicle) | N54: 0 | O54: =IF(1, 0, IFERROR(IF(_Market="U.S.", VLOOKUP(Comp_V1_Type_Ex, DB_Vehicle_Incentives[], MATCH("Federal Tax Credit", DB_Vehicle_Incentives[#Headers],0),FALSE), VLOOKUP(Comp_V1_Type_Ex, DB_Vehicle_Incentives__Canada[], MATCH("Federal", DB_Vehicle_Incentives__Canada[#Headers],0),FALSE)), 0)) -> 0 | P54: =IFERROR(INDIRECT(VLOOKUP(MID(CELL("filename",N54),FIND("]", CELL("filename",N54))+1,32) & "!" & ADDRESS(ROW(N54),COLUMN(N54),4,1), DB_Sensitivity_Indirect_Reference_Comp,2, FALSE)), N54) -> 0
B55: Value of State Tax Incentives ($/Vehicle) | E55: 0 | F55: =IF(1, 0, IFERROR(IF(_Market="U.S.", SUMIFS(DB_Vehicle_Incentives[Incentive],DB_Vehicle_Incentives[State Abbreviation],State_Ex, DB_Vehicle_Incentives[Selection Name], Base_V1_Type_Ex), IF(VLOOKUP("Incentive Type", DB_Vehicle_Incentives__Canada[], MATCH(Province_Ex, DB_Vehicle_Incentives__Canada[#Headers], 0), FALSE)="Tax", VLOOKUP(Base_V1_Type_Ex, DB_Vehicle_Incentives__Canada[], MATCH(Province_Ex, DB_Vehicle_Incentives__Canada[#Headers], 0),FALSE),0)), 0)) -> 0 | G55: 0 | K55: Value of State Tax Incentives ($/Vehicle) | N55: 0 | O55: =IF(1, 0, IFERROR(IF(_Market="U.S.", SUMIFS(DB_Vehicle_Incentives[Incentive],DB_Vehicle_Incentives[State Abbreviation],State_Ex, DB_Vehicle_Incentives[Selection Name], Comp_V1_Type_Ex), IF(VLOOKUP("Incentive Type", DB_Vehicle_Incentives__Canada[], MATCH(Province_Ex, DB_Vehicle_Incentives__Canada[#Headers], 0), FALSE)="Tax", VLOOKUP(Comp_V1_Type_Ex, DB_Vehicle_Incentives__Canada[], MATCH(Province_Ex, DB_Vehicle_Incentives__Canada[#Headers], 0),FALSE),0)), 0)) -> 0 | P55: 0
B56: State Tax Incentive Cap ($) | E56: 0 | G56: 0 | K56: State Tax Incentive Cap ($) | N56: 0 | P56: 0
B57: Value of Non-tax Incentives ($/Vehicle) | E57: 0 | F57: =IFERROR(IF(_Market="U.S.", IF(VLOOKUP("Incentive Type", DB_Vehicle_Incentives[], MATCH(State_Ex, DB_Vehicle_Incentives[#Headers], 0), FALSE)<>"Tax", VLOOKUP(Base_V1_Type_Ex, DB_Vehicle_Incentives[], MATCH(State_Ex, DB_Vehicle_Incentives[#Headers], 0),FALSE),0), IF(VLOOKUP("Incentive Type", DB_Vehicle_Incentives__Canada[], MATCH(Province_Ex, DB_Vehicle_Incentives__Canada[#Headers], 0), FALSE)<>"Tax", VLOOKUP(Base_V1_Type_Ex, DB_Vehicle_Incentives__Canada[], MATCH(Province_Ex, DB_Vehicle_Incentives__Canada[#Headers], 0),FALSE),0)), 0) -> 0 | G57: 0 | K57: Value of Non-tax Incentives ($/Vehicle) | N57: 0 | O57: =IFERROR(IF(_Market="U.S.", IF(VLOOKUP("Incentive Type", DB_Vehicle_Incentives[], MATCH(State_Ex, DB_Vehicle_Incentives[#Headers], 0), FALSE)<>"Tax", VLOOKUP(Comp_V1_Type_Ex, DB_Vehicle_Incentives[], MATCH(State_Ex, DB_Vehicle_Incentives[#Headers], 0),FALSE),0), IF(VLOOKUP("Incentive Type", DB_Vehicle_Incentives__Canada[], MATCH(Province_Ex, DB_Vehicle_Incentives__Canada[#Headers], 0), FALSE)<>"Tax", VLOOKUP(Comp_V1_Type_Ex, DB_Vehicle_Incentives__Canada[], MATCH(Province_Ex, DB_Vehicle_Incentives__Canada[#Headers], 0),FALSE),0)), 0) -> 0 | P57: 0
B58: Initial Tax, Title, and Registration Cost ($/Vehicle) | E58: 1000 | G58: 1000 | K58: Initial Tax, Title, and Registration Cost ($/Vehicle) | N58: 1000 | P58: 1000
B59: Initial Fee as Percent of Vehicle Base Price (%) | E59: 0 | G59: 0 | K59: Initial Fee as Percent of Vehicle Base Price (%) | N59: 0 | P59: 0
H60: =IF(IFERROR(FIND("Lease",_Base_V1_Ownership_Structure,1),0)>0,TRUE,FALSE) -> FALSE | Q60: =IF(IFERROR(FIND("Lease",_Comp_V1_Ownership_Structure,1),0)>0,TRUE,FALSE) -> FALSE
B61: Include Utility Value Stream (Demand Response or Grid Service)? | E61: No | K61: Include Utility Value Stream (Demand Response or Grid Service)? | N61: No
B63: Estimated Net Income from Utility Program (Nominal) | E63: 0 | K63: Estimated Net Income from Utility Program (Nominal) | N63: 0
B64: Income Period | E64: Annually | K64: Income Period | N64: Annually
B65: Annual Change in Estimated Net Income (%) | E65: 0 | K65: Annual Change in Estimated Net Income (%) | N65: 0
B67: Use Fuel Carbon Market Credits? | E67: No | K67: Use Fuel Carbon Market Credits? | N67: No
B69: Electricity Carbon Intensity (grams CO2e/MJ) | E69: 80 | K69: Electricity Carbon Intensity (grams CO2e/MJ) | N69: 50
B70: Start Year | E70: 2023 | G70: =_xlfn.MAXIFS(CI_Benchmark_Table[Year],CI_Benchmark_Table[State], State_Ex) -> 0 | N70: 2023 | O70: =_xlfn.MAXIFS(CI_Benchmark_Table[Year],CI_Benchmark_Table[State], State_Ex) -> 0
B71: i. https://ww2.arb.ca.gov/resources/documents/lcfs-pathway-certified-carbon-intensities | K71: i. https://ww2.arb.ca.gov/resources/documents/lcfs-pathway-certified-carbon-intensities
B72: ii. https://www.oregon.gov/deq/ghgp/cfp/Pages/Clean-Fuel-Pathways.aspx | K72: ii. https://www.oregon.gov/deq/ghgp/cfp/Pages/Clean-Fuel-Pathways.aspx
B74: Carbon Credit Value by Year (Nominal) | D74: =Base_CI_Start_Year -> 2023 | E74: 100 | F74: EER | G74: =VLOOKUP(_Base_V1_Vehicle_Vehicle_Class, EER_Table[], 2, 0) -> 3.4 | K74: Carbon Credit Value by Year (Nominal) | M74: =Comp_CI_Start_Year -> 2023 | N74: 100 | O74: EER | P74: =VLOOKUP(_Comp_V1_Vehicle_Vehicle_Class, EER_Table[], 2, 0) -> 3.4
B75: Any year after the maximum year is constant. | D75: =D74+1 -> 2024 | E75: 100 | F75: MJ Total (3.6MJ/kWh) | G75: =IFERROR(33.705/((Base_V1_Fuel_Economy_Electric_City *Base_V1_Miles_City) + (Base_V1_Fuel_Economy_Electric_Hwy * (1-Base_V1_Miles_City)) ) *Base_V1_VMT* 3.6, 0) -> 11463.84203 | K75: Any year after the maximum year is constant. | M75: =M74+1 -> 2024 | N75: 100 | O75: MJ Total (3.6MJ/kWh) | P75: =IFERROR(33.705/((Comp_V1_Fuel_Economy_Electric_City *Comp_V1_Miles_City) + (Comp_V1_Fuel_Economy_Electric_Hwy * (1-Comp_V1_Miles_City)) ) *Comp_V1_VMT* 3.6, 0) -> 0
B76: The maximum year is determined by the carbon credit | D76: =D75+1 -> 2025 | E76: 100 | F76: Energy Dispaced | G76: =Base_EER_Ex*Base_MJ_Total_Ex -> 38977.06289 | K76: The maximum year is determined by the carbon credit | M76: =M75+1 -> 2025 | N76: 100 | O76: Energy Dispaced | P76: =Comp_EER_Ex*Comp_MJ_Total_Ex -> 0
B77: ="program in the state. For "&State_Ex&", the maximum" -> program in the state. For DC, the maximum | D77: 2026 | E77: 100 | F77: Benchmark Fuel | G77: =IF(_Base_V1_Vehicle_Vehicle_Class = "Passenger Vehicles (Light-Duty)", "Gasoline", "Diesel") -> Gasoline | K77: ="program in the state. For "&State_Ex&", the maximum" -> program in the state. For DC, the maximum | M77: 2026 | N77: 100 | O77: Benchmark Fuel | P77: =IF(_Comp_V1_Vehicle_Vehicle_Class = "Passenger Vehicles (Light-Duty)", "Gasoline", "Diesel") -> Gasoline
B78: ="year is " & G70 & "." -> year is 0. | D78: 2027 | E78: 100 | K78: ="year is " & O70 & "." -> year is 0. | M78: 2027 | N78: 100
D79: 2028 | E79: 100 | M79: 2028 | N79: 100
D80: 2029 | E80: 100 | M80: 2029 | N80: 100
D81: 2030 | E81: 100 | M81: 2030 | N81: 100
D82: 2031 | E82: 100 | M82: 2031 | N82: 100
D83: 2032 | E83: 100 | M83: 2032 | N83: 100
B85: Ownership Structure | E85: Purchase (Cash) | H85: =IF(IFERROR(FIND("Cash",_Base_V1_Ownership_Structure,1),0)>0,TRUE,FALSE) -> TRUE | K85: Ownership Structure | N85: Purchase (Cash) | Q85: =IF(IFERROR(FIND("Cash",_Comp_V1_Ownership_Structure,1),0)>0,TRUE,FALSE) -> TRUE
B86: Tax Credits Can Be Monetized? (Y/N) | E86: Yes | H86: =IF(IFERROR(FIND("Loan",_Base_V1_Ownership_Structure,1),0)>0,TRUE,FALSE) -> FALSE | K86: Tax Credits Can Be Monetized? (Y/N) | N86: Yes | Q86: =IF(IFERROR(FIND("Loan",_Comp_V1_Ownership_Structure,1),0)>0,TRUE,FALSE) -> FALSE
B87: Down Payment ($/Vehicle) | E87: 0 | G87: =IFERROR(INDIRECT(VLOOKUP(MID(CELL("filename",E87),FIND("]", CELL("filename",E87))+1,32) & "!" & ADDRESS(ROW(E87),COLUMN(E87),4,1), DB_Sensitivity_Indirect_Reference_Base,2, FALSE)), E87) -> 0 | K87: Down Payment ($/Vehicle) | N87: 0 | P87: =IFERROR(INDIRECT(VLOOKUP(MID(CELL("filename",N87),FIND("]", CELL("filename",N87))+1,32) & "!" & ADDRESS(ROW(N87),COLUMN(N87),4,1), DB_Sensitivity_Indirect_Reference_Comp,2, FALSE)), N87) -> 0
B88: Lease | K88: Lease
B89: Lease Term (Years) | E89: 3 | G89: =IFERROR(INDIRECT(VLOOKUP(MID(CELL("filename",E89),FIND("]", CELL("filename",E89))+1,32) & "!" & ADDRESS(ROW(E89),COLUMN(E89),4,1), DB_Sensitivity_Indirect_Reference_Base,2, FALSE)), E89) -> 3 | H89: Data validation handled in VBA | K89: Lease Term (Years) | N89: 0 | P89: =IFERROR(INDIRECT(VLOOKUP(MID(CELL("filename",N89),FIND("]", CELL("filename",N89))+1,32) & "!" & ADDRESS(ROW(N89),COLUMN(N89),4,1), DB_Sensitivity_Indirect_Reference_Comp,2, FALSE)), N89) -> 0 | Q89: Data validation handled in VBA
B90: Lease Interest Rate (APR - %) | E90: 0.1 | G90: =IFERROR(INDIRECT(VLOOKUP(MID(CELL("filename",E90),FIND("]", CELL("filename",E90))+1,32) & "!" & ADDRESS(ROW(E90),COLUMN(E90),4,1), DB_Sensitivity_Indirect_Reference_Base,2, FALSE)), E90) -> 0.1 | K90: Lease Interest Rate (APR - %) | N90: 0 | P90: =IFERROR(INDIRECT(VLOOKUP(MID(CELL("filename",N90),FIND("]", CELL("filename",N90))+1,32) & "!" & ADDRESS(ROW(N90),COLUMN(N90),4,1), DB_Sensitivity_Indirect_Reference_Comp,2, FALSE)), N90) -> 0
B91: OR | K91: OR
B92: Money Factor (#) | E92: 0.004166666667 | G92: =IFERROR(INDIRECT(VLOOKUP(MID(CELL("filename",E92),FIND("]", CELL("filename",E92))+1,32) & "!" & ADDRESS(ROW(E92),COLUMN(E92),4,1), DB_Sensitivity_Indirect_Reference_Base,2, FALSE)), E92) -> 0.004166666667 | K92: Money Factor (#) | N92: 0 | P92: =IFERROR(INDIRECT(VLOOKUP(MID(CELL("filename",N92),FIND("]", CELL("filename",N92))+1,32) & "!" & ADDRESS(ROW(N92),COLUMN(N92),4,1), DB_Sensitivity_Indirect_Reference_Comp,2, FALSE)), N92) -> 0
B93: Acquisition Fee ($/Vehicle) | E93: 0 | G93: 0 | K93: Acquisition Fee ($/Vehicle) | N93: 0 | P93: 0
B94: Disposition Charge ($/Vehicle) | E94: 0 | G94: 0 | K94: Disposition Charge ($/Vehicle) | N94: 0 | P94: 0
B95: Negotiated Residual Value ($/Vehicle) | E95: 17000 | G95: 17000 | H95: =IF(IFERROR(FIND("Tax-Exempt",_Base_V1_Ownership_Structure,1),0)>0,IF(Base_V1_Lease_Residual_Price=1,TRUE,FALSE),TRUE) -> TRUE | K95: Negotiated Residual Value ($/Vehicle) | N95: 0 | P95: 0 | Q95: =IF(IFERROR(FIND("Tax-Exempt",_Comp_V1_Ownership_Structure,1),0)>0,IF(Comp_V1_Lease_Residual_Price=1,TRUE,FALSE),TRUE) -> TRUE
B96: Mileage Included (Closed-End Only) | E96: 0 | G96: 0 | K96: Mileage Included (Closed-End Only) | N96: 0 | P96: 0
B97: ="Excess Mileage Cost ($/" & Constant_Distance_Metric & ")" -> Excess Mileage Cost ($/Mile) | E97: 0 | G97: 0 | K97: ="Excess Mileage Cost ($/" & Constant_Distance_Metric & ")" -> Excess Mileage Cost ($/Mile) | N97: 0 | P97: 0
B98: Loan | K98: Loan
B99: Loan Term (Years) | E99: 4 | G99: =IFERROR(INDIRECT(VLOOKUP(MID(CELL("filename",E99),FIND("]", CELL("filename",E99))+1,32) & "!" & ADDRESS(ROW(E99),COLUMN(E99),4,1), DB_Sensitivity_Indirect_Reference_Base,2, FALSE)), E99) -> 4 | H99: Data validation handled in VBA | K99: Loan Term (Years) | N99: 4 | P99: =IFERROR(INDIRECT(VLOOKUP(MID(CELL("filename",N99),FIND("]", CELL("filename",N99))+1,32) & "!" & ADDRESS(ROW(N99),COLUMN(N99),4,1), DB_Sensitivity_Indirect_Reference_Comp,2, FALSE)), N99) -> 4 | Q99: Data validation handled in VBA
B100: Loan Interest Rate (APR - %) | E100: 0.05 | G100: =IFERROR(INDIRECT(VLOOKUP(MID(CELL("filename",E100),FIND("]", CELL("filename",E100))+1,32) & "!" & ADDRESS(ROW(E100),COLUMN(E100),4,1), DB_Sensitivity_Indirect_Reference_Base,2, FALSE)), E100) -> 0.05 | K100: Loan Interest Rate (APR - %) | N100: 0.05 | P100: =IFERROR(INDIRECT(VLOOKUP(MID(CELL("filename",N100),FIND("]", CELL("filename",N100))+1,32) & "!" & ADDRESS(ROW(N100),COLUMN(N100),4,1), DB_Sensitivity_Indirect_Reference_Comp,2, FALSE)), N100) -> 0.05
B105: EV Charging Infrastructure Use and Installation Inputs
B106: Procurement 1 (Baseline) | K106: Procurement 2 (Comparison)
B108: % Depot/Home Charging | E108: 0.88 | G108: =IFERROR(INDIRECT(VLOOKUP(MID(CELL("filename",E108),FIND("]", CELL("filename",E108))+1,32) & "!" & ADDRESS(ROW(E108),COLUMN(E108),4,1), DB_Sensitivity_Indirect_Reference_Base,2, FALSE)), E108) -> 0.88 | K108: % Depot/Home Charging | N108: 1 | P108: =IFERROR(INDIRECT(VLOOKUP(MID(CELL("filename",N108),FIND("]", CELL("filename",N108))+1,32) & "!" & ADDRESS(ROW(N108),COLUMN(N108),4,1), DB_Sensitivity_Indirect_Reference_Base,2, FALSE)), N108) -> 1
B109: % Public Charging | E109: 0.12 | G109: =IFERROR(INDIRECT(VLOOKUP(MID(CELL("filename",E109),FIND("]", CELL("filename",E109))+1,32) & "!" & ADDRESS(ROW(E109),COLUMN(E109),4,1), DB_Sensitivity_Indirect_Reference_Base,2, FALSE)), E109) -> 0.12 | K109: % Public Charging | N109: 0 | P109: =IFERROR(INDIRECT(VLOOKUP(MID(CELL("filename",N109),FIND("]", CELL("filename",N109))+1,32) & "!" & ADDRESS(ROW(N109),COLUMN(N109),4,1), DB_Sensitivity_Indirect_Reference_Base,2, FALSE)), N109) -> 0
B110: % En Route Charging | E110: =MAX(1-Base_Percent_Home_Charging-Base_Percent_Public_Charging, 0) -> 0 | G110: =IFERROR(INDIRECT(VLOOKUP(MID(CELL("filename",E110),FIND("]", CELL("filename",E110))+1,32) & "!" & ADDRESS(ROW(E110),COLUMN(E110),4,1), DB_Sensitivity_Indirect_Reference_Base,2, FALSE)), E110) -> 0 | K110: % En Route Charging | N110: =MAX(1-Comp_Percent_Home_Charging-Comp_Percent_Public_Charging, 0) -> 0 | P110: =IFERROR(INDIRECT(VLOOKUP(MID(CELL("filename",N110),FIND("]", CELL("filename",N110))+1,32) & "!" & ADDRESS(ROW(N110),COLUMN(N110),4,1), DB_Sensitivity_Indirect_Reference_Base,2, FALSE)), N110) -> 0
B111: Maximum Power for Public Charging Only (kW) | E111: 50 | F111: 50 | G111: =IFERROR(INDIRECT(VLOOKUP(MID(CELL("filename",E111),FIND("]", CELL("filename",E111))+1,32) & "!" & ADDRESS(ROW(E111),COLUMN(E111),4,1), DB_Sensitivity_Indirect_Reference_Base,2, FALSE)), E111) -> 50 | K111: Maximum Power for Public Charging Only (kW) | N111: 50 | O111: 50 | P111: =IFERROR(INDIRECT(VLOOKUP(MID(CELL("filename",N111),FIND("]", CELL("filename",N111))+1,32) & "!" & ADDRESS(ROW(N111),COLUMN(N111),4,1), DB_Sensitivity_Indirect_Reference_Comp,2, FALSE)), N111) -> 50
B113: Procurement Includes EV Charging? | E113: No | K113: Procurement Includes EV Charging? | N113: No
B114: Charging Level | E114: Level 2 | K114: Charging Level | N114: DC Fast Charging
B115: Number of EV Charging Stations Needed (#) | E115: 0 | G115: =IFERROR(INDIRECT(VLOOKUP(MID(CELL("filename",E115),FIND("]", CELL("filename",E115))+1,32) & "!" & ADDRESS(ROW(E115),COLUMN(E115),4,1), DB_Sensitivity_Indirect_Reference_Base,2, FALSE)), E115) -> 0 | K115: Number of EV Charging Stations Needed (#) | N115: 0 | P115: =IFERROR(INDIRECT(VLOOKUP(MID(CELL("filename",N115),FIND("]", CELL("filename",N115))+1,32) & "!" & ADDRESS(ROW(N115),COLUMN(N115),4,1), DB_Sensitivity_Indirect_Reference_Comp,2, FALSE)), N115) -> 0
B116: Charging Equipment Cost ($/Station) | E116: 0 | F116: =SUMIFS(DB_Charging_Infrastructure[Cost],DB_Charging_Infrastructure[Charging Level], _Base_Charging_Level, DB_Charging_Infrastructure[Market], _Market, DB_Charging_Infrastructure[Description],B116) -> 834 | G116: =IFERROR(INDIRECT(VLOOKUP(MID(CELL("filename",E116),FIND("]", CELL("filename",E116))+1,32) & "!" & ADDRESS(ROW(E116),COLUMN(E116),4,1), DB_Sensitivity_Indirect_Reference_Base,2, FALSE)), E116) -> 0 | H116: =SUM(G116:G118) -> 0 | K116: Charging Equipment Cost ($/Station) | N116: 0 | O116: =SUMIFS(DB_Charging_Infrastructure[Cost],DB_Charging_Infrastructure[Charging Level], _Comp_Charging_Level, DB_Charging_Infrastructure[Market], _Market, DB_Charging_Infrastructure[Description],K116) -> 38000 | P116: =IFERROR(INDIRECT(VLOOKUP(MID(CELL("filename",N116),FIND("]", CELL("filename",N116))+1,32) & "!" & ADDRESS(ROW(N116),COLUMN(N116),4,1), DB_Sensitivity_Indirect_Reference_Comp,2, FALSE)), N116) -> 0 | Q116: =SUM(P116:P118) -> 0
B117: Construction and Equipment Installation Cost ($/Station) | E117: 0 | F117: =SUMIFS(DB_Charging_Infrastructure[Cost],DB_Charging_Infrastructure[Charging Level], _Base_Charging_Level, DB_Charging_Infrastructure[Market], _Market, DB_Charging_Infrastructure[Description],B117) -> 2180 | G117: =IFERROR(INDIRECT(VLOOKUP(MID(CELL("filename",E117),FIND("]", CELL("filename",E117))+1,32) & "!" & ADDRESS(ROW(E117),COLUMN(E117),4,1), DB_Sensitivity_Indirect_Reference_Base,2, FALSE)), E117) -> 0 | K117: Construction and Equipment Installation Cost ($/Station) | N117: 0 | O117: =SUMIFS(DB_Charging_Infrastructure[Cost],DB_Charging_Infrastructure[Charging Level], _Comp_Charging_Level, DB_Charging_Infrastructure[Market], _Market, DB_Charging_Infrastructure[Description],K117) -> 20000 | P117: =IFERROR(INDIRECT(VLOOKUP(MID(CELL("filename",N117),FIND("]", CELL("filename",N117))+1,32) & "!" & ADDRESS(ROW(N117),COLUMN(N117),4,1), DB_Sensitivity_Indirect_Reference_Comp,2, FALSE)), N117) -> 0
B118: Electric Utility Upgrades and Grid Interconnection Cost ($/Site) | E118: 0 | F118: =SUMIFS(DB_Charging_Infrastructure[Cost],DB_Charging_Infrastructure[Charging Level], _Base_Charging_Level, DB_Charging_Infrastructure[Market], _Market, DB_Charging_Infrastructure[Description],B118) -> 0 | G118: =IFERROR(INDIRECT(VLOOKUP(MID(CELL("filename",E118),FIND("]", CELL("filename",E118))+1,32) & "!" & ADDRESS(ROW(E118),COLUMN(E118),4,1), DB_Sensitivity_Indirect_Reference_Base,2, FALSE)), E118) -> 0 | K118: Electric Utility Upgrades and Grid Interconnection Cost ($/Site) | N118: 0 | O118: =SUMIFS(DB_Charging_Infrastructure[Cost],DB_Charging_Infrastructure[Charging Level], _Comp_Charging_Level, DB_Charging_Infrastructure[Market], _Market, DB_Charging_Infrastructure[Description],K118) -> 0 | P118: =IFERROR(INDIRECT(VLOOKUP(MID(CELL("filename",N118),FIND("]", CELL("filename",N118))+1,32) & "!" & ADDRESS(ROW(N118),COLUMN(N118),4,1), DB_Sensitivity_Indirect_Reference_Comp,2, FALSE)), N118) -> 0
B119: Maintenance and Network Service Cost ($/Station/Year) | E119: 0 | F119: =SUMIFS(DB_Charging_Infrastructure[Cost],DB_Charging_Infrastructure[Charging Level], _Base_Charging_Level, DB_Charging_Infrastructure[Market], _Market, DB_Charging_Infrastructure[Description],B119) -> 25.02 | G119: =IFERROR(INDIRECT(VLOOKUP(MID(CELL("filename",E119),FIND("]", CELL("filename",E119))+1,32) & "!" & ADDRESS(ROW(E119),COLUMN(E119),4,1), DB_Sensitivity_Indirect_Reference_Base,2, FALSE)), E119) -> 0 | K119: Maintenance and Network Service Cost ($/Station/Year) | N119: 0 | O119: =SUMIFS(DB_Charging_Infrastructure[Cost],DB_Charging_Infrastructure[Charging Level], _Comp_Charging_Level, DB_Charging_Infrastructure[Market], _Market, DB_Charging_Infrastructure[Description],K119) -> 1140 | P119: =IFERROR(INDIRECT(VLOOKUP(MID(CELL("filename",N119),FIND("]", CELL("filename",N119))+1,32) & "!" & ADDRESS(ROW(N119),COLUMN(N119),4,1), DB_Sensitivity_Indirect_Reference_Comp,2, FALSE)), N119) -> 0
B120: Ownership Structure | E120: Purchase (Cash) | H120: =IF(IFERROR(FIND("Cash",_Base_Inf_Ownership_Structure,1),0)>0,TRUE,FALSE) -> TRUE | K120: Ownership Structure | N120: Purchase (Cash) | Q120: =IF(IFERROR(FIND("Cash",_Comp_Inf_Ownership_Structure,1),0)>0,TRUE,FALSE) -> TRUE
B121: Loan | K121: Loan
B122: Cash Upfront / Down Payment ($) | E122: 0 | G122: =IFERROR(INDIRECT(VLOOKUP(MID(CELL("filename",E122),FIND("]", CELL("filename",E122))+1,32) & "!" & ADDRESS(ROW(E122),COLUMN(E122),4,1), DB_Sensitivity_Indirect_Reference_Base,2, FALSE)), E122) -> 0 | K122: Cash Upfront / Down Payment ($) | N122: 0 | P122: =IFERROR(INDIRECT(VLOOKUP(MID(CELL("filename",N122),FIND("]", CELL("filename",N122))+1,32) & "!" & ADDRESS(ROW(N122),COLUMN(N122),4,1), DB_Sensitivity_Indirect_Reference_Base,2, FALSE)), N122) -> 0
B123: Loan Term (Years) | E123: 0 | G123: =IFERROR(INDIRECT(VLOOKUP(MID(CELL("filename",E123),FIND("]", CELL("filename",E123))+1,32) & "!" & ADDRESS(ROW(E123),COLUMN(E123),4,1), DB_Sensitivity_Indirect_Reference_Base,2, FALSE)), E123) -> 0 | K123: Loan Term (Years) | N123: 0 | P123: =IFERROR(INDIRECT(VLOOKUP(MID(CELL("filename",N123),FIND("]", CELL("filename",N123))+1,32) & "!" & ADDRESS(ROW(N123),COLUMN(N123),4,1), DB_Sensitivity_Indirect_Reference_Base,2, FALSE)), N123) -> 0
B124: Interest Rate (APR - %) | E124: 0 | G124: =IFERROR(INDIRECT(VLOOKUP(MID(CELL("filename",E124),FIND("]", CELL("filename",E124))+1,32) & "!" & ADDRESS(ROW(E124),COLUMN(E124),4,1), DB_Sensitivity_Indirect_Reference_Base,2, FALSE)), E124) -> 0 | K124: Interest Rate (APR - %) | N124: 0 | P124: =IFERROR(INDIRECT(VLOOKUP(MID(CELL("filename",N124),FIND("]", CELL("filename",N124))+1,32) & "!" & ADDRESS(ROW(N124),COLUMN(N124),4,1), DB_Sensitivity_Indirect_Reference_Base,2, FALSE)), N124) -> 0
B127: Rate-Informed Electricity Cost | K127: Rate-Informed Electricity Cost
B128: Procurement 1 (Baseline) | K128: Procurement 2 (Comparison)
B130: Use Rate-Informed Electricity Cost? | E130: No | K130: Use Rate-Informed Electricity Cost? | N130: Yes
B131: Use User-Defined Custom Rate Structure? | E131: No | K131: Use User-Defined Custom Rate Structure? | N131: No
B132: Custom Rate Structure Overrides Utility Rate | K132: Custom Rate Structure Overrides Utility Rate
B134: Utility | E134: Southern California Edison Co | K134: Utility | N134: Southern California Edison Co
B135: Rate Structure Name | E135: Time-Of-Use Agricultural and Pumping-Small to Medium: TOU-PA-2 | K135: Rate Structure Name | N135: Time-Of-Use Agricultural and Pumping-Small to Medium: TOU-PA-2
B138: Peak Shave / Demand Charge Management? | E138: No | K138: Peak Shave / Demand Charge Management? | N138: No
B139: Operating Days per Year | E139: 200 | K139: Operating Days per Year | N139: 200
B140: Max Charging Power (kW) | E140: 50 | F140: 6.6, 50 | K140: Max Charging Power (kW) | N140: 10 | O140: 6.6, 50
B141: Charging Window Start Time | E141: 19:00:00 | F141: =HOUR(Base_Charging_Start_Time) -> 19 | K141: Charging Window Start Time | N141: 19:00:00 | O141: =HOUR(Base_Charging_Start_Time) -> 19
B142: Charging Window End Time | E142: 10:00:00 | F142: =HOUR(Base_Charging_End_Time) -> 10 | K142: Charging Window End Time | N142: 04:00:00 | O142: =HOUR(Base_Charging_End_Time) -> 10
B143: Charging Time (hours) | E143: =IF(Base_Charging_End_Time<Base_Charging_Start_Time, 24 - HOUR(Base_Charging_Start_Time) + HOUR(Base_Charging_End_Time), HOUR(Base_Charging_End_Time) - HOUR(Base_Charging_Start_Time)) -> 15 | K143: Charging Time (hours) | N143: =IF(Comp_Charging_End_Time<Comp_Charging_Start_Time, 24 - HOUR(Comp_Charging_Start_Time) + HOUR(Comp_Charging_End_Time), HOUR(Comp_Charging_End_Time) - HOUR(Comp_Charging_Start_Time)) -> 9
B144: Min Time (hours) | E144: =ROUNDUP(Base_Daily_Energy_Need_Ex/Base_Fully_Rated_Power_Ex, 0) -> 1 | F144: =E144<=E143 -> TRUE | K144: Min Time (hours) | N144: =ROUNDUP(Comp_Daily_Energy_Need_Ex/Comp_Fully_Rated_Power_Ex, 0) -> 7 | O144: =N144<=N143 -> TRUE
B146: Automatically determine the interval within the charging window where average electricity cost is cheapest. This process will delay the charging start and often result in lower energy costs. | K146: Automatically determine the interval within the charging window where average electricity cost is cheapest. This process will delay the charging start and often result in lower energy costs.
B147: Time of Use Delay (hours) | E147: 0 | K147: Time of Use Delay (hours) | N147: 4
B148: Charging Period Start Time (24hr) | E148: =Base_Charging_Start_Time + TIME(Base_TOU_Offset, 0,0) -> 19:00:00 | K148: Charging Period Start Time (24hr) | N148: =Comp_Charging_Start_Time + TIME(Comp_TOU_Offset, 0,0) -> 23:00:00
B149: Charging Period End Time (24hr) | E149: =Base_Charging_End_Time -> 10:00:00 | K149: Charging Period End Time (24hr) | N149: =Comp_Charging_End_Time -> 04:00:00
B151: Calculated Rate ($/kWh) | E151: =SUM(Base_Seasonal_Bill[Total Seasonal Charge])/(Base_Daily_Energy_Need_Ex*Base_Operating_Days_Per_Year) -> 0 | K151: Calculated Rate ($/kWh) | N151: =SUM(Comp_Seasonal_Bill[Total Seasonal Charge])/(Comp_Daily_Energy_Need_Ex*Comp_Operating_Days_Per_Year) -> 0

Sheet Inputs - Custom Utility Rate (hidden)
A1: Inputs - Custom Utility Rate
A2: <<-- Return to Inputs
B4: Baseline Vehicle Rate Structure | I4: Comparison Vehicle Rate Structure
B5: Months in Summer | C5: Column1 | D5: Months in Winter | I5: Months in Summer | J5: Column1 | K5: Months in Winter
B6: 8 | D6: =12-Base_Custom_Rate_Months_User[[#This Row],[Months in Summer]] -> 4 | I6: 8 | K6: =12-Comp_Custom_Rate_Months_User[[#This Row],[Months in Summer]] -> 4
B8: Hour of Day | C8: Hour | D8: Demand Charge - Winter ($/kW) | E8: Demand Charge - Summer ($/kW) | F8: Energy Charge - Summer ($/kWh) | G8: Energy Charge - Winter ($/kWh) | I8: Hour of Day | J8: Hour | K8: Demand Charge - Winter ($/kW) | L8: Demand Charge - Summer ($/kW) | M8: Energy Charge - Summer ($/kWh) | N8: Energy Charge - Winter ($/kWh)
B9: 12:00:00 | C9: 0 | D9: 6.5 | E9: 8.5 | F9: 0.035 | G9: 0.03 | I9: 12:00:00 | J9: 0 | K9: 6.5 | L9: 8.5 | M9: 0.035 | N9: 0.03
B10: 1.041666667 | C10: 1 | D10: 6.5 | E10: 8.5 | F10: 0.035 | G10: 0.03 | I10: 1.041666667 | J10: 1 | K10: 6.5 | L10: 8.5 | M10: 0.035 | N10: 0.03
B11: 1.083333333 | C11: 2 | D11: 6.5 | E11: 8.5 | F11: 0.035 | G11: 0.03 | I11: 1.083333333 | J11: 2 | K11: 6.5 | L11: 8.5 | M11: 0.035 | N11: 0.03
B12: 1.125 | C12: 3 | D12: 6.5 | E12: 8.5 | F12: 0.035 | G12: 0.03 | I12: 1.125 | J12: 3 | K12: 6.5 | L12: 8.5 | M12: 0.035 | N12: 0.03
B13: 1.166666667 | C13: 4 | D13: 6.5 | E13: 8.5 | F13: 0.035 | G13: 0.03 | I13: 1.166666667 | J13: 4 | K13: 6.5 | L13: 8.5 | M13: 0.035 | N13: 0.03
B14: 1.208333333 | C14: 5 | D14: 6.5 | E14: 8.5 | F14: 0.035 | G14: 0.03 | I14: 1.208333333 | J14: 5 | K14: 6.5 | L14: 8.5 | M14: 0.035 | N14: 0.03
B15: 1.25 | C15: 6 | D15: 6.5 | E15: 8.5 | F15: 0.035 | G15: 0.03 | I15: 1.25 | J15: 6 | K15: 6.5 | L15: 8.5 | M15: 0.035 | N15: 0.03
B16: 1.291666667 | C16: 7 | D16: 6.5 | E16: 8.5 | F16: 0.035 | G16: 0.03 | I16: 1.291666667 | J16: 7 | K16: 6.5 | L16: 8.5 | M16: 0.035 | N16: 0.03
B17: 1.333333333 | C17: 8 | D17: 9 | E17: 12.5 | F17: 0.085 | G17: 0.075 | I17: 1.333333333 | J17: 8 | K17: 9 | L17: 12.5 | M17: 0.085 | N17: 0.075
B18: 1.375 | C18: 9 | D18: 9 | E18: 12.5 | F18: 0.085 | G18: 0.075 | I18: 1.375 | J18: 9 | K18: 9 | L18: 12.5 | M18: 0.085 | N18: 0.075
B19: 1.416666667 | C19: 10 | D19: 9 | E19: 12.5 | F19: 0.085 | G19: 0.075 | I19: 1.416666667 | J19: 10 | K19: 9 | L19: 12.5 | M19: 0.085 | N19: 0.075
B20: 1.458333333 | C20: 11 | D20: 9 | E20: 12.5 | F20: 0.085 | G20: 0.075 | I20: 1.458333333 | J20: 11 | K20: 9 | L20: 12.5 | M20: 0.085 | N20: 0.075
B21: 1.5 | C21: 12 | D21: 9 | E21: 12.5 | F21: 0.085 | G21: 0.075 | I21: 1.5 | J21: 12 | K21: 9 | L21: 12.5 | M21: 0.085 | N21: 0.075
B22: 1.541666667 | C22: 13 | D22: 9 | E22: 12.5 | F22: 0.085 | G22: 0.075 | I22: 1.541666667 | J22: 13 | K22: 9 | L22: 12.5 | M22: 0.085 | N22: 0.075
B23: 1.583333333 | C23: 14 | D23: 9 | E23: 12.5 | F23: 0.085 | G23: 0.075 | I23: 1.583333333 | J23: 14 | K23: 9 | L23: 12.5 | M23: 0.085 | N23: 0.075
B24: 1.625 | C24: 15 | D24: 9 | E24: 12.5 | F24: 0.085 | G24: 0.075 | I24: 1.625 | J24: 15 | K24: 9 | L24: 12.5 | M24: 0.085 | N24: 0.075
B25: 1.666666667 | C25: 16 | D25: 12 | E25: 18 | F25: 0.115 | G25: 0.095 | I25: 1.666666667 | J25: 16 | K25: 12 | L25: 18 | M25: 0.115 | N25: 0.095
B26: 1.708333333 | C26: 17 | D26: 12 | E26: 18 | F26: 0.115 | G26: 0.095 | I26: 1.708333333 | J26: 17 | K26: 12 | L26: 18 | M26: 0.115 | N26: 0.095
B27: 1.75 | C27: 18 | D27: 12 | E27: 18 | F27: 0.115 | G27: 0.095 | I27: 1.75 | J27: 18 | K27: 12 | L27: 18 | M27: 0.115 | N27: 0.095
B28: 1.791666667 | C28: 19 | D28: 12 | E28: 18 | F28: 0.115 | G28: 0.095 | I28: 1.791666667 | J28: 19 | K28: 12 | L28: 18 | M28: 0.115 | N28: 0.095
B29: 1.833333333 | C29: 20 | D29: 12 | E29: 18 | F29: 0.115 | G29: 0.095 | I29: 1.833333333 | J29: 20 | K29: 12 | L29: 18 | M29: 0.115 | N29: 0.095
B30: 1.875 | C30: 21 | D30: 12 | E30: 18 | F30: 0.115 | G30: 0.095 | I30: 1.875 | J30: 21 | K30: 12 | L30: 18 | M30: 0.115 | N30: 0.095
B31: 1.916666667 | C31: 22 | D31: 6.5 | E31: 8.5 | F31: 0.035 | G31: 0.03 | I31: 1.916666667 | J31: 22 | K31: 6.5 | L31: 8.5 | M31: 0.035 | N31: 0.03
B32: 1.958333333 | C32: 23 | D32: 6.5 | E32: 8.5 | F32: 0.035 | G32: 0.03 | I32: 1.958333333 | J32: 23 | K32: 6.5 | L32: 8.5 | M32: 0.035 | N32: 0.03

Sheet Results
A1: Results - Fleet Procurement Analysis Tool
A2: ="Procurement Name: " & Procurement_Name -> Procurement Name: Demo Fleet Procurement
A3: Procurement Summary
L4: Procurement Details
B5: ="Vehicle Cost per " & Constant_Distance_Metric & " (Nominal)" -> Vehicle Cost per Mile (Nominal) | M5: =Base_V1_Type_Ex&" (Baseline)" -> 2023 Chevrolet Bolt EUV BEV (Baseline) | N5: =Comp_V1_Type_Ex & " (Comparison)" -> 2024 Toyota Corolla ICE (Comparison)
L6: Procurement Type | M6: =_Base_V1_Ownership_Structure -> Purchase (Cash) | N6: =_Comp_V1_Ownership_Structure -> Purchase (Cash)
L7: Number of Vehicles Procured | M7: =Base_V1_Num_Vehicles_Modeled -> 1 | N7: =Comp_V1_Num_Vehicles_Modeled -> 1
L8: Years of Use/Ownership | M8: =Base_V1_Years_Usage_Modeled -> 7 | N8: =Comp_V1_Years_Usage_Modeled -> 7
L9: =Constant_Distance_Metric & "s Procured" -> Miles Procured | M9: =Base_V1_Years_Usage_Modeled*Base_V1_VMT_Modeled*Base_V1_Num_Vehicles_Modeled -> 76419 | N9: =Comp_V1_Years_Usage_Modeled*Comp_V1_VMT_Modeled*Comp_V1_Num_Vehicles_Modeled -> 76419
L10: Total NPV Vehicle and Operating Cost | M10: =SUM(M11:M14) -> 38668.11498 | N10: =SUM(N11:N14) -> 40310.05282
L11: Total Tax Incentives Captured | M11: =IF(Base_V1_Tax_Incentives_Monetized="Yes",(Base_V1_Federal_Tax_Incentives_Modeled*Base_V1_Num_Vehicles_Modeled)+IF(Base_V1_State_Tax_Incentive_Cap_Modeled=0,Base_V1_State_Tax_Incentives_Modeled*Base_V1_Num_Vehicles_Modeled,MIN(Base_V1_State_Tax_Incentive_Cap_Modeled,Base_V1_State_Tax_Incentives_Modeled*Base_V1_Num_Vehicles_Modeled)),0) -> 7500 | N11: =IF(Comp_V1_Tax_Incentives_Monetized="Yes",(Comp_V1_Federal_Tax_Incentives_Modeled*Comp_V1_Num_Vehicles_Modeled)+IF(Comp_V1_State_Tax_Incentive_Cap_Modeled=0,Comp_V1_State_Tax_Incentives_Modeled*Comp_V1_Num_Vehicles_Modeled,MIN(Comp_V1_State_Tax_Incentive_Cap_Modeled,Comp_V1_State_Tax_Incentives_Modeled*Comp_V1_Num_Vehicles_Modeled)),0) -> 0
L12: Total Non-Tax Incentive Captured | M12: =Base_V1_Other_Incentives_Modeled*Base_V1_Num_Vehicles_Modeled -> 0 | N12: =Comp_V1_Other_Incentives_Modeled*Comp_V1_Num_Vehicles_Modeled -> 0
L13: Total Discounts Captured | M13: =IF(_Base_V1_Pricing_Approach="MSRP Less Discounts",Base_V1_Discounts_Modeled*Base_V1_Num_Vehicles_Modeled,0) -> 0 | N13: =IF(_Comp_V1_Pricing_Approach="MSRP Less Discounts",Comp_V1_Discounts_Modeled*Comp_V1_Num_Vehicles_Modeled,0) -> 0
L14: NPV Vehicle Total Cost less Incentives and Discounts | M14: =-Base_V1_Annualized_Cost_Ownership_Ex*Base_V1_Years_Usage_Modeled*Base_V1_Num_Vehicles_Modeled -> 31168.11498 | N14: =-Comp_V1_Annualized_Cost_Ownership_Ex*Comp_V1_Years_Usage_Modeled*Comp_V1_Num_Vehicles_Modeled -> 40310.05282
L15: NPV Total Cost of Infrastructure | M15: =-Base_Inf_Annualized_Cost_Ownership_Ex*Base_V1_Years_Usage_Modeled -> 0 | N15: =-Comp_Inf_Annualized_Cost_Ownership_Ex*Comp_V1_Years_Usage_Modeled -> 0
L16: Total NPV Cost | M16: =SUM(M14:M15) -> 31168.11498 | N16: =SUM(N14:N15) -> 40310.05282
B17: ="The baseline is "& ABS(ROUND(('Results Tables'!C31-'Results Tables'!D31)/'Results Tables'!C31*100,2))&"% "&IF(ROUND(('Results Tables'!C31-'Results Tables'!D31)/'Results Tables'!C31*100,2)>0,"more","less")&" expensive than the comparison vehicle" -> The baseline is 29.33% less expensive than the comparison vehicle | L17: ="Total NPV Cost / " & Constant_Distance_Metric -> Total NPV Cost / Mile | M17: =M16/M9 -> 0.4078581895 | N17: =N16/N9 -> 0.527487311
A19: Societal Benefit Summary
B30: Fleet Gasoline/Diesel Use (Total All Vehicles)
B32: =Base_V1_Type_Ex&" Based Fleet" -> 2023 Chevrolet Bolt EUV BEV Based Fleet | F32: VS | G32: =Comp_V1_Type_Ex&" Based Fleet" -> 2024 Toyota Corolla ICE Based Fleet | K32: = | L32: ="The baseline fleet uses "& TEXT(ABS(ROUND(B33-G33,0)),"#,##0")&" "&IF(ROUND(B33-G33,0)>0,"more ","fewer ")& LOWER(Constant_Volume_Metric) & "s of gasoline/diesel than the comparison fleet" -> The baseline fleet uses 2,152 fewer gallons of gasoline/diesel than the comparison fleet
B33: ='Results Tables'!C38 -> 0 | D33: =LOWER(Constant_Volume_Metric) & "s" -> gallons | G33: ='Results Tables'!D38 -> 2152.196684 | I33: =LOWER(Constant_Volume_Metric) & "s" -> gallons
A35: Cash Flow Summary
A56: Sensitivity Analysis | G56: Update sensitivity analysis results if Calculation Options is set to Manual or Automatic Excerpt for Tables

Sheet Financial Model
A1: Financial Models - Fleet Procurement Analysis Tool
D2: Year 0 | E2: Year 1 | F2: Year 2 | G2: Year 3 | H2: Year 4 | I2: Year 5 | J2: Year 6 | K2: Year 7 | L2: Year 8 | M2: Year 9 | N2: Year 10 | O2: Year 11 | P2: Year 12 | Q2: Year 13 | R2: Year 14 | S2: Year 15 | T2: Year 16 | U2: Year 17 | V2: Year 18 | W2: Year 19 | X2: Year 20 | Y2: Year 21 | Z2: Year 22 | AA2: Year 23 | AB2: Year 24 | AC2: Year 25
B3: Baseline Vehicle 1
D4: 0 | E4: 1 | F4: 2 | G4: 3 | H4: 4 | I4: 5 | J4: 6 | K4: 7 | L4: 8 | M4: 9 | N4: 10 | O4: 11 | P4: 12 | Q4: 13 | R4: 14 | S4: 15 | T4: 16 | U4: 17 | V4: 18 | W4: 19 | X4: 20 | Y4: 21 | Z4: 22 | AA4: 23 | AB4: 24 | AC4: 25
D5: Year 0 | E5: Year 1 | F5: Year 2 | G5: Year 3 | H5: Year 4 | I5: Year 5 | J5: Year 6 | K5: Year 7 | L5: Year 8 | M5: Year 9 | N5: Year 10 | O5: Year 11 | P5: Year 12 | Q5: Year 13 | R5: Year 14 | S5: Year 15 | T5: Year 16 | U5: Year 17 | V5: Year 18 | W5: Year 19 | X5: Year 20 | Y5: Year 21 | Z5: Year 22 | AA5: Year 23 | AB5: Year 24 | AC5: Year 25
B6: Depreciation Calculations
B7: Fair Market Value - BEV | D7: =IF(_Base_V1_Vehicle_Drivetrain="BEV",Base_V1_Base_Price_Ex,0) -> 30050 | E7: =IF(_Base_V1_Vehicle_Vehicle_Class=Constant_Passenger_Light_Duty, IF(_Base_V1_Vehicle_Drivetrain="BEV",MAX(IF(_Base_V1_Vehicle_Drivetrain="BEV",(Reg_BEV_Const_Ex+Reg_BEV_Age_Coef_Ex*(COLUMN(E5)-COLUMN($D5))+Reg_BEV_Agesq_Coef_Ex*((COLUMN(E5)-COLUMN($D5))^2)+Reg_BEV_Range_Coef_Ex*Constant_Baseline_Electric_Range+Reg_BEV_Mileage_Coef_Ex*Base_V1_VMT_Modeled*(COLUMN(E5)-COLUMN($D5)))*Base_V1_MSRP_Modeled,0),300),0), IF(COLUMN(E5)-COLUMN($D5)=1, 'Financial Model'!D7*0.77, 'Financial Model'!D7*0.85)) -> 23201.10806 | F7: =IF(_Base_V1_Vehicle_Vehicle_Class=Constant_Passenger_Light_Duty, IF(_Base_V1_Vehicle_Drivetrain="BEV",MAX(IF(_Base_V1_Vehicle_Drivetrain="BEV",(Reg_BEV_Const_Ex+Reg_BEV_Age_Coef_Ex*(COLUMN(F5)-COLUMN($D5))+Reg_BEV_Agesq_Coef_Ex*((COLUMN(F5)-COLUMN($D5))^2)+Reg_BEV_Range_Coef_Ex*Constant_Baseline_Electric_Range+Reg_BEV_Mileage_Coef_Ex*Base_V1_VMT_Modeled*(COLUMN(F5)-COLUMN($D5)))*Base_V1_MSRP_Modeled,0),300),0), IF(COLUMN(F5)-COLUMN($D5)=1, 'Financial Model'!E7*0.77, 'Financial Model'!E7*0.85)) -> 20147.53113 | G7: =IF(_Base_V1_Vehicle_Vehicle_Class=Constant_Passenger_Light_Duty, IF(_Base_V1_Vehicle_Drivetrain="BEV",MAX(IF(_Base_V1_Vehicle_Drivetrain="BEV",(Reg_BEV_Const_Ex+Reg_BEV_Age_Coef_Ex*(COLUMN(G5)-COLUMN($D5))+Reg_BEV_Agesq_Coef_Ex*((COLUMN(G5)-COLUMN($D5))^2)+Reg_BEV_Range_Coef_Ex*Constant_Baseline_Electric_Range+Reg_BEV_Mileage_Coef_Ex*Base_V1_VMT_Modeled*(COLUMN(G5)-COLUMN($D5)))*Base_V1_MSRP_Modeled,0),300),0), IF(COLUMN(G5)-COLUMN($D5)=1, 'Financial Model'!F7*0.77, 'Financial Model'!F7*0.85)) -> 17472.58419 | H7: =IF(_Base_V1_Vehicle_Vehicle_Class=Constant_Passenger_Light_Duty, IF(_Base_V1_Vehicle_Drivetrain="BEV",MAX(IF(_Base_V1_Vehicle_Drivetrain="BEV",(Reg_BEV_Const_Ex+Reg_BEV_Age_Coef_Ex*(COLUMN(H5)-COLUMN($D5))+Reg_BEV_Agesq_Coef_Ex*((COLUMN(H5)-COLUMN($D5))^2)+Reg_BEV_Range_Coef_Ex*Constant_Baseline_Electric_Range+Reg_BEV_Mileage_Coef_Ex*Base_V1_VMT_Modeled*(COLUMN(H5)-COLUMN($D5)))*Base_V1_MSRP_Modeled,0),300),0), IF(COLUMN(H5)-COLUMN($D5)=1, 'Financial Model'!G7*0.77, 'Financial Model'!G7*0.85)) -> 15176.26725 | I7: =IF(_Base_V1_Vehicle_Vehicle_Class=Constant_Passenger_Light_Duty, IF(_Base_V1_Vehicle_Drivetrain="BEV",MAX(IF(_Base_V1_Vehicle_Drivetrain="BEV",(Reg_BEV_Const_Ex+Reg_BEV_Age_Coef_Ex*(COLUMN(I5)-COLUMN($D5))+Reg_BEV_Agesq_Coef_Ex*((COLUMN(I5)-COLUMN($D5))^2)+Reg_BEV_Range_Coef_Ex*Constant_Baseline_Electric_Range+Reg_BEV_Mileage_Coef_Ex*Base_V1_VMT_Modeled*(COLUMN(I5)-COLUMN($D5)))*Base_V1_MSRP_Modeled,0),300),0), IF(COLUMN(I5)-COLUMN($D5)=1, 'Financial Model'!H7*0.77, 'Financial Model'!H7*0.85)) -> 13258.58032 | J7: =IF(_Base_V1_Vehicle_Vehicle_Class=Constant_Passenger_Light_Duty,IF($H7-$I7=0,0,MAX(Constant_DEP*I7, 300)),IF($H7-$I7=0,0,MAX((1-($H7-$I7)/$H7)*I6,300))) -> 12163.42158 | K7: 11158.72296 | L7: 10237.01244 | M7: 9391.435215 | N7: 8615.702666 | O7: 7904.045626 | P7: 7251.171457 | Q7: 6652.224695 | R7: 6102.750935 | S7: 5598.663708 | T7: 5136.214086 | U7: 4711.962802 | V7: 4322.754675 | W7: 3965.695138 | X7: 3638.12872 | Y7: 3337.619288 | Z7: 3061.931935 | AA7: 2809.016357 | AB7: 2576.991606 | AC7: 2364.132099
B8: Fair Market Value - PHEV | D8: =IF(_Base_V1_Vehicle_Drivetrain="PHEV",Base_V1_Base_Price_Ex,0) -> 0 | E8: =IF(_Base_V1_Vehicle_Vehicle_Class=Constant_Passenger_Light_Duty,IF(_Base_V1_Vehicle_Drivetrain="PHEV",MAX(IF(_Base_V1_Vehicle_Drivetrain="PHEV",Reg_PHEV_Const_Ex+Reg_PHEV_Age_Coef_Ex*(COLUMN(E5)-COLUMN($D5))+Reg_PHEV_Agesq_Coef_Ex*((COLUMN(E5)-COLUMN($D5))^2)+Reg_PHEV_MSRP_Coef_Ex*Base_V1_Base_Price_Ex+Reg_PHEV_Range_Coef_Ex*Constant_Baseline_Electric_Range+Reg_PHEV_Mileage_Coef_Ex*Base_V1_VMT_Modeled*(COLUMN(E5)-COLUMN($D5)),0),300),0),IF(COLUMN(E5)-COLUMN($D5)=1, 'Financial Model'!D8*0.77, 'Financial Model'!D8*0.85)) -> 0 | F8: =IF(_Base_V1_Vehicle_Vehicle_Class=Constant_Passenger_Light_Duty,IF(_Base_V1_Vehicle_Drivetrain="PHEV",MAX(IF(_Base_V1_Vehicle_Drivetrain="PHEV",Reg_PHEV_Const_Ex+Reg_PHEV_Age_Coef_Ex*(COLUMN(F5)-COLUMN($D5))+Reg_PHEV_Agesq_Coef_Ex*((COLUMN(F5)-COLUMN($D5))^2)+Reg_PHEV_MSRP_Coef_Ex*Base_V1_Base_Price_Ex+Reg_PHEV_Range_Coef_Ex*Constant_Baseline_Electric_Range+Reg_PHEV_Mileage_Coef_Ex*Base_V1_VMT_Modeled*(COLUMN(F5)-COLUMN($D5)),0),300),0),IF(COLUMN(F5)-COLUMN($D5)=1, 'Financial Model'!E8*0.77, 'Financial Model'!E8*0.85)) -> 0 | G8: =IF(_Base_V1_Vehicle_Vehicle_Class=Constant_Passenger_Light_Duty,IF(_Base_V1_Vehicle_Drivetrain="PHEV",MAX(IF(_Base_V1_Vehicle_Drivetrain="PHEV",Reg_PHEV_Const_Ex+Reg_PHEV_Age_Coef_Ex*(COLUMN(G5)-COLUMN($D5))+Reg_PHEV_Agesq_Coef_Ex*((COLUMN(G5)-COLUMN($D5))^2)+Reg_PHEV_MSRP_Coef_Ex*Base_V1_Base_Price_Ex+Reg_PHEV_Range_Coef_Ex*Constant_Baseline_Electric_Range+Reg_PHEV_Mileage_Coef_Ex*Base_V1_VMT_Modeled*(COLUMN(G5)-COLUMN($D5)),0),300),0),IF(COLUMN(G5)-COLUMN($D5)=1, 'Financial Model'!F8*0.77, 'Financial Model'!F8*0.85)) -> 0 | H8: =IF(_Base_V1_Vehicle_Vehicle_Class=Constant_Passenger_Light_Duty,IF(_Base_V1_Vehicle_Drivetrain="PHEV",MAX(IF(_Base_V1_Vehicle_Drivetrain="PHEV",Reg_PHEV_Const_Ex+Reg_PHEV_Age_Coef_Ex*(COLUMN(H5)-COLUMN($D5))+Reg_PHEV_Agesq_Coef_Ex*((COLUMN(H5)-COLUMN($D5))^2)+Reg_PHEV_MSRP_Coef_Ex*Base_V1_Base_Price_Ex+Reg_PHEV_Range_Coef_Ex*Constant_Baseline_Electric_Range+Reg_PHEV_Mileage_Coef_Ex*Base_V1_VMT_Modeled*(COLUMN(H5)-COLUMN($D5)),0),300),0),IF(COLUMN(H5)-COLUMN($D5)=1, 'Financial Model'!G8*0.77, 'Financial Model'!G8*0.85)) -> 0 | I8: =IF(_Base_V1_Vehicle_Vehicle_Class=Constant_Passenger_Light_Duty,IF(_Base_V1_Vehicle_Drivetrain="PHEV",MAX(IF(_Base_V1_Vehicle_Drivetrain="PHEV",Reg_PHEV_Const_Ex+Reg_PHEV_Age_Coef_Ex*(COLUMN(I5)-COLUMN($D5))+Reg_PHEV_Agesq_Coef_Ex*((COLUMN(I5)-COLUMN($D5))^2)+Reg_PHEV_MSRP_Coef_Ex*Base_V1_Base_Price_Ex+Reg_PHEV_Range_Coef_Ex*Constant_Baseline_Electric_Range+Reg_PHEV_Mileage_Coef_Ex*Base_V1_VMT_Modeled*(COLUMN(I5)-COLUMN($D5)),0),300),0),IF(COLUMN(I5)-COLUMN($D5)=1, 'Financial Model'!H8*0.77, 'Financial Model'!H8*0.85)) -> 0 | J8: =IF(_Base_V1_Vehicle_Vehicle_Class=Constant_Passenger_Light_Duty,IF($H8-$I8=0,0,MAX(Constant_DEP*I8, 300)),IF($H8-$I8=0,0,MAX((1-($H8-$I8)/$H8)*I7,300))) -> 0 | K8: 0 | L8: 0 | M8: 0 | N8: 0 | O8: 0 | P8: 0 | Q8: 0 | R8: 0 | S8: 0 | T8: 0 | U8: 0 | V8: 0 | W8: 0 | X8: 0 | Y8: 0 | Z8: 0 | AA8: 0 | AB8: 0 | AC8: 0
B9: Fair Market Value - ICE | D9: =IF(_Base_V1_Vehicle_Drivetrain="ICE",Base_V1_Base_Price_Ex,0) -> 0 | E9: =IF(_Base_V1_Vehicle_Vehicle_Class=Constant_Passenger_Light_Duty, IF(_Base_V1_Vehicle_Drivetrain="ICE",MAX(IF(_Base_V1_Vehicle_Drivetrain="ICE",Reg_ICE_Const_Ex+Reg_ICE_Age_Coef_Ex*(COLUMN(E5)-COLUMN($D5))+Reg_ICE_Agesq_Coef_Ex*(COLUMN(E5)-COLUMN($D5))^2+Reg_ICE_MSRP_Coef_Ex*Base_V1_Base_Price_Ex+Reg_ICE_MPG_Coef_Ex*Constant_Baseline_Fuel_Economy_Gas_City+Reg_ICE_Mileage_Coef_Ex*Base_V1_VMT_Modeled*(COLUMN(E5)-COLUMN($D5)),0),300),0), IF(COLUMN(E5)-COLUMN($D5)=1, 'Financial Model'!D9*0.77, 'Financial Model'!D9*0.85)) -> 0 | F9: =IF(_Base_V1_Vehicle_Vehicle_Class=Constant_Passenger_Light_Duty, IF(_Base_V1_Vehicle_Drivetrain="ICE",MAX(IF(_Base_V1_Vehicle_Drivetrain="ICE",Reg_ICE_Const_Ex+Reg_ICE_Age_Coef_Ex*(COLUMN(F5)-COLUMN($D5))+Reg_ICE_Agesq_Coef_Ex*(COLUMN(F5)-COLUMN($D5))^2+Reg_ICE_MSRP_Coef_Ex*Base_V1_Base_Price_Ex+Reg_ICE_MPG_Coef_Ex*Constant_Baseline_Fuel_Economy_Gas_City+Reg_ICE_Mileage_Coef_Ex*Base_V1_VMT_Modeled*(COLUMN(F5)-COLUMN($D5)),0),300),0), IF(COLUMN(F5)-COLUMN($D5)=1, 'Financial Model'!E9*0.77, 'Financial Model'!E9*0.85)) -> 0 | G9: =IF(_Base_V1_Vehicle_Vehicle_Class=Constant_Passenger_Light_Duty, IF(_Base_V1_Vehicle_Drivetrain="ICE",MAX(IF(_Base_V1_Vehicle_Drivetrain="ICE",Reg_ICE_Const_Ex+Reg_ICE_Age_Coef_Ex*(COLUMN(G5)-COLUMN($D5))+Reg_ICE_Agesq_Coef_Ex*(COLUMN(G5)-COLUMN($D5))^2+Reg_ICE_MSRP_Coef_Ex*Base_V1_Base_Price_Ex+Reg_ICE_MPG_Coef_Ex*Constant_Baseline_Fuel_Economy_Gas_City+Reg_ICE_Mileage_Coef_Ex*Base_V1_VMT_Modeled*(COLUMN(G5)-COLUMN($D5)),0),300),0), IF(COLUMN(G5)-COLUMN($D5)=1, 'Financial Model'!F9*0.77, 'Financial Model'!F9*0.85)) -> 0 | H9: =IF(_Base_V1_Vehicle_Vehicle_Class=Constant_Passenger_Light_Duty, IF(_Base_V1_Vehicle_Drivetrain="ICE",MAX(IF(_Base_V1_Vehicle_Drivetrain="ICE",Reg_ICE_Const_Ex+Reg_ICE_Age_Coef_Ex*(COLUMN(H5)-COLUMN($D5))+Reg_ICE_Agesq_Coef_Ex*(COLUMN(H5)-COLUMN($D5))^2+Reg_ICE_MSRP_Coef_Ex*Base_V1_Base_Price_Ex+Reg_ICE_MPG_Coef_Ex*Constant_Baseline_Fuel_Economy_Gas_City+Reg_ICE_Mileage_Coef_Ex*Base_V1_VMT_Modeled*(COLUMN(H5)-COLUMN($D5)),0),300),0), IF(COLUMN(H5)-COLUMN($D5)=1, 'Financial Model'!G9*0.77, 'Financial Model'!G9*0.85)) -> 0 | I9: =IF(_Base_V1_Vehicle_Vehicle_Class=Constant_Passenger_Light_Duty, IF(_Base_V1_Vehicle_Drivetrain="ICE",MAX(IF(_Base_V1_Vehicle_Drivetrain="ICE",Reg_ICE_Const_Ex+Reg_ICE_Age_Coef_Ex*(COLUMN(I5)-COLUMN($D5))+Reg_ICE_Agesq_Coef_Ex*(COLUMN(I5)-COLUMN($D5))^2+Reg_ICE_MSRP_Coef_Ex*Base_V1_Base_Price_Ex+Reg_ICE_MPG_Coef_Ex*Constant_Baseline_Fuel_Economy_Gas_City+Reg_ICE_Mileage_Coef_Ex*Base_V1_VMT_Modeled*(COLUMN(I5)-COLUMN($D5)),0),300),0), IF(COLUMN(I5)-COLUMN($D5)=1, 'Financial Model'!H9*0.77, 'Financial Model'!H9*0.85)) -> 0 | J9: =IF(_Base_V1_Vehicle_Vehicle_Class=Constant_Passenger_Light_Duty,IF($H9-$I9=0,0,MAX(Constant_DEP*I9, 300)),IF($H9-$I9=0,0,MAX((1-($H9-$I9)/$H9)*I8,300))) -> 0 | K9: 0 | L9: 0 | M9: 0 | N9: 0 | O9: 0 | P9: 0 | Q9: 0 | R9: 0 | S9: 0 | T9: 0 | U9: 0 | V9: 0 | W9: 0 | X9: 0 | Y9: 0 | Z9: 0 | AA9: 0 | AB9: 0 | AC9: 0
B11: Capital and Financing Costs
B12: Cash
B13: Cash Payment | D13: =IF(AND(Base_V1_Has_Cash_Purchase_Ex=TRUE,Base_V1_Has_Loan_Ex=FALSE,Base_V1_Has_Lease_Ex=FALSE,COLUMN(D5)-COLUMN($D5)=0),-(Base_V1_Base_Price_Ex-IF(Base_V1_Tax_Incentives_Monetized="Yes",Base_V1_Federal_Tax_Incentives_Modeled+IF(Base_V1_State_Tax_Incentive_Cap_Modeled=0,Base_V1_State_Tax_Incentives_Modeled,MIN(Base_V1_State_Tax_Incentive_Cap_Modeled,Base_V1_State_Tax_Incentives_Modeled*Base_V1_Num_Vehicles_Modeled)/Base_V1_Num_Vehicles_Modeled),0)-Base_V1_Other_Incentives_Modeled),IF(AND(Base_V1_Has_Cash_Purchase_Ex=TRUE,OR(Base_V1_Has_Loan_Ex=TRUE,Base_V1_Has_Lease_Ex=TRUE),COLUMN(D5)-COLUMN($D5)=Base_V1_Lease_Term_Modeled),IF(ISERROR(FIND("Tax",_Base_V1_Ownership_Structure,1)),-SUM(D7:D9),-Base_V1_Lease_Residual_Price_Modeled),0)) -> -22550 | E13: 0 | F13: 0 | G13: 0 | H13: 0 | I13: 0 | J13: 0 | K13: 0 | L13: 0 | M13: 0 | N13: 0 | O13: 0 | P13: 0 | Q13: 0 | R13: 0 | S13: 0 | T13: 0 | U13: 0 | V13: 0 | W13: 0 | X13: 0 | Y13: 0 | Z13: 0 | AA13: 0 | AB13: 0 | AC13: 0
B14: Lease
B15: Down Payment | D15: =IF(Base_V1_Has_Lease_Ex=TRUE,-Base_V1_Down_Payment_Modeled,0) -> 0
B16: Acquisition Fee | D16: =IF(Base_V1_Has_Lease_Ex=TRUE,-Base_V1_Lease_Acquisition_Fee_Modeled,0) -> 0
B17: Disposition Charge | D17: =IF(AND(Base_V1_Has_Lease_Ex=TRUE,((COLUMN(D5)-COLUMN($D5))=Base_V1_Lease_Term_Modeled)),-Base_V1_Lease_Disposition_Fee_Modeled,0) -> 0 | E17: 0 | F17: 0 | G17: 0 | H17: 0 | I17: 0 | J17: 0 | K17: 0 | L17: 0 | M17: 0 | N17: 0 | O17: 0 | P17: 0 | Q17: 0 | R17: 0 | S17: 0 | T17: 0 | U17: 0 | V17: 0 | W17: 0 | X17: 0 | Y17: 0 | Z17: 0 | AA17: 0 | AB17: 0 | AC17: 0
B18: Lease Payments | E18: =IF(Base_V1_Has_Lease_Ex=TRUE,IF((COLUMN(E5)-COLUMN($E5))<Base_V1_Lease_Term_Modeled,-PMT(Base_V1_Lease_APR_Modeled/12,Base_V1_Lease_Term_Modeled*12,-(Base_V1_Base_Price_Ex-IF(Base_V1_Tax_Incentives_Monetized="Yes",Base_V1_Federal_Tax_Incentives_Modeled+IF(Base_V1_State_Tax_Incentive_Cap_Modeled=0,Base_V1_State_Tax_Incentives_Modeled,MIN(Base_V1_State_Tax_Incentive_Cap_Modeled,Base_V1_State_Tax_Incentives_Modeled*Base_V1_Num_Vehicles_Modeled)/Base_V1_Num_Vehicles_Modeled),0)-Base_V1_Other_Incentives_Modeled-Base_V1_Down_Payment_Modeled)+Base_V1_Lease_Residual_Price_Modeled,0)*12,0),0) -> 0 | F18: 0 | G18: 0 | H18: 0 | I18: 0 | J18: 0 | K18: 0 | L18: 0 | M18: 0 | N18: 0 | O18: 0 | P18: 0 | Q18: 0 | R18: 0 | S18: 0 | T18: 0 | U18: 0 | V18: 0 | W18: 0 | X18: 0 | Y18: 0 | Z18: 0 | AA18: 0 | AB18: 0 | AC18: 0
B19: Principal Payments | E19: =IF(Base_V1_Has_Lease_Ex=TRUE,IF((COLUMN(E5)-COLUMN($E5))<Base_V1_Lease_Term_Modeled,-PPMT(Base_V1_Lease_APR_Modeled/12,(COLUMN(E4)-COLUMN($D4))*12,Base_V1_Lease_Term_Modeled*12,-(Base_V1_Base_Price_Ex-IF(Base_V1_Tax_Incentives_Monetized="Yes",Base_V1_Federal_Tax_Incentives_Modeled+IF(Base_V1_State_Tax_Incentive_Cap_Modeled=0,Base_V1_State_Tax_Incentives_Modeled,MIN(Base_V1_State_Tax_Incentive_Cap_Modeled,Base_V1_State_Tax_Incentives_Modeled*Base_V1_Num_Vehicles_Modeled)/Base_V1_Num_Vehicles_Modeled),0)-Base_V1_Other_Incentives_Modeled-Base_V1_Down_Payment_Modeled)+Base_V1_Lease_Residual_Price_Modeled,0)*12,0),0) -> 0 | F19: 0 | G19: 0 | H19: 0 | I19: 0 | J19: 0 | K19: 0 | L19: 0 | M19: 0 | N19: 0 | O19: 0 | P19: 0 | Q19: 0 | R19: 0 | S19: 0 | T19: 0 | U19: 0 | V19: 0 | W19: 0 | X19: 0 | Y19: 0 | Z19: 0 | AA19: 0 | AB19: 0 | AC19: 0
B20: Interest Payments | E20: =IF(Base_V1_Has_Lease_Ex=TRUE,IF((COLUMN(E5)-COLUMN($E5))<Base_V1_Lease_Term_Modeled,-IPMT(Base_V1_Lease_APR_Modeled/12,(COLUMN(E5)-COLUMN($D5))*12,Base_V1_Lease_Term_Modeled*12,-(Base_V1_Base_Price_Ex-IF(Base_V1_Tax_Incentives_Monetized="Yes",Base_V1_Federal_Tax_Incentives_Modeled+IF(Base_V1_State_Tax_Incentive_Cap_Modeled=0,Base_V1_State_Tax_Incentives_Modeled,MIN(Base_V1_State_Tax_Incentive_Cap_Modeled,Base_V1_State_Tax_Incentives_Modeled*Base_V1_Num_Vehicles_Modeled)/Base_V1_Num_Vehicles_Modeled),0)-Base_V1_Other_Incentives_Modeled-Base_V1_Down_Payment_Modeled)+Base_V1_Lease_Residual_Price_Modeled,0)*12,0),0) -> 0 | F20: 0 | G20: 0 | H20: 0 | I20: 0 | J20: 0 | K20: 0 | L20: 0 | M20: 0 | N20: 0 | O20: 0 | P20: 0 | Q20: 0 | R20: 0 | S20: 0 | T20: 0 | U20: 0 | V20: 0 | W20: 0 | X20: 0 | Y20: 0 | Z20: 0 | AA20: 0 | AB20: 0 | AC20: 0
B21: TRAC Value Adjustment | E21: =IF(ISERROR(FIND("TRAC",_Base_V1_Ownership_Structure,1)),0,IF(Base_V1_Has_Loan_Ex=TRUE,0,IF((COLUMN(E5)-COLUMN($D5))=Base_V1_Lease_Term_Modeled,SUM(E7:E9)-Base_V1_Lease_Residual_Price_Modeled,0))) -> 0 | F21: 0 | G21: 0 | H21: 0 | I21: 0 | J21: 0 | K21: 0 | L21: 0 | M21: 0 | N21: 0 | O21: 0 | P21: 0 | Q21: 0 | R21: 0 | S21: 0 | T21: 0 | U21: 0 | V21: 0 | W21: 0 | X21: 0 | Y21: 0 | Z21: 0 | AA21: 0 | AB21: 0 | AC21: 0
B22: FMV Mileage Adjustment | E22: =MIN(0,MAX(-Base_V1_Lease_Residual_Price_Modeled+SUM(E7:E9),IF(IFERROR(IF(FIND("FMV",_Base_V1_Ownership_Structure,1)>0,TRUE,FALSE),FALSE),IF((COLUMN(E5)-COLUMN($D5))=Base_V1_Lease_Term_Modeled,(Base_V1_Lease_Mileage_Inc_Modeled-Base_V1_VMT_Modeled)*(COLUMN(E5)-COLUMN($D5))*Base_V1_Lease_Mileage_Cost_Modeled,0),0))) -> 0 | F22: 0 | G22: 0 | H22: 0 | I22: 0 | J22: 0 | K22: 0 | L22: 0 | M22: 0 | N22: 0 | O22: 0 | P22: 0 | Q22: 0 | R22: 0 | S22: 0 | T22: 0 | U22: 0 | V22: 0 | W22: 0 | X22: 0 | Y22: 0 | Z22: 0 | AA22: 0 | AB22: 0 | AC22: 0
B23: Subtotal Lease Cash Flows | D23: =SUM(D15:D18)+SUM(D21:D22) -> 0 | E23: =SUM(E15:E18)+SUM(E21:E22) -> 0 | F23: 0 | G23: 0 | H23: 0 | I23: 0 | J23: 0 | K23: 0 | L23: 0 | M23: 0 | N23: 0 | O23: 0 | P23: 0 | Q23: 0 | R23: 0 | S23: 0 | T23: 0 | U23: 0 | V23: 0 | W23: 0 | X23: 0 | Y23: 0 | Z23: 0 | AA23: 0 | AB23: 0 | AC23: 0
B24: Loan
B25: Down Payment | D25: =IF(AND(Base_V1_Has_Loan_Ex=TRUE,Base_V1_Has_Lease_Ex=FALSE),-Base_V1_Down_Payment_Modeled,0) -> 0
B26: Loan Payments | E26: =IF(Base_V1_Has_Loan_Ex=TRUE,IF(AND((COLUMN(E5)-COLUMN($E5))<Base_V1_Loan_Term_Modeled+Base_V1_Lease_Term_Modeled,(COLUMN(E5)-COLUMN($E5))>=Base_V1_Lease_Term_Modeled),PMT(Base_V1_Loan_APR_Modeled,Base_V1_Loan_Term_Modeled,IF(Base_V1_Has_Lease_Ex=TRUE,SUM(OFFSET($D5,0,Comp_V1_Lease_Term_Modeled,3,1)),Base_V1_Base_Price_Ex-IF(Base_V1_Tax_Incentives_Monetized="Yes",Base_V1_Federal_Tax_Incentives_Modeled+IF(Base_V1_State_Tax_Incentive_Cap_Modeled=0,Base_V1_State_Tax_Incentives_Modeled,MIN(Base_V1_State_Tax_Incentive_Cap_Modeled,Base_V1_State_Tax_Incentives_Modeled*Base_V1_Num_Vehicles_Modeled)/Base_V1_Num_Vehicles_Modeled),0)-Base_V1_Other_Incentives_Modeled-Base_V1_Down_Payment_Modeled),0),0),0) -> 0 | F26: 0 | G26: 0 | H26: 0 | I26: 0 | J26: 0 | K26: 0 | L26: 0 | M26: 0 | N26: 0 | O26: 0 | P26: 0 | Q26: 0 | R26: 0 | S26: 0 | T26: 0 | U26: 0 | V26: 0 | W26: 0 | X26: 0 | Y26: 0 | Z26: 0 | AA26: 0 | AB26: 0 | AC26: 0
B27: Principal Payments | E27: =IF(Base_V1_Has_Loan_Ex=TRUE,IF(AND((COLUMN(E5)-COLUMN($E5))<Base_V1_Loan_Term_Modeled+Base_V1_Lease_Term_Modeled,(COLUMN(E5)-COLUMN($E5))>=Base_V1_Lease_Term_Modeled),PPMT(Base_V1_Loan_APR_Modeled,IF(Base_V1_Has_Lease_Ex=TRUE,(COLUMN(E5)-COLUMN($D5)-Base_V1_Lease_Term_Modeled),(COLUMN(E5)-COLUMN($D5))),Base_V1_Loan_Term_Modeled,IF(Base_V1_Has_Lease_Ex=TRUE,SUM(OFFSET($D5,0,Base_V1_Lease_Term_Modeled,3,1)),Base_V1_Base_Price_Ex-IF(Base_V1_Tax_Incentives_Monetized="Yes",Base_V1_Federal_Tax_Incentives_Modeled+IF(Base_V1_State_Tax_Incentive_Cap_Modeled=0,Base_V1_State_Tax_Incentives_Modeled,MIN(Base_V1_State_Tax_Incentive_Cap_Modeled,Base_V1_State_Tax_Incentives_Modeled*Base_V1_Num_Vehicles_Modeled)/Base_V1_Num_Vehicles_Modeled),0)-Base_V1_Other_Incentives_Modeled-Base_V1_Down_Payment_Modeled),0),0),0) -> 0 | F27: 0 | G27: 0 | H27: 0 | I27: 0 | J27: 0 | K27: 0 | L27: 0 | M27: 0 | N27: 0 | O27: 0 | P27: 0 | Q27: 0 | R27: 0 | S27: 0 | T27: 0 | U27: 0 | V27: 0 | W27: 0 | X27: 0 | Y27: 0 | Z27: 0 | AA27: 0 | AB27: 0 | AC27: 0
B28: Interest Payments | E28: =IF(Base_V1_Has_Loan_Ex=TRUE,IF(AND((COLUMN(E5)-COLUMN($E5))<Base_V1_Loan_Term_Modeled+Base_V1_Lease_Term_Modeled,(COLUMN(E5)-COLUMN($E5))>=Base_V1_Lease_Term_Modeled),IPMT(Base_V1_Loan_APR_Modeled,IF(Base_V1_Has_Lease_Ex=TRUE,(COLUMN(E5)-COLUMN($D5)-Base_V1_Lease_Term_Modeled),(COLUMN(E5)-COLUMN($D5))),Base_V1_Loan_Term_Modeled,IF(Base_V1_Has_Lease_Ex=TRUE,SUM(OFFSET($D5,0,Base_V1_Lease_Term_Modeled,3,1)),Base_V1_Base_Price_Ex-IF(Base_V1_Tax_Incentives_Monetized="Yes",Base_V1_Federal_Tax_Incentives_Modeled+IF(Base_V1_State_Tax_Incentive_Cap_Modeled=0,Base_V1_State_Tax_Incentives_Modeled,MIN(Base_V1_State_Tax_Incentive_Cap_Modeled,Base_V1_State_Tax_Incentives_Modeled*Base_V1_Num_Vehicles_Modeled)/Base_V1_Num_Vehicles_Modeled),0)-Base_V1_Other_Incentives_Modeled-Base_V1_Down_Payment_Modeled),0),0),0) -> 0 | F28: 0 | G28: 0 | H28: 0 | I28: 0 | J28: 0 | K28: 0 | L28: 0 | M28: 0 | N28: 0 | O28: 0 | P28: 0 | Q28: 0 | R28: 0 | S28: 0 | T28: 0 | U28: 0 | V28: 0 | W28: 0 | X28: 0 | Y28: 0 | Z28: 0 | AA28: 0 | AB28: 0 | AC28: 0
B29: Subtotal Loan Cash Flows | D29: =SUM(D25:D26) -> 0 | E29: =SUM(E25:E26) -> 0 | F29: 0 | G29: 0 | H29: 0 | I29: 0 | J29: 0 | K29: 0 | L29: 0 | M29: 0 | N29: 0 | O29: 0 | P29: 0 | Q29: 0 | R29: 0 | S29: 0 | T29: 0 | U29: 0 | V29: 0 | W29: 0 | X29: 0 | Y29: 0 | Z29: 0 | AA29: 0 | AB29: 0 | AC29: 0
B30: Terminal Value | E30: =IF(OR(Base_V1_Has_Loan_Ex=TRUE,Base_V1_Has_Cash_Purchase_Ex=TRUE),IF((COLUMN(E5)-COLUMN($D5))=Base_V1_Years_Usage_Modeled,SUM(E7:E9),0),0) -> 0 | F30: 0 | G30: 0 | H30: 0 | I30: 0 | J30: 0 | K30: 11158.72296 | L30: 0 | M30: 0 | N30: 0 | O30: 0 | P30: 0 | Q30: 0 | R30: 0 | S30: 0 | T30: 0 | U30: 0 | V30: 0 | W30: 0 | X30: 0 | Y30: 0 | Z30: 0 | AA30: 0 | AB30: 0 | AC30: 0
B32: Total Capital and Financing Costs | D32: =D13+D23+D29+D30 -> -22550 | E32: =E13+E23+E29+E30 -> 0 | F32: =F13+F23+F29+F30 -> 0 | G32: 0 | H32: 0 | I32: 0 | J32: 0 | K32: 11158.72296 | L32: 0 | M32: 0 | N32: 0 | O32: 0 | P32: 0 | Q32: 0 | R32: 0 | S32: 0 | T32: 0 | U32: 0 | V32: 0 | W32: 0 | X32: 0 | Y32: 0 | Z32: 0 | AA32: 0 | AB32: 0 | AC32: 0
B34: Fuel and Operating Costs
B35: Fuel Cost | E35: =IF(COLUMN(E5)-COLUMN($E5)<Base_V1_Years_Usage_Modeled,-((Base_V1_Gas_Diesel_Usage_Ex*IF(Base_V1_Fuel_Type_Ex = 0, IF(_Base_V1_Vehicle_Vehicle_Class = "Passenger Vehicles (Light-Duty)",Gasoline_Price_Modeled, Diesel_Price_Modeled), IF(Base_V1_Fuel_Type_Ex="Diesel", Diesel_Price_Modeled, Gasoline_Price_Modeled))*IF(_Market="U.S.", Data!D$77, Data!D$80))+(Base_V1_Electricity_Usage_Ex*IF(_Market="U.S.", Data!D$79, Data!D$81))*(Base_Percent_Home_Charging_Modeled*IF(Base_Use_Charging_Management = "Yes", Base_Rate_Output_Ex, Base_Electricity_Price_Modeled)+Base_Percent_Public_Charging_Modeled*Public_Charging_Price_Modeled+Base_Percent_En_Route_Charging_Modeled*En_Route_Charging_Price_Modeled)),0) -> -629.2380498 | F35: =IF(COLUMN(F5)-COLUMN($E5)<Base_V1_Years_Usage_Modeled,-((Base_V1_Gas_Diesel_Usage_Ex*IF(Base_V1_Fuel_Type_Ex="Diesel", Diesel_Price_Modeled, Gasoline_Price_Modeled)*IF(_Market="U.S.", Data!E$77, Data!E$80))+(Base_V1_Electricity_Usage_Ex*IF(_Market="U.S.", Data!E$79, Data!E$81))*(Base_Percent_Home_Charging_Modeled*IF(Base_Use_Charging_Management = "Yes", Base_Rate_Output_Ex, Base_Electricity_Price_Modeled)+Base_Percent_Public_Charging_Modeled*Public_Charging_Price_Modeled+Base_Percent_En_Route_Charging_Modeled*En_Route_Charging_Price_Modeled)),0) -> -657.2030813 | G35: =IF(COLUMN(G5)-COLUMN($E5)<Base_V1_Years_Usage_Modeled,-((Base_V1_Gas_Diesel_Usage_Ex*IF(Base_V1_Fuel_Type_Ex="Diesel", Diesel_Price_Modeled, Gasoline_Price_Modeled)*IF(_Market="U.S.", Data!F$77, Data!F$80))+(Base_V1_Electricity_Usage_Ex*IF(_Market="U.S.", Data!F$79, Data!F$81))*(Base_Percent_Home_Charging_Modeled*IF(Base_Use_Charging_Management = "Yes", Base_Rate_Output_Ex, Base_Electricity_Price_Modeled)+Base_Percent_Public_Charging_Modeled*Public_Charging_Price_Modeled+Base_Percent_En_Route_Charging_Modeled*En_Route_Charging_Price_Modeled)),0) -> -643.2560085 | H35: =IF(COLUMN(H5)-COLUMN($E5)<Base_V1_Years_Usage_Modeled,-((Base_V1_Gas_Diesel_Usage_Ex*IF(Base_V1_Fuel_Type_Ex="Diesel", Diesel_Price_Modeled, Gasoline_Price_Modeled)*IF(_Market="U.S.", Data!G$77, Data!G$80))+(Base_V1_Electricity_Usage_Ex*IF(_Market="U.S.", Data!G$79, Data!G$81))*(Base_Percent_Home_Charging_Modeled*IF(Base_Use_Charging_Management = "Yes", Base_Rate_Output_Ex, Base_Electricity_Price_Modeled)+Base_Percent_Public_Charging_Modeled*Public_Charging_Price_Modeled+Base_Percent_En_Route_Charging_Modeled*En_Route_Charging_Price_Modeled)),0) -> -631.0939777 | I35: =IF(COLUMN(I5)-COLUMN($E5)<Base_V1_Years_Usage_Modeled,-((Base_V1_Gas_Diesel_Usage_Ex*IF(Base_V1_Fuel_Type_Ex="Diesel", Diesel_Price_Modeled, Gasoline_Price_Modeled)*IF(_Market="U.S.", Data!H$77, Data!H$80))+(Base_V1_Electricity_Usage_Ex*IF(_Market="U.S.", Data!H$79, Data!H$81))*(Base_Percent_Home_Charging_Modeled*IF(Base_Use_Charging_Management = "Yes", Base_Rate_Output_Ex, Base_Electricity_Price_Modeled)+Base_Percent_Public_Charging_Modeled*Public_Charging_Price_Modeled+Base_Percent_En_Route_Charging_Modeled*En_Route_Charging_Price_Modeled)),0) -> -621.7828416 | J35: =IF(COLUMN(J5)-COLUMN($E5)<Base_V1_Years_Usage_Modeled,-((Base_V1_Gas_Diesel_Usage_Ex*IF(Base_V1_Fuel_Type_Ex="Diesel", Diesel_Price_Modeled, Gasoline_Price_Modeled)*IF(_Market="U.S.", Data!I$77, Data!I$80))+(Base_V1_Electricity_Usage_Ex*IF(_Market="U.S.", Data!I$79, Data!I$81))*(Base_Percent_Home_Charging_Modeled*IF(Base_Use_Charging_Management = "Yes", Base_Rate_Output_Ex, Base_Electricity_Price_Modeled)+Base_Percent_Public_Charging_Modeled*Public_Charging_Price_Modeled+Base_Percent_En_Route_Charging_Modeled*En_Route_Charging_Price_Modeled)),0) -> -621.5158772 | K35: =IF(COLUMN(K5)-COLUMN($E5)<Base_V1_Years_Usage_Modeled,-((Base_V1_Gas_Diesel_Usage_Ex*IF(Base_V1_Fuel_Type_Ex="Diesel", Diesel_Price_Modeled, Gasoline_Price_Modeled)*IF(_Market="U.S.", Data!J$77, Data!J$80))+(Base_V1_Electricity_Usage_Ex*IF(_Market="U.S.", Data!J$79, Data!J$81))*(Base_Percent_Home_Charging_Modeled*IF(Base_Use_Charging_Management = "Yes", Base_Rate_Output_Ex, Base_Electricity_Price_Modeled)+Base_Percent_Public_Charging_Modeled*Public_Charging_Price_Modeled+Base_Percent_En_Route_Charging_Modeled*En_Route_Charging_Price_Modeled)),0) -> -625.5460963 | L35: =IF(COLUMN(L5)-COLUMN($E5)<Base_V1_Years_Usage_Modeled,-((Base_V1_Gas_Diesel_Usage_Ex*IF(Base_V1_Fuel_Type_Ex="Diesel", Diesel_Price_Modeled, Gasoline_Price_Modeled)*IF(_Market="U.S.", Data!K$77, Data!K$80))+(Base_V1_Electricity_Usage_Ex*IF(_Market="U.S.", Data!K$79, Data!K$81))*(Base_Percent_Home_Charging_Modeled*IF(Base_Use_Charging_Management = "Yes", Base_Rate_Output_Ex, Base_Electricity_Price_Modeled)+Base_Percent_Public_Charging_Modeled*Public_Charging_Price_Modeled+Base_Percent_En_Route_Charging_Modeled*En_Route_Charging_Price_Modeled)),0) -> 0 | M35: =IF(COLUMN(M5)-COLUMN($E5)<Base_V1_Years_Usage_Modeled,-((Base_V1_Gas_Diesel_Usage_Ex*IF(Base_V1_Fuel_Type_Ex="Diesel", Diesel_Price_Modeled, Gasoline_Price_Modeled)*IF(_Market="U.S.", Data!L$77, Data!L$80))+(Base_V1_Electricity_Usage_Ex*IF(_Market="U.S.", Data!L$79, Data!L$81))*(Base_Percent_Home_Charging_Modeled*IF(Base_Use_Charging_Management = "Yes", Base_Rate_Output_Ex, Base_Electricity_Price_Modeled)+Base_Percent_Public_Charging_Modeled*Public_Charging_Price_Modeled+Base_Percent_En_Route_Charging_Modeled*En_Route_Charging_Price_Modeled)),0) -> 0 | N35: =IF(COLUMN(N5)-COLUMN($E5)<Base_V1_Years_Usage_Modeled,-((Base_V1_Gas_Diesel_Usage_Ex*IF(Base_V1_Fuel_Type_Ex="Diesel", Diesel_Price_Modeled, Gasoline_Price_Modeled)*IF(_Market="U.S.", Data!M$77, Data!M$80))+(Base_V1_Electricity_Usage_Ex*IF(_Market="U.S.", Data!M$79, Data!M$81))*(Base_Percent_Home_Charging_Modeled*IF(Base_Use_Charging_Management = "Yes", Base_Rate_Output_Ex, Base_Electricity_Price_Modeled)+Base_Percent_Public_Charging_Modeled*Public_Charging_Price_Modeled+Base_Percent_En_Route_Charging_Modeled*En_Route_Charging_Price_Modeled)),0) -> 0 | O35: =IF(COLUMN(O5)-COLUMN($E5)<Base_V1_Years_Usage_Modeled,-((Base_V1_Gas_Diesel_Usage_Ex*IF(Base_V1_Fuel_Type_Ex="Diesel", Diesel_Price_Modeled, Gasoline_Price_Modeled)*IF(_Market="U.S.", Data!N$77, Data!N$80))+(Base_V1_Electricity_Usage_Ex*IF(_Market="U.S.", Data!N$79, Data!N$81))*(Base_Percent_Home_Charging_Modeled*IF(Base_Use_Charging_Management = "Yes", Base_Rate_Output_Ex, Base_Electricity_Price_Modeled)+Base_Percent_Public_Charging_Modeled*Public_Charging_Price_Modeled+Base_Percent_En_Route_Charging_Modeled*En_Route_Charging_Price_Modeled)),0) -> 0 | P35: =IF(COLUMN(P5)-COLUMN($E5)<Base_V1_Years_Usage_Modeled,-((Base_V1_Gas_Diesel_Usage_Ex*IF(Base_V1_Fuel_Type_Ex="Diesel", Diesel_Price_Modeled, Gasoline_Price_Modeled)*IF(_Market="U.S.", Data!O$77, Data!O$80))+(Base_V1_Electricity_Usage_Ex*IF(_Market="U.S.", Data!O$79, Data!O$81))*(Base_Percent_Home_Charging_Modeled*IF(Base_Use_Charging_Management = "Yes", Base_Rate_Output_Ex, Base_Electricity_Price_Modeled)+Base_Percent_Public_Charging_Modeled*Public_Charging_Price_Modeled+Base_Percent_En_Route_Charging_Modeled*En_Route_Charging_Price_Modeled)),0) -> 0 | Q35: =IF(COLUMN(Q5)-COLUMN($E5)<Base_V1_Years_Usage_Modeled,-((Base_V1_Gas_Diesel_Usage_Ex*IF(Base_V1_Fuel_Type_Ex="Diesel", Diesel_Price_Modeled, Gasoline_Price_Modeled)*IF(_Market="U.S.", Data!P$77, Data!P$80))+(Base_V1_Electricity_Usage_Ex*IF(_Market="U.S.", Data!P$79, Data!P$81))*(Base_Percent_Home_Charging_Modeled*IF(Base_Use_Charging_Management = "Yes", Base_Rate_Output_Ex, Base_Electricity_Price_Modeled)+Base_Percent_Public_Charging_Modeled*Public_Charging_Price_Modeled+Base_Percent_En_Route_Charging_Modeled*En_Route_Charging_Price_Modeled)),0) -> 0 | R35: =IF(COLUMN(R5)-COLUMN($E5)<Base_V1_Years_Usage_Modeled,-((Base_V1_Gas_Diesel_Usage_Ex*IF(Base_V1_Fuel_Type_Ex="Diesel", Diesel_Price_Modeled, Gasoline_Price_Modeled)*IF(_Market="U.S.", Data!Q$77, Data!Q$80))+(Base_V1_Electricity_Usage_Ex*IF(_Market="U.S.", Data!Q$79, Data!Q$81))*(Base_Percent_Home_Charging_Modeled*IF(Base_Use_Charging_Management = "Yes", Base_Rate_Output_Ex, Base_Electricity_Price_Modeled)+Base_Percent_Public_Charging_Modeled*Public_Charging_Price_Modeled+Base_Percent_En_Route_Charging_Modeled*En_Route_Charging_Price_Modeled)),0) -> 0 | S35: =IF(COLUMN(S5)-COLUMN($E5)<Base_V1_Years_Usage_Modeled,-((Base_V1_Gas_Diesel_Usage_Ex*IF(Base_V1_Fuel_Type_Ex="Diesel", Diesel_Price_Modeled, Gasoline_Price_Modeled)*IF(_Market="U.S.", Data!R$77, Data!R$80))+(Base_V1_Electricity_Usage_Ex*IF(_Market="U.S.", Data!R$79, Data!R$81))*(Base_Percent_Home_Charging_Modeled*IF(Base_Use_Charging_Management = "Yes", Base_Rate_Output_Ex, Base_Electricity_Price_Modeled)+Base_Percent_Public_Charging_Modeled*Public_Charging_Price_Modeled+Base_Percent_En_Route_Charging_Modeled*En_Route_Charging_Price_Modeled)),0) -> 0 | T35: =IF(COLUMN(T5)-COLUMN($E5)<Base_V1_Years_Usage_Modeled,-((Base_V1_Gas_Diesel_Usage_Ex*IF(Base_V1_Fuel_Type_Ex="Diesel", Diesel_Price_Modeled, Gasoline_Price_Modeled)*IF(_Market="U.S.", Data!S$77, Data!S$80))+(Base_V1_Electricity_Usage_Ex*IF(_Market="U.S.", Data!S$79, Data!S$81))*(Base_Percent_Home_Charging_Modeled*IF(Base_Use_Charging_Management = "Yes", Base_Rate_Output_Ex, Base_Electricity_Price_Modeled)+Base_Percent_Public_Charging_Modeled*Public_Charging_Price_Modeled+Base_Percent_En_Route_Charging_Modeled*En_Route_Charging_Price_Modeled)),0) -> 0 | U35: =IF(COLUMN(U5)-COLUMN($E5)<Base_V1_Years_Usage_Modeled,-((Base_V1_Gas_Diesel_Usage_Ex*IF(Base_V1_Fuel_Type_Ex="Diesel", Diesel_Price_Modeled, Gasoline_Price_Modeled)*IF(_Market="U.S.", Data!T$77, Data!T$80))+(Base_V1_Electricity_Usage_Ex*IF(_Market="U.S.", Data!T$79, Data!T$81))*(Base_Percent_Home_Charging_Modeled*IF(Base_Use_Charging_Management = "Yes", Base_Rate_Output_Ex, Base_Electricity_Price_Modeled)+Base_Percent_Public_Charging_Modeled*Public_Charging_Price_Modeled+Base_Percent_En_Route_Charging_Modeled*En_Route_Charging_Price_Modeled)),0) -> 0 | V35: =IF(COLUMN(V5)-COLUMN($E5)<Base_V1_Years_Usage_Modeled,-((Base_V1_Gas_Diesel_Usage_Ex*IF(Base_V1_Fuel_Type_Ex="Diesel", Diesel_Price_Modeled, Gasoline_Price_Modeled)*IF(_Market="U.S.", Data!U$77, Data!U$80))+(Base_V1_Electricity_Usage_Ex*IF(_Market="U.S.", Data!U$79, Data!U$81))*(Base_Percent_Home_Charging_Modeled*IF(Base_Use_Charging_Management = "Yes", Base_Rate_Output_Ex, Base_Electricity_Price_Modeled)+Base_Percent_Public_Charging_Modeled*Public_Charging_Price_Modeled+Base_Percent_En_Route_Charging_Modeled*En_Route_Charging_Price_Modeled)),0) -> 0 | W35: =IF(COLUMN(W5)-COLUMN($E5)<Base_V1_Years_Usage_Modeled,-((Base_V1_Gas_Diesel_Usage_Ex*IF(Base_V1_Fuel_Type_Ex="Diesel", Diesel_Price_Modeled, Gasoline_Price_Modeled)*IF(_Market="U.S.", Data!V$77, Data!V$80))+(Base_V1_Electricity_Usage_Ex*IF(_Market="U.S.", Data!V$79, Data!V$81))*(Base_Percent_Home_Charging_Modeled*IF(Base_Use_Charging_Management = "Yes", Base_Rate_Output_Ex, Base_Electricity_Price_Modeled)+Base_Percent_Public_Charging_Modeled*Public_Charging_Price_Modeled+Base_Percent_En_Route_Charging_Modeled*En_Route_Charging_Price_Modeled)),0) -> 0 | X35: =IF(COLUMN(X5)-COLUMN($E5)<Base_V1_Years_Usage_Modeled,-((Base_V1_Gas_Diesel_Usage_Ex*IF(Base_V1_Fuel_Type_Ex="Diesel", Diesel_Price_Modeled, Gasoline_Price_Modeled)*IF(_Market="U.S.", Data!W$77, Data!W$80))+(Base_V1_Electricity_Usage_Ex*IF(_Market="U.S.", Data!W$79, Data!W$81))*(Base_Percent_Home_Charging_Modeled*IF(Base_Use_Charging_Management = "Yes", Base_Rate_Output_Ex, Base_Electricity_Price_Modeled)+Base_Percent_Public_Charging_Modeled*Public_Charging_Price_Modeled+Base_Percent_En_Route_Charging_Modeled*En_Route_Charging_Price_Modeled)),0) -> 0 | Y35: =IF(COLUMN(Y5)-COLUMN($E5)<Base_V1_Years_Usage_Modeled,-((Base_V1_Gas_Diesel_Usage_Ex*IF(Base_V1_Fuel_Type_Ex="Diesel", Diesel_Price_Modeled, Gasoline_Price_Modeled)*IF(_Market="U.S.", Data!X$77, Data!X$80))+(Base_V1_Electricity_Usage_Ex*IF(_Market="U.S.", Data!X$79, Data!X$81))*(Base_Percent_Home_Charging_Modeled*IF(Base_Use_Charging_Management = "Yes", Base_Rate_Output_Ex, Base_Electricity_Price_Modeled)+Base_Percent_Public_Charging_Modeled*Public_Charging_Price_Modeled+Base_Percent_En_Route_Charging_Modeled*En_Route_Charging_Price_Modeled)),0) -> 0 | Z35: =IF(COLUMN(Z5)-COLUMN($E5)<Base_V1_Years_Usage_Modeled,-((Base_V1_Gas_Diesel_Usage_Ex*IF(Base_V1_Fuel_Type_Ex="Diesel", Diesel_Price_Modeled, Gasoline_Price_Modeled)*IF(_Market="U.S.", Data!Y$77, Data!Y$80))+(Base_V1_Electricity_Usage_Ex*IF(_Market="U.S.", Data!Y$79, Data!Y$81))*(Base_Percent_Home_Charging_Modeled*IF(Base_Use_Charging_Management = "Yes", Base_Rate_Output_Ex, Base_Electricity_Price_Modeled)+Base_Percent_Public_Charging_Modeled*Public_Charging_Price_Modeled+Base_Percent_En_Route_Charging_Modeled*En_Route_Charging_Price_Modeled)),0) -> 0 | AA35: =IF(COLUMN(AA5)-COLUMN($E5)<Base_V1_Years_Usage_Modeled,-((Base_V1_Gas_Diesel_Usage_Ex*IF(Base_V1_Fuel_Type_Ex="Diesel", Diesel_Price_Modeled, Gasoline_Price_Modeled)*IF(_Market="U.S.", Data!Z$77, Data!Z$80))+(Base_V1_Electricity_Usage_Ex*IF(_Market="U.S.", Data!Z$79, Data!Z$81))*(Base_Percent_Home_Charging_Modeled*IF(Base_Use_Charging_Management = "Yes", Base_Rate_Output_Ex, Base_Electricity_Price_Modeled)+Base_Percent_Public_Charging_Modeled*Public_Charging_Price_Modeled+Base_Percent_En_Route_Charging_Modeled*En_Route_Charging_Price_Modeled)),0) -> 0 | AB35: =IF(COLUMN(AB5)-COLUMN($E5)<Base_V1_Years_Usage_Modeled,-((Base_V1_Gas_Diesel_Usage_Ex*IF(Base_V1_Fuel_Type_Ex="Diesel", Diesel_Price_Modeled, Gasoline_Price_Modeled)*IF(_Market="U.S.", Data!AA$77, Data!AA$80))+(Base_V1_Electricity_Usage_Ex*IF(_Market="U.S.", Data!AA$79, Data!AA$81))*(Base_Percent_Home_Charging_Modeled*IF(Base_Use_Charging_Management = "Yes", Base_Rate_Output_Ex, Base_Electricity_Price_Modeled)+Base_Percent_Public_Charging_Modeled*Public_Charging_Price_Modeled+Base_Percent_En_Route_Charging_Modeled*En_Route_Charging_Price_Modeled)),0) -> 0 | AC35: =IF(COLUMN(AC5)-COLUMN($E5)<Base_V1_Years_Usage_Modeled,-((Base_V1_Gas_Diesel_Usage_Ex*IF(Base_V1_Fuel_Type_Ex="Diesel", Diesel_Price_Modeled, Gasoline_Price_Modeled)*IF(_Market="U.S.", Data!AB$77, Data!AB$80))+(Base_V1_Electricity_Usage_Ex*IF(_Market="U.S.", Data!AB$79, Data!AB$81))*(Base_Percent_Home_Charging_Modeled*IF(Base_Use_Charging_Management = "Yes", Base_Rate_Output_Ex, Base_Electricity_Price_Modeled)+Base_Percent_Public_Charging_Modeled*Public_Charging_Price_Modeled+Base_Percent_En_Route_Charging_Modeled*En_Route_Charging_Price_Modeled)),0) -> 0
B36: Maintenance and Repair Cost | E36: =-IF(_Base_V1_Maint_Repair_Cost_Use_Default="Yes",IF(COLUMN(E5)-COLUMN($E5)<Base_V1_Years_Usage_Modeled,VLOOKUP(_Base_V1_Vehicle_Vehicle_Class & _Base_V1_Vehicle_Drivetrain & _Market,DB_Maint_Repair_Costs[],COLUMN(E5)-COLUMN($E5)+COLUMN(DB_Maint_Repair_Costs[[#Headers],[Year 1 ]]),FALSE)*Base_V1_VMT_Modeled,0),IF(AND(COLUMN(E5)-COLUMN($E5)<Base_V1_Years_Usage_Modeled,COLUMN(E5)-COLUMN($E5)<5),Base_V1_Maint_Repair_Cost_Year_1_Modeled*Base_V1_VMT_Modeled,IF(AND(COLUMN(E5)-COLUMN($E5)<Base_V1_Years_Usage_Modeled,COLUMN(E5)-COLUMN($E5)>=5),Base_V1_Maint_Repair_Cost_Year_5_Modeled*Base_V1_VMT_Modeled,0)))*Data!D$88 -> -665.937 | F36: =-IF(_Base_V1_Maint_Repair_Cost_Use_Default="Yes",IF(COLUMN(F5)-COLUMN($E5)<Base_V1_Years_Usage_Modeled,VLOOKUP(_Base_V1_Vehicle_Vehicle_Class & _Base_V1_Vehicle_Drivetrain & _Market,DB_Maint_Repair_Costs[],COLUMN(F5)-COLUMN($E5)+COLUMN(DB_Maint_Repair_Costs[[#Headers],[Year 1 ]]),FALSE)*Base_V1_VMT_Modeled,0),IF(AND(COLUMN(F5)-COLUMN($E5)<Base_V1_Years_Usage_Modeled,COLUMN(F5)-COLUMN($E5)<5),Base_V1_Maint_Repair_Cost_Year_1_Modeled*Base_V1_VMT_Modeled,IF(AND(COLUMN(F5)-COLUMN($E5)<Base_V1_Years_Usage_Modeled,COLUMN(F5)-COLUMN($E5)>=5),Base_V1_Maint_Repair_Cost_Year_5_Modeled*Base_V1_VMT_Modeled,0)))*Data!E$88 -> -679.25574 | G36: =-IF(_Base_V1_Maint_Repair_Cost_Use_Default="Yes",IF(COLUMN(G5)-COLUMN($E5)<Base_V1_Years_Usage_Modeled,VLOOKUP(_Base_V1_Vehicle_Vehicle_Class & _Base_V1_Vehicle_Drivetrain & _Market,DB_Maint_Repair_Costs[],COLUMN(G5)-COLUMN($E5)+COLUMN(DB_Maint_Repair_Costs[[#Headers],[Year 1 ]]),FALSE)*Base_V1_VMT_Modeled,0),IF(AND(COLUMN(G5)-COLUMN($E5)<Base_V1_Years_Usage_Modeled,COLUMN(G5)-COLUMN($E5)<5),Base_V1_Maint_Repair_Cost_Year_1_Modeled*Base_V1_VMT_Modeled,IF(AND(COLUMN(G5)-COLUMN($E5)<Base_V1_Years_Usage_Modeled,COLUMN(G5)-COLUMN($E5)>=5),Base_V1_Maint_Repair_Cost_Year_5_Modeled*Base_V1_VMT_Modeled,0)))*Data!F$88 -> -692.8408548 | H36: =-IF(_Base_V1_Maint_Repair_Cost_Use_Default="Yes",IF(COLUMN(H5)-COLUMN($E5)<Base_V1_Years_Usage_Modeled,VLOOKUP(_Base_V1_Vehicle_Vehicle_Class & _Base_V1_Vehicle_Drivetrain & _Market,DB_Maint_Repair_Costs[],COLUMN(H5)-COLUMN($E5)+COLUMN(DB_Maint_Repair_Costs[[#Headers],[Year 1 ]]),FALSE)*Base_V1_VMT_Modeled,0),IF(AND(COLUMN(H5)-COLUMN($E5)<Base_V1_Years_Usage_Modeled,COLUMN(H5)-COLUMN($E5)<5),Base_V1_Maint_Repair_Cost_Year_1_Modeled*Base_V1_VMT_Modeled,IF(AND(COLUMN(H5)-COLUMN($E5)<Base_V1_Years_Usage_Modeled,COLUMN(H5)-COLUMN($E5)>=5),Base_V1_Maint_Repair_Cost_Year_5_Modeled*Base_V1_VMT_Modeled,0)))*Data!G$88 -> -706.6976719 | I36: =-IF(_Base_V1_Maint_Repair_Cost_Use_Default="Yes",IF(COLUMN(I5)-COLUMN($E5)<Base_V1_Years_Usage_Modeled,VLOOKUP(_Base_V1_Vehicle_Vehicle_Class & _Base_V1_Vehicle_Drivetrain & _Market,DB_Maint_Repair_Costs[],COLUMN(I5)-COLUMN($E5)+COLUMN(DB_Maint_Repair_Costs[[#Headers],[Year 1 ]]),FALSE)*Base_V1_VMT_Modeled,0),IF(AND(COLUMN(I5)-COLUMN($E5)<Base_V1_Years_Usage_Modeled,COLUMN(I5)-COLUMN($E5)<5),Base_V1_Maint_Repair_Cost_Year_1_Modeled*Base_V1_VMT_Modeled,IF(AND(COLUMN(I5)-COLUMN($E5)<Base_V1_Years_Usage_Modeled,COLUMN(I5)-COLUMN($E5)>=5),Base_V1_Maint_Repair_Cost_Year_5_Modeled*Base_V1_VMT_Modeled,0)))*Data!H$88 -> -720.8316253 | J36: =-IF(_Base_V1_Maint_Repair_Cost_Use_Default="Yes",IF(COLUMN(J5)-COLUMN($E5)<Base_V1_Years_Usage_Modeled,VLOOKUP(_Base_V1_Vehicle_Vehicle_Class & _Base_V1_Vehicle_Drivetrain & _Market,DB_Maint_Repair_Costs[],COLUMN(J5)-COLUMN($E5)+COLUMN(DB_Maint_Repair_Costs[[#Headers],[Year 1 ]]),FALSE)*Base_V1_VMT_Modeled,0),IF(AND(COLUMN(J5)-COLUMN($E5)<Base_V1_Years_Usage_Modeled,COLUMN(J5)-COLUMN($E5)<5),Base_V1_Maint_Repair_Cost_Year_1_Modeled*Base_V1_VMT_Modeled,IF(AND(COLUMN(J5)-COLUMN($E5)<Base_V1_Years_Usage_Modeled,COLUMN(J5)-COLUMN($E5)>=5),Base_V1_Maint_Repair_Cost_Year_5_Modeled*Base_V1_VMT_Modeled,0)))*Data!I$88 -> -955.8227352 | K36: =-IF(_Base_V1_Maint_Repair_Cost_Use_Default="Yes",IF(COLUMN(K5)-COLUMN($E5)<Base_V1_Years_Usage_Modeled,VLOOKUP(_Base_V1_Vehicle_Vehicle_Class & _Base_V1_Vehicle_Drivetrain & _Market,DB_Maint_Repair_Costs[],COLUMN(K5)-COLUMN($E5)+COLUMN(DB_Maint_Repair_Costs[[#Headers],[Year 1 ]]),FALSE)*Base_V1_VMT_Modeled,0),IF(AND(COLUMN(K5)-COLUMN($E5)<Base_V1_Years_Usage_Modeled,COLUMN(K5)-COLUMN($E5)<5),Base_V1_Maint_Repair_Cost_Year_1_Modeled*Base_V1_VMT_Modeled,IF(AND(COLUMN(K5)-COLUMN($E5)<Base_V1_Years_Usage_Modeled,COLUMN(K5)-COLUMN($E5)>=5),Base_V1_Maint_Repair_Cost_Year_5_Modeled*Base_V1_VMT_Modeled,0)))*Data!J$88 -> -974.9391899 | L36: =-IF(_Base_V1_Maint_Repair_Cost_Use_Default="Yes",IF(COLUMN(L5)-COLUMN($E5)<Base_V1_Years_Usage_Modeled,VLOOKUP(_Base_V1_Vehicle_Vehicle_Class & _Base_V1_Vehicle_Drivetrain & _Market,DB_Maint_Repair_Costs[],COLUMN(L5)-COLUMN($E5)+COLUMN(DB_Maint_Repair_Costs[[#Headers],[Year 1 ]]),FALSE)*Base_V1_VMT_Modeled,0),IF(AND(COLUMN(L5)-COLUMN($E5)<Base_V1_Years_Usage_Modeled,COLUMN(L5)-COLUMN($E5)<5),Base_V1_Maint_Repair_Cost_Year_1_Modeled*Base_V1_VMT_Modeled,IF(AND(COLUMN(L5)-COLUMN($E5)<Base_V1_Years_Usage_Modeled,COLUMN(L5)-COLUMN($E5)>=5),Base_V1_Maint_Repair_Cost_Year_5_Modeled*Base_V1_VMT_Modeled,0)))*Data!K$88 -> 0 | M36: =-IF(_Base_V1_Maint_Repair_Cost_Use_Default="Yes",IF(COLUMN(M5)-COLUMN($E5)<Base_V1_Years_Usage_Modeled,VLOOKUP(_Base_V1_Vehicle_Vehicle_Class & _Base_V1_Vehicle_Drivetrain & _Market,DB_Maint_Repair_Costs[],COLUMN(M5)-COLUMN($E5)+COLUMN(DB_Maint_Repair_Costs[[#Headers],[Year 1 ]]),FALSE)*Base_V1_VMT_Modeled,0),IF(AND(COLUMN(M5)-COLUMN($E5)<Base_V1_Years_Usage_Modeled,COLUMN(M5)-COLUMN($E5)<5),Base_V1_Maint_Repair_Cost_Year_1_Modeled*Base_V1_VMT_Modeled,IF(AND(COLUMN(M5)-COLUMN($E5)<Base_V1_Years_Usage_Modeled,COLUMN(M5)-COLUMN($E5)>=5),Base_V1_Maint_Repair_Cost_Year_5_Modeled*Base_V1_VMT_Modeled,0)))*Data!L$88 -> 0 | N36: =-IF(_Base_V1_Maint_Repair_Cost_Use_Default="Yes",IF(COLUMN(N5)-COLUMN($E5)<Base_V1_Years_Usage_Modeled,VLOOKUP(_Base_V1_Vehicle_Vehicle_Class & _Base_V1_Vehicle_Drivetrain & _Market,DB_Maint_Repair_Costs[],COLUMN(N5)-COLUMN($E5)+COLUMN(DB_Maint_Repair_Costs[[#Headers],[Year 1 ]]),FALSE)*Base_V1_VMT_Modeled,0),IF(AND(COLUMN(N5)-COLUMN($E5)<Base_V1_Years_Usage_Modeled,COLUMN(N5)-COLUMN($E5)<5),Base_V1_Maint_Repair_Cost_Year_1_Modeled*Base_V1_VMT_Modeled,IF(AND(COLUMN(N5)-COLUMN($E5)<Base_V1_Years_Usage_Modeled,COLUMN(N5)-COLUMN($E5)>=5),Base_V1_Maint_Repair_Cost_Year_5_Modeled*Base_V1_VMT_Modeled,0)))*Data!M$88 -> 0 | O36: =-IF(_Base_V1_Maint_Repair_Cost_Use_Default="Yes",IF(COLUMN(O5)-COLUMN($E5)<Base_V1_Years_Usage_Modeled,VLOOKUP(_Base_V1_Vehicle_Vehicle_Class & _Base_V1_Vehicle_Drivetrain & _Market,DB_Maint_Repair_Costs[],COLUMN(O5)-COLUMN($E5)+COLUMN(DB_Maint_Repair_Costs[[#Headers],[Year 1 ]]),FALSE)*Base_V1_VMT_Modeled,0),IF(AND(COLUMN(O5)-COLUMN($E5)<Base_V1_Years_Usage_Modeled,COLUMN(O5)-COLUMN($E5)<5),Base_V1_Maint_Repair_Cost_Year_1_Modeled*Base_V1_VMT_Modeled,IF(AND(COLUMN(O5)-COLUMN($E5)<Base_V1_Years_Usage_Modeled,COLUMN(O5)-COLUMN($E5)>=5),Base_V1_Maint_Repair_Cost_Year_5_Modeled*Base_V1_VMT_Modeled,0)))*Data!N$88 -> 0 | P36: =-IF(_Base_V1_Maint_Repair_Cost_Use_Default="Yes",IF(COLUMN(P5)-COLUMN($E5)<Base_V1_Years_Usage_Modeled,VLOOKUP(_Base_V1_Vehicle_Vehicle_Class & _Base_V1_Vehicle_Drivetrain & _Market,DB_Maint_Repair_Costs[],COLUMN(P5)-COLUMN($E5)+COLUMN(DB_Maint_Repair_Costs[[#Headers],[Year 1 ]]),FALSE)*Base_V1_VMT_Modeled,0),IF(AND(COLUMN(P5)-COLUMN($E5)<Base_V1_Years_Usage_Modeled,COLUMN(P5)-COLUMN($E5)<5),Base_V1_Maint_Repair_Cost_Year_1_Modeled*Base_V1_VMT_Modeled,IF(AND(COLUMN(P5)-COLUMN($E5)<Base_V1_Years_Usage_Modeled,COLUMN(P5)-COLUMN($E5)>=5),Base_V1_Maint_Repair_Cost_Year_5_Modeled*Base_V1_VMT_Modeled,0)))*Data!O$88 -> 0 | Q36: =-IF(_Base_V1_Maint_Repair_Cost_Use_Default="Yes",IF(COLUMN(Q5)-COLUMN($E5)<Base_V1_Years_Usage_Modeled,VLOOKUP(_Base_V1_Vehicle_Vehicle_Class & _Base_V1_Vehicle_Drivetrain & _Market,DB_Maint_Repair_Costs[],COLUMN(Q5)-COLUMN($E5)+COLUMN(DB_Maint_Repair_Costs[[#Headers],[Year 1 ]]),FALSE)*Base_V1_VMT_Modeled,0),IF(AND(COLUMN(Q5)-COLUMN($E5)<Base_V1_Years_Usage_Modeled,COLUMN(Q5)-COLUMN($E5)<5),Base_V1_Maint_Repair_Cost_Year_1_Modeled*Base_V1_VMT_Modeled,IF(AND(COLUMN(Q5)-COLUMN($E5)<Base_V1_Years_Usage_Modeled,COLUMN(Q5)-COLUMN($E5)>=5),Base_V1_Maint_Repair_Cost_Year_5_Modeled*Base_V1_VMT_Modeled,0)))*Data!P$88 -> 0 | R36: =-IF(_Base_V1_Maint_Repair_Cost_Use_Default="Yes",IF(COLUMN(R5)-COLUMN($E5)<Base_V1_Years_Usage_Modeled,VLOOKUP(_Base_V1_Vehicle_Vehicle_Class & _Base_V1_Vehicle_Drivetrain & _Market,DB_Maint_Repair_Costs[],COLUMN(R5)-COLUMN($E5)+COLUMN(DB_Maint_Repair_Costs[[#Headers],[Year 1 ]]),FALSE)*Base_V1_VMT_Modeled,0),IF(AND(COLUMN(R5)-COLUMN($E5)<Base_V1_Years_Usage_Modeled,COLUMN(R5)-COLUMN($E5)<5),Base_V1_Maint_Repair_Cost_Year_1_Modeled*Base_V1_VMT_Modeled,IF(AND(COLUMN(R5)-COLUMN($E5)<Base_V1_Years_Usage_Modeled,COLUMN(R5)-COLUMN($E5)>=5),Base_V1_Maint_Repair_Cost_Year_5_Modeled*Base_V1_VMT_Modeled,0)))*Data!Q$88 -> 0 | S36: =-IF(_Base_V1_Maint_Repair_Cost_Use_Default="Yes",IF(COLUMN(S5)-COLUMN($E5)<Base_V1_Years_Usage_Modeled,VLOOKUP(_Base_V1_Vehicle_Vehicle_Class & _Base_V1_Vehicle_Drivetrain & _Market,DB_Maint_Repair_Costs[],COLUMN(S5)-COLUMN($E5)+COLUMN(DB_Maint_Repair_Costs[[#Headers],[Year 1 ]]),FALSE)*Base_V1_VMT_Modeled,0),IF(AND(COLUMN(S5)-COLUMN($E5)<Base_V1_Years_Usage_Modeled,COLUMN(S5)-COLUMN($E5)<5),Base_V1_Maint_Repair_Cost_Year_1_Modeled*Base_V1_VMT_Modeled,IF(AND(COLUMN(S5)-COLUMN($E5)<Base_V1_Years_Usage_Modeled,COLUMN(S5)-COLUMN($E5)>=5),Base_V1_Maint_Repair_Cost_Year_5_Modeled*Base_V1_VMT_Modeled,0)))*Data!R$88 -> 0 | T36: =-IF(_Base_V1_Maint_Repair_Cost_Use_Default="Yes",IF(COLUMN(T5)-COLUMN($E5)<Base_V1_Years_Usage_Modeled,VLOOKUP(_Base_V1_Vehicle_Vehicle_Class & _Base_V1_Vehicle_Drivetrain & _Market,DB_Maint_Repair_Costs[],COLUMN(T5)-COLUMN($E5)+COLUMN(DB_Maint_Repair_Costs[[#Headers],[Year 1 ]]),FALSE)*Base_V1_VMT_Modeled,0),IF(AND(COLUMN(T5)-COLUMN($E5)<Base_V1_Years_Usage_Modeled,COLUMN(T5)-COLUMN($E5)<5),Base_V1_Maint_Repair_Cost_Year_1_Modeled*Base_V1_VMT_Modeled,IF(AND(COLUMN(T5)-COLUMN($E5)<Base_V1_Years_Usage_Modeled,COLUMN(T5)-COLUMN($E5)>=5),Base_V1_Maint_Repair_Cost_Year_5_Modeled*Base_V1_VMT_Modeled,0)))*Data!S$88 -> 0 | U36: =-IF(_Base_V1_Maint_Repair_Cost_Use_Default="Yes",IF(COLUMN(U5)-COLUMN($E5)<Base_V1_Years_Usage_Modeled,VLOOKUP(_Base_V1_Vehicle_Vehicle_Class & _Base_V1_Vehicle_Drivetrain & _Market,DB_Maint_Repair_Costs[],COLUMN(U5)-COLUMN($E5)+COLUMN(DB_Maint_Repair_Costs[[#Headers],[Year 1 ]]),FALSE)*Base_V1_VMT_Modeled,0),IF(AND(COLUMN(U5)-COLUMN($E5)<Base_V1_Years_Usage_Modeled,COLUMN(U5)-COLUMN($E5)<5),Base_V1_Maint_Repair_Cost_Year_1_Modeled*Base_V1_VMT_Modeled,IF(AND(COLUMN(U5)-COLUMN($E5)<Base_V1_Years_Usage_Modeled,COLUMN(U5)-COLUMN($E5)>=5),Base_V1_Maint_Repair_Cost_Year_5_Modeled*Base_V1_VMT_Modeled,0)))*Data!T$88 -> 0 | V36: =-IF(_Base_V1_Maint_Repair_Cost_Use_Default="Yes",IF(COLUMN(V5)-COLUMN($E5)<Base_V1_Years_Usage_Modeled,VLOOKUP(_Base_V1_Vehicle_Vehicle_Class & _Base_V1_Vehicle_Drivetrain & _Market,DB_Maint_Repair_Costs[],COLUMN(V5)-COLUMN($E5)+COLUMN(DB_Maint_Repair_Costs[[#Headers],[Year 1 ]]),FALSE)*Base_V1_VMT_Modeled,0),IF(AND(COLUMN(V5)-COLUMN($E5)<Base_V1_Years_Usage_Modeled,COLUMN(V5)-COLUMN($E5)<5),Base_V1_Maint_Repair_Cost_Year_1_Modeled*Base_V1_VMT_Modeled,IF(AND(COLUMN(V5)-COLUMN($E5)<Base_V1_Years_Usage_Modeled,COLUMN(V5)-COLUMN($E5)>=5),Base_V1_Maint_Repair_Cost_Year_5_Modeled*Base_V1_VMT_Modeled,0)))*Data!U$88 -> 0 | W36: =-IF(_Base_V1_Maint_Repair_Cost_Use_Default="Yes",IF(COLUMN(W5)-COLUMN($E5)<Base_V1_Years_Usage_Modeled,VLOOKUP(_Base_V1_Vehicle_Vehicle_Class & _Base_V1_Vehicle_Drivetrain & _Market,DB_Maint_Repair_Costs[],COLUMN(W5)-COLUMN($E5)+COLUMN(DB_Maint_Repair_Costs[[#Headers],[Year 1 ]]),FALSE)*Base_V1_VMT_Modeled,0),IF(AND(COLUMN(W5)-COLUMN($E5)<Base_V1_Years_Usage_Modeled,COLUMN(W5)-COLUMN($E5)<5),Base_V1_Maint_Repair_Cost_Year_1_Modeled*Base_V1_VMT_Modeled,IF(AND(COLUMN(W5)-COLUMN($E5)<Base_V1_Years_Usage_Modeled,COLUMN(W5)-COLUMN($E5)>=5),Base_V1_Maint_Repair_Cost_Year_5_Modeled*Base_V1_VMT_Modeled,0)))*Data!V$88 -> 0 | X36: =-IF(_Base_V1_Maint_Repair_Cost_Use_Default="Yes",IF(COLUMN(X5)-COLUMN($E5)<Base_V1_Years_Usage_Modeled,VLOOKUP(_Base_V1_Vehicle_Vehicle_Class & _Base_V1_Vehicle_Drivetrain & _Market,DB_Maint_Repair_Costs[],COLUMN(X5)-COLUMN($E5)+COLUMN(DB_Maint_Repair_Costs[[#Headers],[Year 1 ]]),FALSE)*Base_V1_VMT_Modeled,0),IF(AND(COLUMN(X5)-COLUMN($E5)<Base_V1_Years_Usage_Modeled,COLUMN(X5)-COLUMN($E5)<5),Base_V1_Maint_Repair_Cost_Year_1_Modeled*Base_V1_VMT_Modeled,IF(AND(COLUMN(X5)-COLUMN($E5)<Base_V1_Years_Usage_Modeled,COLUMN(X5)-COLUMN($E5)>=5),Base_V1_Maint_Repair_Cost_Year_5_Modeled*Base_V1_VMT_Modeled,0)))*Data!W$88 -> 0 | Y36: =-IF(_Base_V1_Maint_Repair_Cost_Use_Default="Yes",IF(COLUMN(Y5)-COLUMN($E5)<Base_V1_Years_Usage_Modeled,VLOOKUP(_Base_V1_Vehicle_Vehicle_Class & _Base_V1_Vehicle_Drivetrain & _Market,DB_Maint_Repair_Costs[],COLUMN(Y5)-COLUMN($E5)+COLUMN(DB_Maint_Repair_Costs[[#Headers],[Year 1 ]]),FALSE)*Base_V1_VMT_Modeled,0),IF(AND(COLUMN(Y5)-COLUMN($E5)<Base_V1_Years_Usage_Modeled,COLUMN(Y5)-COLUMN($E5)<5),Base_V1_Maint_Repair_Cost_Year_1_Modeled*Base_V1_VMT_Modeled,IF(AND(COLUMN(Y5)-COLUMN($E5)<Base_V1_Years_Usage_Modeled,COLUMN(Y5)-COLUMN($E5)>=5),Base_V1_Maint_Repair_Cost_Year_5_Modeled*Base_V1_VMT_Modeled,0)))*Data!X$88 -> 0 | Z36: =-IF(_Base_V1_Maint_Repair_Cost_Use_Default="Yes",IF(COLUMN(Z5)-COLUMN($E5)<Base_V1_Years_Usage_Modeled,VLOOKUP(_Base_V1_Vehicle_Vehicle_Class & _Base_V1_Vehicle_Drivetrain & _Market,DB_Maint_Repair_Costs[],COLUMN(Z5)-COLUMN($E5)+COLUMN(DB_Maint_Repair_Costs[[#Headers],[Year 1 ]]),FALSE)*Base_V1_VMT_Modeled,0),IF(AND(COLUMN(Z5)-COLUMN($E5)<Base_V1_Years_Usage_Modeled,COLUMN(Z5)-COLUMN($E5)<5),Base_V1_Maint_Repair_Cost_Year_1_Modeled*Base_V1_VMT_Modeled,IF(AND(COLUMN(Z5)-COLUMN($E5)<Base_V1_Years_Usage_Modeled,COLUMN(Z5)-COLUMN($E5)>=5),Base_V1_Maint_Repair_Cost_Year_5_Modeled*Base_V1_VMT_Modeled,0)))*Data!Y$88 -> 0 | AA36: =-IF(_Base_V1_Maint_Repair_Cost_Use_Default="Yes",IF(COLUMN(AA5)-COLUMN($E5)<Base_V1_Years_Usage_Modeled,VLOOKUP(_Base_V1_Vehicle_Vehicle_Class & _Base_V1_Vehicle_Drivetrain & _Market,DB_Maint_Repair_Costs[],COLUMN(AA5)-COLUMN($E5)+COLUMN(DB_Maint_Repair_Costs[[#Headers],[Year 1 ]]),FALSE)*Base_V1_VMT_Modeled,0),IF(AND(COLUMN(AA5)-COLUMN($E5)<Base_V1_Years_Usage_Modeled,COLUMN(AA5)-COLUMN($E5)<5),Base_V1_Maint_Repair_Cost_Year_1_Modeled*Base_V1_VMT_Modeled,IF(AND(COLUMN(AA5)-COLUMN($E5)<Base_V1_Years_Usage_Modeled,COLUMN(AA5)-COLUMN($E5)>=5),Base_V1_Maint_Repair_Cost_Year_5_Modeled*Base_V1_VMT_Modeled,0)))*Data!Z$88 -> 0 | AB36: =-IF(_Base_V1_Maint_Repair_Cost_Use_Default="Yes",IF(COLUMN(AB5)-COLUMN($E5)<Base_V1_Years_Usage_Modeled,VLOOKUP(_Base_V1_Vehicle_Vehicle_Class & _Base_V1_Vehicle_Drivetrain & _Market,DB_Maint_Repair_Costs[],COLUMN(AB5)-COLUMN($E5)+COLUMN(DB_Maint_Repair_Costs[[#Headers],[Year 1 ]]),FALSE)*Base_V1_VMT_Modeled,0),IF(AND(COLUMN(AB5)-COLUMN($E5)<Base_V1_Years_Usage_Modeled,COLUMN(AB5)-COLUMN($E5)<5),Base_V1_Maint_Repair_Cost_Year_1_Modeled*Base_V1_VMT_Modeled,IF(AND(COLUMN(AB5)-COLUMN($E5)<Base_V1_Years_Usage_Modeled,COLUMN(AB5)-COLUMN($E5)>=5),Base_V1_Maint_Repair_Cost_Year_5_Modeled*Base_V1_VMT_Modeled,0)))*Data!AA$88 -> 0 | AC36: =-IF(_Base_V1_Maint_Repair_Cost_Use_Default="Yes",IF(COLUMN(AC5)-COLUMN($E5)<Base_V1_Years_Usage_Modeled,VLOOKUP(_Base_V1_Vehicle_Vehicle_Class & _Base_V1_Vehicle_Drivetrain & _Market,DB_Maint_Repair_Costs[],COLUMN(AC5)-COLUMN($E5)+COLUMN(DB_Maint_Repair_Costs[[#Headers],[Year 1 ]]),FALSE)*Base_V1_VMT_Modeled,0),IF(AND(COLUMN(AC5)-COLUMN($E5)<Base_V1_Years_Usage_Modeled,COLUMN(AC5)-COLUMN($E5)<5),Base_V1_Maint_Repair_Cost_Year_1_Modeled*Base_V1_VMT_Modeled,IF(AND(COLUMN(AC5)-COLUMN($E5)<Base_V1_Years_Usage_Modeled,COLUMN(AC5)-COLUMN($E5)>=5),Base_V1_Maint_Repair_Cost_Year_5_Modeled*Base_V1_VMT_Modeled,0)))*Data!AB$88 -> 0
B37: Taxes and Fees | D37: =-Base_V1_Initial_Taxes_Fees_Modeled-(Base_V1_Initial_Percent_Base_Price_Modeled*Base_V1_Base_Price_Ex) -> -1000 | E37: =-IF(COLUMN(E5)-COLUMN($E5)<Base_V1_Years_Usage_Modeled,Base_V1_Taxes_Fees_Modeled,0)*Data!D$88 -> -10 | F37: =-IF(COLUMN(F5)-COLUMN($E5)<Base_V1_Years_Usage_Modeled,Base_V1_Taxes_Fees_Modeled,0)*Data!E$88 -> -10.2 | G37: =-IF(COLUMN(G5)-COLUMN($E5)<Base_V1_Years_Usage_Modeled,Base_V1_Taxes_Fees_Modeled,0)*Data!F$88 -> -10.404 | H37: =-IF(COLUMN(H5)-COLUMN($E5)<Base_V1_Years_Usage_Modeled,Base_V1_Taxes_Fees_Modeled,0)*Data!G$88 -> -10.61208 | I37: =-IF(COLUMN(I5)-COLUMN($E5)<Base_V1_Years_Usage_Modeled,Base_V1_Taxes_Fees_Modeled,0)*Data!H$88 -> -10.8243216 | J37: =-IF(COLUMN(J5)-COLUMN($E5)<Base_V1_Years_Usage_Modeled,Base_V1_Taxes_Fees_Modeled,0)*Data!I$88 -> -11.04080803 | K37: =-IF(COLUMN(K5)-COLUMN($E5)<Base_V1_Years_Usage_Modeled,Base_V1_Taxes_Fees_Modeled,0)*Data!J$88 -> -11.26162419 | L37: =-IF(COLUMN(L5)-COLUMN($E5)<Base_V1_Years_Usage_Modeled,Base_V1_Taxes_Fees_Modeled,0)*Data!K$88 -> 0 | M37: =-IF(COLUMN(M5)-COLUMN($E5)<Base_V1_Years_Usage_Modeled,Base_V1_Taxes_Fees_Modeled,0)*Data!L$88 -> 0 | N37: =-IF(COLUMN(N5)-COLUMN($E5)<Base_V1_Years_Usage_Modeled,Base_V1_Taxes_Fees_Modeled,0)*Data!M$88 -> 0 | O37: =-IF(COLUMN(O5)-COLUMN($E5)<Base_V1_Years_Usage_Modeled,Base_V1_Taxes_Fees_Modeled,0)*Data!N$88 -> 0 | P37: =-IF(COLUMN(P5)-COLUMN($E5)<Base_V1_Years_Usage_Modeled,Base_V1_Taxes_Fees_Modeled,0)*Data!O$88 -> 0 | Q37: =-IF(COLUMN(Q5)-COLUMN($E5)<Base_V1_Years_Usage_Modeled,Base_V1_Taxes_Fees_Modeled,0)*Data!P$88 -> 0 | R37: =-IF(COLUMN(R5)-COLUMN($E5)<Base_V1_Years_Usage_Modeled,Base_V1_Taxes_Fees_Modeled,0)*Data!Q$88 -> 0 | S37: =-IF(COLUMN(S5)-COLUMN($E5)<Base_V1_Years_Usage_Modeled,Base_V1_Taxes_Fees_Modeled,0)*Data!R$88 -> 0 | T37: =-IF(COLUMN(T5)-COLUMN($E5)<Base_V1_Years_Usage_Modeled,Base_V1_Taxes_Fees_Modeled,0)*Data!S$88 -> 0 | U37: =-IF(COLUMN(U5)-COLUMN($E5)<Base_V1_Years_Usage_Modeled,Base_V1_Taxes_Fees_Modeled,0)*Data!T$88 -> 0 | V37: =-IF(COLUMN(V5)-COLUMN($E5)<Base_V1_Years_Usage_Modeled,Base_V1_Taxes_Fees_Modeled,0)*Data!U$88 -> 0 | W37: =-IF(COLUMN(W5)-COLUMN($E5)<Base_V1_Years_Usage_Modeled,Base_V1_Taxes_Fees_Modeled,0)*Data!V$88 -> 0 | X37: =-IF(COLUMN(X5)-COLUMN($E5)<Base_V1_Years_Usage_Modeled,Base_V1_Taxes_Fees_Modeled,0)*Data!W$88 -> 0 | Y37: =-IF(COLUMN(Y5)-COLUMN($E5)<Base_V1_Years_Usage_Modeled,Base_V1_Taxes_Fees_Modeled,0)*Data!X$88 -> 0 | Z37: =-IF(COLUMN(Z5)-COLUMN($E5)<Base_V1_Years_Usage_Modeled,Base_V1_Taxes_Fees_Modeled,0)*Data!Y$88 -> 0 | AA37: =-IF(COLUMN(AA5)-COLUMN($E5)<Base_V1_Years_Usage_Modeled,Base_V1_Taxes_Fees_Modeled,0)*Data!Z$88 -> 0 | AB37: =-IF(COLUMN(AB5)-COLUMN($E5)<Base_V1_Years_Usage_Modeled,Base_V1_Taxes_Fees_Modeled,0)*Data!AA$88 -> 0 | AC37: =-IF(COLUMN(AC5)-COLUMN($E5)<Base_V1_Years_Usage_Modeled,Base_V1_Taxes_Fees_Modeled,0)*Data!AB$88 -> 0
B38: Insurance Cost | E38: =-IF(COLUMN(E5)-COLUMN($E5)<Base_V1_Years_Usage_Modeled,Base_V1_Insurance_Cost_Modeled,0)*Data!D$88 -> -1194 | F38: =-IF(COLUMN(F5)-COLUMN($E5)<Base_V1_Years_Usage_Modeled,Base_V1_Insurance_Cost_Modeled,0)*Data!E$88 -> -1217.88 | G38: =-IF(COLUMN(G5)-COLUMN($E5)<Base_V1_Years_Usage_Modeled,Base_V1_Insurance_Cost_Modeled,0)*Data!F$88 -> -1242.2376 | H38: =-IF(COLUMN(H5)-COLUMN($E5)<Base_V1_Years_Usage_Modeled,Base_V1_Insurance_Cost_Modeled,0)*Data!G$88 -> -1267.082352 | I38: =-IF(COLUMN(I5)-COLUMN($E5)<Base_V1_Years_Usage_Modeled,Base_V1_Insurance_Cost_Modeled,0)*Data!H$88 -> -1292.423999 | J38: =-IF(COLUMN(J5)-COLUMN($E5)<Base_V1_Years_Usage_Modeled,Base_V1_Insurance_Cost_Modeled,0)*Data!I$88 -> -1318.272479 | K38: =-IF(COLUMN(K5)-COLUMN($E5)<Base_V1_Years_Usage_Modeled,Base_V1_Insurance_Cost_Modeled,0)*Data!J$88 -> -1344.637929 | L38: =-IF(COLUMN(L5)-COLUMN($E5)<Base_V1_Years_Usage_Modeled,Base_V1_Insurance_Cost_Modeled,0)*Data!K$88 -> 0 | M38: =-IF(COLUMN(M5)-COLUMN($E5)<Base_V1_Years_Usage_Modeled,Base_V1_Insurance_Cost_Modeled,0)*Data!L$88 -> 0 | N38: =-IF(COLUMN(N5)-COLUMN($E5)<Base_V1_Years_Usage_Modeled,Base_V1_Insurance_Cost_Modeled,0)*Data!M$88 -> 0 | O38: =-IF(COLUMN(O5)-COLUMN($E5)<Base_V1_Years_Usage_Modeled,Base_V1_Insurance_Cost_Modeled,0)*Data!N$88 -> 0 | P38: =-IF(COLUMN(P5)-COLUMN($E5)<Base_V1_Years_Usage_Modeled,Base_V1_Insurance_Cost_Modeled,0)*Data!O$88 -> 0 | Q38: =-IF(COLUMN(Q5)-COLUMN($E5)<Base_V1_Years_Usage_Modeled,Base_V1_Insurance_Cost_Modeled,0)*Data!P$88 -> 0 | R38: =-IF(COLUMN(R5)-COLUMN($E5)<Base_V1_Years_Usage_Modeled,Base_V1_Insurance_Cost_Modeled,0)*Data!Q$88 -> 0 | S38: =-IF(COLUMN(S5)-COLUMN($E5)<Base_V1_Years_Usage_Modeled,Base_V1_Insurance_Cost_Modeled,0)*Data!R$88 -> 0 | T38: =-IF(COLUMN(T5)-COLUMN($E5)<Base_V1_Years_Usage_Modeled,Base_V1_Insurance_Cost_Modeled,0)*Data!S$88 -> 0 | U38: =-IF(COLUMN(U5)-COLUMN($E5)<Base_V1_Years_Usage_Modeled,Base_V1_Insurance_Cost_Modeled,0)*Data!T$88 -> 0 | V38: =-IF(COLUMN(V5)-COLUMN($E5)<Base_V1_Years_Usage_Modeled,Base_V1_Insurance_Cost_Modeled,0)*Data!U$88 -> 0 | W38: =-IF(COLUMN(W5)-COLUMN($E5)<Base_V1_Years_Usage_Modeled,Base_V1_Insurance_Cost_Modeled,0)*Data!V$88 -> 0 | X38: =-IF(COLUMN(X5)-COLUMN($E5)<Base_V1_Years_Usage_Modeled,Base_V1_Insurance_Cost_Modeled,0)*Data!W$88 -> 0 | Y38: =-IF(COLUMN(Y5)-COLUMN($E5)<Base_V1_Years_Usage_Modeled,Base_V1_Insurance_Cost_Modeled,0)*Data!X$88 -> 0 | Z38: =-IF(COLUMN(Z5)-COLUMN($E5)<Base_V1_Years_Usage_Modeled,Base_V1_Insurance_Cost_Modeled,0)*Data!Y$88 -> 0 | AA38: =-IF(COLUMN(AA5)-COLUMN($E5)<Base_V1_Years_Usage_Modeled,Base_V1_Insurance_Cost_Modeled,0)*Data!Z$88 -> 0 | AB38: =-IF(COLUMN(AB5)-COLUMN($E5)<Base_V1_Years_Usage_Modeled,Base_V1_Insurance_Cost_Modeled,0)*Data!AA$88 -> 0 | AC38: =-IF(COLUMN(AC5)-COLUMN($E5)<Base_V1_Years_Usage_Modeled,Base_V1_Insurance_Cost_Modeled,0)*Data!AB$88 -> 0
B39: Utility Value Stream | E39: =IF(Base_Include_Utility_Value = "Yes", IF(COLUMN(E5)-COLUMN($E5)<Base_V1_Years_Usage_Modeled,IF(Base_Include_Utility_Value="Yes",Base_Utility_Value_Stream_Value*IF(Base_Utility_Value_Stream_Frequency="Monthly",12,1),0),0),0) -> 0 | F39: =IF(Base_Include_Utility_Value="Yes",IF(COLUMN(F5)-COLUMN($E5)<Base_V1_Years_Usage_Modeled,E39*(1+Base_Utility_Value_Escalator),0),0) -> 0 | G39: 0 | H39: 0 | I39: 0 | J39: 0 | K39: 0 | L39: 0 | M39: 0 | N39: 0 | O39: 0 | P39: 0 | Q39: 0 | R39: 0 | S39: 0 | T39: 0 | U39: 0 | V39: 0 | W39: 0 | X39: 0 | Y39: 0 | Z39: 0 | AA39: 0 | AB39: 0 | AC39: 0
B40: LCFS | E40: =IF(COLUMN(E$5)-COLUMN($E$5)<Base_V1_Years_Usage_Modeled, IF(AND(_Fuel_Carbon_Credits_Ex="Yes",Base_Include_LCFS="Yes"), VLOOKUP(Base_CI_Start_Year+E$4-1, Base_Credit_Values, 2, 0) *(((SUMIFS(CI_Benchmark_Table[Benchmark], CI_Benchmark_Table[Year], Base_CI_Start_Year+E$4-1, CI_Benchmark_Table[Fuel Type], Base_Benchmark_Fuel_Ex, CI_Benchmark_Table[State],State_Ex))-Base_CI_Electricity_Modeled/Base_EER_Ex)*Base_Energy_Displaced_Ex*0.000001), 0), 0) -> 0 | F40: =IF(COLUMN(F$5)-COLUMN($E$5)<Base_V1_Years_Usage_Modeled, IF(AND(_Fuel_Carbon_Credits_Ex="Yes",Base_Include_LCFS="Yes"), VLOOKUP(Base_CI_Start_Year+F$4-1, Base_Credit_Values, 2, 0) *(((SUMIFS(CI_Benchmark_Table[Benchmark], CI_Benchmark_Table[Year], Base_CI_Start_Year+F$4-1, CI_Benchmark_Table[Fuel Type], Base_Benchmark_Fuel_Ex, CI_Benchmark_Table[State],State_Ex))-Base_CI_Electricity_Modeled/Base_EER_Ex)*Base_Energy_Displaced_Ex*0.000001), 0), 0) -> 0 | G40: =IF(COLUMN(G$5)-COLUMN($E$5)<Base_V1_Years_Usage_Modeled, IF(AND(_Fuel_Carbon_Credits_Ex="Yes",Base_Include_LCFS="Yes"), VLOOKUP(Base_CI_Start_Year+G$4-1, Base_Credit_Values, 2, 0) *(((SUMIFS(CI_Benchmark_Table[Benchmark], CI_Benchmark_Table[Year], Base_CI_Start_Year+G$4-1, CI_Benchmark_Table[Fuel Type], Base_Benchmark_Fuel_Ex, CI_Benchmark_Table[State],State_Ex))-Base_CI_Electricity_Modeled/Base_EER_Ex)*Base_Energy_Displaced_Ex*0.000001), 0), 0) -> 0 | H40: =IF(COLUMN(H$5)-COLUMN($E$5)<Base_V1_Years_Usage_Modeled, IF(AND(_Fuel_Carbon_Credits_Ex="Yes",Base_Include_LCFS="Yes"), VLOOKUP(Base_CI_Start_Year+H$4-1, Base_Credit_Values, 2, 0) *(((SUMIFS(CI_Benchmark_Table[Benchmark], CI_Benchmark_Table[Year], Base_CI_Start_Year+H$4-1, CI_Benchmark_Table[Fuel Type], Base_Benchmark_Fuel_Ex, CI_Benchmark_Table[State],State_Ex))-Base_CI_Electricity_Modeled/Base_EER_Ex)*Base_Energy_Displaced_Ex*0.000001), 0), 0) -> 0 | I40: =IF(COLUMN(I$5)-COLUMN($E$5)<Base_V1_Years_Usage_Modeled, IF(AND(_Fuel_Carbon_Credits_Ex="Yes",Base_Include_LCFS="Yes"), VLOOKUP(Base_CI_Start_Year+I$4-1, Base_Credit_Values, 2, 0) *(((SUMIFS(CI_Benchmark_Table[Benchmark], CI_Benchmark_Table[Year], Base_CI_Start_Year+I$4-1, CI_Benchmark_Table[Fuel Type], Base_Benchmark_Fuel_Ex, CI_Benchmark_Table[State],State_Ex))-Base_CI_Electricity_Modeled/Base_EER_Ex)*Base_Energy_Displaced_Ex*0.000001), 0), 0) -> 0 | J40: =IF(COLUMN(J$5)-COLUMN($E$5)<Base_V1_Years_Usage_Modeled, IF(AND(_Fuel_Carbon_Credits_Ex="Yes",Base_Include_LCFS="Yes"), VLOOKUP(Base_CI_Start_Year+J$4-1, Base_Credit_Values, 2, 0) *(((SUMIFS(CI_Benchmark_Table[Benchmark], CI_Benchmark_Table[Year], Base_CI_Start_Year+J$4-1, CI_Benchmark_Table[Fuel Type], Base_Benchmark_Fuel_Ex, CI_Benchmark_Table[State],State_Ex))-Base_CI_Electricity_Modeled/Base_EER_Ex)*Base_Energy_Displaced_Ex*0.000001), 0), 0) -> 0 | K40: =IF(COLUMN(K$5)-COLUMN($E$5)<Base_V1_Years_Usage_Modeled, IF(AND(_Fuel_Carbon_Credits_Ex="Yes",Base_Include_LCFS="Yes"), VLOOKUP(Base_CI_Start_Year+K$4-1, Base_Credit_Values, 2, 0) *(((SUMIFS(CI_Benchmark_Table[Benchmark], CI_Benchmark_Table[Year], Base_CI_Start_Year+K$4-1, CI_Benchmark_Table[Fuel Type], Base_Benchmark_Fuel_Ex, CI_Benchmark_Table[State],State_Ex))-Base_CI_Electricity_Modeled/Base_EER_Ex)*Base_Energy_Displaced_Ex*0.000001), 0), 0) -> 0 | L40: =IF(COLUMN(L$5)-COLUMN($E$5)<Base_V1_Years_Usage_Modeled, IF(AND(_Fuel_Carbon_Credits_Ex="Yes",Base_Include_LCFS="Yes"), VLOOKUP(Base_CI_Start_Year+L$4-1, Base_Credit_Values, 2, 0) *(((SUMIFS(CI_Benchmark_Table[Benchmark], CI_Benchmark_Table[Year], Base_CI_Start_Year+L$4-1, CI_Benchmark_Table[Fuel Type], Base_Benchmark_Fuel_Ex, CI_Benchmark_Table[State],State_Ex))-Base_CI_Electricity_Modeled/Base_EER_Ex)*Base_Energy_Displaced_Ex*0.000001), 0), 0) -> 0 | M40: =IF(COLUMN(M$5)-COLUMN($E$5)<Base_V1_Years_Usage_Modeled, IF(AND(_Fuel_Carbon_Credits_Ex="Yes",Base_Include_LCFS="Yes"), VLOOKUP(Base_CI_Start_Year+M$4-1, Base_Credit_Values, 2, 0) *(((SUMIFS(CI_Benchmark_Table[Benchmark], CI_Benchmark_Table[Year], Base_CI_Start_Year+M$4-1, CI_Benchmark_Table[Fuel Type], Base_Benchmark_Fuel_Ex, CI_Benchmark_Table[State],State_Ex))-Base_CI_Electricity_Modeled/Base_EER_Ex)*Base_Energy_Displaced_Ex*0.000001), 0), 0) -> 0 | N40: =IF(COLUMN(N$5)-COLUMN($E$5)<Base_V1_Years_Usage_Modeled, IF(AND(_Fuel_Carbon_Credits_Ex="Yes",Base_Include_LCFS="Yes"), VLOOKUP(Base_CI_Start_Year+N$4-1, Base_Credit_Values, 2, 0) *(((SUMIFS(CI_Benchmark_Table[Benchmark], CI_Benchmark_Table[Year], Base_CI_Start_Year+N$4-1, CI_Benchmark_Table[Fuel Type], Base_Benchmark_Fuel_Ex, CI_Benchmark_Table[State],State_Ex))-Base_CI_Electricity_Modeled/Base_EER_Ex)*Base_Energy_Displaced_Ex*0.000001), 0), 0) -> 0 | O40: =IF(COLUMN(O$5)-COLUMN($E$5)<Base_V1_Years_Usage_Modeled, IF(AND(_Fuel_Carbon_Credits_Ex="Yes",Base_Include_LCFS="Yes"), VLOOKUP(Base_CI_Start_Year+O$4-1, Base_Credit_Values, 2, 0) *(((SUMIFS(CI_Benchmark_Table[Benchmark], CI_Benchmark_Table[Year], Base_CI_Start_Year+O$4-1, CI_Benchmark_Table[Fuel Type], Base_Benchmark_Fuel_Ex, CI_Benchmark_Table[State],State_Ex))-Base_CI_Electricity_Modeled/Base_EER_Ex)*Base_Energy_Displaced_Ex*0.000001), 0), 0) -> 0 | P40: =IF(COLUMN(P$5)-COLUMN($E$5)<Base_V1_Years_Usage_Modeled, IF(AND(_Fuel_Carbon_Credits_Ex="Yes",Base_Include_LCFS="Yes"), VLOOKUP(Base_CI_Start_Year+P$4-1, Base_Credit_Values, 2, 0) *(((SUMIFS(CI_Benchmark_Table[Benchmark], CI_Benchmark_Table[Year], Base_CI_Start_Year+P$4-1, CI_Benchmark_Table[Fuel Type], Base_Benchmark_Fuel_Ex, CI_Benchmark_Table[State],State_Ex))-Base_CI_Electricity_Modeled/Base_EER_Ex)*Base_Energy_Displaced_Ex*0.000001), 0), 0) -> 0 | Q40: =IF(COLUMN(Q$5)-COLUMN($E$5)<Base_V1_Years_Usage_Modeled, IF(AND(_Fuel_Carbon_Credits_Ex="Yes",Base_Include_LCFS="Yes"), VLOOKUP(Base_CI_Start_Year+Q$4-1, Base_Credit_Values, 2, 0) *(((SUMIFS(CI_Benchmark_Table[Benchmark], CI_Benchmark_Table[Year], Base_CI_Start_Year+Q$4-1, CI_Benchmark_Table[Fuel Type], Base_Benchmark_Fuel_Ex, CI_Benchmark_Table[State],State_Ex))-Base_CI_Electricity_Modeled/Base_EER_Ex)*Base_Energy_Displaced_Ex*0.000001), 0), 0) -> 0 | R40: =IF(COLUMN(R$5)-COLUMN($E$5)<Base_V1_Years_Usage_Modeled, IF(AND(_Fuel_Carbon_Credits_Ex="Yes",Base_Include_LCFS="Yes"), VLOOKUP(Base_CI_Start_Year+R$4-1, Base_Credit_Values, 2, 0) *(((SUMIFS(CI_Benchmark_Table[Benchmark], CI_Benchmark_Table[Year], Base_CI_Start_Year+R$4-1, CI_Benchmark_Table[Fuel Type], Base_Benchmark_Fuel_Ex, CI_Benchmark_Table[State],State_Ex))-Base_CI_Electricity_Modeled/Base_EER_Ex)*Base_Energy_Displaced_Ex*0.000001), 0), 0) -> 0 | S40: =IF(COLUMN(S$5)-COLUMN($E$5)<Base_V1_Years_Usage_Modeled, IF(AND(_Fuel_Carbon_Credits_Ex="Yes",Base_Include_LCFS="Yes"), VLOOKUP(Base_CI_Start_Year+S$4-1, Base_Credit_Values, 2, 0) *(((SUMIFS(CI_Benchmark_Table[Benchmark], CI_Benchmark_Table[Year], Base_CI_Start_Year+S$4-1, CI_Benchmark_Table[Fuel Type], Base_Benchmark_Fuel_Ex, CI_Benchmark_Table[State],State_Ex))-Base_CI_Electricity_Modeled/Base_EER_Ex)*Base_Energy_Displaced_Ex*0.000001), 0), 0) -> 0 | T40: =IF(COLUMN(T$5)-COLUMN($E$5)<Base_V1_Years_Usage_Modeled, IF(AND(_Fuel_Carbon_Credits_Ex="Yes",Base_Include_LCFS="Yes"), VLOOKUP(Base_CI_Start_Year+T$4-1, Base_Credit_Values, 2, 0) *(((SUMIFS(CI_Benchmark_Table[Benchmark], CI_Benchmark_Table[Year], Base_CI_Start_Year+T$4-1, CI_Benchmark_Table[Fuel Type], Base_Benchmark_Fuel_Ex, CI_Benchmark_Table[State],State_Ex))-Base_CI_Electricity_Modeled/Base_EER_Ex)*Base_Energy_Displaced_Ex*0.000001), 0), 0) -> 0 | U40: =IF(COLUMN(U$5)-COLUMN($E$5)<Base_V1_Years_Usage_Modeled, IF(AND(_Fuel_Carbon_Credits_Ex="Yes",Base_Include_LCFS="Yes"), VLOOKUP(Base_CI_Start_Year+U$4-1, Base_Credit_Values, 2, 0) *(((SUMIFS(CI_Benchmark_Table[Benchmark], CI_Benchmark_Table[Year], Base_CI_Start_Year+U$4-1, CI_Benchmark_Table[Fuel Type], Base_Benchmark_Fuel_Ex, CI_Benchmark_Table[State],State_Ex))-Base_CI_Electricity_Modeled/Base_EER_Ex)*Base_Energy_Displaced_Ex*0.000001), 0), 0) -> 0 | V40: =IF(COLUMN(V$5)-COLUMN($E$5)<Base_V1_Years_Usage_Modeled, IF(AND(_Fuel_Carbon_Credits_Ex="Yes",Base_Include_LCFS="Yes"), VLOOKUP(Base_CI_Start_Year+V$4-1, Base_Credit_Values, 2, 0) *(((SUMIFS(CI_Benchmark_Table[Benchmark], CI_Benchmark_Table[Year], Base_CI_Start_Year+V$4-1, CI_Benchmark_Table[Fuel Type], Base_Benchmark_Fuel_Ex, CI_Benchmark_Table[State],State_Ex))-Base_CI_Electricity_Modeled/Base_EER_Ex)*Base_Energy_Displaced_Ex*0.000001), 0), 0) -> 0 | W40: =IF(COLUMN(W$5)-COLUMN($E$5)<Base_V1_Years_Usage_Modeled, IF(AND(_Fuel_Carbon_Credits_Ex="Yes",Base_Include_LCFS="Yes"), VLOOKUP(Base_CI_Start_Year+W$4-1, Base_Credit_Values, 2, 0) *(((SUMIFS(CI_Benchmark_Table[Benchmark], CI_Benchmark_Table[Year], Base_CI_Start_Year+W$4-1, CI_Benchmark_Table[Fuel Type], Base_Benchmark_Fuel_Ex, CI_Benchmark_Table[State],State_Ex))-Base_CI_Electricity_Modeled/Base_EER_Ex)*Base_Energy_Displaced_Ex*0.000001), 0), 0) -> 0 | X40: =IF(COLUMN(X$5)-COLUMN($E$5)<Base_V1_Years_Usage_Modeled, IF(AND(_Fuel_Carbon_Credits_Ex="Yes",Base_Include_LCFS="Yes"), VLOOKUP(Base_CI_Start_Year+X$4-1, Base_Credit_Values, 2, 0) *(((SUMIFS(CI_Benchmark_Table[Benchmark], CI_Benchmark_Table[Year], Base_CI_Start_Year+X$4-1, CI_Benchmark_Table[Fuel Type], Base_Benchmark_Fuel_Ex, CI_Benchmark_Table[State],State_Ex))-Base_CI_Electricity_Modeled/Base_EER_Ex)*Base_Energy_Displaced_Ex*0.000001), 0), 0) -> 0 | Y40: =IF(COLUMN(Y$5)-COLUMN($E$5)<Base_V1_Years_Usage_Modeled, IF(AND(_Fuel_Carbon_Credits_Ex="Yes",Base_Include_LCFS="Yes"), VLOOKUP(Base_CI_Start_Year+Y$4-1, Base_Credit_Values, 2, 0) *(((SUMIFS(CI_Benchmark_Table[Benchmark], CI_Benchmark_Table[Year], Base_CI_Start_Year+Y$4-1, CI_Benchmark_Table[Fuel Type], Base_Benchmark_Fuel_Ex, CI_Benchmark_Table[State],State_Ex))-Base_CI_Electricity_Modeled/Base_EER_Ex)*Base_Energy_Displaced_Ex*0.000001), 0), 0) -> 0 | Z40: =IF(COLUMN(Z$5)-COLUMN($E$5)<Base_V1_Years_Usage_Modeled, IF(AND(_Fuel_Carbon_Credits_Ex="Yes",Base_Include_LCFS="Yes"), VLOOKUP(Base_CI_Start_Year+Z$4-1, Base_Credit_Values, 2, 0) *(((SUMIFS(CI_Benchmark_Table[Benchmark], CI_Benchmark_Table[Year], Base_CI_Start_Year+Z$4-1, CI_Benchmark_Table[Fuel Type], Base_Benchmark_Fuel_Ex, CI_Benchmark_Table[State],State_Ex))-Base_CI_Electricity_Modeled/Base_EER_Ex)*Base_Energy_Displaced_Ex*0.000001), 0), 0) -> 0 | AA40: =IF(COLUMN(AA$5)-COLUMN($E$5)<Base_V1_Years_Usage_Modeled, IF(AND(_Fuel_Carbon_Credits_Ex="Yes",Base_Include_LCFS="Yes"), VLOOKUP(Base_CI_Start_Year+AA$4-1, Base_Credit_Values, 2, 0) *(((SUMIFS(CI_Benchmark_Table[Benchmark], CI_Benchmark_Table[Year], Base_CI_Start_Year+AA$4-1, CI_Benchmark_Table[Fuel Type], Base_Benchmark_Fuel_Ex, CI_Benchmark_Table[State],State_Ex))-Base_CI_Electricity_Modeled/Base_EER_Ex)*Base_Energy_Displaced_Ex*0.000001), 0), 0) -> 0 | AB40: =IF(COLUMN(AB$5)-COLUMN($E$5)<Base_V1_Years_Usage_Modeled, IF(AND(_Fuel_Carbon_Credits_Ex="Yes",Base_Include_LCFS="Yes"), VLOOKUP(Base_CI_Start_Year+AB$4-1, Base_Credit_Values, 2, 0) *(((SUMIFS(CI_Benchmark_Table[Benchmark], CI_Benchmark_Table[Year], Base_CI_Start_Year+AB$4-1, CI_Benchmark_Table[Fuel Type], Base_Benchmark_Fuel_Ex, CI_Benchmark_Table[State],State_Ex))-Base_CI_Electricity_Modeled/Base_EER_Ex)*Base_Energy_Displaced_Ex*0.000001), 0), 0) -> 0 | AC40: =IF(COLUMN(AC$5)-COLUMN($E$5)<Base_V1_Years_Usage_Modeled, IF(AND(_Fuel_Carbon_Credits_Ex="Yes",Base_Include_LCFS="Yes"), VLOOKUP(Base_CI_Start_Year+AC$4-1, Base_Credit_Values, 2, 0) *(((SUMIFS(CI_Benchmark_Table[Benchmark], CI_Benchmark_Table[Year], Base_CI_Start_Year+AC$4-1, CI_Benchmark_Table[Fuel Type], Base_Benchmark_Fuel_Ex, CI_Benchmark_Table[State],State_Ex))-Base_CI_Electricity_Modeled/Base_EER_Ex)*Base_Energy_Displaced_Ex*0.000001), 0), 0) -> 0
B41: Subtotal Fuel and Operating Costs | D41: =SUM(D35:D40) -> -1000 | E41: =SUM(E35:E40) -> -2499.17505 | F41: =SUM(F35:F40) -> -2564.538821 | G41: -2588.738463 | H41: -2615.486082 | I41: -2645.862788 | J41: -2906.651899 | K41: -2956.384839 | L41: 0 | M41: 0 | N41: 0 | O41: 0 | P41: 0 | Q41: 0 | R41: 0 | S41: 0 | T41: 0 | U41: 0 | V41: 0 | W41: 0 | X41: 0 | Y41: 0 | Z41: 0 | AA41: 0 | AB41: 0 | AC41: 0
B43: Other Costs
B44: Cost of Carbon | E44: =-IF(COLUMN(E5)-COLUMN($E5)<Base_V1_Years_Usage_Modeled,Base_V1_CO2_Ex/2204.62*Carbon_Price_Modeled,0) -> 0 | F44: 0 | G44: 0 | H44: 0 | I44: 0 | J44: 0 | K44: 0 | L44: 0 | M44: 0 | N44: 0 | O44: 0 | P44: 0 | Q44: 0 | R44: 0 | S44: 0 | T44: 0 | U44: 0 | V44: 0 | W44: 0 | X44: 0 | Y44: 0 | Z44: 0 | AA44: 0 | AB44: 0 | AC44: 0
B45: Cost of Downtime from Public Charging | E45: =-IF(AND(COLUMN(E6)-COLUMN($E6)<Base_V1_Years_Usage_Modeled, Cost_of_Downtime_from_Charging_Modeled<>0, Base_Station_Max_Power_Modeled<>0),(Base_V1_Electricity_Usage_Ex*Base_Percent_Public_Charging_Modeled)/Base_Station_Max_Power_Modeled*Cost_of_Downtime_from_Charging_Modeled, 0) -> 0 | F45: 0 | G45: 0 | H45: 0 | I45: 0 | J45: 0 | K45: 0 | L45: 0 | M45: 0 | N45: 0 | O45: 0 | P45: 0 | Q45: 0 | R45: 0 | S45: 0 | T45: 0 | U45: 0 | V45: 0 | W45: 0 | X45: 0 | Y45: 0 | Z45: 0 | AA45: 0 | AB45: 0 | AC45: 0
B46: Subtotal Other Costs | D46: =SUM(D44:D45) -> 0 | E46: =SUM(E44:E45) -> 0 | F46: =SUM(F44:F45) -> 0 | G46: 0 | H46: 0 | I46: 0 | J46: 0 | K46: 0 | L46: 0 | M46: 0 | N46: 0 | O46: 0 | P46: 0 | Q46: 0 | R46: 0 | S46: 0 | T46: 0 | U46: 0 | V46: 0 | W46: 0 | X46: 0 | Y46: 0 | Z46: 0 | AA46: 0 | AB46: 0 | AC46: 0
B48: Total Discounted Costs
B49: Total Annual Costs | D49: =D32+D41+D46 -> -23550 | E49: -2499.17505 | F49: -2564.538821 | G49: -2588.738463 | H49: -2615.486082 | I49: -2645.862788 | J49: -2906.651899 | K49: 8202.33812 | L49: 0 | M49: 0 | N49: 0 | O49: 0 | P49: 0 | Q49: 0 | R49: 0 | S49: 0 | T49: 0 | U49: 0 | V49: 0 | W49: 0 | X49: 0 | Y49: 0 | Z49: 0 | AA49: 0 | AB49: 0 | AC49: 0
B50: Discount Factor | C50: =Base_Discount_Rate_Modeled -> 0 | D50: =(1/(1+$C50))^(COLUMN(D5)-COLUMN($D5)) -> 1 | E50: 1 | F50: 1 | G50: 1 | H50: 1 | I50: 1 | J50: 1 | K50: 1 | L50: 1 | M50: 1 | N50: 1 | O50: 1 | P50: 1 | Q50: 1 | R50: 1 | S50: 1 | T50: 1 | U50: 1 | V50: 1 | W50: 1 | X50: 1 | Y50: 1 | Z50: 1 | AA50: 1 | AB50: 1 | AC50: 1
B51: Discounted Total | D51: =D49*D50 -> -23550 | E51: =E49*E50 -> -2499.17505 | F51: =F49*F50 -> -2564.538821 | G51: -2588.738463 | H51: -2615.486082 | I51: -2645.862788 | J51: -2906.651899 | K51: 8202.33812 | L51: 0 | M51: 0 | N51: 0 | O51: 0 | P51: 0 | Q51: 0 | R51: 0 | S51: 0 | T51: 0 | U51: 0 | V51: 0 | W51: 0 | X51: 0 | Y51: 0 | Z51: 0 | AA51: 0 | AB51: 0 | AC51: 0
B52: Cumulative Discounted Total | D52: =IF((COLUMN(D5)-COLUMN($D5))<=Base_V1_Years_Usage_Modeled,C52+D51,0) -> -23550 | E52: -26049.17505 | F52: -28613.71387 | G52: -31202.45233 | H52: -33817.93842 | I52: -36463.8012 | J52: -39370.4531 | K52: -31168.11498 | L52: 0 | M52: 0 | N52: 0 | O52: 0 | P52: 0 | Q52: 0 | R52: 0 | S52: 0 | T52: 0 | U52: 0 | V52: 0 | W52: 0 | X52: 0 | Y52: 0 | Z52: 0 | AA52: 0 | AB52: 0 | AC52: 0
B53: Annualized NPV Total Cost of Ownership | D53: =OFFSET($D52,0,Base_V1_Years_Usage_Modeled)/Base_V1_Years_Usage_Modeled -> -4452.587855
B55: Baseline EV Infrastructure
D56: Year 0 | E56: Year 1 | F56: Year 2 | G56: Year 3 | H56: Year 4 | I56: Year 5 | J56: Year 6 | K56: Year 7 | L56: Year 8 | M56: Year 9 | N56: Year 10 | O56: Year 11 | P56: Year 12 | Q56: Year 13 | R56: Year 14 | S56: Year 15 | T56: Year 16 | U56: Year 17 | V56: Year 18 | W56: Year 19 | X56: Year 20 | Y56: Year 21 | Z56: Year 22 | AA56: Year 23 | AB56: Year 24 | AC56: Year 25
B57: Capital and Financing Costs
B58: Cash
B59: Cash Payment | D59: =IF(AND(Base_Inf_Has_Cash_Purchase_Ex=TRUE,_Base_Include_Charging="Yes"),-Base_Num_Stations_Modeled*Base_Station_Cost_Modeled,0) -> 0
B60: Loan
B61: Down Payment | D61: =IF(AND(Base_Inf_Has_Cash_Purchase_Ex=FALSE,_Base_Include_Charging="Yes"),-Base_Inf_Down_Payment_Modeled,0) -> 0
B62: Loan Payments | E62: =IF(AND(Base_Inf_Has_Cash_Purchase_Ex=FALSE,_Base_Include_Charging="Yes",(COLUMN(E56)-COLUMN($E56))<Base_Inf_Loan_Term_Modeled),PMT(Base_Inf_Loan_APR_Modeled,Base_Inf_Loan_Term_Modeled,(Base_Num_Stations_Modeled*Base_Station_Cost_Modeled)-Base_Inf_Down_Payment_Modeled,0),0) -> 0 | F62: 0 | G62: 0 | H62: 0 | I62: 0 | J62: 0 | K62: 0 | L62: 0 | M62: 0 | N62: 0 | O62: 0 | P62: 0 | Q62: 0 | R62: 0 | S62: 0 | T62: 0 | U62: 0 | V62: 0 | W62: 0 | X62: 0 | Y62: 0 | Z62: 0 | AA62: 0 | AB62: 0 | AC62: 0
B63: Subtotal Loan Cash Flows | D63: =SUM(D61:D62) -> 0 | E63: =SUM(E61:E62) -> 0 | F63: 0 | G63: 0 | H63: 0 | I63: 0 | J63: 0 | K63: 0 | L63: 0 | M63: 0 | N63: 0 | O63: 0 | P63: 0 | Q63: 0 | R63: 0 | S63: 0 | T63: 0 | U63: 0 | V63: 0 | W63: 0 | X63: 0 | Y63: 0 | Z63: 0 | AA63: 0 | AB63: 0 | AC63: 0
B65: Total Capital and Financing Costs | D65: =D59+D63 -> 0 | E65: =E59+E63 -> 0 | F65: 0 | G65: 0 | H65: 0 | I65: 0 | J65: 0 | K65: 0 | L65: 0 | M65: 0 | N65: 0 | O65: 0 | P65: 0 | Q65: 0 | R65: 0 | S65: 0 | T65: 0 | U65: 0 | V65: 0 | W65: 0 | X65: 0 | Y65: 0 | Z65: 0 | AA65: 0 | AB65: 0 | AC65: 0
B67: Operating Costs
B68: Maintenance Cost | E68: =-IF(AND(COLUMN(E56)-COLUMN($E56)<Base_V1_Years_Usage_Modeled,_Base_Include_Charging="Yes"),Base_Station_Maint_Cost_Modeled*Base_Num_Stations_Modeled,0)*Data!D$88 -> 0 | F68: =-IF(AND(COLUMN(F56)-COLUMN($E56)<Base_V1_Years_Usage_Modeled,_Base_Include_Charging="Yes"),Base_Station_Maint_Cost_Modeled*Base_Num_Stations_Modeled,0)*Data!E$88 -> 0 | G68: =-IF(AND(COLUMN(G56)-COLUMN($E56)<Base_V1_Years_Usage_Modeled,_Base_Include_Charging="Yes"),Base_Station_Maint_Cost_Modeled*Base_Num_Stations_Modeled,0)*Data!F$88 -> 0 | H68: =-IF(AND(COLUMN(H56)-COLUMN($E56)<Base_V1_Years_Usage_Modeled,_Base_Include_Charging="Yes"),Base_Station_Maint_Cost_Modeled*Base_Num_Stations_Modeled,0)*Data!G$88 -> 0 | I68: =-IF(AND(COLUMN(I56)-COLUMN($E56)<Base_V1_Years_Usage_Modeled,_Base_Include_Charging="Yes"),Base_Station_Maint_Cost_Modeled*Base_Num_Stations_Modeled,0)*Data!H$88 -> 0 | J68: =-IF(AND(COLUMN(J56)-COLUMN($E56)<Base_V1_Years_Usage_Modeled,_Base_Include_Charging="Yes"),Base_Station_Maint_Cost_Modeled*Base_Num_Stations_Modeled,0)*Data!I$88 -> 0 | K68: =-IF(AND(COLUMN(K56)-COLUMN($E56)<Base_V1_Years_Usage_Modeled,_Base_Include_Charging="Yes"),Base_Station_Maint_Cost_Modeled*Base_Num_Stations_Modeled,0)*Data!J$88 -> 0 | L68: =-IF(AND(COLUMN(L56)-COLUMN($E56)<Base_V1_Years_Usage_Modeled,_Base_Include_Charging="Yes"),Base_Station_Maint_Cost_Modeled*Base_Num_Stations_Modeled,0)*Data!K$88 -> 0 | M68: =-IF(AND(COLUMN(M56)-COLUMN($E56)<Base_V1_Years_Usage_Modeled,_Base_Include_Charging="Yes"),Base_Station_Maint_Cost_Modeled*Base_Num_Stations_Modeled,0)*Data!L$88 -> 0 | N68: =-IF(AND(COLUMN(N56)-COLUMN($E56)<Base_V1_Years_Usage_Modeled,_Base_Include_Charging="Yes"),Base_Station_Maint_Cost_Modeled*Base_Num_Stations_Modeled,0)*Data!M$88 -> 0 | O68: =-IF(AND(COLUMN(O56)-COLUMN($E56)<Base_V1_Years_Usage_Modeled,_Base_Include_Charging="Yes"),Base_Station_Maint_Cost_Modeled*Base_Num_Stations_Modeled,0)*Data!N$88 -> 0 | P68: =-IF(AND(COLUMN(P56)-COLUMN($E56)<Base_V1_Years_Usage_Modeled,_Base_Include_Charging="Yes"),Base_Station_Maint_Cost_Modeled*Base_Num_Stations_Modeled,0)*Data!O$88 -> 0 | Q68: =-IF(AND(COLUMN(Q56)-COLUMN($E56)<Base_V1_Years_Usage_Modeled,_Base_Include_Charging="Yes"),Base_Station_Maint_Cost_Modeled*Base_Num_Stations_Modeled,0)*Data!P$88 -> 0 | R68: =-IF(AND(COLUMN(R56)-COLUMN($E56)<Base_V1_Years_Usage_Modeled,_Base_Include_Charging="Yes"),Base_Station_Maint_Cost_Modeled*Base_Num_Stations_Modeled,0)*Data!Q$88 -> 0 | S68: =-IF(AND(COLUMN(S56)-COLUMN($E56)<Base_V1_Years_Usage_Modeled,_Base_Include_Charging="Yes"),Base_Station_Maint_Cost_Modeled*Base_Num_Stations_Modeled,0)*Data!R$88 -> 0 | T68: =-IF(AND(COLUMN(T56)-COLUMN($E56)<Base_V1_Years_Usage_Modeled,_Base_Include_Charging="Yes"),Base_Station_Maint_Cost_Modeled*Base_Num_Stations_Modeled,0)*Data!S$88 -> 0 | U68: =-IF(AND(COLUMN(U56)-COLUMN($E56)<Base_V1_Years_Usage_Modeled,_Base_Include_Charging="Yes"),Base_Station_Maint_Cost_Modeled*Base_Num_Stations_Modeled,0)*Data!T$88 -> 0 | V68: =-IF(AND(COLUMN(V56)-COLUMN($E56)<Base_V1_Years_Usage_Modeled,_Base_Include_Charging="Yes"),Base_Station_Maint_Cost_Modeled*Base_Num_Stations_Modeled,0)*Data!U$88 -> 0 | W68: =-IF(AND(COLUMN(W56)-COLUMN($E56)<Base_V1_Years_Usage_Modeled,_Base_Include_Charging="Yes"),Base_Station_Maint_Cost_Modeled*Base_Num_Stations_Modeled,0)*Data!V$88 -> 0 | X68: =-IF(AND(COLUMN(X56)-COLUMN($E56)<Base_V1_Years_Usage_Modeled,_Base_Include_Charging="Yes"),Base_Station_Maint_Cost_Modeled*Base_Num_Stations_Modeled,0)*Data!W$88 -> 0 | Y68: =-IF(AND(COLUMN(Y56)-COLUMN($E56)<Base_V1_Years_Usage_Modeled,_Base_Include_Charging="Yes"),Base_Station_Maint_Cost_Modeled*Base_Num_Stations_Modeled,0)*Data!X$88 -> 0 | Z68: =-IF(AND(COLUMN(Z56)-COLUMN($E56)<Base_V1_Years_Usage_Modeled,_Base_Include_Charging="Yes"),Base_Station_Maint_Cost_Modeled*Base_Num_Stations_Modeled,0)*Data!Y$88 -> 0 | AA68: =-IF(AND(COLUMN(AA56)-COLUMN($E56)<Base_V1_Years_Usage_Modeled,_Base_Include_Charging="Yes"),Base_Station_Maint_Cost_Modeled*Base_Num_Stations_Modeled,0)*Data!Z$88 -> 0 | AB68: =-IF(AND(COLUMN(AB56)-COLUMN($E56)<Base_V1_Years_Usage_Modeled,_Base_Include_Charging="Yes"),Base_Station_Maint_Cost_Modeled*Base_Num_Stations_Modeled,0)*Data!AA$88 -> 0 | AC68: =-IF(AND(COLUMN(AC56)-COLUMN($E56)<Base_V1_Years_Usage_Modeled,_Base_Include_Charging="Yes"),Base_Station_Maint_Cost_Modeled*Base_Num_Stations_Modeled,0)*Data!AB$88 -> 0
B69: Subtotal Operating Costs | E69: =SUM(E68:E68) -> 0 | F69: 0 | G69: 0 | H69: 0 | I69: 0 | J69: 0 | K69: 0 | L69: 0 | M69: 0 | N69: 0 | O69: 0 | P69: 0 | Q69: 0 | R69: 0 | S69: 0 | T69: 0 | U69: 0 | V69: 0 | W69: 0 | X69: 0 | Y69: 0 | Z69: 0 | AA69: 0 | AB69: 0 | AC69: 0
B70: Total Discounted Costs
B71: Total Annual Costs | D71: =D65+D69 -> 0 | E71: =E65+E69 -> 0 | F71: 0 | G71: 0 | H71: 0 | I71: 0 | J71: 0 | K71: 0 | L71: 0 | M71: 0 | N71: 0 | O71: 0 | P71: 0 | Q71: 0 | R71: 0 | S71: 0 | T71: 0 | U71: 0 | V71: 0 | W71: 0 | X71: 0 | Y71: 0 | Z71: 0 | AA71: 0 | AB71: 0 | AC71: 0
B72: Discount Factor | C72: =Base_Discount_Rate_Modeled -> 0 | D72: =(1/(1+$C72))^(COLUMN(D56)-COLUMN($D56)) -> 1 | E72: 1 | F72: 1 | G72: 1 | H72: 1 | I72: 1 | J72: 1 | K72: 1 | L72: 1 | M72: 1 | N72: 1 | O72: 1 | P72: 1 | Q72: 1 | R72: 1 | S72: 1 | T72: 1 | U72: 1 | V72: 1 | W72: 1 | X72: 1 | Y72: 1 | Z72: 1 | AA72: 1 | AB72: 1 | AC72: 1
B73: Discounted Total | D73: =D71*D72 -> 0 | E73: =E71*E72 -> 0 | F73: =F71*F72 -> 0 | G73: 0 | H73: 0 | I73: 0 | J73: 0 | K73: 0 | L73: 0 | M73: 0 | N73: 0 | O73: 0 | P73: 0 | Q73: 0 | R73: 0 | S73: 0 | T73: 0 | U73: 0 | V73: 0 | W73: 0 | X73: 0 | Y73: 0 | Z73: 0 | AA73: 0 | AB73: 0 | AC73: 0
B74: Cumulative Discounted Total | D74: =IF((COLUMN(D56)-COLUMN($D56))<=Base_V1_Years_Usage_Modeled,C74+D73,0) -> 0 | E74: 0 | F74: 0 | G74: 0 | H74: 0 | I74: 0 | J74: 0 | K74: 0 | L74: 0 | M74: 0 | N74: 0 | O74: 0 | P74: 0 | Q74: 0 | R74: 0 | S74: 0 | T74: 0 | U74: 0 | V74: 0 | W74: 0 | X74: 0 | Y74: 0 | Z74: 0 | AA74: 0 | AB74: 0 | AC74: 0
B75: Annualized NPV Total Cost of Ownership | D75: =OFFSET($D74,0,Base_V1_Years_Usage_Modeled)/Base_V1_Years_Usage_Modeled -> 0
B77: Comparison Vehicle 1
D78: Year 0 | E78: Year 1 | F78: Year 2 | G78: Year 3 | H78: Year 4 | I78: Year 5 | J78: Year 6 | K78: Year 7 | L78: Year 8 | M78: Year 9 | N78: Year 10 | O78: Year 11 | P78: Year 12 | Q78: Year 13 | R78: Year 14 | S78: Year 15 | T78: Year 16 | U78: Year 17 | V78: Year 18 | W78: Year 19 | X78: Year 20 | Y78: Year 21 | Z78: Year 22 | AA78: Year 23 | AB78: Year 24 | AC78: Year 25
B79: Depreciation Calculations
B80: Fair Market Value - BEV | D80: =IF(_Comp_V1_Vehicle_Drivetrain="BEV",Comp_V1_Base_Price_Ex,0) -> 0 | E80: =IF(_Comp_V1_Vehicle_Vehicle_Class=Constant_Passenger_Light_Duty, IF(_Comp_V1_Vehicle_Drivetrain="BEV",MAX(IF(_Comp_V1_Vehicle_Drivetrain="BEV",(Reg_BEV_Const_Ex+Reg_BEV_Age_Coef_Ex*(COLUMN(E5)-COLUMN($D5))+Reg_BEV_Agesq_Coef_Ex*((COLUMN(E5)-COLUMN($D5))^2)+Reg_BEV_Range_Coef_Ex*Constant_Baseline_Electric_Range+Reg_BEV_Mileage_Coef_Ex*Comp_V1_VMT_Modeled*(COLUMN(E5)-COLUMN($D5)))*Comp_V1_MSRP_Modeled,0),300),0), IF(COLUMN(E5)-COLUMN($D5)=1, 'Financial Model'!D7*0.77, 'Financial Model'!D7*0.85)) -> 0 | F80: =IF(_Comp_V1_Vehicle_Vehicle_Class=Constant_Passenger_Light_Duty, IF(_Comp_V1_Vehicle_Drivetrain="BEV",MAX(IF(_Comp_V1_Vehicle_Drivetrain="BEV",(Reg_BEV_Const_Ex+Reg_BEV_Age_Coef_Ex*(COLUMN(F5)-COLUMN($D5))+Reg_BEV_Agesq_Coef_Ex*((COLUMN(F5)-COLUMN($D5))^2)+Reg_BEV_Range_Coef_Ex*Constant_Baseline_Electric_Range+Reg_BEV_Mileage_Coef_Ex*Comp_V1_VMT_Modeled*(COLUMN(F5)-COLUMN($D5)))*Comp_V1_MSRP_Modeled,0),300),0), IF(COLUMN(F5)-COLUMN($D5)=1, 'Financial Model'!E7*0.77, 'Financial Model'!E7*0.85)) -> 0 | G80: =IF(_Comp_V1_Vehicle_Vehicle_Class=Constant_Passenger_Light_Duty, IF(_Comp_V1_Vehicle_Drivetrain="BEV",MAX(IF(_Comp_V1_Vehicle_Drivetrain="BEV",(Reg_BEV_Const_Ex+Reg_BEV_Age_Coef_Ex*(COLUMN(G5)-COLUMN($D5))+Reg_BEV_Agesq_Coef_Ex*((COLUMN(G5)-COLUMN($D5))^2)+Reg_BEV_Range_Coef_Ex*Constant_Baseline_Electric_Range+Reg_BEV_Mileage_Coef_Ex*Comp_V1_VMT_Modeled*(COLUMN(G5)-COLUMN($D5)))*Comp_V1_MSRP_Modeled,0),300),0), IF(COLUMN(G5)-COLUMN($D5)=1, 'Financial Model'!F7*0.77, 'Financial Model'!F7*0.85)) -> 0 | H80: =IF(_Comp_V1_Vehicle_Vehicle_Class=Constant_Passenger_Light_Duty, IF(_Comp_V1_Vehicle_Drivetrain="BEV",MAX(IF(_Comp_V1_Vehicle_Drivetrain="BEV",(Reg_BEV_Const_Ex+Reg_BEV_Age_Coef_Ex*(COLUMN(H5)-COLUMN($D5))+Reg_BEV_Agesq_Coef_Ex*((COLUMN(H5)-COLUMN($D5))^2)+Reg_BEV_Range_Coef_Ex*Constant_Baseline_Electric_Range+Reg_BEV_Mileage_Coef_Ex*Comp_V1_VMT_Modeled*(COLUMN(H5)-COLUMN($D5)))*Comp_V1_MSRP_Modeled,0),300),0), IF(COLUMN(H5)-COLUMN($D5)=1, 'Financial Model'!G7*0.77, 'Financial Model'!G7*0.85)) -> 0 | I80: =IF(_Comp_V1_Vehicle_Vehicle_Class=Constant_Passenger_Light_Duty, IF(_Comp_V1_Vehicle_Drivetrain="BEV",MAX(IF(_Comp_V1_Vehicle_Drivetrain="BEV",(Reg_BEV_Const_Ex+Reg_BEV_Age_Coef_Ex*(COLUMN(I5)-COLUMN($D5))+Reg_BEV_Agesq_Coef_Ex*((COLUMN(I5)-COLUMN($D5))^2)+Reg_BEV_Range_Coef_Ex*Constant_Baseline_Electric_Range+Reg_BEV_Mileage_Coef_Ex*Comp_V1_VMT_Modeled*(COLUMN(I5)-COLUMN($D5)))*Comp_V1_MSRP_Modeled,0),300),0), IF(COLUMN(I5)-COLUMN($D5)=1, 'Financial Model'!H7*0.77, 'Financial Model'!H7*0.85)) -> 0 | J80: =IF(_Comp_V1_Vehicle_Vehicle_Class=Constant_Passenger_Light_Duty, IF($H80-$I80=0,0,MAX(Constant_DEP*I80, 300)), IF($H80-$I80=0,0,MAX((1-($H80-$I80)/$H80)*I80,300))) -> 0 | K80: 0 | L80: 0 | M80: 0 | N80: 0 | O80: 0 | P80: 0 | Q80: 0 | R80: 0 | S80: 0 | T80: 0 | U80: 0 | V80: 0 | W80: 0 | X80: 0 | Y80: 0 | Z80: 0 | AA80: 0 | AB80: 0 | AC80: 0
B81: Fair Market Value - PHEV | D81: =IF(_Comp_V1_Vehicle_Drivetrain="PHEV",Comp_V1_Base_Price_Ex,0) -> 0 | E81: =IF(_Comp_V1_Vehicle_Vehicle_Class=Constant_Passenger_Light_Duty, IF(_Comp_V1_Vehicle_Drivetrain="PHEV",MAX(IF(_Comp_V1_Vehicle_Drivetrain="PHEV",Reg_PHEV_Const_Ex+Reg_PHEV_Age_Coef_Ex*(COLUMN(E78)-COLUMN($D78))+Reg_PHEV_Agesq_Coef_Ex*((COLUMN(E78)-COLUMN($D78))^2)+Reg_PHEV_MSRP_Coef_Ex*Comp_V1_Base_Price_Ex+Reg_PHEV_Range_Coef_Ex*Constant_Comparison_Electric_Range+Reg_PHEV_Mileage_Coef_Ex*Comp_V1_VMT_Modeled*(COLUMN(E78)-COLUMN($D78)),0),300),0),IF(COLUMN(E78)-COLUMN($D78)=1, 'Financial Model'!D81*0.77, 'Financial Model'!D81*0.85)) -> 0 | F81: =IF(_Comp_V1_Vehicle_Vehicle_Class=Constant_Passenger_Light_Duty, IF(_Comp_V1_Vehicle_Drivetrain="PHEV",MAX(IF(_Comp_V1_Vehicle_Drivetrain="PHEV",Reg_PHEV_Const_Ex+Reg_PHEV_Age_Coef_Ex*(COLUMN(F78)-COLUMN($D78))+Reg_PHEV_Agesq_Coef_Ex*((COLUMN(F78)-COLUMN($D78))^2)+Reg_PHEV_MSRP_Coef_Ex*Comp_V1_Base_Price_Ex+Reg_PHEV_Range_Coef_Ex*Constant_Comparison_Electric_Range+Reg_PHEV_Mileage_Coef_Ex*Comp_V1_VMT_Modeled*(COLUMN(F78)-COLUMN($D78)),0),300),0),IF(COLUMN(F78)-COLUMN($D78)=1, 'Financial Model'!E81*0.77, 'Financial Model'!E81*0.85)) -> 0 | G81: =IF(_Comp_V1_Vehicle_Vehicle_Class=Constant_Passenger_Light_Duty, IF(_Comp_V1_Vehicle_Drivetrain="PHEV",MAX(IF(_Comp_V1_Vehicle_Drivetrain="PHEV",Reg_PHEV_Const_Ex+Reg_PHEV_Age_Coef_Ex*(COLUMN(G78)-COLUMN($D78))+Reg_PHEV_Agesq_Coef_Ex*((COLUMN(G78)-COLUMN($D78))^2)+Reg_PHEV_MSRP_Coef_Ex*Comp_V1_Base_Price_Ex+Reg_PHEV_Range_Coef_Ex*Constant_Comparison_Electric_Range+Reg_PHEV_Mileage_Coef_Ex*Comp_V1_VMT_Modeled*(COLUMN(G78)-COLUMN($D78)),0),300),0),IF(COLUMN(G78)-COLUMN($D78)=1, 'Financial Model'!F81*0.77, 'Financial Model'!F81*0.85)) -> 0 | H81: =IF(_Comp_V1_Vehicle_Vehicle_Class=Constant_Passenger_Light_Duty, IF(_Comp_V1_Vehicle_Drivetrain="PHEV",MAX(IF(_Comp_V1_Vehicle_Drivetrain="PHEV",Reg_PHEV_Const_Ex+Reg_PHEV_Age_Coef_Ex*(COLUMN(H78)-COLUMN($D78))+Reg_PHEV_Agesq_Coef_Ex*((COLUMN(H78)-COLUMN($D78))^2)+Reg_PHEV_MSRP_Coef_Ex*Comp_V1_Base_Price_Ex+Reg_PHEV_Range_Coef_Ex*Constant_Comparison_Electric_Range+Reg_PHEV_Mileage_Coef_Ex*Comp_V1_VMT_Modeled*(COLUMN(H78)-COLUMN($D78)),0),300),0),IF(COLUMN(H78)-COLUMN($D78)=1, 'Financial Model'!G81*0.77, 'Financial Model'!G81*0.85)) -> 0 | I81: =IF(_Comp_V1_Vehicle_Vehicle_Class=Constant_Passenger_Light_Duty, IF(_Comp_V1_Vehicle_Drivetrain="PHEV",MAX(IF(_Comp_V1_Vehicle_Drivetrain="PHEV",Reg_PHEV_Const_Ex+Reg_PHEV_Age_Coef_Ex*(COLUMN(I78)-COLUMN($D78))+Reg_PHEV_Agesq_Coef_Ex*((COLUMN(I78)-COLUMN($D78))^2)+Reg_PHEV_MSRP_Coef_Ex*Comp_V1_Base_Price_Ex+Reg_PHEV_Range_Coef_Ex*Constant_Comparison_Electric_Range+Reg_PHEV_Mileage_Coef_Ex*Comp_V1_VMT_Modeled*(COLUMN(I78)-COLUMN($D78)),0),300),0),IF(COLUMN(I78)-COLUMN($D78)=1, 'Financial Model'!H81*0.77, 'Financial Model'!H81*0.85)) -> 0 | J81: =IF(_Comp_V1_Vehicle_Vehicle_Class=Constant_Passenger_Light_Duty, IF($H81-$I81=0,0,MAX(Constant_DEP*I81, 300)), IF($H81-$I81=0,0,MAX((1-($H81-$I81)/$H81)*I81,300))) -> 0 | K81: 0 | L81: 0 | M81: 0 | N81: 0 | O81: 0 | P81: 0 | Q81: 0 | R81: 0 | S81: 0 | T81: 0 | U81: 0 | V81: 0 | W81: 0 | X81: 0 | Y81: 0 | Z81: 0 | AA81: 0 | AB81: 0 | AC81: 0
B82: Fair Market Value - ICE | D82: =IF(_Comp_V1_Vehicle_Drivetrain="ICE",Comp_V1_Base_Price_Ex,0) -> 22050 | E82: =IF(_Comp_V1_Vehicle_Vehicle_Class=Constant_Passenger_Light_Duty, IF(_Comp_V1_Vehicle_Drivetrain="ICE",MAX(IF(_Comp_V1_Vehicle_Drivetrain="ICE",Reg_ICE_Const_Ex+Reg_ICE_Age_Coef_Ex*(COLUMN(E78)-COLUMN($D78))+Reg_ICE_Agesq_Coef_Ex*(COLUMN(E78)-COLUMN($D78))^2+Reg_ICE_MSRP_Coef_Ex*Comp_V1_Base_Price_Ex+Reg_ICE_MPG_Coef_Ex*Constant_Comparison_Fuel_Economy_Gas_City+Reg_ICE_Mileage_Coef_Ex*Comp_V1_VMT_Modeled*(COLUMN(E78)-COLUMN($D78)),0),300),0), IF(COLUMN(E78)-COLUMN($D78)=1, 'Financial Model'!D82*0.77, 'Financial Model'!D82*0.85)) -> 18698.26605 | F82: =IF(_Comp_V1_Vehicle_Vehicle_Class=Constant_Passenger_Light_Duty, IF(_Comp_V1_Vehicle_Drivetrain="ICE",MAX(IF(_Comp_V1_Vehicle_Drivetrain="ICE",Reg_ICE_Const_Ex+Reg_ICE_Age_Coef_Ex*(COLUMN(F78)-COLUMN($D78))+Reg_ICE_Agesq_Coef_Ex*(COLUMN(F78)-COLUMN($D78))^2+Reg_ICE_MSRP_Coef_Ex*Comp_V1_Base_Price_Ex+Reg_ICE_MPG_Coef_Ex*Constant_Comparison_Fuel_Economy_Gas_City+Reg_ICE_Mileage_Coef_Ex*Comp_V1_VMT_Modeled*(COLUMN(F78)-COLUMN($D78)),0),300),0), IF(COLUMN(F78)-COLUMN($D78)=1, 'Financial Model'!E82*0.77, 'Financial Model'!E82*0.85)) -> 17106.75795 | G82: =IF(_Comp_V1_Vehicle_Vehicle_Class=Constant_Passenger_Light_Duty, IF(_Comp_V1_Vehicle_Drivetrain="ICE",MAX(IF(_Comp_V1_Vehicle_Drivetrain="ICE",Reg_ICE_Const_Ex+Reg_ICE_Age_Coef_Ex*(COLUMN(G78)-COLUMN($D78))+Reg_ICE_Agesq_Coef_Ex*(COLUMN(G78)-COLUMN($D78))^2+Reg_ICE_MSRP_Coef_Ex*Comp_V1_Base_Price_Ex+Reg_ICE_MPG_Coef_Ex*Constant_Comparison_Fuel_Economy_Gas_City+Reg_ICE_Mileage_Coef_Ex*Comp_V1_VMT_Modeled*(COLUMN(G78)-COLUMN($D78)),0),300),0), IF(COLUMN(G78)-COLUMN($D78)=1, 'Financial Model'!F82*0.77, 'Financial Model'!F82*0.85)) -> 15197.54985 | H82: =IF(_Comp_V1_Vehicle_Vehicle_Class=Constant_Passenger_Light_Duty, IF(_Comp_V1_Vehicle_Drivetrain="ICE",MAX(IF(_Comp_V1_Vehicle_Drivetrain="ICE",Reg_ICE_Const_Ex+Reg_ICE_Age_Coef_Ex*(COLUMN(H78)-COLUMN($D78))+Reg_ICE_Agesq_Coef_Ex*(COLUMN(H78)-COLUMN($D78))^2+Reg_ICE_MSRP_Coef_Ex*Comp_V1_Base_Price_Ex+Reg_ICE_MPG_Coef_Ex*Constant_Comparison_Fuel_Economy_Gas_City+Reg_ICE_Mileage_Coef_Ex*Comp_V1_VMT_Modeled*(COLUMN(H78)-COLUMN($D78)),0),300),0), IF(COLUMN(H78)-COLUMN($D78)=1, 'Financial Model'!G82*0.77, 'Financial Model'!G82*0.85)) -> 12970.64175 | I82: =IF(_Comp_V1_Vehicle_Vehicle_Class=Constant_Passenger_Light_Duty, IF(_Comp_V1_Vehicle_Drivetrain="ICE",MAX(IF(_Comp_V1_Vehicle_Drivetrain="ICE",Reg_ICE_Const_Ex+Reg_ICE_Age_Coef_Ex*(COLUMN(I78)-COLUMN($D78))+Reg_ICE_Agesq_Coef_Ex*(COLUMN(I78)-COLUMN($D78))^2+Reg_ICE_MSRP_Coef_Ex*Comp_V1_Base_Price_Ex+Reg_ICE_MPG_Coef_Ex*Constant_Comparison_Fuel_Economy_Gas_City+Reg_ICE_Mileage_Coef_Ex*Comp_V1_VMT_Modeled*(COLUMN(I78)-COLUMN($D78)),0),300),0), IF(COLUMN(I78)-COLUMN($D78)=1, 'Financial Model'!H82*0.77, 'Financial Model'!H82*0.85)) -> 10426.03365 | J82: =IF(_Comp_V1_Vehicle_Vehicle_Class=Constant_Passenger_Light_Duty, IF($H82-$I82=0,0,MAX(Constant_DEP*I82, 300)), IF($H82-$I82=0,0,MAX((1-($H82-$I82)/$H82)*I82,300))) -> 9564.843271 | K82: 8774.787216 | L82: 8049.989792 | M82: 7385.060635 | N82: 6775.054627 | O82: 6215.435115 | P82: 5702.040174 | Q82: 5231.051656 | R82: 4798.966789 | S82: 4402.572132 | T82: 4038.919674 | U82: 3705.304909 | V82: 3399.246724 | W82: 3118.468944 | X82: 2860.883409 | Y82: 2624.57444 | Z82: 2407.784591 | AA82: 2208.901584 | AB82: 2026.446313 | AC82: 1859.061848
B84: Capital and Financing Costs
B85: Cash
B86: Cash Payment | D86: =IF(AND(Comp_V1_Has_Cash_Purchase_Ex=TRUE,Comp_V1_Has_Loan_Ex=FALSE,Comp_V1_Has_Lease_Ex=FALSE,COLUMN(D78)-COLUMN($D78)=0),-(Comp_V1_Base_Price_Ex-IF(Comp_V1_Tax_Incentives_Monetized="Yes",Comp_V1_Federal_Tax_Incentives_Modeled+IF(Comp_V1_State_Tax_Incentive_Cap_Modeled=0,Comp_V1_State_Tax_Incentives_Modeled,MIN(Comp_V1_State_Tax_Incentive_Cap_Modeled,Comp_V1_State_Tax_Incentives_Modeled*Comp_V1_Num_Vehicles_Modeled)/Comp_V1_Num_Vehicles_Modeled),0)-Comp_V1_Other_Incentives_Modeled),IF(AND(Comp_V1_Has_Cash_Purchase_Ex=TRUE,OR(Comp_V1_Has_Loan_Ex=TRUE,Comp_V1_Has_Lease_Ex=TRUE),COLUMN(D78)-COLUMN($D78)=Comp_V1_Lease_Term_Modeled),IF(ISERROR(FIND("Tax",_Comp_V1_Ownership_Structure,1)),-SUM(D80:D82),-Comp_V1_Lease_Residual_Price_Modeled),0)) -> -22050 | E86: 0 | F86: 0 | G86: 0 | H86: 0 | I86: 0 | J86: 0 | K86: 0 | L86: 0 | M86: 0 | N86: 0 | O86: 0 | P86: 0 | Q86: 0 | R86: 0 | S86: 0 | T86: 0 | U86: 0 | V86: 0 | W86: 0 | X86: 0 | Y86: 0 | Z86: 0 | AA86: 0 | AB86: 0 | AC86: 0
B87: Lease
B88: Down Payment | D88: =IF(Comp_V1_Has_Lease_Ex=TRUE,-Comp_V1_Down_Payment_Modeled,0) -> 0
B89: Acquisition Fee | D89: =IF(Comp_V1_Has_Lease_Ex=TRUE,-Comp_V1_Lease_Acquisition_Fee_Modeled,0) -> 0
B90: Disposition Charge | D90: =IF(AND(Comp_V1_Has_Lease_Ex=TRUE,((COLUMN(D78)-COLUMN($D78))=Comp_V1_Lease_Term_Modeled)),-Comp_V1_Lease_Disposition_Fee_Modeled,0) -> 0 | E90: 0 | F90: 0 | G90: 0 | H90: 0 | I90: 0 | J90: 0 | K90: 0 | L90: 0 | M90: 0 | N90: 0 | O90: 0 | P90: 0 | Q90: 0 | R90: 0 | S90: 0 | T90: 0 | U90: 0 | V90: 0 | W90: 0 | X90: 0 | Y90: 0 | Z90: 0 | AA90: 0 | AB90: 0 | AC90: 0
B91: Lease Payments | E91: =IF(Comp_V1_Has_Lease_Ex=TRUE,IF((COLUMN(E78)-COLUMN($E78))<Comp_V1_Lease_Term_Modeled,-PMT(Comp_V1_Lease_APR_Modeled/12,Comp_V1_Lease_Term_Modeled*12,-(Comp_V1_Base_Price_Ex-IF(Comp_V1_Tax_Incentives_Monetized="Yes",Comp_V1_Federal_Tax_Incentives_Modeled+IF(Comp_V1_State_Tax_Incentive_Cap_Modeled=0,Comp_V1_State_Tax_Incentives_Modeled,MIN(Comp_V1_State_Tax_Incentive_Cap_Modeled,Comp_V1_State_Tax_Incentives_Modeled*Comp_V1_Num_Vehicles_Modeled)/Comp_V1_Num_Vehicles_Modeled),0)-Comp_V1_Other_Incentives_Modeled-Comp_V1_Down_Payment_Modeled)+Comp_V1_Lease_Residual_Price_Modeled,0)*12,0),0) -> 0 | F91: 0 | G91: 0 | H91: 0 | I91: 0 | J91: 0 | K91: 0 | L91: 0 | M91: 0 | N91: 0 | O91: 0 | P91: 0 | Q91: 0 | R91: 0 | S91: 0 | T91: 0 | U91: 0 | V91: 0 | W91: 0 | X91: 0 | Y91: 0 | Z91: 0 | AA91: 0 | AB91: 0 | AC91: 0
B92: Principal Payments | E92: =IF(Comp_V1_Has_Lease_Ex=TRUE,IF((COLUMN(E78)-COLUMN($E78))<Comp_V1_Lease_Term_Modeled,-PPMT(Comp_V1_Lease_APR_Modeled/12,(COLUMN(E78)-COLUMN($D78))*12,Comp_V1_Lease_Term_Modeled*12,-(Comp_V1_Base_Price_Ex-IF(Comp_V1_Tax_Incentives_Monetized="Yes",Comp_V1_Federal_Tax_Incentives_Modeled+IF(Comp_V1_State_Tax_Incentive_Cap_Modeled=0,Comp_V1_State_Tax_Incentives_Modeled,MIN(Comp_V1_State_Tax_Incentive_Cap_Modeled,Comp_V1_State_Tax_Incentives_Modeled*Comp_V1_Num_Vehicles_Modeled)/Comp_V1_Num_Vehicles_Modeled),0)-Comp_V1_Other_Incentives_Modeled-Comp_V1_Down_Payment_Modeled)+Comp_V1_Lease_Residual_Price_Modeled,0)*12,0),0) -> 0 | F92: 0 | G92: 0 | H92: 0 | I92: 0 | J92: 0 | K92: 0 | L92: 0 | M92: 0 | N92: 0 | O92: 0 | P92: 0 | Q92: 0 | R92: 0 | S92: 0 | T92: 0 | U92: 0 | V92: 0 | W92: 0 | X92: 0 | Y92: 0 | Z92: 0 | AA92: 0 | AB92: 0 | AC92: 0
B93: Interest Payments | E93: =IF(Comp_V1_Has_Lease_Ex=TRUE,IF((COLUMN(E78)-COLUMN($E78))<Comp_V1_Lease_Term_Modeled,-IPMT(Comp_V1_Lease_APR_Modeled/12,(COLUMN(E78)-COLUMN($D78))*12,Comp_V1_Lease_Term_Modeled*12,-(Comp_V1_Base_Price_Ex-IF(Comp_V1_Tax_Incentives_Monetized="Yes",Comp_V1_Federal_Tax_Incentives_Modeled+IF(Comp_V1_State_Tax_Incentive_Cap_Modeled=0,Comp_V1_State_Tax_Incentives_Modeled,MIN(Comp_V1_State_Tax_Incentive_Cap_Modeled,Comp_V1_State_Tax_Incentives_Modeled*Comp_V1_Num_Vehicles_Modeled)/Comp_V1_Num_Vehicles_Modeled),0)-Comp_V1_Other_Incentives_Modeled-Comp_V1_Down_Payment_Modeled)+Comp_V1_Lease_Residual_Price_Modeled,0)*12,0),0) -> 0 | F93: 0 | G93: 0 | H93: 0 | I93: 0 | J93: 0 | K93: 0 | L93: 0 | M93: 0 | N93: 0 | O93: 0 | P93: 0 | Q93: 0 | R93: 0 | S93: 0 | T93: 0 | U93: 0 | V93: 0 | W93: 0 | X93: 0 | Y93: 0 | Z93: 0 | AA93: 0 | AB93: 0 | AC93: 0
B94: TRAC Value Adjustment | E94: =IF(ISERROR(FIND("TRAC",_Comp_V1_Ownership_Structure,1)),0,IF(Comp_V1_Has_Loan_Ex=TRUE,0,IF((COLUMN(E78)-COLUMN($D78))=Comp_V1_Lease_Term_Modeled,SUM(E80:E82)-Comp_V1_Lease_Residual_Price_Modeled,0))) -> 0 | F94: 0 | G94: 0 | H94: 0 | I94: 0 | J94: 0 | K94: 0 | L94: 0 | M94: 0 | N94: 0 | O94: 0 | P94: 0 | Q94: 0 | R94: 0 | S94: 0 | T94: 0 | U94: 0 | V94: 0 | W94: 0 | X94: 0 | Y94: 0 | Z94: 0 | AA94: 0 | AB94: 0 | AC94: 0
B95: FMV Mileage Adjustment | E95: =MIN(0,MAX(-Comp_V1_Lease_Residual_Price_Modeled+SUM(E80:E82),IF(IFERROR(IF(FIND("FMV",_Comp_V1_Ownership_Structure,1)>0,TRUE,FALSE),FALSE),IF((COLUMN(E78)-COLUMN($D78))=Comp_V1_Lease_Term_Modeled,(Comp_V1_Lease_Mileage_Inc_Modeled-Comp_V1_VMT_Modeled)*(COLUMN(E78)-COLUMN($D78))*Comp_V1_Lease_Mileage_Cost_Modeled,0),0))) -> 0 | F95: 0 | G95: 0 | H95: 0 | I95: 0 | J95: 0 | K95: 0 | L95: 0 | M95: 0 | N95: 0 | O95: 0 | P95: 0 | Q95: 0 | R95: 0 | S95: 0 | T95: 0 | U95: 0 | V95: 0 | W95: 0 | X95: 0 | Y95: 0 | Z95: 0 | AA95: 0 | AB95: 0 | AC95: 0
B96: Subtotal Lease Cash Flows | D96: =SUM(D88:D91)+SUM(D94:D95) -> 0 | E96: =SUM(E88:E91)+SUM(E94:E95) -> 0 | F96: 0 | G96: 0 | H96: 0 | I96: 0 | J96: 0 | K96: 0 | L96: 0 | M96: 0 | N96: 0 | O96: 0 | P96: 0 | Q96: 0 | R96: 0 | S96: 0 | T96: 0 | U96: 0 | V96: 0 | W96: 0 | X96: 0 | Y96: 0 | Z96: 0 | AA96: 0 | AB96: 0 | AC96: 0
B97: Loan
B98: Down Payment | D98: =IF(AND(Comp_V1_Has_Loan_Ex=TRUE,Comp_V1_Has_Lease_Ex=FALSE),-Comp_V1_Down_Payment_Modeled,0) -> 0
B99: Loan Payments | E99: =IF(Comp_V1_Has_Loan_Ex=TRUE,IF(AND((COLUMN(E78)-COLUMN($E78))<Comp_V1_Loan_Term_Modeled+Comp_V1_Lease_Term_Modeled,(COLUMN(E78)-COLUMN($E78))>=Comp_V1_Lease_Term_Modeled),PMT(Comp_V1_Loan_APR_Modeled,Comp_V1_Loan_Term_Modeled,IF(Comp_V1_Has_Lease_Ex=TRUE,SUM(OFFSET($D78,0,Comp_V1_Lease_Term_Modeled,3,1)),Comp_V1_Comp_Price_Ex-IF(Comp_V1_Tax_Incentives_Monetized="Yes",Comp_V1_Federal_Tax_Incentives_Modeled+IF(Comp_V1_State_Tax_Incentive_Cap_Modeled=0,Comp_V1_State_Tax_Incentives_Modeled,MIN(Comp_V1_State_Tax_Incentive_Cap_Modeled,Comp_V1_State_Tax_Incentives_Modeled*Comp_V1_Num_Vehicles_Modeled)/Comp_V1_Num_Vehicles_Modeled),0)-Comp_V1_Other_Incentives_Modeled-Comp_V1_Down_Payment_Modeled),0),0),0) -> 0 | F99: =IF(Comp_V1_Has_Loan_Ex=TRUE,IF(AND((COLUMN(F78)-COLUMN($E78))<Comp_V1_Loan_Term_Modeled+Comp_V1_Lease_Term_Modeled,(COLUMN(F78)-COLUMN($E78))>=Comp_V1_Lease_Term_Modeled),PMT(Comp_V1_Loan_APR_Modeled,Comp_V1_Loan_Term_Modeled,IF(Comp_V1_Has_Lease_Ex=TRUE,SUM(OFFSET($D78,0,Comp_V1_Lease_Term_Modeled,3,1)),Comp_V1_Comp_Price_Ex-IF(Comp_V1_Tax_Incentives_Monetized="Yes",Comp_V1_Federal_Tax_Incentives_Modeled+IF(Comp_V1_State_Tax_Incentive_Cap_Modeled=0,Comp_V1_State_Tax_Incentives_Modeled,MIN(Comp_V1_State_Tax_Incentive_Cap_Modeled,Comp_V1_State_Tax_Incentives_Modeled*Comp_V1_Num_Vehicles_Modeled)/Comp_V1_Num_Vehicles_Modeled),0)-Comp_V1_Other_Incentives_Modeled-Comp_V1_Down_Payment_Modeled),0),0),0) -> 0 | G99: =IF(Comp_V1_Has_Loan_Ex=TRUE,IF(AND((COLUMN(G78)-COLUMN($E78))<Comp_V1_Loan_Term_Modeled+Comp_V1_Lease_Term_Modeled,(COLUMN(G78)-COLUMN($E78))>=Comp_V1_Lease_Term_Modeled),PMT(Comp_V1_Loan_APR_Modeled,Comp_V1_Loan_Term_Modeled,IF(Comp_V1_Has_Lease_Ex=TRUE,SUM(OFFSET($D78,0,Comp_V1_Lease_Term_Modeled,3,1)),Comp_V1_Comp_Price_Ex-IF(Comp_V1_Tax_Incentives_Monetized="Yes",Comp_V1_Federal_Tax_Incentives_Modeled+IF(Comp_V1_State_Tax_Incentive_Cap_Modeled=0,Comp_V1_State_Tax_Incentives_Modeled,MIN(Comp_V1_State_Tax_Incentive_Cap_Modeled,Comp_V1_State_Tax_Incentives_Modeled*Comp_V1_Num_Vehicles_Modeled)/Comp_V1_Num_Vehicles_Modeled),0)-Comp_V1_Other_Incentives_Modeled-Comp_V1_Down_Payment_Modeled),0),0),0) -> 0 | H99: =IF(Comp_V1_Has_Loan_Ex=TRUE,IF(AND((COLUMN(H78)-COLUMN($E78))<Comp_V1_Loan_Term_Modeled+Comp_V1_Lease_Term_Modeled,(COLUMN(H78)-COLUMN($E78))>=Comp_V1_Lease_Term_Modeled),PMT(Comp_V1_Loan_APR_Modeled,Comp_V1_Loan_Term_Modeled,IF(Comp_V1_Has_Lease_Ex=TRUE,SUM(OFFSET($D78,0,Comp_V1_Lease_Term_Modeled,3,1)),Comp_V1_Comp_Price_Ex-IF(Comp_V1_Tax_Incentives_Monetized="Yes",Comp_V1_Federal_Tax_Incentives_Modeled+IF(Comp_V1_State_Tax_Incentive_Cap_Modeled=0,Comp_V1_State_Tax_Incentives_Modeled,MIN(Comp_V1_State_Tax_Incentive_Cap_Modeled,Comp_V1_State_Tax_Incentives_Modeled*Comp_V1_Num_Vehicles_Modeled)/Comp_V1_Num_Vehicles_Modeled),0)-Comp_V1_Other_Incentives_Modeled-Comp_V1_Down_Payment_Modeled),0),0),0) -> 0 | I99: =IF(Comp_V1_Has_Loan_Ex=TRUE,IF(AND((COLUMN(I78)-COLUMN($E78))<Comp_V1_Loan_Term_Modeled+Comp_V1_Lease_Term_Modeled,(COLUMN(I78)-COLUMN($E78))>=Comp_V1_Lease_Term_Modeled),PMT(Comp_V1_Loan_APR_Modeled,Comp_V1_Loan_Term_Modeled,IF(Comp_V1_Has_Lease_Ex=TRUE,SUM(OFFSET($D78,0,Comp_V1_Lease_Term_Modeled,3,1)),Comp_V1_Comp_Price_Ex-IF(Comp_V1_Tax_Incentives_Monetized="Yes",Comp_V1_Federal_Tax_Incentives_Modeled+IF(Comp_V1_State_Tax_Incentive_Cap_Modeled=0,Comp_V1_State_Tax_Incentives_Modeled,MIN(Comp_V1_State_Tax_Incentive_Cap_Modeled,Comp_V1_State_Tax_Incentives_Modeled*Comp_V1_Num_Vehicles_Modeled)/Comp_V1_Num_Vehicles_Modeled),0)-Comp_V1_Other_Incentives_Modeled-Comp_V1_Down_Payment_Modeled),0),0),0) -> 0 | J99: =IF(Comp_V1_Has_Loan_Ex=TRUE,IF(AND((COLUMN(J78)-COLUMN($E78))<Comp_V1_Loan_Term_Modeled+Comp_V1_Lease_Term_Modeled,(COLUMN(J78)-COLUMN($E78))>=Comp_V1_Lease_Term_Modeled),PMT(Comp_V1_Loan_APR_Modeled,Comp_V1_Loan_Term_Modeled,IF(Comp_V1_Has_Lease_Ex=TRUE,SUM(OFFSET($D78,0,Comp_V1_Lease_Term_Modeled,3,1)),Comp_V1_Comp_Price_Ex-IF(Comp_V1_Tax_Incentives_Monetized="Yes",Comp_V1_Federal_Tax_Incentives_Modeled+IF(Comp_V1_State_Tax_Incentive_Cap_Modeled=0,Comp_V1_State_Tax_Incentives_Modeled,MIN(Comp_V1_State_Tax_Incentive_Cap_Modeled,Comp_V1_State_Tax_Incentives_Modeled*Comp_V1_Num_Vehicles_Modeled)/Comp_V1_Num_Vehicles_Modeled),0)-Comp_V1_Other_Incentives_Modeled-Comp_V1_Down_Payment_Modeled),0),0),0) -> 0 | K99: =IF(Comp_V1_Has_Loan_Ex=TRUE,IF(AND((COLUMN(K78)-COLUMN($E78))<Comp_V1_Loan_Term_Modeled+Comp_V1_Lease_Term_Modeled,(COLUMN(K78)-COLUMN($E78))>=Comp_V1_Lease_Term_Modeled),PMT(Comp_V1_Loan_APR_Modeled,Comp_V1_Loan_Term_Modeled,IF(Comp_V1_Has_Lease_Ex=TRUE,SUM(OFFSET($D78,0,Comp_V1_Lease_Term_Modeled,3,1)),Comp_V1_Comp_Price_Ex-IF(Comp_V1_Tax_Incentives_Monetized="Yes",Comp_V1_Federal_Tax_Incentives_Modeled+IF(Comp_V1_State_Tax_Incentive_Cap_Modeled=0,Comp_V1_State_Tax_Incentives_Modeled,MIN(Comp_V1_State_Tax_Incentive_Cap_Modeled,Comp_V1_State_Tax_Incentives_Modeled*Comp_V1_Num_Vehicles_Modeled)/Comp_V1_Num_Vehicles_Modeled),0)-Comp_V1_Other_Incentives_Modeled-Comp_V1_Down_Payment_Modeled),0),0),0) -> 0 | L99: =IF(Comp_V1_Has_Loan_Ex=TRUE,IF(AND((COLUMN(L78)-COLUMN($E78))<Comp_V1_Loan_Term_Modeled+Comp_V1_Lease_Term_Modeled,(COLUMN(L78)-COLUMN($E78))>=Comp_V1_Lease_Term_Modeled),PMT(Comp_V1_Loan_APR_Modeled,Comp_V1_Loan_Term_Modeled,IF(Comp_V1_Has_Lease_Ex=TRUE,SUM(OFFSET($D78,0,Comp_V1_Lease_Term_Modeled,3,1)),Comp_V1_Comp_Price_Ex-IF(Comp_V1_Tax_Incentives_Monetized="Yes",Comp_V1_Federal_Tax_Incentives_Modeled+IF(Comp_V1_State_Tax_Incentive_Cap_Modeled=0,Comp_V1_State_Tax_Incentives_Modeled,MIN(Comp_V1_State_Tax_Incentive_Cap_Modeled,Comp_V1_State_Tax_Incentives_Modeled*Comp_V1_Num_Vehicles_Modeled)/Comp_V1_Num_Vehicles_Modeled),0)-Comp_V1_Other_Incentives_Modeled-Comp_V1_Down_Payment_Modeled),0),0),0) -> 0 | M99: =IF(Comp_V1_Has_Loan_Ex=TRUE,IF(AND((COLUMN(M78)-COLUMN($E78))<Comp_V1_Loan_Term_Modeled+Comp_V1_Lease_Term_Modeled,(COLUMN(M78)-COLUMN($E78))>=Comp_V1_Lease_Term_Modeled),PMT(Comp_V1_Loan_APR_Modeled,Comp_V1_Loan_Term_Modeled,IF(Comp_V1_Has_Lease_Ex=TRUE,SUM(OFFSET($D78,0,Comp_V1_Lease_Term_Modeled,3,1)),Comp_V1_Comp_Price_Ex-IF(Comp_V1_Tax_Incentives_Monetized="Yes",Comp_V1_Federal_Tax_Incentives_Modeled+IF(Comp_V1_State_Tax_Incentive_Cap_Modeled=0,Comp_V1_State_Tax_Incentives_Modeled,MIN(Comp_V1_State_Tax_Incentive_Cap_Modeled,Comp_V1_State_Tax_Incentives_Modeled*Comp_V1_Num_Vehicles_Modeled)/Comp_V1_Num_Vehicles_Modeled),0)-Comp_V1_Other_Incentives_Modeled-Comp_V1_Down_Payment_Modeled),0),0),0) -> 0 | N99: =IF(Comp_V1_Has_Loan_Ex=TRUE,IF(AND((COLUMN(N78)-COLUMN($E78))<Comp_V1_Loan_Term_Modeled+Comp_V1_Lease_Term_Modeled,(COLUMN(N78)-COLUMN($E78))>=Comp_V1_Lease_Term_Modeled),PMT(Comp_V1_Loan_APR_Modeled,Comp_V1_Loan_Term_Modeled,IF(Comp_V1_Has_Lease_Ex=TRUE,SUM(OFFSET($D78,0,Comp_V1_Lease_Term_Modeled,3,1)),Comp_V1_Comp_Price_Ex-IF(Comp_V1_Tax_Incentives_Monetized="Yes",Comp_V1_Federal_Tax_Incentives_Modeled+IF(Comp_V1_State_Tax_Incentive_Cap_Modeled=0,Comp_V1_State_Tax_Incentives_Modeled,MIN(Comp_V1_State_Tax_Incentive_Cap_Modeled,Comp_V1_State_Tax_Incentives_Modeled*Comp_V1_Num_Vehicles_Modeled)/Comp_V1_Num_Vehicles_Modeled),0)-Comp_V1_Other_Incentives_Modeled-Comp_V1_Down_Payment_Modeled),0),0),0) -> 0 | O99: =IF(Comp_V1_Has_Loan_Ex=TRUE,IF(AND((COLUMN(O78)-COLUMN($E78))<Comp_V1_Loan_Term_Modeled+Comp_V1_Lease_Term_Modeled,(COLUMN(O78)-COLUMN($E78))>=Comp_V1_Lease_Term_Modeled),PMT(Comp_V1_Loan_APR_Modeled,Comp_V1_Loan_Term_Modeled,IF(Comp_V1_Has_Lease_Ex=TRUE,SUM(OFFSET($D78,0,Comp_V1_Lease_Term_Modeled,3,1)),Comp_V1_Comp_Price_Ex-IF(Comp_V1_Tax_Incentives_Monetized="Yes",Comp_V1_Federal_Tax_Incentives_Modeled+IF(Comp_V1_State_Tax_Incentive_Cap_Modeled=0,Comp_V1_State_Tax_Incentives_Modeled,MIN(Comp_V1_State_Tax_Incentive_Cap_Modeled,Comp_V1_State_Tax_Incentives_Modeled*Comp_V1_Num_Vehicles_Modeled)/Comp_V1_Num_Vehicles_Modeled),0)-Comp_V1_Other_Incentives_Modeled-Comp_V1_Down_Payment_Modeled),0),0),0) -> 0 | P99: =IF(Comp_V1_Has_Loan_Ex=TRUE,IF(AND((COLUMN(P78)-COLUMN($E78))<Comp_V1_Loan_Term_Modeled+Comp_V1_Lease_Term_Modeled,(COLUMN(P78)-COLUMN($E78))>=Comp_V1_Lease_Term_Modeled),PMT(Comp_V1_Loan_APR_Modeled,Comp_V1_Loan_Term_Modeled,IF(Comp_V1_Has_Lease_Ex=TRUE,SUM(OFFSET($D78,0,Comp_V1_Lease_Term_Modeled,3,1)),Comp_V1_Comp_Price_Ex-IF(Comp_V1_Tax_Incentives_Monetized="Yes",Comp_V1_Federal_Tax_Incentives_Modeled+IF(Comp_V1_State_Tax_Incentive_Cap_Modeled=0,Comp_V1_State_Tax_Incentives_Modeled,MIN(Comp_V1_State_Tax_Incentive_Cap_Modeled,Comp_V1_State_Tax_Incentives_Modeled*Comp_V1_Num_Vehicles_Modeled)/Comp_V1_Num_Vehicles_Modeled),0)-Comp_V1_Other_Incentives_Modeled-Comp_V1_Down_Payment_Modeled),0),0),0) -> 0 | Q99: =IF(Comp_V1_Has_Loan_Ex=TRUE,IF(AND((COLUMN(Q78)-COLUMN($E78))<Comp_V1_Loan_Term_Modeled+Comp_V1_Lease_Term_Modeled,(COLUMN(Q78)-COLUMN($E78))>=Comp_V1_Lease_Term_Modeled),PMT(Comp_V1_Loan_APR_Modeled,Comp_V1_Loan_Term_Modeled,IF(Comp_V1_Has_Lease_Ex=TRUE,SUM(OFFSET($D78,0,Comp_V1_Lease_Term_Modeled,3,1)),Comp_V1_Comp_Price_Ex-IF(Comp_V1_Tax_Incentives_Monetized="Yes",Comp_V1_Federal_Tax_Incentives_Modeled+IF(Comp_V1_State_Tax_Incentive_Cap_Modeled=0,Comp_V1_State_Tax_Incentives_Modeled,MIN(Comp_V1_State_Tax_Incentive_Cap_Modeled,Comp_V1_State_Tax_Incentives_Modeled*Comp_V1_Num_Vehicles_Modeled)/Comp_V1_Num_Vehicles_Modeled),0)-Comp_V1_Other_Incentives_Modeled-Comp_V1_Down_Payment_Modeled),0),0),0) -> 0 | R99: =IF(Comp_V1_Has_Loan_Ex=TRUE,IF(AND((COLUMN(R78)-COLUMN($E78))<Comp_V1_Loan_Term_Modeled+Comp_V1_Lease_Term_Modeled,(COLUMN(R78)-COLUMN($E78))>=Comp_V1_Lease_Term_Modeled),PMT(Comp_V1_Loan_APR_Modeled,Comp_V1_Loan_Term_Modeled,IF(Comp_V1_Has_Lease_Ex=TRUE,SUM(OFFSET($D78,0,Comp_V1_Lease_Term_Modeled,3,1)),Comp_V1_Comp_Price_Ex-IF(Comp_V1_Tax_Incentives_Monetized="Yes",Comp_V1_Federal_Tax_Incentives_Modeled+IF(Comp_V1_State_Tax_Incentive_Cap_Modeled=0,Comp_V1_State_Tax_Incentives_Modeled,MIN(Comp_V1_State_Tax_Incentive_Cap_Modeled,Comp_V1_State_Tax_Incentives_Modeled*Comp_V1_Num_Vehicles_Modeled)/Comp_V1_Num_Vehicles_Modeled),0)-Comp_V1_Other_Incentives_Modeled-Comp_V1_Down_Payment_Modeled),0),0),0) -> 0 | S99: =IF(Comp_V1_Has_Loan_Ex=TRUE,IF(AND((COLUMN(S78)-COLUMN($E78))<Comp_V1_Loan_Term_Modeled+Comp_V1_Lease_Term_Modeled,(COLUMN(S78)-COLUMN($E78))>=Comp_V1_Lease_Term_Modeled),PMT(Comp_V1_Loan_APR_Modeled,Comp_V1_Loan_Term_Modeled,IF(Comp_V1_Has_Lease_Ex=TRUE,SUM(OFFSET($D78,0,Comp_V1_Lease_Term_Modeled,3,1)),Comp_V1_Comp_Price_Ex-IF(Comp_V1_Tax_Incentives_Monetized="Yes",Comp_V1_Federal_Tax_Incentives_Modeled+IF(Comp_V1_State_Tax_Incentive_Cap_Modeled=0,Comp_V1_State_Tax_Incentives_Modeled,MIN(Comp_V1_State_Tax_Incentive_Cap_Modeled,Comp_V1_State_Tax_Incentives_Modeled*Comp_V1_Num_Vehicles_Modeled)/Comp_V1_Num_Vehicles_Modeled),0)-Comp_V1_Other_Incentives_Modeled-Comp_V1_Down_Payment_Modeled),0),0),0) -> 0 | T99: =IF(Comp_V1_Has_Loan_Ex=TRUE,IF(AND((COLUMN(T78)-COLUMN($E78))<Comp_V1_Loan_Term_Modeled+Comp_V1_Lease_Term_Modeled,(COLUMN(T78)-COLUMN($E78))>=Comp_V1_Lease_Term_Modeled),PMT(Comp_V1_Loan_APR_Modeled,Comp_V1_Loan_Term_Modeled,IF(Comp_V1_Has_Lease_Ex=TRUE,SUM(OFFSET($D78,0,Comp_V1_Lease_Term_Modeled,3,1)),Comp_V1_Comp_Price_Ex-IF(Comp_V1_Tax_Incentives_Monetized="Yes",Comp_V1_Federal_Tax_Incentives_Modeled+IF(Comp_V1_State_Tax_Incentive_Cap_Modeled=0,Comp_V1_State_Tax_Incentives_Modeled,MIN(Comp_V1_State_Tax_Incentive_Cap_Modeled,Comp_V1_State_Tax_Incentives_Modeled*Comp_V1_Num_Vehicles_Modeled)/Comp_V1_Num_Vehicles_Modeled),0)-Comp_V1_Other_Incentives_Modeled-Comp_V1_Down_Payment_Modeled),0),0),0) -> 0 | U99: =IF(Comp_V1_Has_Loan_Ex=TRUE,IF(AND((COLUMN(U78)-COLUMN($E78))<Comp_V1_Loan_Term_Modeled+Comp_V1_Lease_Term_Modeled,(COLUMN(U78)-COLUMN($E78))>=Comp_V1_Lease_Term_Modeled),PMT(Comp_V1_Loan_APR_Modeled,Comp_V1_Loan_Term_Modeled,IF(Comp_V1_Has_Lease_Ex=TRUE,SUM(OFFSET($D78,0,Comp_V1_Lease_Term_Modeled,3,1)),Comp_V1_Comp_Price_Ex-IF(Comp_V1_Tax_Incentives_Monetized="Yes",Comp_V1_Federal_Tax_Incentives_Modeled+IF(Comp_V1_State_Tax_Incentive_Cap_Modeled=0,Comp_V1_State_Tax_Incentives_Modeled,MIN(Comp_V1_State_Tax_Incentive_Cap_Modeled,Comp_V1_State_Tax_Incentives_Modeled*Comp_V1_Num_Vehicles_Modeled)/Comp_V1_Num_Vehicles_Modeled),0)-Comp_V1_Other_Incentives_Modeled-Comp_V1_Down_Payment_Modeled),0),0),0) -> 0 | V99: =IF(Comp_V1_Has_Loan_Ex=TRUE,IF(AND((COLUMN(V78)-COLUMN($E78))<Comp_V1_Loan_Term_Modeled+Comp_V1_Lease_Term_Modeled,(COLUMN(V78)-COLUMN($E78))>=Comp_V1_Lease_Term_Modeled),PMT(Comp_V1_Loan_APR_Modeled,Comp_V1_Loan_Term_Modeled,IF(Comp_V1_Has_Lease_Ex=TRUE,SUM(OFFSET($D78,0,Comp_V1_Lease_Term_Modeled,3,1)),Comp_V1_Comp_Price_Ex-IF(Comp_V1_Tax_Incentives_Monetized="Yes",Comp_V1_Federal_Tax_Incentives_Modeled+IF(Comp_V1_State_Tax_Incentive_Cap_Modeled=0,Comp_V1_State_Tax_Incentives_Modeled,MIN(Comp_V1_State_Tax_Incentive_Cap_Modeled,Comp_V1_State_Tax_Incentives_Modeled*Comp_V1_Num_Vehicles_Modeled)/Comp_V1_Num_Vehicles_Modeled),0)-Comp_V1_Other_Incentives_Modeled-Comp_V1_Down_Payment_Modeled),0),0),0) -> 0 | W99: =IF(Comp_V1_Has_Loan_Ex=TRUE,IF(AND((COLUMN(W78)-COLUMN($E78))<Comp_V1_Loan_Term_Modeled+Comp_V1_Lease_Term_Modeled,(COLUMN(W78)-COLUMN($E78))>=Comp_V1_Lease_Term_Modeled),PMT(Comp_V1_Loan_APR_Modeled,Comp_V1_Loan_Term_Modeled,IF(Comp_V1_Has_Lease_Ex=TRUE,SUM(OFFSET($D78,0,Comp_V1_Lease_Term_Modeled,3,1)),Comp_V1_Comp_Price_Ex-IF(Comp_V1_Tax_Incentives_Monetized="Yes",Comp_V1_Federal_Tax_Incentives_Modeled+IF(Comp_V1_State_Tax_Incentive_Cap_Modeled=0,Comp_V1_State_Tax_Incentives_Modeled,MIN(Comp_V1_State_Tax_Incentive_Cap_Modeled,Comp_V1_State_Tax_Incentives_Modeled*Comp_V1_Num_Vehicles_Modeled)/Comp_V1_Num_Vehicles_Modeled),0)-Comp_V1_Other_Incentives_Modeled-Comp_V1_Down_Payment_Modeled),0),0),0) -> 0 | X99: =IF(Comp_V1_Has_Loan_Ex=TRUE,IF(AND((COLUMN(X78)-COLUMN($E78))<Comp_V1_Loan_Term_Modeled+Comp_V1_Lease_Term_Modeled,(COLUMN(X78)-COLUMN($E78))>=Comp_V1_Lease_Term_Modeled),PMT(Comp_V1_Loan_APR_Modeled,Comp_V1_Loan_Term_Modeled,IF(Comp_V1_Has_Lease_Ex=TRUE,SUM(OFFSET($D78,0,Comp_V1_Lease_Term_Modeled,3,1)),Comp_V1_Comp_Price_Ex-IF(Comp_V1_Tax_Incentives_Monetized="Yes",Comp_V1_Federal_Tax_Incentives_Modeled+IF(Comp_V1_State_Tax_Incentive_Cap_Modeled=0,Comp_V1_State_Tax_Incentives_Modeled,MIN(Comp_V1_State_Tax_Incentive_Cap_Modeled,Comp_V1_State_Tax_Incentives_Modeled*Comp_V1_Num_Vehicles_Modeled)/Comp_V1_Num_Vehicles_Modeled),0)-Comp_V1_Other_Incentives_Modeled-Comp_V1_Down_Payment_Modeled),0),0),0) -> 0 | Y99: =IF(Comp_V1_Has_Loan_Ex=TRUE,IF(AND((COLUMN(Y78)-COLUMN($E78))<Comp_V1_Loan_Term_Modeled+Comp_V1_Lease_Term_Modeled,(COLUMN(Y78)-COLUMN($E78))>=Comp_V1_Lease_Term_Modeled),PMT(Comp_V1_Loan_APR_Modeled,Comp_V1_Loan_Term_Modeled,IF(Comp_V1_Has_Lease_Ex=TRUE,SUM(OFFSET($D78,0,Comp_V1_Lease_Term_Modeled,3,1)),Comp_V1_Comp_Price_Ex-IF(Comp_V1_Tax_Incentives_Monetized="Yes",Comp_V1_Federal_Tax_Incentives_Modeled+IF(Comp_V1_State_Tax_Incentive_Cap_Modeled=0,Comp_V1_State_Tax_Incentives_Modeled,MIN(Comp_V1_State_Tax_Incentive_Cap_Modeled,Comp_V1_State_Tax_Incentives_Modeled*Comp_V1_Num_Vehicles_Modeled)/Comp_V1_Num_Vehicles_Modeled),0)-Comp_V1_Other_Incentives_Modeled-Comp_V1_Down_Payment_Modeled),0),0),0) -> 0 | Z99: =IF(Comp_V1_Has_Loan_Ex=TRUE,IF(AND((COLUMN(Z78)-COLUMN($E78))<Comp_V1_Loan_Term_Modeled+Comp_V1_Lease_Term_Modeled,(COLUMN(Z78)-COLUMN($E78))>=Comp_V1_Lease_Term_Modeled),PMT(Comp_V1_Loan_APR_Modeled,Comp_V1_Loan_Term_Modeled,IF(Comp_V1_Has_Lease_Ex=TRUE,SUM(OFFSET($D78,0,Comp_V1_Lease_Term_Modeled,3,1)),Comp_V1_Comp_Price_Ex-IF(Comp_V1_Tax_Incentives_Monetized="Yes",Comp_V1_Federal_Tax_Incentives_Modeled+IF(Comp_V1_State_Tax_Incentive_Cap_Modeled=0,Comp_V1_State_Tax_Incentives_Modeled,MIN(Comp_V1_State_Tax_Incentive_Cap_Modeled,Comp_V1_State_Tax_Incentives_Modeled*Comp_V1_Num_Vehicles_Modeled)/Comp_V1_Num_Vehicles_Modeled),0)-Comp_V1_Other_Incentives_Modeled-Comp_V1_Down_Payment_Modeled),0),0),0) -> 0 | AA99: =IF(Comp_V1_Has_Loan_Ex=TRUE,IF(AND((COLUMN(AA78)-COLUMN($E78))<Comp_V1_Loan_Term_Modeled+Comp_V1_Lease_Term_Modeled,(COLUMN(AA78)-COLUMN($E78))>=Comp_V1_Lease_Term_Modeled),PMT(Comp_V1_Loan_APR_Modeled,Comp_V1_Loan_Term_Modeled,IF(Comp_V1_Has_Lease_Ex=TRUE,SUM(OFFSET($D78,0,Comp_V1_Lease_Term_Modeled,3,1)),Comp_V1_Comp_Price_Ex-IF(Comp_V1_Tax_Incentives_Monetized="Yes",Comp_V1_Federal_Tax_Incentives_Modeled+IF(Comp_V1_State_Tax_Incentive_Cap_Modeled=0,Comp_V1_State_Tax_Incentives_Modeled,MIN(Comp_V1_State_Tax_Incentive_Cap_Modeled,Comp_V1_State_Tax_Incentives_Modeled*Comp_V1_Num_Vehicles_Modeled)/Comp_V1_Num_Vehicles_Modeled),0)-Comp_V1_Other_Incentives_Modeled-Comp_V1_Down_Payment_Modeled),0),0),0) -> 0 | AB99: =IF(Comp_V1_Has_Loan_Ex=TRUE,IF(AND((COLUMN(AB78)-COLUMN($E78))<Comp_V1_Loan_Term_Modeled+Comp_V1_Lease_Term_Modeled,(COLUMN(AB78)-COLUMN($E78))>=Comp_V1_Lease_Term_Modeled),PMT(Comp_V1_Loan_APR_Modeled,Comp_V1_Loan_Term_Modeled,IF(Comp_V1_Has_Lease_Ex=TRUE,SUM(OFFSET($D78,0,Comp_V1_Lease_Term_Modeled,3,1)),Comp_V1_Comp_Price_Ex-IF(Comp_V1_Tax_Incentives_Monetized="Yes",Comp_V1_Federal_Tax_Incentives_Modeled+IF(Comp_V1_State_Tax_Incentive_Cap_Modeled=0,Comp_V1_State_Tax_Incentives_Modeled,MIN(Comp_V1_State_Tax_Incentive_Cap_Modeled,Comp_V1_State_Tax_Incentives_Modeled*Comp_V1_Num_Vehicles_Modeled)/Comp_V1_Num_Vehicles_Modeled),0)-Comp_V1_Other_Incentives_Modeled-Comp_V1_Down_Payment_Modeled),0),0),0) -> 0 | AC99: =IF(Comp_V1_Has_Loan_Ex=TRUE,IF(AND((COLUMN(AC78)-COLUMN($E78))<Comp_V1_Loan_Term_Modeled+Comp_V1_Lease_Term_Modeled,(COLUMN(AC78)-COLUMN($E78))>=Comp_V1_Lease_Term_Modeled),PMT(Comp_V1_Loan_APR_Modeled,Comp_V1_Loan_Term_Modeled,IF(Comp_V1_Has_Lease_Ex=TRUE,SUM(OFFSET($D78,0,Comp_V1_Lease_Term_Modeled,3,1)),Comp_V1_Comp_Price_Ex-IF(Comp_V1_Tax_Incentives_Monetized="Yes",Comp_V1_Federal_Tax_Incentives_Modeled+IF(Comp_V1_State_Tax_Incentive_Cap_Modeled=0,Comp_V1_State_Tax_Incentives_Modeled,MIN(Comp_V1_State_Tax_Incentive_Cap_Modeled,Comp_V1_State_Tax_Incentives_Modeled*Comp_V1_Num_Vehicles_Modeled)/Comp_V1_Num_Vehicles_Modeled),0)-Comp_V1_Other_Incentives_Modeled-Comp_V1_Down_Payment_Modeled),0),0),0) -> 0
B100: Principal Payments | E100: =IF(Comp_V1_Has_Loan_Ex=TRUE,IF(AND((COLUMN(E78)-COLUMN($E78))<Comp_V1_Loan_Term_Modeled+Comp_V1_Lease_Term_Modeled,(COLUMN(E78)-COLUMN($E78))>=Comp_V1_Lease_Term_Modeled),PPMT(Comp_V1_Loan_APR_Modeled,IF(Comp_V1_Has_Lease_Ex=TRUE,(COLUMN(E78)-COLUMN($D78)-Comp_V1_Lease_Term_Modeled),(COLUMN(E78)-COLUMN($D78))),Comp_V1_Loan_Term_Modeled,IF(Comp_V1_Has_Lease_Ex=TRUE,SUM(OFFSET($D78,0,Comp_V1_Lease_Term_Modeled,3,1)),Comp_V1_Comp_Price_Ex-IF(Comp_V1_Tax_Incentives_Monetized="Yes",Comp_V1_Federal_Tax_Incentives_Modeled+IF(Comp_V1_State_Tax_Incentive_Cap_Modeled=0,Comp_V1_State_Tax_Incentives_Modeled,MIN(Comp_V1_State_Tax_Incentive_Cap_Modeled,Comp_V1_State_Tax_Incentives_Modeled*Comp_V1_Num_Vehicles_Modeled)/Comp_V1_Num_Vehicles_Modeled),0)-Comp_V1_Other_Incentives_Modeled-Comp_V1_Down_Payment_Modeled),0),0),0) -> 0 | F100: =IF(Comp_V1_Has_Loan_Ex=TRUE,IF(AND((COLUMN(F78)-COLUMN($E78))<Comp_V1_Loan_Term_Modeled+Comp_V1_Lease_Term_Modeled,(COLUMN(F78)-COLUMN($E78))>=Comp_V1_Lease_Term_Modeled),PPMT(Comp_V1_Loan_APR_Modeled,IF(Comp_V1_Has_Lease_Ex=TRUE,(COLUMN(F78)-COLUMN($D78)-Comp_V1_Lease_Term_Modeled),(COLUMN(F78)-COLUMN($D78))),Comp_V1_Loan_Term_Modeled,IF(Comp_V1_Has_Lease_Ex=TRUE,SUM(OFFSET($D78,0,Comp_V1_Lease_Term_Modeled,3,1)),Comp_V1_Comp_Price_Ex-IF(Comp_V1_Tax_Incentives_Monetized="Yes",Comp_V1_Federal_Tax_Incentives_Modeled+IF(Comp_V1_State_Tax_Incentive_Cap_Modeled=0,Comp_V1_State_Tax_Incentives_Modeled,MIN(Comp_V1_State_Tax_Incentive_Cap_Modeled,Comp_V1_State_Tax_Incentives_Modeled*Comp_V1_Num_Vehicles_Modeled)/Comp_V1_Num_Vehicles_Modeled),0)-Comp_V1_Other_Incentives_Modeled-Comp_V1_Down_Payment_Modeled),0),0),0) -> 0 | G100: =IF(Comp_V1_Has_Loan_Ex=TRUE,IF(AND((COLUMN(G78)-COLUMN($E78))<Comp_V1_Loan_Term_Modeled+Comp_V1_Lease_Term_Modeled,(COLUMN(G78)-COLUMN($E78))>=Comp_V1_Lease_Term_Modeled),PPMT(Comp_V1_Loan_APR_Modeled,IF(Comp_V1_Has_Lease_Ex=TRUE,(COLUMN(G78)-COLUMN($D78)-Comp_V1_Lease_Term_Modeled),(COLUMN(G78)-COLUMN($D78))),Comp_V1_Loan_Term_Modeled,IF(Comp_V1_Has_Lease_Ex=TRUE,SUM(OFFSET($D78,0,Comp_V1_Lease_Term_Modeled,3,1)),Comp_V1_Comp_Price_Ex-IF(Comp_V1_Tax_Incentives_Monetized="Yes",Comp_V1_Federal_Tax_Incentives_Modeled+IF(Comp_V1_State_Tax_Incentive_Cap_Modeled=0,Comp_V1_State_Tax_Incentives_Modeled,MIN(Comp_V1_State_Tax_Incentive_Cap_Modeled,Comp_V1_State_Tax_Incentives_Modeled*Comp_V1_Num_Vehicles_Modeled)/Comp_V1_Num_Vehicles_Modeled),0)-Comp_V1_Other_Incentives_Modeled-Comp_V1_Down_Payment_Modeled),0),0),0) -> 0 | H100: =IF(Comp_V1_Has_Loan_Ex=TRUE,IF(AND((COLUMN(H78)-COLUMN($E78))<Comp_V1_Loan_Term_Modeled+Comp_V1_Lease_Term_Modeled,(COLUMN(H78)-COLUMN($E78))>=Comp_V1_Lease_Term_Modeled),PPMT(Comp_V1_Loan_APR_Modeled,IF(Comp_V1_Has_Lease_Ex=TRUE,(COLUMN(H78)-COLUMN($D78)-Comp_V1_Lease_Term_Modeled),(COLUMN(H78)-COLUMN($D78))),Comp_V1_Loan_Term_Modeled,IF(Comp_V1_Has_Lease_Ex=TRUE,SUM(OFFSET($D78,0,Comp_V1_Lease_Term_Modeled,3,1)),Comp_V1_Comp_Price_Ex-IF(Comp_V1_Tax_Incentives_Monetized="Yes",Comp_V1_Federal_Tax_Incentives_Modeled+IF(Comp_V1_State_Tax_Incentive_Cap_Modeled=0,Comp_V1_State_Tax_Incentives_Modeled,MIN(Comp_V1_State_Tax_Incentive_Cap_Modeled,Comp_V1_State_Tax_Incentives_Modeled*Comp_V1_Num_Vehicles_Modeled)/Comp_V1_Num_Vehicles_Modeled),0)-Comp_V1_Other_Incentives_Modeled-Comp_V1_Down_Payment_Modeled),0),0),0) -> 0 | I100: =IF(Comp_V1_Has_Loan_Ex=TRUE,IF(AND((COLUMN(I78)-COLUMN($E78))<Comp_V1_Loan_Term_Modeled+Comp_V1_Lease_Term_Modeled,(COLUMN(I78)-COLUMN($E78))>=Comp_V1_Lease_Term_Modeled),PPMT(Comp_V1_Loan_APR_Modeled,IF(Comp_V1_Has_Lease_Ex=TRUE,(COLUMN(I78)-COLUMN($D78)-Comp_V1_Lease_Term_Modeled),(COLUMN(I78)-COLUMN($D78))),Comp_V1_Loan_Term_Modeled,IF(Comp_V1_Has_Lease_Ex=TRUE,SUM(OFFSET($D78,0,Comp_V1_Lease_Term_Modeled,3,1)),Comp_V1_Comp_Price_Ex-IF(Comp_V1_Tax_Incentives_Monetized="Yes",Comp_V1_Federal_Tax_Incentives_Modeled+IF(Comp_V1_State_Tax_Incentive_Cap_Modeled=0,Comp_V1_State_Tax_Incentives_Modeled,MIN(Comp_V1_State_Tax_Incentive_Cap_Modeled,Comp_V1_State_Tax_Incentives_Modeled*Comp_V1_Num_Vehicles_Modeled)/Comp_V1_Num_Vehicles_Modeled),0)-Comp_V1_Other_Incentives_Modeled-Comp_V1_Down_Payment_Modeled),0),0),0) -> 0 | J100: =IF(Comp_V1_Has_Loan_Ex=TRUE,IF(AND((COLUMN(J78)-COLUMN($E78))<Comp_V1_Loan_Term_Modeled+Comp_V1_Lease_Term_Modeled,(COLUMN(J78)-COLUMN($E78))>=Comp_V1_Lease_Term_Modeled),PPMT(Comp_V1_Loan_APR_Modeled,IF(Comp_V1_Has_Lease_Ex=TRUE,(COLUMN(J78)-COLUMN($D78)-Comp_V1_Lease_Term_Modeled),(COLUMN(J78)-COLUMN($D78))),Comp_V1_Loan_Term_Modeled,IF(Comp_V1_Has_Lease_Ex=TRUE,SUM(OFFSET($D78,0,Comp_V1_Lease_Term_Modeled,3,1)),Comp_V1_Comp_Price_Ex-IF(Comp_V1_Tax_Incentives_Monetized="Yes",Comp_V1_Federal_Tax_Incentives_Modeled+IF(Comp_V1_State_Tax_Incentive_Cap_Modeled=0,Comp_V1_State_Tax_Incentives_Modeled,MIN(Comp_V1_State_Tax_Incentive_Cap_Modeled,Comp_V1_State_Tax_Incentives_Modeled*Comp_V1_Num_Vehicles_Modeled)/Comp_V1_Num_Vehicles_Modeled),0)-Comp_V1_Other_Incentives_Modeled-Comp_V1_Down_Payment_Modeled),0),0),0) -> 0 | K100: =IF(Comp_V1_Has_Loan_Ex=TRUE,IF(AND((COLUMN(K78)-COLUMN($E78))<Comp_V1_Loan_Term_Modeled+Comp_V1_Lease_Term_Modeled,(COLUMN(K78)-COLUMN($E78))>=Comp_V1_Lease_Term_Modeled),PPMT(Comp_V1_Loan_APR_Modeled,IF(Comp_V1_Has_Lease_Ex=TRUE,(COLUMN(K78)-COLUMN($D78)-Comp_V1_Lease_Term_Modeled),(COLUMN(K78)-COLUMN($D78))),Comp_V1_Loan_Term_Modeled,IF(Comp_V1_Has_Lease_Ex=TRUE,SUM(OFFSET($D78,0,Comp_V1_Lease_Term_Modeled,3,1)),Comp_V1_Comp_Price_Ex-IF(Comp_V1_Tax_Incentives_Monetized="Yes",Comp_V1_Federal_Tax_Incentives_Modeled+IF(Comp_V1_State_Tax_Incentive_Cap_Modeled=0,Comp_V1_State_Tax_Incentives_Modeled,MIN(Comp_V1_State_Tax_Incentive_Cap_Modeled,Comp_V1_State_Tax_Incentives_Modeled*Comp_V1_Num_Vehicles_Modeled)/Comp_V1_Num_Vehicles_Modeled),0)-Comp_V1_Other_Incentives_Modeled-Comp_V1_Down_Payment_Modeled),0),0),0) -> 0 | L100: =IF(Comp_V1_Has_Loan_Ex=TRUE,IF(AND((COLUMN(L78)-COLUMN($E78))<Comp_V1_Loan_Term_Modeled+Comp_V1_Lease_Term_Modeled,(COLUMN(L78)-COLUMN($E78))>=Comp_V1_Lease_Term_Modeled),PPMT(Comp_V1_Loan_APR_Modeled,IF(Comp_V1_Has_Lease_Ex=TRUE,(COLUMN(L78)-COLUMN($D78)-Comp_V1_Lease_Term_Modeled),(COLUMN(L78)-COLUMN($D78))),Comp_V1_Loan_Term_Modeled,IF(Comp_V1_Has_Lease_Ex=TRUE,SUM(OFFSET($D78,0,Comp_V1_Lease_Term_Modeled,3,1)),Comp_V1_Comp_Price_Ex-IF(Comp_V1_Tax_Incentives_Monetized="Yes",Comp_V1_Federal_Tax_Incentives_Modeled+IF(Comp_V1_State_Tax_Incentive_Cap_Modeled=0,Comp_V1_State_Tax_Incentives_Modeled,MIN(Comp_V1_State_Tax_Incentive_Cap_Modeled,Comp_V1_State_Tax_Incentives_Modeled*Comp_V1_Num_Vehicles_Modeled)/Comp_V1_Num_Vehicles_Modeled),0)-Comp_V1_Other_Incentives_Modeled-Comp_V1_Down_Payment_Modeled),0),0),0) -> 0 | M100: =IF(Comp_V1_Has_Loan_Ex=TRUE,IF(AND((COLUMN(M78)-COLUMN($E78))<Comp_V1_Loan_Term_Modeled+Comp_V1_Lease_Term_Modeled,(COLUMN(M78)-COLUMN($E78))>=Comp_V1_Lease_Term_Modeled),PPMT(Comp_V1_Loan_APR_Modeled,IF(Comp_V1_Has_Lease_Ex=TRUE,(COLUMN(M78)-COLUMN($D78)-Comp_V1_Lease_Term_Modeled),(COLUMN(M78)-COLUMN($D78))),Comp_V1_Loan_Term_Modeled,IF(Comp_V1_Has_Lease_Ex=TRUE,SUM(OFFSET($D78,0,Comp_V1_Lease_Term_Modeled,3,1)),Comp_V1_Comp_Price_Ex-IF(Comp_V1_Tax_Incentives_Monetized="Yes",Comp_V1_Federal_Tax_Incentives_Modeled+IF(Comp_V1_State_Tax_Incentive_Cap_Modeled=0,Comp_V1_State_Tax_Incentives_Modeled,MIN(Comp_V1_State_Tax_Incentive_Cap_Modeled,Comp_V1_State_Tax_Incentives_Modeled*Comp_V1_Num_Vehicles_Modeled)/Comp_V1_Num_Vehicles_Modeled),0)-Comp_V1_Other_Incentives_Modeled-Comp_V1_Down_Payment_Modeled),0),0),0) -> 0 | N100: =IF(Comp_V1_Has_Loan_Ex=TRUE,IF(AND((COLUMN(N78)-COLUMN($E78))<Comp_V1_Loan_Term_Modeled+Comp_V1_Lease_Term_Modeled,(COLUMN(N78)-COLUMN($E78))>=Comp_V1_Lease_Term_Modeled),PPMT(Comp_V1_Loan_APR_Modeled,IF(Comp_V1_Has_Lease_Ex=TRUE,(COLUMN(N78)-COLUMN($D78)-Comp_V1_Lease_Term_Modeled),(COLUMN(N78)-COLUMN($D78))),Comp_V1_Loan_Term_Modeled,IF(Comp_V1_Has_Lease_Ex=TRUE,SUM(OFFSET($D78,0,Comp_V1_Lease_Term_Modeled,3,1)),Comp_V1_Comp_Price_Ex-IF(Comp_V1_Tax_Incentives_Monetized="Yes",Comp_V1_Federal_Tax_Incentives_Modeled+IF(Comp_V1_State_Tax_Incentive_Cap_Modeled=0,Comp_V1_State_Tax_Incentives_Modeled,MIN(Comp_V1_State_Tax_Incentive_Cap_Modeled,Comp_V1_State_Tax_Incentives_Modeled*Comp_V1_Num_Vehicles_Modeled)/Comp_V1_Num_Vehicles_Modeled),0)-Comp_V1_Other_Incentives_Modeled-Comp_V1_Down_Payment_Modeled),0),0),0) -> 0 | O100: =IF(Comp_V1_Has_Loan_Ex=TRUE,IF(AND((COLUMN(O78)-COLUMN($E78))<Comp_V1_Loan_Term_Modeled+Comp_V1_Lease_Term_Modeled,(COLUMN(O78)-COLUMN($E78))>=Comp_V1_Lease_Term_Modeled),PPMT(Comp_V1_Loan_APR_Modeled,IF(Comp_V1_Has_Lease_Ex=TRUE,(COLUMN(O78)-COLUMN($D78)-Comp_V1_Lease_Term_Modeled),(COLUMN(O78)-COLUMN($D78))),Comp_V1_Loan_Term_Modeled,IF(Comp_V1_Has_Lease_Ex=TRUE,SUM(OFFSET($D78,0,Comp_V1_Lease_Term_Modeled,3,1)),Comp_V1_Comp_Price_Ex-IF(Comp_V1_Tax_Incentives_Monetized="Yes",Comp_V1_Federal_Tax_Incentives_Modeled+IF(Comp_V1_State_Tax_Incentive_Cap_Modeled=0,Comp_V1_State_Tax_Incentives_Modeled,MIN(Comp_V1_State_Tax_Incentive_Cap_Modeled,Comp_V1_State_Tax_Incentives_Modeled*Comp_V1_Num_Vehicles_Modeled)/Comp_V1_Num_Vehicles_Modeled),0)-Comp_V1_Other_Incentives_Modeled-Comp_V1_Down_Payment_Modeled),0),0),0) -> 0 | P100: =IF(Comp_V1_Has_Loan_Ex=TRUE,IF(AND((COLUMN(P78)-COLUMN($E78))<Comp_V1_Loan_Term_Modeled+Comp_V1_Lease_Term_Modeled,(COLUMN(P78)-COLUMN($E78))>=Comp_V1_Lease_Term_Modeled),PPMT(Comp_V1_Loan_APR_Modeled,IF(Comp_V1_Has_Lease_Ex=TRUE,(COLUMN(P78)-COLUMN($D78)-Comp_V1_Lease_Term_Modeled),(COLUMN(P78)-COLUMN($D78))),Comp_V1_Loan_Term_Modeled,IF(Comp_V1_Has_Lease_Ex=TRUE,SUM(OFFSET($D78,0,Comp_V1_Lease_Term_Modeled,3,1)),Comp_V1_Comp_Price_Ex-IF(Comp_V1_Tax_Incentives_Monetized="Yes",Comp_V1_Federal_Tax_Incentives_Modeled+IF(Comp_V1_State_Tax_Incentive_Cap_Modeled=0,Comp_V1_State_Tax_Incentives_Modeled,MIN(Comp_V1_State_Tax_Incentive_Cap_Modeled,Comp_V1_State_Tax_Incentives_Modeled*Comp_V1_Num_Vehicles_Modeled)/Comp_V1_Num_Vehicles_Modeled),0)-Comp_V1_Other_Incentives_Modeled-Comp_V1_Down_Payment_Modeled),0),0),0) -> 0 | Q100: =IF(Comp_V1_Has_Loan_Ex=TRUE,IF(AND((COLUMN(Q78)-COLUMN($E78))<Comp_V1_Loan_Term_Modeled+Comp_V1_Lease_Term_Modeled,(COLUMN(Q78)-COLUMN($E78))>=Comp_V1_Lease_Term_Modeled),PPMT(Comp_V1_Loan_APR_Modeled,IF(Comp_V1_Has_Lease_Ex=TRUE,(COLUMN(Q78)-COLUMN($D78)-Comp_V1_Lease_Term_Modeled),(COLUMN(Q78)-COLUMN($D78))),Comp_V1_Loan_Term_Modeled,IF(Comp_V1_Has_Lease_Ex=TRUE,SUM(OFFSET($D78,0,Comp_V1_Lease_Term_Modeled,3,1)),Comp_V1_Comp_Price_Ex-IF(Comp_V1_Tax_Incentives_Monetized="Yes",Comp_V1_Federal_Tax_Incentives_Modeled+IF(Comp_V1_State_Tax_Incentive_Cap_Modeled=0,Comp_V1_State_Tax_Incentives_Modeled,MIN(Comp_V1_State_Tax_Incentive_Cap_Modeled,Comp_V1_State_Tax_Incentives_Modeled*Comp_V1_Num_Vehicles_Modeled)/Comp_V1_Num_Vehicles_Modeled),0)-Comp_V1_Other_Incentives_Modeled-Comp_V1_Down_Payment_Modeled),0),0),0) -> 0 | R100: =IF(Comp_V1_Has_Loan_Ex=TRUE,IF(AND((COLUMN(R78)-COLUMN($E78))<Comp_V1_Loan_Term_Modeled+Comp_V1_Lease_Term_Modeled,(COLUMN(R78)-COLUMN($E78))>=Comp_V1_Lease_Term_Modeled),PPMT(Comp_V1_Loan_APR_Modeled,IF(Comp_V1_Has_Lease_Ex=TRUE,(COLUMN(R78)-COLUMN($D78)-Comp_V1_Lease_Term_Modeled),(COLUMN(R78)-COLUMN($D78))),Comp_V1_Loan_Term_Modeled,IF(Comp_V1_Has_Lease_Ex=TRUE,SUM(OFFSET($D78,0,Comp_V1_Lease_Term_Modeled,3,1)),Comp_V1_Comp_Price_Ex-IF(Comp_V1_Tax_Incentives_Monetized="Yes",Comp_V1_Federal_Tax_Incentives_Modeled+IF(Comp_V1_State_Tax_Incentive_Cap_Modeled=0,Comp_V1_State_Tax_Incentives_Modeled,MIN(Comp_V1_State_Tax_Incentive_Cap_Modeled,Comp_V1_State_Tax_Incentives_Modeled*Comp_V1_Num_Vehicles_Modeled)/Comp_V1_Num_Vehicles_Modeled),0)-Comp_V1_Other_Incentives_Modeled-Comp_V1_Down_Payment_Modeled),0),0),0) -> 0 | S100: =IF(Comp_V1_Has_Loan_Ex=TRUE,IF(AND((COLUMN(S78)-COLUMN($E78))<Comp_V1_Loan_Term_Modeled+Comp_V1_Lease_Term_Modeled,(COLUMN(S78)-COLUMN($E78))>=Comp_V1_Lease_Term_Modeled),PPMT(Comp_V1_Loan_APR_Modeled,IF(Comp_V1_Has_Lease_Ex=TRUE,(COLUMN(S78)-COLUMN($D78)-Comp_V1_Lease_Term_Modeled),(COLUMN(S78)-COLUMN($D78))),Comp_V1_Loan_Term_Modeled,IF(Comp_V1_Has_Lease_Ex=TRUE,SUM(OFFSET($D78,0,Comp_V1_Lease_Term_Modeled,3,1)),Comp_V1_Comp_Price_Ex-IF(Comp_V1_Tax_Incentives_Monetized="Yes",Comp_V1_Federal_Tax_Incentives_Modeled+IF(Comp_V1_State_Tax_Incentive_Cap_Modeled=0,Comp_V1_State_Tax_Incentives_Modeled,MIN(Comp_V1_State_Tax_Incentive_Cap_Modeled,Comp_V1_State_Tax_Incentives_Modeled*Comp_V1_Num_Vehicles_Modeled)/Comp_V1_Num_Vehicles_Modeled),0)-Comp_V1_Other_Incentives_Modeled-Comp_V1_Down_Payment_Modeled),0),0),0) -> 0 | T100: =IF(Comp_V1_Has_Loan_Ex=TRUE,IF(AND((COLUMN(T78)-COLUMN($E78))<Comp_V1_Loan_Term_Modeled+Comp_V1_Lease_Term_Modeled,(COLUMN(T78)-COLUMN($E78))>=Comp_V1_Lease_Term_Modeled),PPMT(Comp_V1_Loan_APR_Modeled,IF(Comp_V1_Has_Lease_Ex=TRUE,(COLUMN(T78)-COLUMN($D78)-Comp_V1_Lease_Term_Modeled),(COLUMN(T78)-COLUMN($D78))),Comp_V1_Loan_Term_Modeled,IF(Comp_V1_Has_Lease_Ex=TRUE,SUM(OFFSET($D78,0,Comp_V1_Lease_Term_Modeled,3,1)),Comp_V1_Comp_Price_Ex-IF(Comp_V1_Tax_Incentives_Monetized="Yes",Comp_V1_Federal_Tax_Incentives_Modeled+IF(Comp_V1_State_Tax_Incentive_Cap_Modeled=0,Comp_V1_State_Tax_Incentives_Modeled,MIN(Comp_V1_State_Tax_Incentive_Cap_Modeled,Comp_V1_State_Tax_Incentives_Modeled*Comp_V1_Num_Vehicles_Modeled)/Comp_V1_Num_Vehicles_Modeled),0)-Comp_V1_Other_Incentives_Modeled-Comp_V1_Down_Payment_Modeled),0),0),0) -> 0 | U100: =IF(Comp_V1_Has_Loan_Ex=TRUE,IF(AND((COLUMN(U78)-COLUMN($E78))<Comp_V1_Loan_Term_Modeled+Comp_V1_Lease_Term_Modeled,(COLUMN(U78)-COLUMN($E78))>=Comp_V1_Lease_Term_Modeled),PPMT(Comp_V1_Loan_APR_Modeled,IF(Comp_V1_Has_Lease_Ex=TRUE,(COLUMN(U78)-COLUMN($D78)-Comp_V1_Lease_Term_Modeled),(COLUMN(U78)-COLUMN($D78))),Comp_V1_Loan_Term_Modeled,IF(Comp_V1_Has_Lease_Ex=TRUE,SUM(OFFSET($D78,0,Comp_V1_Lease_Term_Modeled,3,1)),Comp_V1_Comp_Price_Ex-IF(Comp_V1_Tax_Incentives_Monetized="Yes",Comp_V1_Federal_Tax_Incentives_Modeled+IF(Comp_V1_State_Tax_Incentive_Cap_Modeled=0,Comp_V1_State_Tax_Incentives_Modeled,MIN(Comp_V1_State_Tax_Incentive_Cap_Modeled,Comp_V1_State_Tax_Incentives_Modeled*Comp_V1_Num_Vehicles_Modeled)/Comp_V1_Num_Vehicles_Modeled),0)-Comp_V1_Other_Incentives_Modeled-Comp_V1_Down_Payment_Modeled),0),0),0) -> 0 | V100: =IF(Comp_V1_Has_Loan_Ex=TRUE,IF(AND((COLUMN(V78)-COLUMN($E78))<Comp_V1_Loan_Term_Modeled+Comp_V1_Lease_Term_Modeled,(COLUMN(V78)-COLUMN($E78))>=Comp_V1_Lease_Term_Modeled),PPMT(Comp_V1_Loan_APR_Modeled,IF(Comp_V1_Has_Lease_Ex=TRUE,(COLUMN(V78)-COLUMN($D78)-Comp_V1_Lease_Term_Modeled),(COLUMN(V78)-COLUMN($D78))),Comp_V1_Loan_Term_Modeled,IF(Comp_V1_Has_Lease_Ex=TRUE,SUM(OFFSET($D78,0,Comp_V1_Lease_Term_Modeled,3,1)),Comp_V1_Comp_Price_Ex-IF(Comp_V1_Tax_Incentives_Monetized="Yes",Comp_V1_Federal_Tax_Incentives_Modeled+IF(Comp_V1_State_Tax_Incentive_Cap_Modeled=0,Comp_V1_State_Tax_Incentives_Modeled,MIN(Comp_V1_State_Tax_Incentive_Cap_Modeled,Comp_V1_State_Tax_Incentives_Modeled*Comp_V1_Num_Vehicles_Modeled)/Comp_V1_Num_Vehicles_Modeled),0)-Comp_V1_Other_Incentives_Modeled-Comp_V1_Down_Payment_Modeled),0),0),0) -> 0 | W100: =IF(Comp_V1_Has_Loan_Ex=TRUE,IF(AND((COLUMN(W78)-COLUMN($E78))<Comp_V1_Loan_Term_Modeled+Comp_V1_Lease_Term_Modeled,(COLUMN(W78)-COLUMN($E78))>=Comp_V1_Lease_Term_Modeled),PPMT(Comp_V1_Loan_APR_Modeled,IF(Comp_V1_Has_Lease_Ex=TRUE,(COLUMN(W78)-COLUMN($D78)-Comp_V1_Lease_Term_Modeled),(COLUMN(W78)-COLUMN($D78))),Comp_V1_Loan_Term_Modeled,IF(Comp_V1_Has_Lease_Ex=TRUE,SUM(OFFSET($D78,0,Comp_V1_Lease_Term_Modeled,3,1)),Comp_V1_Comp_Price_Ex-IF(Comp_V1_Tax_Incentives_Monetized="Yes",Comp_V1_Federal_Tax_Incentives_Modeled+IF(Comp_V1_State_Tax_Incentive_Cap_Modeled=0,Comp_V1_State_Tax_Incentives_Modeled,MIN(Comp_V1_State_Tax_Incentive_Cap_Modeled,Comp_V1_State_Tax_Incentives_Modeled*Comp_V1_Num_Vehicles_Modeled)/Comp_V1_Num_Vehicles_Modeled),0)-Comp_V1_Other_Incentives_Modeled-Comp_V1_Down_Payment_Modeled),0),0),0) -> 0 | X100: =IF(Comp_V1_Has_Loan_Ex=TRUE,IF(AND((COLUMN(X78)-COLUMN($E78))<Comp_V1_Loan_Term_Modeled+Comp_V1_Lease_Term_Modeled,(COLUMN(X78)-COLUMN($E78))>=Comp_V1_Lease_Term_Modeled),PPMT(Comp_V1_Loan_APR_Modeled,IF(Comp_V1_Has_Lease_Ex=TRUE,(COLUMN(X78)-COLUMN($D78)-Comp_V1_Lease_Term_Modeled),(COLUMN(X78)-COLUMN($D78))),Comp_V1_Loan_Term_Modeled,IF(Comp_V1_Has_Lease_Ex=TRUE,SUM(OFFSET($D78,0,Comp_V1_Lease_Term_Modeled,3,1)),Comp_V1_Comp_Price_Ex-IF(Comp_V1_Tax_Incentives_Monetized="Yes",Comp_V1_Federal_Tax_Incentives_Modeled+IF(Comp_V1_State_Tax_Incentive_Cap_Modeled=0,Comp_V1_State_Tax_Incentives_Modeled,MIN(Comp_V1_State_Tax_Incentive_Cap_Modeled,Comp_V1_State_Tax_Incentives_Modeled*Comp_V1_Num_Vehicles_Modeled)/Comp_V1_Num_Vehicles_Modeled),0)-Comp_V1_Other_Incentives_Modeled-Comp_V1_Down_Payment_Modeled),0),0),0) -> 0 | Y100: =IF(Comp_V1_Has_Loan_Ex=TRUE,IF(AND((COLUMN(Y78)-COLUMN($E78))<Comp_V1_Loan_Term_Modeled+Comp_V1_Lease_Term_Modeled,(COLUMN(Y78)-COLUMN($E78))>=Comp_V1_Lease_Term_Modeled),PPMT(Comp_V1_Loan_APR_Modeled,IF(Comp_V1_Has_Lease_Ex=TRUE,(COLUMN(Y78)-COLUMN($D78)-Comp_V1_Lease_Term_Modeled),(COLUMN(Y78)-COLUMN($D78))),Comp_V1_Loan_Term_Modeled,IF(Comp_V1_Has_Lease_Ex=TRUE,SUM(OFFSET($D78,0,Comp_V1_Lease_Term_Modeled,3,1)),Comp_V1_Comp_Price_Ex-IF(Comp_V1_Tax_Incentives_Monetized="Yes",Comp_V1_Federal_Tax_Incentives_Modeled+IF(Comp_V1_State_Tax_Incentive_Cap_Modeled=0,Comp_V1_State_Tax_Incentives_Modeled,MIN(Comp_V1_State_Tax_Incentive_Cap_Modeled,Comp_V1_State_Tax_Incentives_Modeled*Comp_V1_Num_Vehicles_Modeled)/Comp_V1_Num_Vehicles_Modeled),0)-Comp_V1_Other_Incentives_Modeled-Comp_V1_Down_Payment_Modeled),0),0),0) -> 0 | Z100: =IF(Comp_V1_Has_Loan_Ex=TRUE,IF(AND((COLUMN(Z78)-COLUMN($E78))<Comp_V1_Loan_Term_Modeled+Comp_V1_Lease_Term_Modeled,(COLUMN(Z78)-COLUMN($E78))>=Comp_V1_Lease_Term_Modeled),PPMT(Comp_V1_Loan_APR_Modeled,IF(Comp_V1_Has_Lease_Ex=TRUE,(COLUMN(Z78)-COLUMN($D78)-Comp_V1_Lease_Term_Modeled),(COLUMN(Z78)-COLUMN($D78))),Comp_V1_Loan_Term_Modeled,IF(Comp_V1_Has_Lease_Ex=TRUE,SUM(OFFSET($D78,0,Comp_V1_Lease_Term_Modeled,3,1)),Comp_V1_Comp_Price_Ex-IF(Comp_V1_Tax_Incentives_Monetized="Yes",Comp_V1_Federal_Tax_Incentives_Modeled+IF(Comp_V1_State_Tax_Incentive_Cap_Modeled=0,Comp_V1_State_Tax_Incentives_Modeled,MIN(Comp_V1_State_Tax_Incentive_Cap_Modeled,Comp_V1_State_Tax_Incentives_Modeled*Comp_V1_Num_Vehicles_Modeled)/Comp_V1_Num_Vehicles_Modeled),0)-Comp_V1_Other_Incentives_Modeled-Comp_V1_Down_Payment_Modeled),0),0),0) -> 0 | AA100: =IF(Comp_V1_Has_Loan_Ex=TRUE,IF(AND((COLUMN(AA78)-COLUMN($E78))<Comp_V1_Loan_Term_Modeled+Comp_V1_Lease_Term_Modeled,(COLUMN(AA78)-COLUMN($E78))>=Comp_V1_Lease_Term_Modeled),PPMT(Comp_V1_Loan_APR_Modeled,IF(Comp_V1_Has_Lease_Ex=TRUE,(COLUMN(AA78)-COLUMN($D78)-Comp_V1_Lease_Term_Modeled),(COLUMN(AA78)-COLUMN($D78))),Comp_V1_Loan_Term_Modeled,IF(Comp_V1_Has_Lease_Ex=TRUE,SUM(OFFSET($D78,0,Comp_V1_Lease_Term_Modeled,3,1)),Comp_V1_Comp_Price_Ex-IF(Comp_V1_Tax_Incentives_Monetized="Yes",Comp_V1_Federal_Tax_Incentives_Modeled+IF(Comp_V1_State_Tax_Incentive_Cap_Modeled=0,Comp_V1_State_Tax_Incentives_Modeled,MIN(Comp_V1_State_Tax_Incentive_Cap_Modeled,Comp_V1_State_Tax_Incentives_Modeled*Comp_V1_Num_Vehicles_Modeled)/Comp_V1_Num_Vehicles_Modeled),0)-Comp_V1_Other_Incentives_Modeled-Comp_V1_Down_Payment_Modeled),0),0),0) -> 0 | AB100: =IF(Comp_V1_Has_Loan_Ex=TRUE,IF(AND((COLUMN(AB78)-COLUMN($E78))<Comp_V1_Loan_Term_Modeled+Comp_V1_Lease_Term_Modeled,(COLUMN(AB78)-COLUMN($E78))>=Comp_V1_Lease_Term_Modeled),PPMT(Comp_V1_Loan_APR_Modeled,IF(Comp_V1_Has_Lease_Ex=TRUE,(COLUMN(AB78)-COLUMN($D78)-Comp_V1_Lease_Term_Modeled),(COLUMN(AB78)-COLUMN($D78))),Comp_V1_Loan_Term_Modeled,IF(Comp_V1_Has_Lease_Ex=TRUE,SUM(OFFSET($D78,0,Comp_V1_Lease_Term_Modeled,3,1)),Comp_V1_Comp_Price_Ex-IF(Comp_V1_Tax_Incentives_Monetized="Yes",Comp_V1_Federal_Tax_Incentives_Modeled+IF(Comp_V1_State_Tax_Incentive_Cap_Modeled=0,Comp_V1_State_Tax_Incentives_Modeled,MIN(Comp_V1_State_Tax_Incentive_Cap_Modeled,Comp_V1_State_Tax_Incentives_Modeled*Comp_V1_Num_Vehicles_Modeled)/Comp_V1_Num_Vehicles_Modeled),0)-Comp_V1_Other_Incentives_Modeled-Comp_V1_Down_Payment_Modeled),0),0),0) -> 0 | AC100: =IF(Comp_V1_Has_Loan_Ex=TRUE,IF(AND((COLUMN(AC78)-COLUMN($E78))<Comp_V1_Loan_Term_Modeled+Comp_V1_Lease_Term_Modeled,(COLUMN(AC78)-COLUMN($E78))>=Comp_V1_Lease_Term_Modeled),PPMT(Comp_V1_Loan_APR_Modeled,IF(Comp_V1_Has_Lease_Ex=TRUE,(COLUMN(AC78)-COLUMN($D78)-Comp_V1_Lease_Term_Modeled),(COLUMN(AC78)-COLUMN($D78))),Comp_V1_Loan_Term_Modeled,IF(Comp_V1_Has_Lease_Ex=TRUE,SUM(OFFSET($D78,0,Comp_V1_Lease_Term_Modeled,3,1)),Comp_V1_Comp_Price_Ex-IF(Comp_V1_Tax_Incentives_Monetized="Yes",Comp_V1_Federal_Tax_Incentives_Modeled+IF(Comp_V1_State_Tax_Incentive_Cap_Modeled=0,Comp_V1_State_Tax_Incentives_Modeled,MIN(Comp_V1_State_Tax_Incentive_Cap_Modeled,Comp_V1_State_Tax_Incentives_Modeled*Comp_V1_Num_Vehicles_Modeled)/Comp_V1_Num_Vehicles_Modeled),0)-Comp_V1_Other_Incentives_Modeled-Comp_V1_Down_Payment_Modeled),0),0),0) -> 0
B101: Interest Payments | E101: =IF(Comp_V1_Has_Loan_Ex=TRUE,IF(AND((COLUMN(E78)-COLUMN($E78))<Comp_V1_Loan_Term_Modeled+Comp_V1_Lease_Term_Modeled,(COLUMN(E78)-COLUMN($E78))>=Comp_V1_Lease_Term_Modeled),IPMT(Comp_V1_Loan_APR_Modeled,IF(Comp_V1_Has_Lease_Ex=TRUE,(COLUMN(E78)-COLUMN($D78)-Comp_V1_Lease_Term_Modeled),(COLUMN(E78)-COLUMN($D78))),Comp_V1_Loan_Term_Modeled,IF(Comp_V1_Has_Lease_Ex=TRUE,SUM(OFFSET($D78,0,Comp_V1_Lease_Term_Modeled,3,1)),Comp_V1_Comp_Price_Ex-IF(Comp_V1_Tax_Incentives_Monetized="Yes",Comp_V1_Federal_Tax_Incentives_Modeled+IF(Comp_V1_State_Tax_Incentive_Cap_Modeled=0,Comp_V1_State_Tax_Incentives_Modeled,MIN(Comp_V1_State_Tax_Incentive_Cap_Modeled,Comp_V1_State_Tax_Incentives_Modeled*Comp_V1_Num_Vehicles_Modeled)/Comp_V1_Num_Vehicles_Modeled),0)-Comp_V1_Other_Incentives_Modeled-Comp_V1_Down_Payment_Modeled),0),0),0) -> 0 | F101: =IF(Comp_V1_Has_Loan_Ex=TRUE,IF(AND((COLUMN(F78)-COLUMN($E78))<Comp_V1_Loan_Term_Modeled+Comp_V1_Lease_Term_Modeled,(COLUMN(F78)-COLUMN($E78))>=Comp_V1_Lease_Term_Modeled),IPMT(Comp_V1_Loan_APR_Modeled,IF(Comp_V1_Has_Lease_Ex=TRUE,(COLUMN(F78)-COLUMN($D78)-Comp_V1_Lease_Term_Modeled),(COLUMN(F78)-COLUMN($D78))),Comp_V1_Loan_Term_Modeled,IF(Comp_V1_Has_Lease_Ex=TRUE,SUM(OFFSET($D78,0,Comp_V1_Lease_Term_Modeled,3,1)),Comp_V1_Comp_Price_Ex-IF(Comp_V1_Tax_Incentives_Monetized="Yes",Comp_V1_Federal_Tax_Incentives_Modeled+IF(Comp_V1_State_Tax_Incentive_Cap_Modeled=0,Comp_V1_State_Tax_Incentives_Modeled,MIN(Comp_V1_State_Tax_Incentive_Cap_Modeled,Comp_V1_State_Tax_Incentives_Modeled*Comp_V1_Num_Vehicles_Modeled)/Comp_V1_Num_Vehicles_Modeled),0)-Comp_V1_Other_Incentives_Modeled-Comp_V1_Down_Payment_Modeled),0),0),0) -> 0 | G101: =IF(Comp_V1_Has_Loan_Ex=TRUE,IF(AND((COLUMN(G78)-COLUMN($E78))<Comp_V1_Loan_Term_Modeled+Comp_V1_Lease_Term_Modeled,(COLUMN(G78)-COLUMN($E78))>=Comp_V1_Lease_Term_Modeled),IPMT(Comp_V1_Loan_APR_Modeled,IF(Comp_V1_Has_Lease_Ex=TRUE,(COLUMN(G78)-COLUMN($D78)-Comp_V1_Lease_Term_Modeled),(COLUMN(G78)-COLUMN($D78))),Comp_V1_Loan_Term_Modeled,IF(Comp_V1_Has_Lease_Ex=TRUE,SUM(OFFSET($D78,0,Comp_V1_Lease_Term_Modeled,3,1)),Comp_V1_Comp_Price_Ex-IF(Comp_V1_Tax_Incentives_Monetized="Yes",Comp_V1_Federal_Tax_Incentives_Modeled+IF(Comp_V1_State_Tax_Incentive_Cap_Modeled=0,Comp_V1_State_Tax_Incentives_Modeled,MIN(Comp_V1_State_Tax_Incentive_Cap_Modeled,Comp_V1_State_Tax_Incentives_Modeled*Comp_V1_Num_Vehicles_Modeled)/Comp_V1_Num_Vehicles_Modeled),0)-Comp_V1_Other_Incentives_Modeled-Comp_V1_Down_Payment_Modeled),0),0),0) -> 0 | H101: =IF(Comp_V1_Has_Loan_Ex=TRUE,IF(AND((COLUMN(H78)-COLUMN($E78))<Comp_V1_Loan_Term_Modeled+Comp_V1_Lease_Term_Modeled,(COLUMN(H78)-COLUMN($E78))>=Comp_V1_Lease_Term_Modeled),IPMT(Comp_V1_Loan_APR_Modeled,IF(Comp_V1_Has_Lease_Ex=TRUE,(COLUMN(H78)-COLUMN($D78)-Comp_V1_Lease_Term_Modeled),(COLUMN(H78)-COLUMN($D78))),Comp_V1_Loan_Term_Modeled,IF(Comp_V1_Has_Lease_Ex=TRUE,SUM(OFFSET($D78,0,Comp_V1_Lease_Term_Modeled,3,1)),Comp_V1_Comp_Price_Ex-IF(Comp_V1_Tax_Incentives_Monetized="Yes",Comp_V1_Federal_Tax_Incentives_Modeled+IF(Comp_V1_State_Tax_Incentive_Cap_Modeled=0,Comp_V1_State_Tax_Incentives_Modeled,MIN(Comp_V1_State_Tax_Incentive_Cap_Modeled,Comp_V1_State_Tax_Incentives_Modeled*Comp_V1_Num_Vehicles_Modeled)/Comp_V1_Num_Vehicles_Modeled),0)-Comp_V1_Other_Incentives_Modeled-Comp_V1_Down_Payment_Modeled),0),0),0) -> 0 | I101: =IF(Comp_V1_Has_Loan_Ex=TRUE,IF(AND((COLUMN(I78)-COLUMN($E78))<Comp_V1_Loan_Term_Modeled+Comp_V1_Lease_Term_Modeled,(COLUMN(I78)-COLUMN($E78))>=Comp_V1_Lease_Term_Modeled),IPMT(Comp_V1_Loan_APR_Modeled,IF(Comp_V1_Has_Lease_Ex=TRUE,(COLUMN(I78)-COLUMN($D78)-Comp_V1_Lease_Term_Modeled),(COLUMN(I78)-COLUMN($D78))),Comp_V1_Loan_Term_Modeled,IF(Comp_V1_Has_Lease_Ex=TRUE,SUM(OFFSET($D78,0,Comp_V1_Lease_Term_Modeled,3,1)),Comp_V1_Comp_Price_Ex-IF(Comp_V1_Tax_Incentives_Monetized="Yes",Comp_V1_Federal_Tax_Incentives_Modeled+IF(Comp_V1_State_Tax_Incentive_Cap_Modeled=0,Comp_V1_State_Tax_Incentives_Modeled,MIN(Comp_V1_State_Tax_Incentive_Cap_Modeled,Comp_V1_State_Tax_Incentives_Modeled*Comp_V1_Num_Vehicles_Modeled)/Comp_V1_Num_Vehicles_Modeled),0)-Comp_V1_Other_Incentives_Modeled-Comp_V1_Down_Payment_Modeled),0),0),0) -> 0 | J101: =IF(Comp_V1_Has_Loan_Ex=TRUE,IF(AND((COLUMN(J78)-COLUMN($E78))<Comp_V1_Loan_Term_Modeled+Comp_V1_Lease_Term_Modeled,(COLUMN(J78)-COLUMN($E78))>=Comp_V1_Lease_Term_Modeled),IPMT(Comp_V1_Loan_APR_Modeled,IF(Comp_V1_Has_Lease_Ex=TRUE,(COLUMN(J78)-COLUMN($D78)-Comp_V1_Lease_Term_Modeled),(COLUMN(J78)-COLUMN($D78))),Comp_V1_Loan_Term_Modeled,IF(Comp_V1_Has_Lease_Ex=TRUE,SUM(OFFSET($D78,0,Comp_V1_Lease_Term_Modeled,3,1)),Comp_V1_Comp_Price_Ex-IF(Comp_V1_Tax_Incentives_Monetized="Yes",Comp_V1_Federal_Tax_Incentives_Modeled+IF(Comp_V1_State_Tax_Incentive_Cap_Modeled=0,Comp_V1_State_Tax_Incentives_Modeled,MIN(Comp_V1_State_Tax_Incentive_Cap_Modeled,Comp_V1_State_Tax_Incentives_Modeled*Comp_V1_Num_Vehicles_Modeled)/Comp_V1_Num_Vehicles_Modeled),0)-Comp_V1_Other_Incentives_Modeled-Comp_V1_Down_Payment_Modeled),0),0),0) -> 0 | K101: =IF(Comp_V1_Has_Loan_Ex=TRUE,IF(AND((COLUMN(K78)-COLUMN($E78))<Comp_V1_Loan_Term_Modeled+Comp_V1_Lease_Term_Modeled,(COLUMN(K78)-COLUMN($E78))>=Comp_V1_Lease_Term_Modeled),IPMT(Comp_V1_Loan_APR_Modeled,IF(Comp_V1_Has_Lease_Ex=TRUE,(COLUMN(K78)-COLUMN($D78)-Comp_V1_Lease_Term_Modeled),(COLUMN(K78)-COLUMN($D78))),Comp_V1_Loan_Term_Modeled,IF(Comp_V1_Has_Lease_Ex=TRUE,SUM(OFFSET($D78,0,Comp_V1_Lease_Term_Modeled,3,1)),Comp_V1_Comp_Price_Ex-IF(Comp_V1_Tax_Incentives_Monetized="Yes",Comp_V1_Federal_Tax_Incentives_Modeled+IF(Comp_V1_State_Tax_Incentive_Cap_Modeled=0,Comp_V1_State_Tax_Incentives_Modeled,MIN(Comp_V1_State_Tax_Incentive_Cap_Modeled,Comp_V1_State_Tax_Incentives_Modeled*Comp_V1_Num_Vehicles_Modeled)/Comp_V1_Num_Vehicles_Modeled),0)-Comp_V1_Other_Incentives_Modeled-Comp_V1_Down_Payment_Modeled),0),0),0) -> 0 | L101: =IF(Comp_V1_Has_Loan_Ex=TRUE,IF(AND((COLUMN(L78)-COLUMN($E78))<Comp_V1_Loan_Term_Modeled+Comp_V1_Lease_Term_Modeled,(COLUMN(L78)-COLUMN($E78))>=Comp_V1_Lease_Term_Modeled),IPMT(Comp_V1_Loan_APR_Modeled,IF(Comp_V1_Has_Lease_Ex=TRUE,(COLUMN(L78)-COLUMN($D78)-Comp_V1_Lease_Term_Modeled),(COLUMN(L78)-COLUMN($D78))),Comp_V1_Loan_Term_Modeled,IF(Comp_V1_Has_Lease_Ex=TRUE,SUM(OFFSET($D78,0,Comp_V1_Lease_Term_Modeled,3,1)),Comp_V1_Comp_Price_Ex-IF(Comp_V1_Tax_Incentives_Monetized="Yes",Comp_V1_Federal_Tax_Incentives_Modeled+IF(Comp_V1_State_Tax_Incentive_Cap_Modeled=0,Comp_V1_State_Tax_Incentives_Modeled,MIN(Comp_V1_State_Tax_Incentive_Cap_Modeled,Comp_V1_State_Tax_Incentives_Modeled*Comp_V1_Num_Vehicles_Modeled)/Comp_V1_Num_Vehicles_Modeled),0)-Comp_V1_Other_Incentives_Modeled-Comp_V1_Down_Payment_Modeled),0),0),0) -> 0 | M101: =IF(Comp_V1_Has_Loan_Ex=TRUE,IF(AND((COLUMN(M78)-COLUMN($E78))<Comp_V1_Loan_Term_Modeled+Comp_V1_Lease_Term_Modeled,(COLUMN(M78)-COLUMN($E78))>=Comp_V1_Lease_Term_Modeled),IPMT(Comp_V1_Loan_APR_Modeled,IF(Comp_V1_Has_Lease_Ex=TRUE,(COLUMN(M78)-COLUMN($D78)-Comp_V1_Lease_Term_Modeled),(COLUMN(M78)-COLUMN($D78))),Comp_V1_Loan_Term_Modeled,IF(Comp_V1_Has_Lease_Ex=TRUE,SUM(OFFSET($D78,0,Comp_V1_Lease_Term_Modeled,3,1)),Comp_V1_Comp_Price_Ex-IF(Comp_V1_Tax_Incentives_Monetized="Yes",Comp_V1_Federal_Tax_Incentives_Modeled+IF(Comp_V1_State_Tax_Incentive_Cap_Modeled=0,Comp_V1_State_Tax_Incentives_Modeled,MIN(Comp_V1_State_Tax_Incentive_Cap_Modeled,Comp_V1_State_Tax_Incentives_Modeled*Comp_V1_Num_Vehicles_Modeled)/Comp_V1_Num_Vehicles_Modeled),0)-Comp_V1_Other_Incentives_Modeled-Comp_V1_Down_Payment_Modeled),0),0),0) -> 0 | N101: =IF(Comp_V1_Has_Loan_Ex=TRUE,IF(AND((COLUMN(N78)-COLUMN($E78))<Comp_V1_Loan_Term_Modeled+Comp_V1_Lease_Term_Modeled,(COLUMN(N78)-COLUMN($E78))>=Comp_V1_Lease_Term_Modeled),IPMT(Comp_V1_Loan_APR_Modeled,IF(Comp_V1_Has_Lease_Ex=TRUE,(COLUMN(N78)-COLUMN($D78)-Comp_V1_Lease_Term_Modeled),(COLUMN(N78)-COLUMN($D78))),Comp_V1_Loan_Term_Modeled,IF(Comp_V1_Has_Lease_Ex=TRUE,SUM(OFFSET($D78,0,Comp_V1_Lease_Term_Modeled,3,1)),Comp_V1_Comp_Price_Ex-IF(Comp_V1_Tax_Incentives_Monetized="Yes",Comp_V1_Federal_Tax_Incentives_Modeled+IF(Comp_V1_State_Tax_Incentive_Cap_Modeled=0,Comp_V1_State_Tax_Incentives_Modeled,MIN(Comp_V1_State_Tax_Incentive_Cap_Modeled,Comp_V1_State_Tax_Incentives_Modeled*Comp_V1_Num_Vehicles_Modeled)/Comp_V1_Num_Vehicles_Modeled),0)-Comp_V1_Other_Incentives_Modeled-Comp_V1_Down_Payment_Modeled),0),0),0) -> 0 | O101: =IF(Comp_V1_Has_Loan_Ex=TRUE,IF(AND((COLUMN(O78)-COLUMN($E78))<Comp_V1_Loan_Term_Modeled+Comp_V1_Lease_Term_Modeled,(COLUMN(O78)-COLUMN($E78))>=Comp_V1_Lease_Term_Modeled),IPMT(Comp_V1_Loan_APR_Modeled,IF(Comp_V1_Has_Lease_Ex=TRUE,(COLUMN(O78)-COLUMN($D78)-Comp_V1_Lease_Term_Modeled),(COLUMN(O78)-COLUMN($D78))),Comp_V1_Loan_Term_Modeled,IF(Comp_V1_Has_Lease_Ex=TRUE,SUM(OFFSET($D78,0,Comp_V1_Lease_Term_Modeled,3,1)),Comp_V1_Comp_Price_Ex-IF(Comp_V1_Tax_Incentives_Monetized="Yes",Comp_V1_Federal_Tax_Incentives_Modeled+IF(Comp_V1_State_Tax_Incentive_Cap_Modeled=0,Comp_V1_State_Tax_Incentives_Modeled,MIN(Comp_V1_State_Tax_Incentive_Cap_Modeled,Comp_V1_State_Tax_Incentives_Modeled*Comp_V1_Num_Vehicles_Modeled)/Comp_V1_Num_Vehicles_Modeled),0)-Comp_V1_Other_Incentives_Modeled-Comp_V1_Down_Payment_Modeled),0),0),0) -> 0 | P101: =IF(Comp_V1_Has_Loan_Ex=TRUE,IF(AND((COLUMN(P78)-COLUMN($E78))<Comp_V1_Loan_Term_Modeled+Comp_V1_Lease_Term_Modeled,(COLUMN(P78)-COLUMN($E78))>=Comp_V1_Lease_Term_Modeled),IPMT(Comp_V1_Loan_APR_Modeled,IF(Comp_V1_Has_Lease_Ex=TRUE,(COLUMN(P78)-COLUMN($D78)-Comp_V1_Lease_Term_Modeled),(COLUMN(P78)-COLUMN($D78))),Comp_V1_Loan_Term_Modeled,IF(Comp_V1_Has_Lease_Ex=TRUE,SUM(OFFSET($D78,0,Comp_V1_Lease_Term_Modeled,3,1)),Comp_V1_Comp_Price_Ex-IF(Comp_V1_Tax_Incentives_Monetized="Yes",Comp_V1_Federal_Tax_Incentives_Modeled+IF(Comp_V1_State_Tax_Incentive_Cap_Modeled=0,Comp_V1_State_Tax_Incentives_Modeled,MIN(Comp_V1_State_Tax_Incentive_Cap_Modeled,Comp_V1_State_Tax_Incentives_Modeled*Comp_V1_Num_Vehicles_Modeled)/Comp_V1_Num_Vehicles_Modeled),0)-Comp_V1_Other_Incentives_Modeled-Comp_V1_Down_Payment_Modeled),0),0),0) -> 0 | Q101: =IF(Comp_V1_Has_Loan_Ex=TRUE,IF(AND((COLUMN(Q78)-COLUMN($E78))<Comp_V1_Loan_Term_Modeled+Comp_V1_Lease_Term_Modeled,(COLUMN(Q78)-COLUMN($E78))>=Comp_V1_Lease_Term_Modeled),IPMT(Comp_V1_Loan_APR_Modeled,IF(Comp_V1_Has_Lease_Ex=TRUE,(COLUMN(Q78)-COLUMN($D78)-Comp_V1_Lease_Term_Modeled),(COLUMN(Q78)-COLUMN($D78))),Comp_V1_Loan_Term_Modeled,IF(Comp_V1_Has_Lease_Ex=TRUE,SUM(OFFSET($D78,0,Comp_V1_Lease_Term_Modeled,3,1)),Comp_V1_Comp_Price_Ex-IF(Comp_V1_Tax_Incentives_Monetized="Yes",Comp_V1_Federal_Tax_Incentives_Modeled+IF(Comp_V1_State_Tax_Incentive_Cap_Modeled=0,Comp_V1_State_Tax_Incentives_Modeled,MIN(Comp_V1_State_Tax_Incentive_Cap_Modeled,Comp_V1_State_Tax_Incentives_Modeled*Comp_V1_Num_Vehicles_Modeled)/Comp_V1_Num_Vehicles_Modeled),0)-Comp_V1_Other_Incentives_Modeled-Comp_V1_Down_Payment_Modeled),0),0),0) -> 0 | R101: =IF(Comp_V1_Has_Loan_Ex=TRUE,IF(AND((COLUMN(R78)-COLUMN($E78))<Comp_V1_Loan_Term_Modeled+Comp_V1_Lease_Term_Modeled,(COLUMN(R78)-COLUMN($E78))>=Comp_V1_Lease_Term_Modeled),IPMT(Comp_V1_Loan_APR_Modeled,IF(Comp_V1_Has_Lease_Ex=TRUE,(COLUMN(R78)-COLUMN($D78)-Comp_V1_Lease_Term_Modeled),(COLUMN(R78)-COLUMN($D78))),Comp_V1_Loan_Term_Modeled,IF(Comp_V1_Has_Lease_Ex=TRUE,SUM(OFFSET($D78,0,Comp_V1_Lease_Term_Modeled,3,1)),Comp_V1_Comp_Price_Ex-IF(Comp_V1_Tax_Incentives_Monetized="Yes",Comp_V1_Federal_Tax_Incentives_Modeled+IF(Comp_V1_State_Tax_Incentive_Cap_Modeled=0,Comp_V1_State_Tax_Incentives_Modeled,MIN(Comp_V1_State_Tax_Incentive_Cap_Modeled,Comp_V1_State_Tax_Incentives_Modeled*Comp_V1_Num_Vehicles_Modeled)/Comp_V1_Num_Vehicles_Modeled),0)-Comp_V1_Other_Incentives_Modeled-Comp_V1_Down_Payment_Modeled),0),0),0) -> 0 | S101: =IF(Comp_V1_Has_Loan_Ex=TRUE,IF(AND((COLUMN(S78)-COLUMN($E78))<Comp_V1_Loan_Term_Modeled+Comp_V1_Lease_Term_Modeled,(COLUMN(S78)-COLUMN($E78))>=Comp_V1_Lease_Term_Modeled),IPMT(Comp_V1_Loan_APR_Modeled,IF(Comp_V1_Has_Lease_Ex=TRUE,(COLUMN(S78)-COLUMN($D78)-Comp_V1_Lease_Term_Modeled),(COLUMN(S78)-COLUMN($D78))),Comp_V1_Loan_Term_Modeled,IF(Comp_V1_Has_Lease_Ex=TRUE,SUM(OFFSET($D78,0,Comp_V1_Lease_Term_Modeled,3,1)),Comp_V1_Comp_Price_Ex-IF(Comp_V1_Tax_Incentives_Monetized="Yes",Comp_V1_Federal_Tax_Incentives_Modeled+IF(Comp_V1_State_Tax_Incentive_Cap_Modeled=0,Comp_V1_State_Tax_Incentives_Modeled,MIN(Comp_V1_State_Tax_Incentive_Cap_Modeled,Comp_V1_State_Tax_Incentives_Modeled*Comp_V1_Num_Vehicles_Modeled)/Comp_V1_Num_Vehicles_Modeled),0)-Comp_V1_Other_Incentives_Modeled-Comp_V1_Down_Payment_Modeled),0),0),0) -> 0 | T101: =IF(Comp_V1_Has_Loan_Ex=TRUE,IF(AND((COLUMN(T78)-COLUMN($E78))<Comp_V1_Loan_Term_Modeled+Comp_V1_Lease_Term_Modeled,(COLUMN(T78)-COLUMN($E78))>=Comp_V1_Lease_Term_Modeled),IPMT(Comp_V1_Loan_APR_Modeled,IF(Comp_V1_Has_Lease_Ex=TRUE,(COLUMN(T78)-COLUMN($D78)-Comp_V1_Lease_Term_Modeled),(COLUMN(T78)-COLUMN($D78))),Comp_V1_Loan_Term_Modeled,IF(Comp_V1_Has_Lease_Ex=TRUE,SUM(OFFSET($D78,0,Comp_V1_Lease_Term_Modeled,3,1)),Comp_V1_Comp_Price_Ex-IF(Comp_V1_Tax_Incentives_Monetized="Yes",Comp_V1_Federal_Tax_Incentives_Modeled+IF(Comp_V1_State_Tax_Incentive_Cap_Modeled=0,Comp_V1_State_Tax_Incentives_Modeled,MIN(Comp_V1_State_Tax_Incentive_Cap_Modeled,Comp_V1_State_Tax_Incentives_Modeled*Comp_V1_Num_Vehicles_Modeled)/Comp_V1_Num_Vehicles_Modeled),0)-Comp_V1_Other_Incentives_Modeled-Comp_V1_Down_Payment_Modeled),0),0),0) -> 0 | U101: =IF(Comp_V1_Has_Loan_Ex=TRUE,IF(AND((COLUMN(U78)-COLUMN($E78))<Comp_V1_Loan_Term_Modeled+Comp_V1_Lease_Term_Modeled,(COLUMN(U78)-COLUMN($E78))>=Comp_V1_Lease_Term_Modeled),IPMT(Comp_V1_Loan_APR_Modeled,IF(Comp_V1_Has_Lease_Ex=TRUE,(COLUMN(U78)-COLUMN($D78)-Comp_V1_Lease_Term_Modeled),(COLUMN(U78)-COLUMN($D78))),Comp_V1_Loan_Term_Modeled,IF(Comp_V1_Has_Lease_Ex=TRUE,SUM(OFFSET($D78,0,Comp_V1_Lease_Term_Modeled,3,1)),Comp_V1_Comp_Price_Ex-IF(Comp_V1_Tax_Incentives_Monetized="Yes",Comp_V1_Federal_Tax_Incentives_Modeled+IF(Comp_V1_State_Tax_Incentive_Cap_Modeled=0,Comp_V1_State_Tax_Incentives_Modeled,MIN(Comp_V1_State_Tax_Incentive_Cap_Modeled,Comp_V1_State_Tax_Incentives_Modeled*Comp_V1_Num_Vehicles_Modeled)/Comp_V1_Num_Vehicles_Modeled),0)-Comp_V1_Other_Incentives_Modeled-Comp_V1_Down_Payment_Modeled),0),0),0) -> 0 | V101: =IF(Comp_V1_Has_Loan_Ex=TRUE,IF(AND((COLUMN(V78)-COLUMN($E78))<Comp_V1_Loan_Term_Modeled+Comp_V1_Lease_Term_Modeled,(COLUMN(V78)-COLUMN($E78))>=Comp_V1_Lease_Term_Modeled),IPMT(Comp_V1_Loan_APR_Modeled,IF(Comp_V1_Has_Lease_Ex=TRUE,(COLUMN(V78)-COLUMN($D78)-Comp_V1_Lease_Term_Modeled),(COLUMN(V78)-COLUMN($D78))),Comp_V1_Loan_Term_Modeled,IF(Comp_V1_Has_Lease_Ex=TRUE,SUM(OFFSET($D78,0,Comp_V1_Lease_Term_Modeled,3,1)),Comp_V1_Comp_Price_Ex-IF(Comp_V1_Tax_Incentives_Monetized="Yes",Comp_V1_Federal_Tax_Incentives_Modeled+IF(Comp_V1_State_Tax_Incentive_Cap_Modeled=0,Comp_V1_State_Tax_Incentives_Modeled,MIN(Comp_V1_State_Tax_Incentive_Cap_Modeled,Comp_V1_State_Tax_Incentives_Modeled*Comp_V1_Num_Vehicles_Modeled)/Comp_V1_Num_Vehicles_Modeled),0)-Comp_V1_Other_Incentives_Modeled-Comp_V1_Down_Payment_Modeled),0),0),0) -> 0 | W101: =IF(Comp_V1_Has_Loan_Ex=TRUE,IF(AND((COLUMN(W78)-COLUMN($E78))<Comp_V1_Loan_Term_Modeled+Comp_V1_Lease_Term_Modeled,(COLUMN(W78)-COLUMN($E78))>=Comp_V1_Lease_Term_Modeled),IPMT(Comp_V1_Loan_APR_Modeled,IF(Comp_V1_Has_Lease_Ex=TRUE,(COLUMN(W78)-COLUMN($D78)-Comp_V1_Lease_Term_Modeled),(COLUMN(W78)-COLUMN($D78))),Comp_V1_Loan_Term_Modeled,IF(Comp_V1_Has_Lease_Ex=TRUE,SUM(OFFSET($D78,0,Comp_V1_Lease_Term_Modeled,3,1)),Comp_V1_Comp_Price_Ex-IF(Comp_V1_Tax_Incentives_Monetized="Yes",Comp_V1_Federal_Tax_Incentives_Modeled+IF(Comp_V1_State_Tax_Incentive_Cap_Modeled=0,Comp_V1_State_Tax_Incentives_Modeled,MIN(Comp_V1_State_Tax_Incentive_Cap_Modeled,Comp_V1_State_Tax_Incentives_Modeled*Comp_V1_Num_Vehicles_Modeled)/Comp_V1_Num_Vehicles_Modeled),0)-Comp_V1_Other_Incentives_Modeled-Comp_V1_Down_Payment_Modeled),0),0),0) -> 0 | X101: =IF(Comp_V1_Has_Loan_Ex=TRUE,IF(AND((COLUMN(X78)-COLUMN($E78))<Comp_V1_Loan_Term_Modeled+Comp_V1_Lease_Term_Modeled,(COLUMN(X78)-COLUMN($E78))>=Comp_V1_Lease_Term_Modeled),IPMT(Comp_V1_Loan_APR_Modeled,IF(Comp_V1_Has_Lease_Ex=TRUE,(COLUMN(X78)-COLUMN($D78)-Comp_V1_Lease_Term_Modeled),(COLUMN(X78)-COLUMN($D78))),Comp_V1_Loan_Term_Modeled,IF(Comp_V1_Has_Lease_Ex=TRUE,SUM(OFFSET($D78,0,Comp_V1_Lease_Term_Modeled,3,1)),Comp_V1_Comp_Price_Ex-IF(Comp_V1_Tax_Incentives_Monetized="Yes",Comp_V1_Federal_Tax_Incentives_Modeled+IF(Comp_V1_State_Tax_Incentive_Cap_Modeled=0,Comp_V1_State_Tax_Incentives_Modeled,MIN(Comp_V1_State_Tax_Incentive_Cap_Modeled,Comp_V1_State_Tax_Incentives_Modeled*Comp_V1_Num_Vehicles_Modeled)/Comp_V1_Num_Vehicles_Modeled),0)-Comp_V1_Other_Incentives_Modeled-Comp_V1_Down_Payment_Modeled),0),0),0) -> 0 | Y101: =IF(Comp_V1_Has_Loan_Ex=TRUE,IF(AND((COLUMN(Y78)-COLUMN($E78))<Comp_V1_Loan_Term_Modeled+Comp_V1_Lease_Term_Modeled,(COLUMN(Y78)-COLUMN($E78))>=Comp_V1_Lease_Term_Modeled),IPMT(Comp_V1_Loan_APR_Modeled,IF(Comp_V1_Has_Lease_Ex=TRUE,(COLUMN(Y78)-COLUMN($D78)-Comp_V1_Lease_Term_Modeled),(COLUMN(Y78)-COLUMN($D78))),Comp_V1_Loan_Term_Modeled,IF(Comp_V1_Has_Lease_Ex=TRUE,SUM(OFFSET($D78,0,Comp_V1_Lease_Term_Modeled,3,1)),Comp_V1_Comp_Price_Ex-IF(Comp_V1_Tax_Incentives_Monetized="Yes",Comp_V1_Federal_Tax_Incentives_Modeled+IF(Comp_V1_State_Tax_Incentive_Cap_Modeled=0,Comp_V1_State_Tax_Incentives_Modeled,MIN(Comp_V1_State_Tax_Incentive_Cap_Modeled,Comp_V1_State_Tax_Incentives_Modeled*Comp_V1_Num_Vehicles_Modeled)/Comp_V1_Num_Vehicles_Modeled),0)-Comp_V1_Other_Incentives_Modeled-Comp_V1_Down_Payment_Modeled),0),0),0) -> 0 | Z101: =IF(Comp_V1_Has_Loan_Ex=TRUE,IF(AND((COLUMN(Z78)-COLUMN($E78))<Comp_V1_Loan_Term_Modeled+Comp_V1_Lease_Term_Modeled,(COLUMN(Z78)-COLUMN($E78))>=Comp_V1_Lease_Term_Modeled),IPMT(Comp_V1_Loan_APR_Modeled,IF(Comp_V1_Has_Lease_Ex=TRUE,(COLUMN(Z78)-COLUMN($D78)-Comp_V1_Lease_Term_Modeled),(COLUMN(Z78)-COLUMN($D78))),Comp_V1_Loan_Term_Modeled,IF(Comp_V1_Has_Lease_Ex=TRUE,SUM(OFFSET($D78,0,Comp_V1_Lease_Term_Modeled,3,1)),Comp_V1_Comp_Price_Ex-IF(Comp_V1_Tax_Incentives_Monetized="Yes",Comp_V1_Federal_Tax_Incentives_Modeled+IF(Comp_V1_State_Tax_Incentive_Cap_Modeled=0,Comp_V1_State_Tax_Incentives_Modeled,MIN(Comp_V1_State_Tax_Incentive_Cap_Modeled,Comp_V1_State_Tax_Incentives_Modeled*Comp_V1_Num_Vehicles_Modeled)/Comp_V1_Num_Vehicles_Modeled),0)-Comp_V1_Other_Incentives_Modeled-Comp_V1_Down_Payment_Modeled),0),0),0) -> 0 | AA101: =IF(Comp_V1_Has_Loan_Ex=TRUE,IF(AND((COLUMN(AA78)-COLUMN($E78))<Comp_V1_Loan_Term_Modeled+Comp_V1_Lease_Term_Modeled,(COLUMN(AA78)-COLUMN($E78))>=Comp_V1_Lease_Term_Modeled),IPMT(Comp_V1_Loan_APR_Modeled,IF(Comp_V1_Has_Lease_Ex=TRUE,(COLUMN(AA78)-COLUMN($D78)-Comp_V1_Lease_Term_Modeled),(COLUMN(AA78)-COLUMN($D78))),Comp_V1_Loan_Term_Modeled,IF(Comp_V1_Has_Lease_Ex=TRUE,SUM(OFFSET($D78,0,Comp_V1_Lease_Term_Modeled,3,1)),Comp_V1_Comp_Price_Ex-IF(Comp_V1_Tax_Incentives_Monetized="Yes",Comp_V1_Federal_Tax_Incentives_Modeled+IF(Comp_V1_State_Tax_Incentive_Cap_Modeled=0,Comp_V1_State_Tax_Incentives_Modeled,MIN(Comp_V1_State_Tax_Incentive_Cap_Modeled,Comp_V1_State_Tax_Incentives_Modeled*Comp_V1_Num_Vehicles_Modeled)/Comp_V1_Num_Vehicles_Modeled),0)-Comp_V1_Other_Incentives_Modeled-Comp_V1_Down_Payment_Modeled),0),0),0) -> 0 | AB101: =IF(Comp_V1_Has_Loan_Ex=TRUE,IF(AND((COLUMN(AB78)-COLUMN($E78))<Comp_V1_Loan_Term_Modeled+Comp_V1_Lease_Term_Modeled,(COLUMN(AB78)-COLUMN($E78))>=Comp_V1_Lease_Term_Modeled),IPMT(Comp_V1_Loan_APR_Modeled,IF(Comp_V1_Has_Lease_Ex=TRUE,(COLUMN(AB78)-COLUMN($D78)-Comp_V1_Lease_Term_Modeled),(COLUMN(AB78)-COLUMN($D78))),Comp_V1_Loan_Term_Modeled,IF(Comp_V1_Has_Lease_Ex=TRUE,SUM(OFFSET($D78,0,Comp_V1_Lease_Term_Modeled,3,1)),Comp_V1_Comp_Price_Ex-IF(Comp_V1_Tax_Incentives_Monetized="Yes",Comp_V1_Federal_Tax_Incentives_Modeled+IF(Comp_V1_State_Tax_Incentive_Cap_Modeled=0,Comp_V1_State_Tax_Incentives_Modeled,MIN(Comp_V1_State_Tax_Incentive_Cap_Modeled,Comp_V1_State_Tax_Incentives_Modeled*Comp_V1_Num_Vehicles_Modeled)/Comp_V1_Num_Vehicles_Modeled),0)-Comp_V1_Other_Incentives_Modeled-Comp_V1_Down_Payment_Modeled),0),0),0) -> 0 | AC101: =IF(Comp_V1_Has_Loan_Ex=TRUE,IF(AND((COLUMN(AC78)-COLUMN($E78))<Comp_V1_Loan_Term_Modeled+Comp_V1_Lease_Term_Modeled,(COLUMN(AC78)-COLUMN($E78))>=Comp_V1_Lease_Term_Modeled),IPMT(Comp_V1_Loan_APR_Modeled,IF(Comp_V1_Has_Lease_Ex=TRUE,(COLUMN(AC78)-COLUMN($D78)-Comp_V1_Lease_Term_Modeled),(COLUMN(AC78)-COLUMN($D78))),Comp_V1_Loan_Term_Modeled,IF(Comp_V1_Has_Lease_Ex=TRUE,SUM(OFFSET($D78,0,Comp_V1_Lease_Term_Modeled,3,1)),Comp_V1_Comp_Price_Ex-IF(Comp_V1_Tax_Incentives_Monetized="Yes",Comp_V1_Federal_Tax_Incentives_Modeled+IF(Comp_V1_State_Tax_Incentive_Cap_Modeled=0,Comp_V1_State_Tax_Incentives_Modeled,MIN(Comp_V1_State_Tax_Incentive_Cap_Modeled,Comp_V1_State_Tax_Incentives_Modeled*Comp_V1_Num_Vehicles_Modeled)/Comp_V1_Num_Vehicles_Modeled),0)-Comp_V1_Other_Incentives_Modeled-Comp_V1_Down_Payment_Modeled),0),0),0) -> 0
B102: Subtotal Loan Cash Flows | D102: =SUM(D98:D99) -> 0 | E102: =SUM(E98:E99) -> 0 | F102: 0 | G102: 0 | H102: 0 | I102: 0 | J102: 0 | K102: 0 | L102: 0 | M102: 0 | N102: 0 | O102: 0 | P102: 0 | Q102: 0 | R102: 0 | S102: 0 | T102: 0 | U102: 0 | V102: 0 | W102: 0 | X102: 0 | Y102: 0 | Z102: 0 | AA102: 0 | AB102: 0 | AC102: 0
B103: Terminal Value | E103: =IF(OR(Comp_V1_Has_Loan_Ex=TRUE,Comp_V1_Has_Cash_Purchase_Ex=TRUE),IF((COLUMN(E78)-COLUMN($D78))=Comp_V1_Years_Usage_Modeled,SUM(E80:E82),0),0) -> 0 | F103: 0 | G103: 0 | H103: 0 | I103: 0 | J103: 0 | K103: 8774.787216 | L103: 0 | M103: 0 | N103: 0 | O103: 0 | P103: 0 | Q103: 0 | R103: 0 | S103: 0 | T103: 0 | U103: 0 | V103: 0 | W103: 0 | X103: 0 | Y103: 0 | Z103: 0 | AA103: 0 | AB103: 0 | AC103: 0
B105: Total Capital and Financing Costs | D105: =D86+D96+D102+D103 -> -22050 | E105: 0 | F105: 0 | G105: 0 | H105: 0 | I105: 0 | J105: 0 | K105: 8774.787216 | L105: 0 | M105: 0 | N105: 0 | O105: 0 | P105: 0 | Q105: 0 | R105: 0 | S105: 0 | T105: 0 | U105: 0 | V105: 0 | W105: 0 | X105: 0 | Y105: 0 | Z105: 0 | AA105: 0 | AB105: 0 | AC105: 0
B107: Fuel and Operating Costs
B108: Fuel Cost | E108: =IF(COLUMN(E78)-COLUMN($E78)<Comp_V1_Years_Usage_Modeled,-((Comp_V1_Gas_Usage_Ex*IF(Comp_V1_Fuel_Type_Ex = 0, IF(_Comp_V1_Vehicle_Vehicle_Class = "Passenger Vehicles (Light-Duty)",Gasoline_Price_Modeled, Diesel_Price_Modeled), IF(Comp_V1_Fuel_Type_Ex="Diesel", Diesel_Price_Modeled, Gasoline_Price_Modeled))*IF(_Market="U.S.", Data!D$77, Data!D$80))+(Comp_V1_Electricity_Usage_Ex*IF(_Market="U.S.", Data!D$79, Data!D$81))*(Comp_Percent_Home_Charging_Modeled*IF(Comp_Use_Charging_Management = "Yes", Comp_Rate_Output_Ex, Comp_Electricity_Price_Modeled)+Comp_Percent_Public_Charging_Modeled*Public_Charging_Price_Modeled+Comp_Percent_En_Route_Charging_Modeled*En_Route_Charging_Price_Modeled)),0) -> -1082.247476 | F108: =IF(COLUMN(F78)-COLUMN($E78)<Comp_V1_Years_Usage_Modeled,-((Comp_V1_Gas_Usage_Ex*IF(Comp_V1_Fuel_Type_Ex = 0, IF(_Comp_V1_Vehicle_Vehicle_Class = "Passenger Vehicles (Light-Duty)",Gasoline_Price_Modeled, Diesel_Price_Modeled), IF(Comp_V1_Fuel_Type_Ex="Diesel", Diesel_Price_Modeled, Gasoline_Price_Modeled))*IF(_Market="U.S.", Data!E$77, Data!E$80))+(Comp_V1_Electricity_Usage_Ex*IF(_Market="U.S.", Data!E$79, Data!E$81))*(Comp_Percent_Home_Charging_Modeled*IF(Comp_Use_Charging_Management = "Yes", Comp_Rate_Output_Ex, Comp_Electricity_Price_Modeled)+Comp_Percent_Public_Charging_Modeled*Public_Charging_Price_Modeled+Comp_Percent_En_Route_Charging_Modeled*En_Route_Charging_Price_Modeled)),0) -> -1130.046378 | G108: =IF(COLUMN(G78)-COLUMN($E78)<Comp_V1_Years_Usage_Modeled,-((Comp_V1_Gas_Usage_Ex*IF(Comp_V1_Fuel_Type_Ex = 0, IF(_Comp_V1_Vehicle_Vehicle_Class = "Passenger Vehicles (Light-Duty)",Gasoline_Price_Modeled, Diesel_Price_Modeled), IF(Comp_V1_Fuel_Type_Ex="Diesel", Diesel_Price_Modeled, Gasoline_Price_Modeled))*IF(_Market="U.S.", Data!F$77, Data!F$80))+(Comp_V1_Electricity_Usage_Ex*IF(_Market="U.S.", Data!F$79, Data!F$81))*(Comp_Percent_Home_Charging_Modeled*IF(Comp_Use_Charging_Management = "Yes", Comp_Rate_Output_Ex, Comp_Electricity_Price_Modeled)+Comp_Percent_Public_Charging_Modeled*Public_Charging_Price_Modeled+Comp_Percent_En_Route_Charging_Modeled*En_Route_Charging_Price_Modeled)),0) -> -1151.304346 | H108: =IF(COLUMN(H78)-COLUMN($E78)<Comp_V1_Years_Usage_Modeled,-((Comp_V1_Gas_Usage_Ex*IF(Comp_V1_Fuel_Type_Ex = 0, IF(_Comp_V1_Vehicle_Vehicle_Class = "Passenger Vehicles (Light-Duty)",Gasoline_Price_Modeled, Diesel_Price_Modeled), IF(Comp_V1_Fuel_Type_Ex="Diesel", Diesel_Price_Modeled, Gasoline_Price_Modeled))*IF(_Market="U.S.", Data!G$77, Data!G$80))+(Comp_V1_Electricity_Usage_Ex*IF(_Market="U.S.", Data!G$79, Data!G$81))*(Comp_Percent_Home_Charging_Modeled*IF(Comp_Use_Charging_Management = "Yes", Comp_Rate_Output_Ex, Comp_Electricity_Price_Modeled)+Comp_Percent_Public_Charging_Modeled*Public_Charging_Price_Modeled+Comp_Percent_En_Route_Charging_Modeled*En_Route_Charging_Price_Modeled)),0) -> -1181.119839 | I108: =IF(COLUMN(I78)-COLUMN($E78)<Comp_V1_Years_Usage_Modeled,-((Comp_V1_Gas_Usage_Ex*IF(Comp_V1_Fuel_Type_Ex = 0, IF(_Comp_V1_Vehicle_Vehicle_Class = "Passenger Vehicles (Light-Duty)",Gasoline_Price_Modeled, Diesel_Price_Modeled), IF(Comp_V1_Fuel_Type_Ex="Diesel", Diesel_Price_Modeled, Gasoline_Price_Modeled))*IF(_Market="U.S.", Data!H$77, Data!H$80))+(Comp_V1_Electricity_Usage_Ex*IF(_Market="U.S.", Data!H$79, Data!H$81))*(Comp_Percent_Home_Charging_Modeled*IF(Comp_Use_Charging_Management = "Yes", Comp_Rate_Output_Ex, Comp_Electricity_Price_Modeled)+Comp_Percent_Public_Charging_Modeled*Public_Charging_Price_Modeled+Comp_Percent_En_Route_Charging_Modeled*En_Route_Charging_Price_Modeled)),0) -> -1184.253182 | J108: =IF(COLUMN(J78)-COLUMN($E78)<Comp_V1_Years_Usage_Modeled,-((Comp_V1_Gas_Usage_Ex*IF(Comp_V1_Fuel_Type_Ex = 0, IF(_Comp_V1_Vehicle_Vehicle_Class = "Passenger Vehicles (Light-Duty)",Gasoline_Price_Modeled, Diesel_Price_Modeled), IF(Comp_V1_Fuel_Type_Ex="Diesel", Diesel_Price_Modeled, Gasoline_Price_Modeled))*IF(_Market="U.S.", Data!I$77, Data!I$80))+(Comp_V1_Electricity_Usage_Ex*IF(_Market="U.S.", Data!I$79, Data!I$81))*(Comp_Percent_Home_Charging_Modeled*IF(Comp_Use_Charging_Management = "Yes", Comp_Rate_Output_Ex, Comp_Electricity_Price_Modeled)+Comp_Percent_Public_Charging_Modeled*Public_Charging_Price_Modeled+Comp_Percent_En_Route_Charging_Modeled*En_Route_Charging_Price_Modeled)),0) -> -1204.798494 | K108: =IF(COLUMN(K78)-COLUMN($E78)<Comp_V1_Years_Usage_Modeled,-((Comp_V1_Gas_Usage_Ex*IF(Comp_V1_Fuel_Type_Ex = 0, IF(_Comp_V1_Vehicle_Vehicle_Class = "Passenger Vehicles (Light-Duty)",Gasoline_Price_Modeled, Diesel_Price_Modeled), IF(Comp_V1_Fuel_Type_Ex="Diesel", Diesel_Price_Modeled, Gasoline_Price_Modeled))*IF(_Market="U.S.", Data!J$77, Data!J$80))+(Comp_V1_Electricity_Usage_Ex*IF(_Market="U.S.", Data!J$79, Data!J$81))*(Comp_Percent_Home_Charging_Modeled*IF(Comp_Use_Charging_Management = "Yes", Comp_Rate_Output_Ex, Comp_Electricity_Price_Modeled)+Comp_Percent_Public_Charging_Modeled*Public_Charging_Price_Modeled+Comp_Percent_En_Route_Charging_Modeled*En_Route_Charging_Price_Modeled)),0) -> -1215.294659 | L108: =IF(COLUMN(L78)-COLUMN($E78)<Comp_V1_Years_Usage_Modeled,-((Comp_V1_Gas_Usage_Ex*IF(Comp_V1_Fuel_Type_Ex = 0, IF(_Comp_V1_Vehicle_Vehicle_Class = "Passenger Vehicles (Light-Duty)",Gasoline_Price_Modeled, Diesel_Price_Modeled), IF(Comp_V1_Fuel_Type_Ex="Diesel", Diesel_Price_Modeled, Gasoline_Price_Modeled))*IF(_Market="U.S.", Data!K$77, Data!K$80))+(Comp_V1_Electricity_Usage_Ex*IF(_Market="U.S.", Data!K$79, Data!K$81))*(Comp_Percent_Home_Charging_Modeled*IF(Comp_Use_Charging_Management = "Yes", Comp_Rate_Output_Ex, Comp_Electricity_Price_Modeled)+Comp_Percent_Public_Charging_Modeled*Public_Charging_Price_Modeled+Comp_Percent_En_Route_Charging_Modeled*En_Route_Charging_Price_Modeled)),0) -> 0 | M108: =IF(COLUMN(M78)-COLUMN($E78)<Comp_V1_Years_Usage_Modeled,-((Comp_V1_Gas_Usage_Ex*IF(Comp_V1_Fuel_Type_Ex = 0, IF(_Comp_V1_Vehicle_Vehicle_Class = "Passenger Vehicles (Light-Duty)",Gasoline_Price_Modeled, Diesel_Price_Modeled), IF(Comp_V1_Fuel_Type_Ex="Diesel", Diesel_Price_Modeled, Gasoline_Price_Modeled))*IF(_Market="U.S.", Data!L$77, Data!L$80))+(Comp_V1_Electricity_Usage_Ex*IF(_Market="U.S.", Data!L$79, Data!L$81))*(Comp_Percent_Home_Charging_Modeled*IF(Comp_Use_Charging_Management = "Yes", Comp_Rate_Output_Ex, Comp_Electricity_Price_Modeled)+Comp_Percent_Public_Charging_Modeled*Public_Charging_Price_Modeled+Comp_Percent_En_Route_Charging_Modeled*En_Route_Charging_Price_Modeled)),0) -> 0 | N108: =IF(COLUMN(N78)-COLUMN($E78)<Comp_V1_Years_Usage_Modeled,-((Comp_V1_Gas_Usage_Ex*IF(Comp_V1_Fuel_Type_Ex = 0, IF(_Comp_V1_Vehicle_Vehicle_Class = "Passenger Vehicles (Light-Duty)",Gasoline_Price_Modeled, Diesel_Price_Modeled), IF(Comp_V1_Fuel_Type_Ex="Diesel", Diesel_Price_Modeled, Gasoline_Price_Modeled))*IF(_Market="U.S.", Data!M$77, Data!M$80))+(Comp_V1_Electricity_Usage_Ex*IF(_Market="U.S.", Data!M$79, Data!M$81))*(Comp_Percent_Home_Charging_Modeled*IF(Comp_Use_Charging_Management = "Yes", Comp_Rate_Output_Ex, Comp_Electricity_Price_Modeled)+Comp_Percent_Public_Charging_Modeled*Public_Charging_Price_Modeled+Comp_Percent_En_Route_Charging_Modeled*En_Route_Charging_Price_Modeled)),0) -> 0 | O108: =IF(COLUMN(O78)-COLUMN($E78)<Comp_V1_Years_Usage_Modeled,-((Comp_V1_Gas_Usage_Ex*IF(Comp_V1_Fuel_Type_Ex = 0, IF(_Comp_V1_Vehicle_Vehicle_Class = "Passenger Vehicles (Light-Duty)",Gasoline_Price_Modeled, Diesel_Price_Modeled), IF(Comp_V1_Fuel_Type_Ex="Diesel", Diesel_Price_Modeled, Gasoline_Price_Modeled))*IF(_Market="U.S.", Data!N$77, Data!N$80))+(Comp_V1_Electricity_Usage_Ex*IF(_Market="U.S.", Data!N$79, Data!N$81))*(Comp_Percent_Home_Charging_Modeled*IF(Comp_Use_Charging_Management = "Yes", Comp_Rate_Output_Ex, Comp_Electricity_Price_Modeled)+Comp_Percent_Public_Charging_Modeled*Public_Charging_Price_Modeled+Comp_Percent_En_Route_Charging_Modeled*En_Route_Charging_Price_Modeled)),0) -> 0 | P108: =IF(COLUMN(P78)-COLUMN($E78)<Comp_V1_Years_Usage_Modeled,-((Comp_V1_Gas_Usage_Ex*IF(Comp_V1_Fuel_Type_Ex = 0, IF(_Comp_V1_Vehicle_Vehicle_Class = "Passenger Vehicles (Light-Duty)",Gasoline_Price_Modeled, Diesel_Price_Modeled), IF(Comp_V1_Fuel_Type_Ex="Diesel", Diesel_Price_Modeled, Gasoline_Price_Modeled))*IF(_Market="U.S.", Data!O$77, Data!O$80))+(Comp_V1_Electricity_Usage_Ex*IF(_Market="U.S.", Data!O$79, Data!O$81))*(Comp_Percent_Home_Charging_Modeled*IF(Comp_Use_Charging_Management = "Yes", Comp_Rate_Output_Ex, Comp_Electricity_Price_Modeled)+Comp_Percent_Public_Charging_Modeled*Public_Charging_Price_Modeled+Comp_Percent_En_Route_Charging_Modeled*En_Route_Charging_Price_Modeled)),0) -> 0 | Q108: =IF(COLUMN(Q78)-COLUMN($E78)<Comp_V1_Years_Usage_Modeled,-((Comp_V1_Gas_Usage_Ex*IF(Comp_V1_Fuel_Type_Ex = 0, IF(_Comp_V1_Vehicle_Vehicle_Class = "Passenger Vehicles (Light-Duty)",Gasoline_Price_Modeled, Diesel_Price_Modeled), IF(Comp_V1_Fuel_Type_Ex="Diesel", Diesel_Price_Modeled, Gasoline_Price_Modeled))*IF(_Market="U.S.", Data!P$77, Data!P$80))+(Comp_V1_Electricity_Usage_Ex*IF(_Market="U.S.", Data!P$79, Data!P$81))*(Comp_Percent_Home_Charging_Modeled*IF(Comp_Use_Charging_Management = "Yes", Comp_Rate_Output_Ex, Comp_Electricity_Price_Modeled)+Comp_Percent_Public_Charging_Modeled*Public_Charging_Price_Modeled+Comp_Percent_En_Route_Charging_Modeled*En_Route_Charging_Price_Modeled)),0) -> 0 | R108: =IF(COLUMN(R78)-COLUMN($E78)<Comp_V1_Years_Usage_Modeled,-((Comp_V1_Gas_Usage_Ex*IF(Comp_V1_Fuel_Type_Ex = 0, IF(_Comp_V1_Vehicle_Vehicle_Class = "Passenger Vehicles (Light-Duty)",Gasoline_Price_Modeled, Diesel_Price_Modeled), IF(Comp_V1_Fuel_Type_Ex="Diesel", Diesel_Price_Modeled, Gasoline_Price_Modeled))*IF(_Market="U.S.", Data!Q$77, Data!Q$80))+(Comp_V1_Electricity_Usage_Ex*IF(_Market="U.S.", Data!Q$79, Data!Q$81))*(Comp_Percent_Home_Charging_Modeled*IF(Comp_Use_Charging_Management = "Yes", Comp_Rate_Output_Ex, Comp_Electricity_Price_Modeled)+Comp_Percent_Public_Charging_Modeled*Public_Charging_Price_Modeled+Comp_Percent_En_Route_Charging_Modeled*En_Route_Charging_Price_Modeled)),0) -> 0 | S108: =IF(COLUMN(S78)-COLUMN($E78)<Comp_V1_Years_Usage_Modeled,-((Comp_V1_Gas_Usage_Ex*IF(Comp_V1_Fuel_Type_Ex = 0, IF(_Comp_V1_Vehicle_Vehicle_Class = "Passenger Vehicles (Light-Duty)",Gasoline_Price_Modeled, Diesel_Price_Modeled), IF(Comp_V1_Fuel_Type_Ex="Diesel", Diesel_Price_Modeled, Gasoline_Price_Modeled))*IF(_Market="U.S.", Data!R$77, Data!R$80))+(Comp_V1_Electricity_Usage_Ex*IF(_Market="U.S.", Data!R$79, Data!R$81))*(Comp_Percent_Home_Charging_Modeled*IF(Comp_Use_Charging_Management = "Yes", Comp_Rate_Output_Ex, Comp_Electricity_Price_Modeled)+Comp_Percent_Public_Charging_Modeled*Public_Charging_Price_Modeled+Comp_Percent_En_Route_Charging_Modeled*En_Route_Charging_Price_Modeled)),0) -> 0 | T108: =IF(COLUMN(T78)-COLUMN($E78)<Comp_V1_Years_Usage_Modeled,-((Comp_V1_Gas_Usage_Ex*IF(Comp_V1_Fuel_Type_Ex = 0, IF(_Comp_V1_Vehicle_Vehicle_Class = "Passenger Vehicles (Light-Duty)",Gasoline_Price_Modeled, Diesel_Price_Modeled), IF(Comp_V1_Fuel_Type_Ex="Diesel", Diesel_Price_Modeled, Gasoline_Price_Modeled))*IF(_Market="U.S.", Data!S$77, Data!S$80))+(Comp_V1_Electricity_Usage_Ex*IF(_Market="U.S.", Data!S$79, Data!S$81))*(Comp_Percent_Home_Charging_Modeled*IF(Comp_Use_Charging_Management = "Yes", Comp_Rate_Output_Ex, Comp_Electricity_Price_Modeled)+Comp_Percent_Public_Charging_Modeled*Public_Charging_Price_Modeled+Comp_Percent_En_Route_Charging_Modeled*En_Route_Charging_Price_Modeled)),0) -> 0 | U108: =IF(COLUMN(U78)-COLUMN($E78)<Comp_V1_Years_Usage_Modeled,-((Comp_V1_Gas_Usage_Ex*IF(Comp_V1_Fuel_Type_Ex = 0, IF(_Comp_V1_Vehicle_Vehicle_Class = "Passenger Vehicles (Light-Duty)",Gasoline_Price_Modeled, Diesel_Price_Modeled), IF(Comp_V1_Fuel_Type_Ex="Diesel", Diesel_Price_Modeled, Gasoline_Price_Modeled))*IF(_Market="U.S.", Data!T$77, Data!T$80))+(Comp_V1_Electricity_Usage_Ex*IF(_Market="U.S.", Data!T$79, Data!T$81))*(Comp_Percent_Home_Charging_Modeled*IF(Comp_Use_Charging_Management = "Yes", Comp_Rate_Output_Ex, Comp_Electricity_Price_Modeled)+Comp_Percent_Public_Charging_Modeled*Public_Charging_Price_Modeled+Comp_Percent_En_Route_Charging_Modeled*En_Route_Charging_Price_Modeled)),0) -> 0 | V108: =IF(COLUMN(V78)-COLUMN($E78)<Comp_V1_Years_Usage_Modeled,-((Comp_V1_Gas_Usage_Ex*IF(Comp_V1_Fuel_Type_Ex = 0, IF(_Comp_V1_Vehicle_Vehicle_Class = "Passenger Vehicles (Light-Duty)",Gasoline_Price_Modeled, Diesel_Price_Modeled), IF(Comp_V1_Fuel_Type_Ex="Diesel", Diesel_Price_Modeled, Gasoline_Price_Modeled))*IF(_Market="U.S.", Data!U$77, Data!U$80))+(Comp_V1_Electricity_Usage_Ex*IF(_Market="U.S.", Data!U$79, Data!U$81))*(Comp_Percent_Home_Charging_Modeled*IF(Comp_Use_Charging_Management = "Yes", Comp_Rate_Output_Ex, Comp_Electricity_Price_Modeled)+Comp_Percent_Public_Charging_Modeled*Public_Charging_Price_Modeled+Comp_Percent_En_Route_Charging_Modeled*En_Route_Charging_Price_Modeled)),0) -> 0 | W108: =IF(COLUMN(W78)-COLUMN($E78)<Comp_V1_Years_Usage_Modeled,-((Comp_V1_Gas_Usage_Ex*IF(Comp_V1_Fuel_Type_Ex = 0, IF(_Comp_V1_Vehicle_Vehicle_Class = "Passenger Vehicles (Light-Duty)",Gasoline_Price_Modeled, Diesel_Price_Modeled), IF(Comp_V1_Fuel_Type_Ex="Diesel", Diesel_Price_Modeled, Gasoline_Price_Modeled))*IF(_Market="U.S.", Data!V$77, Data!V$80))+(Comp_V1_Electricity_Usage_Ex*IF(_Market="U.S.", Data!V$79, Data!V$81))*(Comp_Percent_Home_Charging_Modeled*IF(Comp_Use_Charging_Management = "Yes", Comp_Rate_Output_Ex, Comp_Electricity_Price_Modeled)+Comp_Percent_Public_Charging_Modeled*Public_Charging_Price_Modeled+Comp_Percent_En_Route_Charging_Modeled*En_Route_Charging_Price_Modeled)),0) -> 0 | X108: =IF(COLUMN(X78)-COLUMN($E78)<Comp_V1_Years_Usage_Modeled,-((Comp_V1_Gas_Usage_Ex*IF(Comp_V1_Fuel_Type_Ex = 0, IF(_Comp_V1_Vehicle_Vehicle_Class = "Passenger Vehicles (Light-Duty)",Gasoline_Price_Modeled, Diesel_Price_Modeled), IF(Comp_V1_Fuel_Type_Ex="Diesel", Diesel_Price_Modeled, Gasoline_Price_Modeled))*IF(_Market="U.S.", Data!W$77, Data!W$80))+(Comp_V1_Electricity_Usage_Ex*IF(_Market="U.S.", Data!W$79, Data!W$81))*(Comp_Percent_Home_Charging_Modeled*IF(Comp_Use_Charging_Management = "Yes", Comp_Rate_Output_Ex, Comp_Electricity_Price_Modeled)+Comp_Percent_Public_Charging_Modeled*Public_Charging_Price_Modeled+Comp_Percent_En_Route_Charging_Modeled*En_Route_Charging_Price_Modeled)),0) -> 0 | Y108: =IF(COLUMN(Y78)-COLUMN($E78)<Comp_V1_Years_Usage_Modeled,-((Comp_V1_Gas_Usage_Ex*IF(Comp_V1_Fuel_Type_Ex = 0, IF(_Comp_V1_Vehicle_Vehicle_Class = "Passenger Vehicles (Light-Duty)",Gasoline_Price_Modeled, Diesel_Price_Modeled), IF(Comp_V1_Fuel_Type_Ex="Diesel", Diesel_Price_Modeled, Gasoline_Price_Modeled))*IF(_Market="U.S.", Data!X$77, Data!X$80))+(Comp_V1_Electricity_Usage_Ex*IF(_Market="U.S.", Data!X$79, Data!X$81))*(Comp_Percent_Home_Charging_Modeled*IF(Comp_Use_Charging_Management = "Yes", Comp_Rate_Output_Ex, Comp_Electricity_Price_Modeled)+Comp_Percent_Public_Charging_Modeled*Public_Charging_Price_Modeled+Comp_Percent_En_Route_Charging_Modeled*En_Route_Charging_Price_Modeled)),0) -> 0 | Z108: =IF(COLUMN(Z78)-COLUMN($E78)<Comp_V1_Years_Usage_Modeled,-((Comp_V1_Gas_Usage_Ex*IF(Comp_V1_Fuel_Type_Ex = 0, IF(_Comp_V1_Vehicle_Vehicle_Class = "Passenger Vehicles (Light-Duty)",Gasoline_Price_Modeled, Diesel_Price_Modeled), IF(Comp_V1_Fuel_Type_Ex="Diesel", Diesel_Price_Modeled, Gasoline_Price_Modeled))*IF(_Market="U.S.", Data!Y$77, Data!Y$80))+(Comp_V1_Electricity_Usage_Ex*IF(_Market="U.S.", Data!Y$79, Data!Y$81))*(Comp_Percent_Home_Charging_Modeled*IF(Comp_Use_Charging_Management = "Yes", Comp_Rate_Output_Ex, Comp_Electricity_Price_Modeled)+Comp_Percent_Public_Charging_Modeled*Public_Charging_Price_Modeled+Comp_Percent_En_Route_Charging_Modeled*En_Route_Charging_Price_Modeled)),0) -> 0 | AA108: =IF(COLUMN(AA78)-COLUMN($E78)<Comp_V1_Years_Usage_Modeled,-((Comp_V1_Gas_Usage_Ex*IF(Comp_V1_Fuel_Type_Ex = 0, IF(_Comp_V1_Vehicle_Vehicle_Class = "Passenger Vehicles (Light-Duty)",Gasoline_Price_Modeled, Diesel_Price_Modeled), IF(Comp_V1_Fuel_Type_Ex="Diesel", Diesel_Price_Modeled, Gasoline_Price_Modeled))*IF(_Market="U.S.", Data!Z$77, Data!Z$80))+(Comp_V1_Electricity_Usage_Ex*IF(_Market="U.S.", Data!Z$79, Data!Z$81))*(Comp_Percent_Home_Charging_Modeled*IF(Comp_Use_Charging_Management = "Yes", Comp_Rate_Output_Ex, Comp_Electricity_Price_Modeled)+Comp_Percent_Public_Charging_Modeled*Public_Charging_Price_Modeled+Comp_Percent_En_Route_Charging_Modeled*En_Route_Charging_Price_Modeled)),0) -> 0 | AB108: =IF(COLUMN(AB78)-COLUMN($E78)<Comp_V1_Years_Usage_Modeled,-((Comp_V1_Gas_Usage_Ex*IF(Comp_V1_Fuel_Type_Ex = 0, IF(_Comp_V1_Vehicle_Vehicle_Class = "Passenger Vehicles (Light-Duty)",Gasoline_Price_Modeled, Diesel_Price_Modeled), IF(Comp_V1_Fuel_Type_Ex="Diesel", Diesel_Price_Modeled, Gasoline_Price_Modeled))*IF(_Market="U.S.", Data!AA$77, Data!AA$80))+(Comp_V1_Electricity_Usage_Ex*IF(_Market="U.S.", Data!AA$79, Data!AA$81))*(Comp_Percent_Home_Charging_Modeled*IF(Comp_Use_Charging_Management = "Yes", Comp_Rate_Output_Ex, Comp_Electricity_Price_Modeled)+Comp_Percent_Public_Charging_Modeled*Public_Charging_Price_Modeled+Comp_Percent_En_Route_Charging_Modeled*En_Route_Charging_Price_Modeled)),0) -> 0 | AC108: =IF(COLUMN(AC78)-COLUMN($E78)<Comp_V1_Years_Usage_Modeled,-((Comp_V1_Gas_Usage_Ex*IF(Comp_V1_Fuel_Type_Ex = 0, IF(_Comp_V1_Vehicle_Vehicle_Class = "Passenger Vehicles (Light-Duty)",Gasoline_Price_Modeled, Diesel_Price_Modeled), IF(Comp_V1_Fuel_Type_Ex="Diesel", Diesel_Price_Modeled, Gasoline_Price_Modeled))*IF(_Market="U.S.", Data!AB$77, Data!AB$80))+(Comp_V1_Electricity_Usage_Ex*IF(_Market="U.S.", Data!AB$79, Data!AB$81))*(Comp_Percent_Home_Charging_Modeled*IF(Comp_Use_Charging_Management = "Yes", Comp_Rate_Output_Ex, Comp_Electricity_Price_Modeled)+Comp_Percent_Public_Charging_Modeled*Public_Charging_Price_Modeled+Comp_Percent_En_Route_Charging_Modeled*En_Route_Charging_Price_Modeled)),0) -> 0
B109: Maintenance and Repair Cost | E109: =-IF(_Comp_V1_Maint_Repair_Cost_Use_Default="Yes",IF(COLUMN(E78)-COLUMN($E78)<Comp_V1_Years_Usage_Modeled,VLOOKUP(_Comp_V1_Vehicle_Vehicle_Class & _Comp_V1_Vehicle_Drivetrain & _Market,DB_Maint_Repair_Costs[],COLUMN(E78)-COLUMN($E78)+COLUMN(DB_Maint_Repair_Costs[[#Headers],[Year 1 ]]),FALSE)*Comp_V1_VMT_Modeled,0),IF(AND(COLUMN(E78)-COLUMN($E78)<Comp_V1_Years_Usage_Modeled,COLUMN(E78)-COLUMN($E78)<5),Comp_V1_Maint_Repair_Cost_Year_1_Modeled*Comp_V1_VMT_Modeled,IF(AND(COLUMN(E78)-COLUMN($E78)<Comp_V1_Years_Usage_Modeled,COLUMN(E78)-COLUMN($E78)>=5),Comp_V1_Maint_Repair_Cost_Year_5_Modeled*Comp_V1_VMT_Modeled,0)))*Data!D$88 -> -1102.617 | F109: =-IF(_Comp_V1_Maint_Repair_Cost_Use_Default="Yes",IF(COLUMN(F78)-COLUMN($E78)<Comp_V1_Years_Usage_Modeled,VLOOKUP(_Comp_V1_Vehicle_Vehicle_Class & _Comp_V1_Vehicle_Drivetrain & _Market,DB_Maint_Repair_Costs[],COLUMN(F78)-COLUMN($E78)+COLUMN(DB_Maint_Repair_Costs[[#Headers],[Year 1 ]]),FALSE)*Comp_V1_VMT_Modeled,0),IF(AND(COLUMN(F78)-COLUMN($E78)<Comp_V1_Years_Usage_Modeled,COLUMN(F78)-COLUMN($E78)<5),Comp_V1_Maint_Repair_Cost_Year_1_Modeled*Comp_V1_VMT_Modeled,IF(AND(COLUMN(F78)-COLUMN($E78)<Comp_V1_Years_Usage_Modeled,COLUMN(F78)-COLUMN($E78)>=5),Comp_V1_Maint_Repair_Cost_Year_5_Modeled*Comp_V1_VMT_Modeled,0)))*Data!E$88 -> -1124.66934 | G109: =-IF(_Comp_V1_Maint_Repair_Cost_Use_Default="Yes",IF(COLUMN(G78)-COLUMN($E78)<Comp_V1_Years_Usage_Modeled,VLOOKUP(_Comp_V1_Vehicle_Vehicle_Class & _Comp_V1_Vehicle_Drivetrain & _Market,DB_Maint_Repair_Costs[],COLUMN(G78)-COLUMN($E78)+COLUMN(DB_Maint_Repair_Costs[[#Headers],[Year 1 ]]),FALSE)*Comp_V1_VMT_Modeled,0),IF(AND(COLUMN(G78)-COLUMN($E78)<Comp_V1_Years_Usage_Modeled,COLUMN(G78)-COLUMN($E78)<5),Comp_V1_Maint_Repair_Cost_Year_1_Modeled*Comp_V1_VMT_Modeled,IF(AND(COLUMN(G78)-COLUMN($E78)<Comp_V1_Years_Usage_Modeled,COLUMN(G78)-COLUMN($E78)>=5),Comp_V1_Maint_Repair_Cost_Year_5_Modeled*Comp_V1_VMT_Modeled,0)))*Data!F$88 -> -1147.162727 | H109: =-IF(_Comp_V1_Maint_Repair_Cost_Use_Default="Yes",IF(COLUMN(H78)-COLUMN($E78)<Comp_V1_Years_Usage_Modeled,VLOOKUP(_Comp_V1_Vehicle_Vehicle_Class & _Comp_V1_Vehicle_Drivetrain & _Market,DB_Maint_Repair_Costs[],COLUMN(H78)-COLUMN($E78)+COLUMN(DB_Maint_Repair_Costs[[#Headers],[Year 1 ]]),FALSE)*Comp_V1_VMT_Modeled,0),IF(AND(COLUMN(H78)-COLUMN($E78)<Comp_V1_Years_Usage_Modeled,COLUMN(H78)-COLUMN($E78)<5),Comp_V1_Maint_Repair_Cost_Year_1_Modeled*Comp_V1_VMT_Modeled,IF(AND(COLUMN(H78)-COLUMN($E78)<Comp_V1_Years_Usage_Modeled,COLUMN(H78)-COLUMN($E78)>=5),Comp_V1_Maint_Repair_Cost_Year_5_Modeled*Comp_V1_VMT_Modeled,0)))*Data!G$88 -> -1170.105981 | I109: =-IF(_Comp_V1_Maint_Repair_Cost_Use_Default="Yes",IF(COLUMN(I78)-COLUMN($E78)<Comp_V1_Years_Usage_Modeled,VLOOKUP(_Comp_V1_Vehicle_Vehicle_Class & _Comp_V1_Vehicle_Drivetrain & _Market,DB_Maint_Repair_Costs[],COLUMN(I78)-COLUMN($E78)+COLUMN(DB_Maint_Repair_Costs[[#Headers],[Year 1 ]]),FALSE)*Comp_V1_VMT_Modeled,0),IF(AND(COLUMN(I78)-COLUMN($E78)<Comp_V1_Years_Usage_Modeled,COLUMN(I78)-COLUMN($E78)<5),Comp_V1_Maint_Repair_Cost_Year_1_Modeled*Comp_V1_VMT_Modeled,IF(AND(COLUMN(I78)-COLUMN($E78)<Comp_V1_Years_Usage_Modeled,COLUMN(I78)-COLUMN($E78)>=5),Comp_V1_Maint_Repair_Cost_Year_5_Modeled*Comp_V1_VMT_Modeled,0)))*Data!H$88 -> -1193.508101 | J109: =-IF(_Comp_V1_Maint_Repair_Cost_Use_Default="Yes",IF(COLUMN(J78)-COLUMN($E78)<Comp_V1_Years_Usage_Modeled,VLOOKUP(_Comp_V1_Vehicle_Vehicle_Class & _Comp_V1_Vehicle_Drivetrain & _Market,DB_Maint_Repair_Costs[],COLUMN(J78)-COLUMN($E78)+COLUMN(DB_Maint_Repair_Costs[[#Headers],[Year 1 ]]),FALSE)*Comp_V1_VMT_Modeled,0),IF(AND(COLUMN(J78)-COLUMN($E78)<Comp_V1_Years_Usage_Modeled,COLUMN(J78)-COLUMN($E78)<5),Comp_V1_Maint_Repair_Cost_Year_1_Modeled*Comp_V1_VMT_Modeled,IF(AND(COLUMN(J78)-COLUMN($E78)<Comp_V1_Years_Usage_Modeled,COLUMN(J78)-COLUMN($E78)>=5),Comp_V1_Maint_Repair_Cost_Year_5_Modeled*Comp_V1_VMT_Modeled,0)))*Data!I$88 -> -1582.591742 | K109: =-IF(_Comp_V1_Maint_Repair_Cost_Use_Default="Yes",IF(COLUMN(K78)-COLUMN($E78)<Comp_V1_Years_Usage_Modeled,VLOOKUP(_Comp_V1_Vehicle_Vehicle_Class & _Comp_V1_Vehicle_Drivetrain & _Market,DB_Maint_Repair_Costs[],COLUMN(K78)-COLUMN($E78)+COLUMN(DB_Maint_Repair_Costs[[#Headers],[Year 1 ]]),FALSE)*Comp_V1_VMT_Modeled,0),IF(AND(COLUMN(K78)-COLUMN($E78)<Comp_V1_Years_Usage_Modeled,COLUMN(K78)-COLUMN($E78)<5),Comp_V1_Maint_Repair_Cost_Year_1_Modeled*Comp_V1_VMT_Modeled,IF(AND(COLUMN(K78)-COLUMN($E78)<Comp_V1_Years_Usage_Modeled,COLUMN(K78)-COLUMN($E78)>=5),Comp_V1_Maint_Repair_Cost_Year_5_Modeled*Comp_V1_VMT_Modeled,0)))*Data!J$88 -> -1614.243577 | L109: =-IF(_Comp_V1_Maint_Repair_Cost_Use_Default="Yes",IF(COLUMN(L78)-COLUMN($E78)<Comp_V1_Years_Usage_Modeled,VLOOKUP(_Comp_V1_Vehicle_Vehicle_Class & _Comp_V1_Vehicle_Drivetrain & _Market,DB_Maint_Repair_Costs[],COLUMN(L78)-COLUMN($E78)+COLUMN(DB_Maint_Repair_Costs[[#Headers],[Year 1 ]]),FALSE)*Comp_V1_VMT_Modeled,0),IF(AND(COLUMN(L78)-COLUMN($E78)<Comp_V1_Years_Usage_Modeled,COLUMN(L78)-COLUMN($E78)<5),Comp_V1_Maint_Repair_Cost_Year_1_Modeled*Comp_V1_VMT_Modeled,IF(AND(COLUMN(L78)-COLUMN($E78)<Comp_V1_Years_Usage_Modeled,COLUMN(L78)-COLUMN($E78)>=5),Comp_V1_Maint_Repair_Cost_Year_5_Modeled*Comp_V1_VMT_Modeled,0)))*Data!K$88 -> 0 | M109: =-IF(_Comp_V1_Maint_Repair_Cost_Use_Default="Yes",IF(COLUMN(M78)-COLUMN($E78)<Comp_V1_Years_Usage_Modeled,VLOOKUP(_Comp_V1_Vehicle_Vehicle_Class & _Comp_V1_Vehicle_Drivetrain & _Market,DB_Maint_Repair_Costs[],COLUMN(M78)-COLUMN($E78)+COLUMN(DB_Maint_Repair_Costs[[#Headers],[Year 1 ]]),FALSE)*Comp_V1_VMT_Modeled,0),IF(AND(COLUMN(M78)-COLUMN($E78)<Comp_V1_Years_Usage_Modeled,COLUMN(M78)-COLUMN($E78)<5),Comp_V1_Maint_Repair_Cost_Year_1_Modeled*Comp_V1_VMT_Modeled,IF(AND(COLUMN(M78)-COLUMN($E78)<Comp_V1_Years_Usage_Modeled,COLUMN(M78)-COLUMN($E78)>=5),Comp_V1_Maint_Repair_Cost_Year_5_Modeled*Comp_V1_VMT_Modeled,0)))*Data!L$88 -> 0 | N109: =-IF(_Comp_V1_Maint_Repair_Cost_Use_Default="Yes",IF(COLUMN(N78)-COLUMN($E78)<Comp_V1_Years_Usage_Modeled,VLOOKUP(_Comp_V1_Vehicle_Vehicle_Class & _Comp_V1_Vehicle_Drivetrain & _Market,DB_Maint_Repair_Costs[],COLUMN(N78)-COLUMN($E78)+COLUMN(DB_Maint_Repair_Costs[[#Headers],[Year 1 ]]),FALSE)*Comp_V1_VMT_Modeled,0),IF(AND(COLUMN(N78)-COLUMN($E78)<Comp_V1_Years_Usage_Modeled,COLUMN(N78)-COLUMN($E78)<5),Comp_V1_Maint_Repair_Cost_Year_1_Modeled*Comp_V1_VMT_Modeled,IF(AND(COLUMN(N78)-COLUMN($E78)<Comp_V1_Years_Usage_Modeled,COLUMN(N78)-COLUMN($E78)>=5),Comp_V1_Maint_Repair_Cost_Year_5_Modeled*Comp_V1_VMT_Modeled,0)))*Data!M$88 -> 0 | O109: =-IF(_Comp_V1_Maint_Repair_Cost_Use_Default="Yes",IF(COLUMN(O78)-COLUMN($E78)<Comp_V1_Years_Usage_Modeled,VLOOKUP(_Comp_V1_Vehicle_Vehicle_Class & _Comp_V1_Vehicle_Drivetrain & _Market,DB_Maint_Repair_Costs[],COLUMN(O78)-COLUMN($E78)+COLUMN(DB_Maint_Repair_Costs[[#Headers],[Year 1 ]]),FALSE)*Comp_V1_VMT_Modeled,0),IF(AND(COLUMN(O78)-COLUMN($E78)<Comp_V1_Years_Usage_Modeled,COLUMN(O78)-COLUMN($E78)<5),Comp_V1_Maint_Repair_Cost_Year_1_Modeled*Comp_V1_VMT_Modeled,IF(AND(COLUMN(O78)-COLUMN($E78)<Comp_V1_Years_Usage_Modeled,COLUMN(O78)-COLUMN($E78)>=5),Comp_V1_Maint_Repair_Cost_Year_5_Modeled*Comp_V1_VMT_Modeled,0)))*Data!N$88 -> 0 | P109: =-IF(_Comp_V1_Maint_Repair_Cost_Use_Default="Yes",IF(COLUMN(P78)-COLUMN($E78)<Comp_V1_Years_Usage_Modeled,VLOOKUP(_Comp_V1_Vehicle_Vehicle_Class & _Comp_V1_Vehicle_Drivetrain & _Market,DB_Maint_Repair_Costs[],COLUMN(P78)-COLUMN($E78)+COLUMN(DB_Maint_Repair_Costs[[#Headers],[Year 1 ]]),FALSE)*Comp_V1_VMT_Modeled,0),IF(AND(COLUMN(P78)-COLUMN($E78)<Comp_V1_Years_Usage_Modeled,COLUMN(P78)-COLUMN($E78)<5),Comp_V1_Maint_Repair_Cost_Year_1_Modeled*Comp_V1_VMT_Modeled,IF(AND(COLUMN(P78)-COLUMN($E78)<Comp_V1_Years_Usage_Modeled,COLUMN(P78)-COLUMN($E78)>=5),Comp_V1_Maint_Repair_Cost_Year_5_Modeled*Comp_V1_VMT_Modeled,0)))*Data!O$88 -> 0 | Q109: =-IF(_Comp_V1_Maint_Repair_Cost_Use_Default="Yes",IF(COLUMN(Q78)-COLUMN($E78)<Comp_V1_Years_Usage_Modeled,VLOOKUP(_Comp_V1_Vehicle_Vehicle_Class & _Comp_V1_Vehicle_Drivetrain & _Market,DB_Maint_Repair_Costs[],COLUMN(Q78)-COLUMN($E78)+COLUMN(DB_Maint_Repair_Costs[[#Headers],[Year 1 ]]),FALSE)*Comp_V1_VMT_Modeled,0),IF(AND(COLUMN(Q78)-COLUMN($E78)<Comp_V1_Years_Usage_Modeled,COLUMN(Q78)-COLUMN($E78)<5),Comp_V1_Maint_Repair_Cost_Year_1_Modeled*Comp_V1_VMT_Modeled,IF(AND(COLUMN(Q78)-COLUMN($E78)<Comp_V1_Years_Usage_Modeled,COLUMN(Q78)-COLUMN($E78)>=5),Comp_V1_Maint_Repair_Cost_Year_5_Modeled*Comp_V1_VMT_Modeled,0)))*Data!P$88 -> 0 | R109: =-IF(_Comp_V1_Maint_Repair_Cost_Use_Default="Yes",IF(COLUMN(R78)-COLUMN($E78)<Comp_V1_Years_Usage_Modeled,VLOOKUP(_Comp_V1_Vehicle_Vehicle_Class & _Comp_V1_Vehicle_Drivetrain & _Market,DB_Maint_Repair_Costs[],COLUMN(R78)-COLUMN($E78)+COLUMN(DB_Maint_Repair_Costs[[#Headers],[Year 1 ]]),FALSE)*Comp_V1_VMT_Modeled,0),IF(AND(COLUMN(R78)-COLUMN($E78)<Comp_V1_Years_Usage_Modeled,COLUMN(R78)-COLUMN($E78)<5),Comp_V1_Maint_Repair_Cost_Year_1_Modeled*Comp_V1_VMT_Modeled,IF(AND(COLUMN(R78)-COLUMN($E78)<Comp_V1_Years_Usage_Modeled,COLUMN(R78)-COLUMN($E78)>=5),Comp_V1_Maint_Repair_Cost_Year_5_Modeled*Comp_V1_VMT_Modeled,0)))*Data!Q$88 -> 0 | S109: =-IF(_Comp_V1_Maint_Repair_Cost_Use_Default="Yes",IF(COLUMN(S78)-COLUMN($E78)<Comp_V1_Years_Usage_Modeled,VLOOKUP(_Comp_V1_Vehicle_Vehicle_Class & _Comp_V1_Vehicle_Drivetrain & _Market,DB_Maint_Repair_Costs[],COLUMN(S78)-COLUMN($E78)+COLUMN(DB_Maint_Repair_Costs[[#Headers],[Year 1 ]]),FALSE)*Comp_V1_VMT_Modeled,0),IF(AND(COLUMN(S78)-COLUMN($E78)<Comp_V1_Years_Usage_Modeled,COLUMN(S78)-COLUMN($E78)<5),Comp_V1_Maint_Repair_Cost_Year_1_Modeled*Comp_V1_VMT_Modeled,IF(AND(COLUMN(S78)-COLUMN($E78)<Comp_V1_Years_Usage_Modeled,COLUMN(S78)-COLUMN($E78)>=5),Comp_V1_Maint_Repair_Cost_Year_5_Modeled*Comp_V1_VMT_Modeled,0)))*Data!R$88 -> 0 | T109: =-IF(_Comp_V1_Maint_Repair_Cost_Use_Default="Yes",IF(COLUMN(T78)-COLUMN($E78)<Comp_V1_Years_Usage_Modeled,VLOOKUP(_Comp_V1_Vehicle_Vehicle_Class & _Comp_V1_Vehicle_Drivetrain & _Market,DB_Maint_Repair_Costs[],COLUMN(T78)-COLUMN($E78)+COLUMN(DB_Maint_Repair_Costs[[#Headers],[Year 1 ]]),FALSE)*Comp_V1_VMT_Modeled,0),IF(AND(COLUMN(T78)-COLUMN($E78)<Comp_V1_Years_Usage_Modeled,COLUMN(T78)-COLUMN($E78)<5),Comp_V1_Maint_Repair_Cost_Year_1_Modeled*Comp_V1_VMT_Modeled,IF(AND(COLUMN(T78)-COLUMN($E78)<Comp_V1_Years_Usage_Modeled,COLUMN(T78)-COLUMN($E78)>=5),Comp_V1_Maint_Repair_Cost_Year_5_Modeled*Comp_V1_VMT_Modeled,0)))*Data!S$88 -> 0 | U109: =-IF(_Comp_V1_Maint_Repair_Cost_Use_Default="Yes",IF(COLUMN(U78)-COLUMN($E78)<Comp_V1_Years_Usage_Modeled,VLOOKUP(_Comp_V1_Vehicle_Vehicle_Class & _Comp_V1_Vehicle_Drivetrain & _Market,DB_Maint_Repair_Costs[],COLUMN(U78)-COLUMN($E78)+COLUMN(DB_Maint_Repair_Costs[[#Headers],[Year 1 ]]),FALSE)*Comp_V1_VMT_Modeled,0),IF(AND(COLUMN(U78)-COLUMN($E78)<Comp_V1_Years_Usage_Modeled,COLUMN(U78)-COLUMN($E78)<5),Comp_V1_Maint_Repair_Cost_Year_1_Modeled*Comp_V1_VMT_Modeled,IF(AND(COLUMN(U78)-COLUMN($E78)<Comp_V1_Years_Usage_Modeled,COLUMN(U78)-COLUMN($E78)>=5),Comp_V1_Maint_Repair_Cost_Year_5_Modeled*Comp_V1_VMT_Modeled,0)))*Data!T$88 -> 0 | V109: =-IF(_Comp_V1_Maint_Repair_Cost_Use_Default="Yes",IF(COLUMN(V78)-COLUMN($E78)<Comp_V1_Years_Usage_Modeled,VLOOKUP(_Comp_V1_Vehicle_Vehicle_Class & _Comp_V1_Vehicle_Drivetrain & _Market,DB_Maint_Repair_Costs[],COLUMN(V78)-COLUMN($E78)+COLUMN(DB_Maint_Repair_Costs[[#Headers],[Year 1 ]]),FALSE)*Comp_V1_VMT_Modeled,0),IF(AND(COLUMN(V78)-COLUMN($E78)<Comp_V1_Years_Usage_Modeled,COLUMN(V78)-COLUMN($E78)<5),Comp_V1_Maint_Repair_Cost_Year_1_Modeled*Comp_V1_VMT_Modeled,IF(AND(COLUMN(V78)-COLUMN($E78)<Comp_V1_Years_Usage_Modeled,COLUMN(V78)-COLUMN($E78)>=5),Comp_V1_Maint_Repair_Cost_Year_5_Modeled*Comp_V1_VMT_Modeled,0)))*Data!U$88 -> 0 | W109: =-IF(_Comp_V1_Maint_Repair_Cost_Use_Default="Yes",IF(COLUMN(W78)-COLUMN($E78)<Comp_V1_Years_Usage_Modeled,VLOOKUP(_Comp_V1_Vehicle_Vehicle_Class & _Comp_V1_Vehicle_Drivetrain & _Market,DB_Maint_Repair_Costs[],COLUMN(W78)-COLUMN($E78)+COLUMN(DB_Maint_Repair_Costs[[#Headers],[Year 1 ]]),FALSE)*Comp_V1_VMT_Modeled,0),IF(AND(COLUMN(W78)-COLUMN($E78)<Comp_V1_Years_Usage_Modeled,COLUMN(W78)-COLUMN($E78)<5),Comp_V1_Maint_Repair_Cost_Year_1_Modeled*Comp_V1_VMT_Modeled,IF(AND(COLUMN(W78)-COLUMN($E78)<Comp_V1_Years_Usage_Modeled,COLUMN(W78)-COLUMN($E78)>=5),Comp_V1_Maint_Repair_Cost_Year_5_Modeled*Comp_V1_VMT_Modeled,0)))*Data!V$88 -> 0 | X109: =-IF(_Comp_V1_Maint_Repair_Cost_Use_Default="Yes",IF(COLUMN(X78)-COLUMN($E78)<Comp_V1_Years_Usage_Modeled,VLOOKUP(_Comp_V1_Vehicle_Vehicle_Class & _Comp_V1_Vehicle_Drivetrain & _Market,DB_Maint_Repair_Costs[],COLUMN(X78)-COLUMN($E78)+COLUMN(DB_Maint_Repair_Costs[[#Headers],[Year 1 ]]),FALSE)*Comp_V1_VMT_Modeled,0),IF(AND(COLUMN(X78)-COLUMN($E78)<Comp_V1_Years_Usage_Modeled,COLUMN(X78)-COLUMN($E78)<5),Comp_V1_Maint_Repair_Cost_Year_1_Modeled*Comp_V1_VMT_Modeled,IF(AND(COLUMN(X78)-COLUMN($E78)<Comp_V1_Years_Usage_Modeled,COLUMN(X78)-COLUMN($E78)>=5),Comp_V1_Maint_Repair_Cost_Year_5_Modeled*Comp_V1_VMT_Modeled,0)))*Data!W$88 -> 0 | Y109: =-IF(_Comp_V1_Maint_Repair_Cost_Use_Default="Yes",IF(COLUMN(Y78)-COLUMN($E78)<Comp_V1_Years_Usage_Modeled,VLOOKUP(_Comp_V1_Vehicle_Vehicle_Class & _Comp_V1_Vehicle_Drivetrain & _Market,DB_Maint_Repair_Costs[],COLUMN(Y78)-COLUMN($E78)+COLUMN(DB_Maint_Repair_Costs[[#Headers],[Year 1 ]]),FALSE)*Comp_V1_VMT_Modeled,0),IF(AND(COLUMN(Y78)-COLUMN($E78)<Comp_V1_Years_Usage_Modeled,COLUMN(Y78)-COLUMN($E78)<5),Comp_V1_Maint_Repair_Cost_Year_1_Modeled*Comp_V1_VMT_Modeled,IF(AND(COLUMN(Y78)-COLUMN($E78)<Comp_V1_Years_Usage_Modeled,COLUMN(Y78)-COLUMN($E78)>=5),Comp_V1_Maint_Repair_Cost_Year_5_Modeled*Comp_V1_VMT_Modeled,0)))*Data!X$88 -> 0 | Z109: =-IF(_Comp_V1_Maint_Repair_Cost_Use_Default="Yes",IF(COLUMN(Z78)-COLUMN($E78)<Comp_V1_Years_Usage_Modeled,VLOOKUP(_Comp_V1_Vehicle_Vehicle_Class & _Comp_V1_Vehicle_Drivetrain & _Market,DB_Maint_Repair_Costs[],COLUMN(Z78)-COLUMN($E78)+COLUMN(DB_Maint_Repair_Costs[[#Headers],[Year 1 ]]),FALSE)*Comp_V1_VMT_Modeled,0),IF(AND(COLUMN(Z78)-COLUMN($E78)<Comp_V1_Years_Usage_Modeled,COLUMN(Z78)-COLUMN($E78)<5),Comp_V1_Maint_Repair_Cost_Year_1_Modeled*Comp_V1_VMT_Modeled,IF(AND(COLUMN(Z78)-COLUMN($E78)<Comp_V1_Years_Usage_Modeled,COLUMN(Z78)-COLUMN($E78)>=5),Comp_V1_Maint_Repair_Cost_Year_5_Modeled*Comp_V1_VMT_Modeled,0)))*Data!Y$88 -> 0 | AA109: =-IF(_Comp_V1_Maint_Repair_Cost_Use_Default="Yes",IF(COLUMN(AA78)-COLUMN($E78)<Comp_V1_Years_Usage_Modeled,VLOOKUP(_Comp_V1_Vehicle_Vehicle_Class & _Comp_V1_Vehicle_Drivetrain & _Market,DB_Maint_Repair_Costs[],COLUMN(AA78)-COLUMN($E78)+COLUMN(DB_Maint_Repair_Costs[[#Headers],[Year 1 ]]),FALSE)*Comp_V1_VMT_Modeled,0),IF(AND(COLUMN(AA78)-COLUMN($E78)<Comp_V1_Years_Usage_Modeled,COLUMN(AA78)-COLUMN($E78)<5),Comp_V1_Maint_Repair_Cost_Year_1_Modeled*Comp_V1_VMT_Modeled,IF(AND(COLUMN(AA78)-COLUMN($E78)<Comp_V1_Years_Usage_Modeled,COLUMN(AA78)-COLUMN($E78)>=5),Comp_V1_Maint_Repair_Cost_Year_5_Modeled*Comp_V1_VMT_Modeled,0)))*Data!Z$88 -> 0 | AB109: =-IF(_Comp_V1_Maint_Repair_Cost_Use_Default="Yes",IF(COLUMN(AB78)-COLUMN($E78)<Comp_V1_Years_Usage_Modeled,VLOOKUP(_Comp_V1_Vehicle_Vehicle_Class & _Comp_V1_Vehicle_Drivetrain & _Market,DB_Maint_Repair_Costs[],COLUMN(AB78)-COLUMN($E78)+COLUMN(DB_Maint_Repair_Costs[[#Headers],[Year 1 ]]),FALSE)*Comp_V1_VMT_Modeled,0),IF(AND(COLUMN(AB78)-COLUMN($E78)<Comp_V1_Years_Usage_Modeled,COLUMN(AB78)-COLUMN($E78)<5),Comp_V1_Maint_Repair_Cost_Year_1_Modeled*Comp_V1_VMT_Modeled,IF(AND(COLUMN(AB78)-COLUMN($E78)<Comp_V1_Years_Usage_Modeled,COLUMN(AB78)-COLUMN($E78)>=5),Comp_V1_Maint_Repair_Cost_Year_5_Modeled*Comp_V1_VMT_Modeled,0)))*Data!AA$88 -> 0 | AC109: =-IF(_Comp_V1_Maint_Repair_Cost_Use_Default="Yes",IF(COLUMN(AC78)-COLUMN($E78)<Comp_V1_Years_Usage_Modeled,VLOOKUP(_Comp_V1_Vehicle_Vehicle_Class & _Comp_V1_Vehicle_Drivetrain & _Market,DB_Maint_Repair_Costs[],COLUMN(AC78)-COLUMN($E78)+COLUMN(DB_Maint_Repair_Costs[[#Headers],[Year 1 ]]),FALSE)*Comp_V1_VMT_Modeled,0),IF(AND(COLUMN(AC78)-COLUMN($E78)<Comp_V1_Years_Usage_Modeled,COLUMN(AC78)-COLUMN($E78)<5),Comp_V1_Maint_Repair_Cost_Year_1_Modeled*Comp_V1_VMT_Modeled,IF(AND(COLUMN(AC78)-COLUMN($E78)<Comp_V1_Years_Usage_Modeled,COLUMN(AC78)-COLUMN($E78)>=5),Comp_V1_Maint_Repair_Cost_Year_5_Modeled*Comp_V1_VMT_Modeled,0)))*Data!AB$88 -> 0
B110: Taxes and Fees | D110: =-Comp_V1_Initial_Taxes_Fees_Modeled-(Comp_V1_Initial_Percent_Base_Price_Modeled*Comp_V1_Base_Price_Ex) -> -1000 | E110: =-IF(COLUMN(E78)-COLUMN($E78)<Comp_V1_Years_Usage_Modeled,Comp_V1_Taxes_Fees_Modeled,0)*Data!D$88 -> -10 | F110: =-IF(COLUMN(F78)-COLUMN($E78)<Comp_V1_Years_Usage_Modeled,Comp_V1_Taxes_Fees_Modeled,0)*Data!E$88 -> -10.2 | G110: =-IF(COLUMN(G78)-COLUMN($E78)<Comp_V1_Years_Usage_Modeled,Comp_V1_Taxes_Fees_Modeled,0)*Data!F$88 -> -10.404 | H110: =-IF(COLUMN(H78)-COLUMN($E78)<Comp_V1_Years_Usage_Modeled,Comp_V1_Taxes_Fees_Modeled,0)*Data!G$88 -> -10.61208 | I110: =-IF(COLUMN(I78)-COLUMN($E78)<Comp_V1_Years_Usage_Modeled,Comp_V1_Taxes_Fees_Modeled,0)*Data!H$88 -> -10.8243216 | J110: =-IF(COLUMN(J78)-COLUMN($E78)<Comp_V1_Years_Usage_Modeled,Comp_V1_Taxes_Fees_Modeled,0)*Data!I$88 -> -11.04080803 | K110: =-IF(COLUMN(K78)-COLUMN($E78)<Comp_V1_Years_Usage_Modeled,Comp_V1_Taxes_Fees_Modeled,0)*Data!J$88 -> -11.26162419 | L110: =-IF(COLUMN(L78)-COLUMN($E78)<Comp_V1_Years_Usage_Modeled,Comp_V1_Taxes_Fees_Modeled,0)*Data!K$88 -> 0 | M110: =-IF(COLUMN(M78)-COLUMN($E78)<Comp_V1_Years_Usage_Modeled,Comp_V1_Taxes_Fees_Modeled,0)*Data!L$88 -> 0 | N110: =-IF(COLUMN(N78)-COLUMN($E78)<Comp_V1_Years_Usage_Modeled,Comp_V1_Taxes_Fees_Modeled,0)*Data!M$88 -> 0 | O110: =-IF(COLUMN(O78)-COLUMN($E78)<Comp_V1_Years_Usage_Modeled,Comp_V1_Taxes_Fees_Modeled,0)*Data!N$88 -> 0 | P110: =-IF(COLUMN(P78)-COLUMN($E78)<Comp_V1_Years_Usage_Modeled,Comp_V1_Taxes_Fees_Modeled,0)*Data!O$88 -> 0 | Q110: =-IF(COLUMN(Q78)-COLUMN($E78)<Comp_V1_Years_Usage_Modeled,Comp_V1_Taxes_Fees_Modeled,0)*Data!P$88 -> 0 | R110: =-IF(COLUMN(R78)-COLUMN($E78)<Comp_V1_Years_Usage_Modeled,Comp_V1_Taxes_Fees_Modeled,0)*Data!Q$88 -> 0 | S110: =-IF(COLUMN(S78)-COLUMN($E78)<Comp_V1_Years_Usage_Modeled,Comp_V1_Taxes_Fees_Modeled,0)*Data!R$88 -> 0 | T110: =-IF(COLUMN(T78)-COLUMN($E78)<Comp_V1_Years_Usage_Modeled,Comp_V1_Taxes_Fees_Modeled,0)*Data!S$88 -> 0 | U110: =-IF(COLUMN(U78)-COLUMN($E78)<Comp_V1_Years_Usage_Modeled,Comp_V1_Taxes_Fees_Modeled,0)*Data!T$88 -> 0 | V110: =-IF(COLUMN(V78)-COLUMN($E78)<Comp_V1_Years_Usage_Modeled,Comp_V1_Taxes_Fees_Modeled,0)*Data!U$88 -> 0 | W110: =-IF(COLUMN(W78)-COLUMN($E78)<Comp_V1_Years_Usage_Modeled,Comp_V1_Taxes_Fees_Modeled,0)*Data!V$88 -> 0 | X110: =-IF(COLUMN(X78)-COLUMN($E78)<Comp_V1_Years_Usage_Modeled,Comp_V1_Taxes_Fees_Modeled,0)*Data!W$88 -> 0 | Y110: =-IF(COLUMN(Y78)-COLUMN($E78)<Comp_V1_Years_Usage_Modeled,Comp_V1_Taxes_Fees_Modeled,0)*Data!X$88 -> 0 | Z110: =-IF(COLUMN(Z78)-COLUMN($E78)<Comp_V1_Years_Usage_Modeled,Comp_V1_Taxes_Fees_Modeled,0)*Data!Y$88 -> 0 | AA110: =-IF(COLUMN(AA78)-COLUMN($E78)<Comp_V1_Years_Usage_Modeled,Comp_V1_Taxes_Fees_Modeled,0)*Data!Z$88 -> 0 | AB110: =-IF(COLUMN(AB78)-COLUMN($E78)<Comp_V1_Years_Usage_Modeled,Comp_V1_Taxes_Fees_Modeled,0)*Data!AA$88 -> 0 | AC110: =-IF(COLUMN(AC78)-COLUMN($E78)<Comp_V1_Years_Usage_Modeled,Comp_V1_Taxes_Fees_Modeled,0)*Data!AB$88 -> 0
B111: Insurance Cost | E111: =-IF(COLUMN(E78)-COLUMN($E78)<Comp_V1_Years_Usage_Modeled,Comp_V1_Insurance_Cost_Modeled,0)*Data!D$88 -> -1194 | F111: =-IF(COLUMN(F78)-COLUMN($E78)<Comp_V1_Years_Usage_Modeled,Comp_V1_Insurance_Cost_Modeled,0)*Data!E$88 -> -1217.88 | G111: =-IF(COLUMN(G78)-COLUMN($E78)<Comp_V1_Years_Usage_Modeled,Comp_V1_Insurance_Cost_Modeled,0)*Data!F$88 -> -1242.2376 | H111: =-IF(COLUMN(H78)-COLUMN($E78)<Comp_V1_Years_Usage_Modeled,Comp_V1_Insurance_Cost_Modeled,0)*Data!G$88 -> -1267.082352 | I111: =-IF(COLUMN(I78)-COLUMN($E78)<Comp_V1_Years_Usage_Modeled,Comp_V1_Insurance_Cost_Modeled,0)*Data!H$88 -> -1292.423999 | J111: =-IF(COLUMN(J78)-COLUMN($E78)<Comp_V1_Years_Usage_Modeled,Comp_V1_Insurance_Cost_Modeled,0)*Data!I$88 -> -1318.272479 | K111: =-IF(COLUMN(K78)-COLUMN($E78)<Comp_V1_Years_Usage_Modeled,Comp_V1_Insurance_Cost_Modeled,0)*Data!J$88 -> -1344.637929 | L111: =-IF(COLUMN(L78)-COLUMN($E78)<Comp_V1_Years_Usage_Modeled,Comp_V1_Insurance_Cost_Modeled,0)*Data!K$88 -> 0 | M111: =-IF(COLUMN(M78)-COLUMN($E78)<Comp_V1_Years_Usage_Modeled,Comp_V1_Insurance_Cost_Modeled,0)*Data!L$88 -> 0 | N111: =-IF(COLUMN(N78)-COLUMN($E78)<Comp_V1_Years_Usage_Modeled,Comp_V1_Insurance_Cost_Modeled,0)*Data!M$88 -> 0 | O111: =-IF(COLUMN(O78)-COLUMN($E78)<Comp_V1_Years_Usage_Modeled,Comp_V1_Insurance_Cost_Modeled,0)*Data!N$88 -> 0 | P111: =-IF(COLUMN(P78)-COLUMN($E78)<Comp_V1_Years_Usage_Modeled,Comp_V1_Insurance_Cost_Modeled,0)*Data!O$88 -> 0 | Q111: =-IF(COLUMN(Q78)-COLUMN($E78)<Comp_V1_Years_Usage_Modeled,Comp_V1_Insurance_Cost_Modeled,0)*Data!P$88 -> 0 | R111: =-IF(COLUMN(R78)-COLUMN($E78)<Comp_V1_Years_Usage_Modeled,Comp_V1_Insurance_Cost_Modeled,0)*Data!Q$88 -> 0 | S111: =-IF(COLUMN(S78)-COLUMN($E78)<Comp_V1_Years_Usage_Modeled,Comp_V1_Insurance_Cost_Modeled,0)*Data!R$88 -> 0 | T111: =-IF(COLUMN(T78)-COLUMN($E78)<Comp_V1_Years_Usage_Modeled,Comp_V1_Insurance_Cost_Modeled,0)*Data!S$88 -> 0 | U111: =-IF(COLUMN(U78)-COLUMN($E78)<Comp_V1_Years_Usage_Modeled,Comp_V1_Insurance_Cost_Modeled,0)*Data!T$88 -> 0 | V111: =-IF(COLUMN(V78)-COLUMN($E78)<Comp_V1_Years_Usage_Modeled,Comp_V1_Insurance_Cost_Modeled,0)*Data!U$88 -> 0 | W111: =-IF(COLUMN(W78)-COLUMN($E78)<Comp_V1_Years_Usage_Modeled,Comp_V1_Insurance_Cost_Modeled,0)*Data!V$88 -> 0 | X111: =-IF(COLUMN(X78)-COLUMN($E78)<Comp_V1_Years_Usage_Modeled,Comp_V1_Insurance_Cost_Modeled,0)*Data!W$88 -> 0 | Y111: =-IF(COLUMN(Y78)-COLUMN($E78)<Comp_V1_Years_Usage_Modeled,Comp_V1_Insurance_Cost_Modeled,0)*Data!X$88 -> 0 | Z111: =-IF(COLUMN(Z78)-COLUMN($E78)<Comp_V1_Years_Usage_Modeled,Comp_V1_Insurance_Cost_Modeled,0)*Data!Y$88 -> 0 | AA111: =-IF(COLUMN(AA78)-COLUMN($E78)<Comp_V1_Years_Usage_Modeled,Comp_V1_Insurance_Cost_Modeled,0)*Data!Z$88 -> 0 | AB111: =-IF(COLUMN(AB78)-COLUMN($E78)<Comp_V1_Years_Usage_Modeled,Comp_V1_Insurance_Cost_Modeled,0)*Data!AA$88 -> 0 | AC111: =-IF(COLUMN(AC78)-COLUMN($E78)<Comp_V1_Years_Usage_Modeled,Comp_V1_Insurance_Cost_Modeled,0)*Data!AB$88 -> 0
B112: Utility Value Stream | E112: =IF(Comp_Include_Utility_Value = "Yes", IF(COLUMN(E78)-COLUMN($E78)<Comp_V1_Years_Usage_Modeled,IF(Comp_Include_Utility_Value="Yes",Comp_Utility_Value_Stream_Value*IF(Comp_Utility_Value_Stream_Frequency="Monthly",12,1),0),0),0) -> 0 | F112: =IF(Comp_Include_Utility_Value="Yes",IF(COLUMN(F78)-COLUMN($E78)<Comp_V1_Years_Usage_Modeled,E112*(1+Comp_Utility_Value_Escalator),0),0) -> 0 | G112: 0 | H112: 0 | I112: 0 | J112: 0 | K112: 0 | L112: 0 | M112: 0 | N112: 0 | O112: 0 | P112: 0 | Q112: 0 | R112: 0 | S112: 0 | T112: 0 | U112: 0 | V112: 0 | W112: 0 | X112: 0 | Y112: 0 | Z112: 0 | AA112: 0 | AB112: 0 | AC112: 0
B113: LCFS | E113: =IF(COLUMN(E$5)-COLUMN($E$5)<Comp_V1_Years_Usage_Modeled, IF(AND(_Fuel_Carbon_Credits_Ex="Yes",Comp_Include_LCFS="Yes"), VLOOKUP(Comp_CI_Start_Year+E$4-1, Comp_Credit_Values, 2, 0) *(((SUMIFS(CI_Benchmark_Table[Benchmark], CI_Benchmark_Table[Year], Comp_CI_Start_Year+E$4-1, CI_Benchmark_Table[Fuel Type], Comp_Benchmark_Fuel_Ex, CI_Benchmark_Table[State],State_Ex))-Comp_CI_Electricity_Modeled/Comp_EER_Ex)*Comp_Energy_Displaced_Ex*0.000001), 0), 0) -> 0 | F113: =IF(COLUMN(F$5)-COLUMN($E$5)<Comp_V1_Years_Usage_Modeled, IF(AND(_Fuel_Carbon_Credits_Ex="Yes",Comp_Include_LCFS="Yes"), VLOOKUP(Comp_CI_Start_Year+F$4-1, Comp_Credit_Values, 2, 0) *(((SUMIFS(CI_Benchmark_Table[Benchmark], CI_Benchmark_Table[Year], Comp_CI_Start_Year+F$4-1, CI_Benchmark_Table[Fuel Type], Comp_Benchmark_Fuel_Ex, CI_Benchmark_Table[State],State_Ex))-Comp_CI_Electricity_Modeled/Comp_EER_Ex)*Comp_Energy_Displaced_Ex*0.000001), 0), 0) -> 0 | G113: =IF(COLUMN(G$5)-COLUMN($E$5)<Comp_V1_Years_Usage_Modeled, IF(AND(_Fuel_Carbon_Credits_Ex="Yes",Comp_Include_LCFS="Yes"), VLOOKUP(Comp_CI_Start_Year+G$4-1, Comp_Credit_Values, 2, 0) *(((SUMIFS(CI_Benchmark_Table[Benchmark], CI_Benchmark_Table[Year], Comp_CI_Start_Year+G$4-1, CI_Benchmark_Table[Fuel Type], Comp_Benchmark_Fuel_Ex, CI_Benchmark_Table[State],State_Ex))-Comp_CI_Electricity_Modeled/Comp_EER_Ex)*Comp_Energy_Displaced_Ex*0.000001), 0), 0) -> 0 | H113: =IF(COLUMN(H$5)-COLUMN($E$5)<Comp_V1_Years_Usage_Modeled, IF(AND(_Fuel_Carbon_Credits_Ex="Yes",Comp_Include_LCFS="Yes"), VLOOKUP(Comp_CI_Start_Year+H$4-1, Comp_Credit_Values, 2, 0) *(((SUMIFS(CI_Benchmark_Table[Benchmark], CI_Benchmark_Table[Year], Comp_CI_Start_Year+H$4-1, CI_Benchmark_Table[Fuel Type], Comp_Benchmark_Fuel_Ex, CI_Benchmark_Table[State],State_Ex))-Comp_CI_Electricity_Modeled/Comp_EER_Ex)*Comp_Energy_Displaced_Ex*0.000001), 0), 0) -> 0 | I113: =IF(COLUMN(I$5)-COLUMN($E$5)<Comp_V1_Years_Usage_Modeled, IF(AND(_Fuel_Carbon_Credits_Ex="Yes",Comp_Include_LCFS="Yes"), VLOOKUP(Comp_CI_Start_Year+I$4-1, Comp_Credit_Values, 2, 0) *(((SUMIFS(CI_Benchmark_Table[Benchmark], CI_Benchmark_Table[Year], Comp_CI_Start_Year+I$4-1, CI_Benchmark_Table[Fuel Type], Comp_Benchmark_Fuel_Ex, CI_Benchmark_Table[State],State_Ex))-Comp_CI_Electricity_Modeled/Comp_EER_Ex)*Comp_Energy_Displaced_Ex*0.000001), 0), 0) -> 0 | J113: =IF(COLUMN(J$5)-COLUMN($E$5)<Comp_V1_Years_Usage_Modeled, IF(AND(_Fuel_Carbon_Credits_Ex="Yes",Comp_Include_LCFS="Yes"), VLOOKUP(Comp_CI_Start_Year+J$4-1, Comp_Credit_Values, 2, 0) *(((SUMIFS(CI_Benchmark_Table[Benchmark], CI_Benchmark_Table[Year], Comp_CI_Start_Year+J$4-1, CI_Benchmark_Table[Fuel Type], Comp_Benchmark_Fuel_Ex, CI_Benchmark_Table[State],State_Ex))-Comp_CI_Electricity_Modeled/Comp_EER_Ex)*Comp_Energy_Displaced_Ex*0.000001), 0), 0) -> 0 | K113: =IF(COLUMN(K$5)-COLUMN($E$5)<Comp_V1_Years_Usage_Modeled, IF(AND(_Fuel_Carbon_Credits_Ex="Yes",Comp_Include_LCFS="Yes"), VLOOKUP(Comp_CI_Start_Year+K$4-1, Comp_Credit_Values, 2, 0) *(((SUMIFS(CI_Benchmark_Table[Benchmark], CI_Benchmark_Table[Year], Comp_CI_Start_Year+K$4-1, CI_Benchmark_Table[Fuel Type], Comp_Benchmark_Fuel_Ex, CI_Benchmark_Table[State],State_Ex))-Comp_CI_Electricity_Modeled/Comp_EER_Ex)*Comp_Energy_Displaced_Ex*0.000001), 0), 0) -> 0 | L113: =IF(COLUMN(L$5)-COLUMN($E$5)<Comp_V1_Years_Usage_Modeled, IF(AND(_Fuel_Carbon_Credits_Ex="Yes",Comp_Include_LCFS="Yes"), VLOOKUP(Comp_CI_Start_Year+L$4-1, Comp_Credit_Values, 2, 0) *(((SUMIFS(CI_Benchmark_Table[Benchmark], CI_Benchmark_Table[Year], Comp_CI_Start_Year+L$4-1, CI_Benchmark_Table[Fuel Type], Comp_Benchmark_Fuel_Ex, CI_Benchmark_Table[State],State_Ex))-Comp_CI_Electricity_Modeled/Comp_EER_Ex)*Comp_Energy_Displaced_Ex*0.000001), 0), 0) -> 0 | M113: =IF(COLUMN(M$5)-COLUMN($E$5)<Comp_V1_Years_Usage_Modeled, IF(AND(_Fuel_Carbon_Credits_Ex="Yes",Comp_Include_LCFS="Yes"), VLOOKUP(Comp_CI_Start_Year+M$4-1, Comp_Credit_Values, 2, 0) *(((SUMIFS(CI_Benchmark_Table[Benchmark], CI_Benchmark_Table[Year], Comp_CI_Start_Year+M$4-1, CI_Benchmark_Table[Fuel Type], Comp_Benchmark_Fuel_Ex, CI_Benchmark_Table[State],State_Ex))-Comp_CI_Electricity_Modeled/Comp_EER_Ex)*Comp_Energy_Displaced_Ex*0.000001), 0), 0) -> 0 | N113: =IF(COLUMN(N$5)-COLUMN($E$5)<Comp_V1_Years_Usage_Modeled, IF(AND(_Fuel_Carbon_Credits_Ex="Yes",Comp_Include_LCFS="Yes"), VLOOKUP(Comp_CI_Start_Year+N$4-1, Comp_Credit_Values, 2, 0) *(((SUMIFS(CI_Benchmark_Table[Benchmark], CI_Benchmark_Table[Year], Comp_CI_Start_Year+N$4-1, CI_Benchmark_Table[Fuel Type], Comp_Benchmark_Fuel_Ex, CI_Benchmark_Table[State],State_Ex))-Comp_CI_Electricity_Modeled/Comp_EER_Ex)*Comp_Energy_Displaced_Ex*0.000001), 0), 0) -> 0 | O113: =IF(COLUMN(O$5)-COLUMN($E$5)<Comp_V1_Years_Usage_Modeled, IF(AND(_Fuel_Carbon_Credits_Ex="Yes",Comp_Include_LCFS="Yes"), VLOOKUP(Comp_CI_Start_Year+O$4-1, Comp_Credit_Values, 2, 0) *(((SUMIFS(CI_Benchmark_Table[Benchmark], CI_Benchmark_Table[Year], Comp_CI_Start_Year+O$4-1, CI_Benchmark_Table[Fuel Type], Comp_Benchmark_Fuel_Ex, CI_Benchmark_Table[State],State_Ex))-Comp_CI_Electricity_Modeled/Comp_EER_Ex)*Comp_Energy_Displaced_Ex*0.000001), 0), 0) -> 0 | P113: =IF(COLUMN(P$5)-COLUMN($E$5)<Comp_V1_Years_Usage_Modeled, IF(AND(_Fuel_Carbon_Credits_Ex="Yes",Comp_Include_LCFS="Yes"), VLOOKUP(Comp_CI_Start_Year+P$4-1, Comp_Credit_Values, 2, 0) *(((SUMIFS(CI_Benchmark_Table[Benchmark], CI_Benchmark_Table[Year], Comp_CI_Start_Year+P$4-1, CI_Benchmark_Table[Fuel Type], Comp_Benchmark_Fuel_Ex, CI_Benchmark_Table[State],State_Ex))-Comp_CI_Electricity_Modeled/Comp_EER_Ex)*Comp_Energy_Displaced_Ex*0.000001), 0), 0) -> 0 | Q113: =IF(COLUMN(Q$5)-COLUMN($E$5)<Comp_V1_Years_Usage_Modeled, IF(AND(_Fuel_Carbon_Credits_Ex="Yes",Comp_Include_LCFS="Yes"), VLOOKUP(Comp_CI_Start_Year+Q$4-1, Comp_Credit_Values, 2, 0) *(((SUMIFS(CI_Benchmark_Table[Benchmark], CI_Benchmark_Table[Year], Comp_CI_Start_Year+Q$4-1, CI_Benchmark_Table[Fuel Type], Comp_Benchmark_Fuel_Ex, CI_Benchmark_Table[State],State_Ex))-Comp_CI_Electricity_Modeled/Comp_EER_Ex)*Comp_Energy_Displaced_Ex*0.000001), 0), 0) -> 0 | R113: =IF(COLUMN(R$5)-COLUMN($E$5)<Comp_V1_Years_Usage_Modeled, IF(AND(_Fuel_Carbon_Credits_Ex="Yes",Comp_Include_LCFS="Yes"), VLOOKUP(Comp_CI_Start_Year+R$4-1, Comp_Credit_Values, 2, 0) *(((SUMIFS(CI_Benchmark_Table[Benchmark], CI_Benchmark_Table[Year], Comp_CI_Start_Year+R$4-1, CI_Benchmark_Table[Fuel Type], Comp_Benchmark_Fuel_Ex, CI_Benchmark_Table[State],State_Ex))-Comp_CI_Electricity_Modeled/Comp_EER_Ex)*Comp_Energy_Displaced_Ex*0.000001), 0), 0) -> 0 | S113: =IF(COLUMN(S$5)-COLUMN($E$5)<Comp_V1_Years_Usage_Modeled, IF(AND(_Fuel_Carbon_Credits_Ex="Yes",Comp_Include_LCFS="Yes"), VLOOKUP(Comp_CI_Start_Year+S$4-1, Comp_Credit_Values, 2, 0) *(((SUMIFS(CI_Benchmark_Table[Benchmark], CI_Benchmark_Table[Year], Comp_CI_Start_Year+S$4-1, CI_Benchmark_Table[Fuel Type], Comp_Benchmark_Fuel_Ex, CI_Benchmark_Table[State],State_Ex))-Comp_CI_Electricity_Modeled/Comp_EER_Ex)*Comp_Energy_Displaced_Ex*0.000001), 0), 0) -> 0 | T113: =IF(COLUMN(T$5)-COLUMN($E$5)<Comp_V1_Years_Usage_Modeled, IF(AND(_Fuel_Carbon_Credits_Ex="Yes",Comp_Include_LCFS="Yes"), VLOOKUP(Comp_CI_Start_Year+T$4-1, Comp_Credit_Values, 2, 0) *(((SUMIFS(CI_Benchmark_Table[Benchmark], CI_Benchmark_Table[Year], Comp_CI_Start_Year+T$4-1, CI_Benchmark_Table[Fuel Type], Comp_Benchmark_Fuel_Ex, CI_Benchmark_Table[State],State_Ex))-Comp_CI_Electricity_Modeled/Comp_EER_Ex)*Comp_Energy_Displaced_Ex*0.000001), 0), 0) -> 0 | U113: =IF(COLUMN(U$5)-COLUMN($E$5)<Comp_V1_Years_Usage_Modeled, IF(AND(_Fuel_Carbon_Credits_Ex="Yes",Comp_Include_LCFS="Yes"), VLOOKUP(Comp_CI_Start_Year+U$4-1, Comp_Credit_Values, 2, 0) *(((SUMIFS(CI_Benchmark_Table[Benchmark], CI_Benchmark_Table[Year], Comp_CI_Start_Year+U$4-1, CI_Benchmark_Table[Fuel Type], Comp_Benchmark_Fuel_Ex, CI_Benchmark_Table[State],State_Ex))-Comp_CI_Electricity_Modeled/Comp_EER_Ex)*Comp_Energy_Displaced_Ex*0.000001), 0), 0) -> 0 | V113: =IF(COLUMN(V$5)-COLUMN($E$5)<Comp_V1_Years_Usage_Modeled, IF(AND(_Fuel_Carbon_Credits_Ex="Yes",Comp_Include_LCFS="Yes"), VLOOKUP(Comp_CI_Start_Year+V$4-1, Comp_Credit_Values, 2, 0) *(((SUMIFS(CI_Benchmark_Table[Benchmark], CI_Benchmark_Table[Year], Comp_CI_Start_Year+V$4-1, CI_Benchmark_Table[Fuel Type], Comp_Benchmark_Fuel_Ex, CI_Benchmark_Table[State],State_Ex))-Comp_CI_Electricity_Modeled/Comp_EER_Ex)*Comp_Energy_Displaced_Ex*0.000001), 0), 0) -> 0 | W113: =IF(COLUMN(W$5)-COLUMN($E$5)<Comp_V1_Years_Usage_Modeled, IF(AND(_Fuel_Carbon_Credits_Ex="Yes",Comp_Include_LCFS="Yes"), VLOOKUP(Comp_CI_Start_Year+W$4-1, Comp_Credit_Values, 2, 0) *(((SUMIFS(CI_Benchmark_Table[Benchmark], CI_Benchmark_Table[Year], Comp_CI_Start_Year+W$4-1, CI_Benchmark_Table[Fuel Type], Comp_Benchmark_Fuel_Ex, CI_Benchmark_Table[State],State_Ex))-Comp_CI_Electricity_Modeled/Comp_EER_Ex)*Comp_Energy_Displaced_Ex*0.000001), 0), 0) -> 0 | X113: =IF(COLUMN(X$5)-COLUMN($E$5)<Comp_V1_Years_Usage_Modeled, IF(AND(_Fuel_Carbon_Credits_Ex="Yes",Comp_Include_LCFS="Yes"), VLOOKUP(Comp_CI_Start_Year+X$4-1, Comp_Credit_Values, 2, 0) *(((SUMIFS(CI_Benchmark_Table[Benchmark], CI_Benchmark_Table[Year], Comp_CI_Start_Year+X$4-1, CI_Benchmark_Table[Fuel Type], Comp_Benchmark_Fuel_Ex, CI_Benchmark_Table[State],State_Ex))-Comp_CI_Electricity_Modeled/Comp_EER_Ex)*Comp_Energy_Displaced_Ex*0.000001), 0), 0) -> 0 | Y113: =IF(COLUMN(Y$5)-COLUMN($E$5)<Comp_V1_Years_Usage_Modeled, IF(AND(_Fuel_Carbon_Credits_Ex="Yes",Comp_Include_LCFS="Yes"), VLOOKUP(Comp_CI_Start_Year+Y$4-1, Comp_Credit_Values, 2, 0) *(((SUMIFS(CI_Benchmark_Table[Benchmark], CI_Benchmark_Table[Year], Comp_CI_Start_Year+Y$4-1, CI_Benchmark_Table[Fuel Type], Comp_Benchmark_Fuel_Ex, CI_Benchmark_Table[State],State_Ex))-Comp_CI_Electricity_Modeled/Comp_EER_Ex)*Comp_Energy_Displaced_Ex*0.000001), 0), 0) -> 0 | Z113: =IF(COLUMN(Z$5)-COLUMN($E$5)<Comp_V1_Years_Usage_Modeled, IF(AND(_Fuel_Carbon_Credits_Ex="Yes",Comp_Include_LCFS="Yes"), VLOOKUP(Comp_CI_Start_Year+Z$4-1, Comp_Credit_Values, 2, 0) *(((SUMIFS(CI_Benchmark_Table[Benchmark], CI_Benchmark_Table[Year], Comp_CI_Start_Year+Z$4-1, CI_Benchmark_Table[Fuel Type], Comp_Benchmark_Fuel_Ex, CI_Benchmark_Table[State],State_Ex))-Comp_CI_Electricity_Modeled/Comp_EER_Ex)*Comp_Energy_Displaced_Ex*0.000001), 0), 0) -> 0 | AA113: =IF(COLUMN(AA$5)-COLUMN($E$5)<Comp_V1_Years_Usage_Modeled, IF(AND(_Fuel_Carbon_Credits_Ex="Yes",Comp_Include_LCFS="Yes"), VLOOKUP(Comp_CI_Start_Year+AA$4-1, Comp_Credit_Values, 2, 0) *(((SUMIFS(CI_Benchmark_Table[Benchmark], CI_Benchmark_Table[Year], Comp_CI_Start_Year+AA$4-1, CI_Benchmark_Table[Fuel Type], Comp_Benchmark_Fuel_Ex, CI_Benchmark_Table[State],State_Ex))-Comp_CI_Electricity_Modeled/Comp_EER_Ex)*Comp_Energy_Displaced_Ex*0.000001), 0), 0) -> 0 | AB113: =IF(COLUMN(AB$5)-COLUMN($E$5)<Comp_V1_Years_Usage_Modeled, IF(AND(_Fuel_Carbon_Credits_Ex="Yes",Comp_Include_LCFS="Yes"), VLOOKUP(Comp_CI_Start_Year+AB$4-1, Comp_Credit_Values, 2, 0) *(((SUMIFS(CI_Benchmark_Table[Benchmark], CI_Benchmark_Table[Year], Comp_CI_Start_Year+AB$4-1, CI_Benchmark_Table[Fuel Type], Comp_Benchmark_Fuel_Ex, CI_Benchmark_Table[State],State_Ex))-Comp_CI_Electricity_Modeled/Comp_EER_Ex)*Comp_Energy_Displaced_Ex*0.000001), 0), 0) -> 0 | AC113: =IF(COLUMN(AC$5)-COLUMN($E$5)<Comp_V1_Years_Usage_Modeled, IF(AND(_Fuel_Carbon_Credits_Ex="Yes",Comp_Include_LCFS="Yes"), VLOOKUP(Comp_CI_Start_Year+AC$4-1, Comp_Credit_Values, 2, 0) *(((SUMIFS(CI_Benchmark_Table[Benchmark], CI_Benchmark_Table[Year], Comp_CI_Start_Year+AC$4-1, CI_Benchmark_Table[Fuel Type], Comp_Benchmark_Fuel_Ex, CI_Benchmark_Table[State],State_Ex))-Comp_CI_Electricity_Modeled/Comp_EER_Ex)*Comp_Energy_Displaced_Ex*0.000001), 0), 0) -> 0
B114: Subtotal Fuel and Operating Costs | D114: =SUM(D108:D111) -> -1000 | E114: -3388.864476 | F114: -3482.795718 | G114: -3551.108673 | H114: -3628.920253 | I114: -3681.009604 | J114: -4116.703523 | K114: -4185.437788 | L114: 0 | M114: 0 | N114: 0 | O114: 0 | P114: 0 | Q114: 0 | R114: 0 | S114: 0 | T114: 0 | U114: 0 | V114: 0 | W114: 0 | X114: 0 | Y114: 0 | Z114: 0 | AA114: 0 | AB114: 0 | AC114: 0
B116: Other Costs
B117: Cost of Carbon | E117: =-IF(COLUMN(E78)-COLUMN($E78)<Comp_V1_Years_Usage_Modeled,Comp_V1_CO2_Ex/2204.62*Carbon_Price_Modeled,0) -> 0 | F117: 0 | G117: 0 | H117: 0 | I117: 0 | J117: 0 | K117: 0 | L117: 0 | M117: 0 | N117: 0 | O117: 0 | P117: 0 | Q117: 0 | R117: 0 | S117: 0 | T117: 0 | U117: 0 | V117: 0 | W117: 0 | X117: 0 | Y117: 0 | Z117: 0 | AA117: 0 | AB117: 0 | AC117: 0
B118: Cost of Downtime from Public Charging | E118: =-IF(AND(COLUMN(E79)-COLUMN($E79)<Comp_V1_Years_Usage_Modeled, Cost_of_Downtime_from_Charging_Modeled<>0, Comp_Station_Max_Power_Modeled<>0),(Comp_V1_Electricity_Usage_Ex*Comp_Percent_Public_Charging_Modeled)/Comp_Station_Max_Power_Modeled*Cost_of_Downtime_from_Charging, 0) -> 0 | F118: 0 | G118: 0 | H118: 0 | I118: 0 | J118: 0 | K118: 0 | L118: 0 | M118: 0 | N118: 0 | O118: 0 | P118: 0 | Q118: 0 | R118: 0 | S118: 0 | T118: 0 | U118: 0 | V118: 0 | W118: 0 | X118: 0 | Y118: 0 | Z118: 0 | AA118: 0 | AB118: 0 | AC118: 0
B119: Subtotal Other Costs | D119: =SUM(D117:D118) -> 0 | E119: 0 | F119: 0 | G119: 0 | H119: 0 | I119: 0 | J119: 0 | K119: 0 | L119: 0 | M119: 0 | N119: 0 | O119: 0 | P119: 0 | Q119: 0 | R119: 0 | S119: 0 | T119: 0 | U119: 0 | V119: 0 | W119: 0 | X119: 0 | Y119: 0 | Z119: 0 | AA119: 0 | AB119: 0 | AC119: 0
B121: Total Discounted Costs
B122: Total Annual Costs | D122: =D105+D114+D119 -> -23050 | E122: -3388.864476 | F122: -3482.795718 | G122: -3551.108673 | H122: -3628.920253 | I122: -3681.009604 | J122: -4116.703523 | K122: 4589.349428 | L122: 0 | M122: 0 | N122: 0 | O122: 0 | P122: 0 | Q122: 0 | R122: 0 | S122: 0 | T122: 0 | U122: 0 | V122: 0 | W122: 0 | X122: 0 | Y122: 0 | Z122: 0 | AA122: 0 | AB122: 0 | AC122: 0
B123: Discount Factor | C123: =Comp_Discount_Rate_Modeled -> 0 | D123: =(1/(1+$C123))^(COLUMN(D78)-COLUMN($D78)) -> 1 | E123: 1 | F123: 1 | G123: 1 | H123: 1 | I123: 1 | J123: 1 | K123: 1 | L123: 1 | M123: 1 | N123: 1 | O123: 1 | P123: 1 | Q123: 1 | R123: 1 | S123: 1 | T123: 1 | U123: 1 | V123: 1 | W123: 1 | X123: 1 | Y123: 1 | Z123: 1 | AA123: 1 | AB123: 1 | AC123: 1
B124: Discounted Total | D124: =D122*D123 -> -23050 | E124: =E122*E123 -> -3388.864476 | F124: =F122*F123 -> -3482.795718 | G124: -3551.108673 | H124: -3628.920253 | I124: -3681.009604 | J124: -4116.703523 | K124: 4589.349428 | L124: 0 | M124: 0 | N124: 0 | O124: 0 | P124: 0 | Q124: 0 | R124: 0 | S124: 0 | T124: 0 | U124: 0 | V124: 0 | W124: 0 | X124: 0 | Y124: 0 | Z124: 0 | AA124: 0 | AB124: 0 | AC124: 0
B125: Cumulative Discounted Total | D125: =IF((COLUMN(D78)-COLUMN($D78))<=Comp_V1_Years_Usage_Modeled,C125+D124,0) -> -23050 | E125: -26438.86448 | F125: -29921.66019 | G125: -33472.76887 | H125: -37101.68912 | I125: -40782.69872 | J125: -44899.40225 | K125: -40310.05282 | L125: 0 | M125: 0 | N125: 0 | O125: 0 | P125: 0 | Q125: 0 | R125: 0 | S125: 0 | T125: 0 | U125: 0 | V125: 0 | W125: 0 | X125: 0 | Y125: 0 | Z125: 0 | AA125: 0 | AB125: 0 | AC125: 0
B126: Annualized NPV Total Cost of Ownership | D126: =OFFSET($D125,0,Comp_V1_Years_Usage_Modeled)/Comp_V1_Years_Usage_Modeled -> -5758.578974
B128: Comparison EV Infrastructure
D129: Year 0 | E129: Year 1 | F129: Year 2 | G129: Year 3 | H129: Year 4 | I129: Year 5 | J129: Year 6 | K129: Year 7 | L129: Year 8 | M129: Year 9 | N129: Year 10 | O129: Year 11 | P129: Year 12 | Q129: Year 13 | R129: Year 14 | S129: Year 15 | T129: Year 16 | U129: Year 17 | V129: Year 18 | W129: Year 19 | X129: Year 20 | Y129: Year 21 | Z129: Year 22 | AA129: Year 23 | AB129: Year 24 | AC129: Year 25
B130: Capital and Financing Costs
B131: Cash
B132: Cash Payment | D132: =IF(AND(Comp_Inf_Has_Cash_Purchase_Ex=TRUE,_Comp_Include_Charging="Yes"),-Comp_Num_Stations_Modeled*Comp_Station_Cost_Modeled,0) -> 0
B133: Loan
B134: Down Payment | D134: =IF(AND(Comp_Inf_Has_Cash_Purchase_Ex=FALSE,_Comp_Include_Charging="Yes"),-Comp_Inf_Down_Payment_Modeled,0) -> 0
B135: Loan Payments | E135: =IF(AND(Comp_Inf_Has_Cash_Purchase_Ex=FALSE,_Comp_Include_Charging="Yes",(COLUMN(E129)-COLUMN($E129))<Comp_Inf_Loan_Term_Modeled),PMT(Comp_Inf_Loan_APR_Modeled,Comp_Inf_Loan_Term_Modeled,(Comp_Num_Stations_Modeled*Comp_Station_Cost_Modeled)-Comp_Inf_Down_Payment_Modeled,0),0) -> 0 | F135: 0 | G135: 0 | H135: 0 | I135: 0 | J135: 0 | K135: 0 | L135: 0 | M135: 0 | N135: 0 | O135: 0 | P135: 0 | Q135: 0 | R135: 0 | S135: 0 | T135: 0 | U135: 0 | V135: 0 | W135: 0 | X135: 0 | Y135: 0 | Z135: 0 | AA135: 0 | AB135: 0 | AC135: 0
B136: Subtotal Loan Cash Flows | D136: =SUM(D134:D135) -> 0 | E136: 0 | F136: 0 | G136: 0 | H136: 0 | I136: 0 | J136: 0 | K136: 0 | L136: 0 | M136: 0 | N136: 0 | O136: 0 | P136: 0 | Q136: 0 | R136: 0 | S136: 0 | T136: 0 | U136: 0 | V136: 0 | W136: 0 | X136: 0 | Y136: 0 | Z136: 0 | AA136: 0 | AB136: 0 | AC136: 0
B138: Total Capital and Financing Costs | D138: =D132+D136 -> 0 | E138: =E132+E136 -> 0 | F138: 0 | G138: 0 | H138: 0 | I138: 0 | J138: 0 | K138: 0 | L138: 0 | M138: 0 | N138: 0 | O138: 0 | P138: 0 | Q138: 0 | R138: 0 | S138: 0 | T138: 0 | U138: 0 | V138: 0 | W138: 0 | X138: 0 | Y138: 0 | Z138: 0 | AA138: 0 | AB138: 0 | AC138: 0
B140: Operating Costs
B141: Maintenance Cost | E141: =-IF(AND(COLUMN(E129)-COLUMN($E129)<Comp_V1_Years_Usage_Modeled,_Comp_Include_Charging="Yes"),Comp_Station_Maint_Cost_Modeled*Comp_Num_Stations_Modeled,0)*Data!D$88 -> 0 | F141: =-IF(AND(COLUMN(F129)-COLUMN($E129)<Comp_V1_Years_Usage_Modeled,_Comp_Include_Charging="Yes"),Comp_Station_Maint_Cost_Modeled*Comp_Num_Stations_Modeled,0)*Data!E$88 -> 0 | G141: =-IF(AND(COLUMN(G129)-COLUMN($E129)<Comp_V1_Years_Usage_Modeled,_Comp_Include_Charging="Yes"),Comp_Station_Maint_Cost_Modeled*Comp_Num_Stations_Modeled,0)*Data!F$88 -> 0 | H141: =-IF(AND(COLUMN(H129)-COLUMN($E129)<Comp_V1_Years_Usage_Modeled,_Comp_Include_Charging="Yes"),Comp_Station_Maint_Cost_Modeled*Comp_Num_Stations_Modeled,0)*Data!G$88 -> 0 | I141: =-IF(AND(COLUMN(I129)-COLUMN($E129)<Comp_V1_Years_Usage_Modeled,_Comp_Include_Charging="Yes"),Comp_Station_Maint_Cost_Modeled*Comp_Num_Stations_Modeled,0)*Data!H$88 -> 0 | J141: =-IF(AND(COLUMN(J129)-COLUMN($E129)<Comp_V1_Years_Usage_Modeled,_Comp_Include_Charging="Yes"),Comp_Station_Maint_Cost_Modeled*Comp_Num_Stations_Modeled,0)*Data!I$88 -> 0 | K141: =-IF(AND(COLUMN(K129)-COLUMN($E129)<Comp_V1_Years_Usage_Modeled,_Comp_Include_Charging="Yes"),Comp_Station_Maint_Cost_Modeled*Comp_Num_Stations_Modeled,0)*Data!J$88 -> 0 | L141: =-IF(AND(COLUMN(L129)-COLUMN($E129)<Comp_V1_Years_Usage_Modeled,_Comp_Include_Charging="Yes"),Comp_Station_Maint_Cost_Modeled*Comp_Num_Stations_Modeled,0)*Data!K$88 -> 0 | M141: =-IF(AND(COLUMN(M129)-COLUMN($E129)<Comp_V1_Years_Usage_Modeled,_Comp_Include_Charging="Yes"),Comp_Station_Maint_Cost_Modeled*Comp_Num_Stations_Modeled,0)*Data!L$88 -> 0 | N141: =-IF(AND(COLUMN(N129)-COLUMN($E129)<Comp_V1_Years_Usage_Modeled,_Comp_Include_Charging="Yes"),Comp_Station_Maint_Cost_Modeled*Comp_Num_Stations_Modeled,0)*Data!M$88 -> 0 | O141: =-IF(AND(COLUMN(O129)-COLUMN($E129)<Comp_V1_Years_Usage_Modeled,_Comp_Include_Charging="Yes"),Comp_Station_Maint_Cost_Modeled*Comp_Num_Stations_Modeled,0)*Data!N$88 -> 0 | P141: =-IF(AND(COLUMN(P129)-COLUMN($E129)<Comp_V1_Years_Usage_Modeled,_Comp_Include_Charging="Yes"),Comp_Station_Maint_Cost_Modeled*Comp_Num_Stations_Modeled,0)*Data!O$88 -> 0 | Q141: =-IF(AND(COLUMN(Q129)-COLUMN($E129)<Comp_V1_Years_Usage_Modeled,_Comp_Include_Charging="Yes"),Comp_Station_Maint_Cost_Modeled*Comp_Num_Stations_Modeled,0)*Data!P$88 -> 0 | R141: =-IF(AND(COLUMN(R129)-COLUMN($E129)<Comp_V1_Years_Usage_Modeled,_Comp_Include_Charging="Yes"),Comp_Station_Maint_Cost_Modeled*Comp_Num_Stations_Modeled,0)*Data!Q$88 -> 0 | S141: =-IF(AND(COLUMN(S129)-COLUMN($E129)<Comp_V1_Years_Usage_Modeled,_Comp_Include_Charging="Yes"),Comp_Station_Maint_Cost_Modeled*Comp_Num_Stations_Modeled,0)*Data!R$88 -> 0 | T141: =-IF(AND(COLUMN(T129)-COLUMN($E129)<Comp_V1_Years_Usage_Modeled,_Comp_Include_Charging="Yes"),Comp_Station_Maint_Cost_Modeled*Comp_Num_Stations_Modeled,0)*Data!S$88 -> 0 | U141: =-IF(AND(COLUMN(U129)-COLUMN($E129)<Comp_V1_Years_Usage_Modeled,_Comp_Include_Charging="Yes"),Comp_Station_Maint_Cost_Modeled*Comp_Num_Stations_Modeled,0)*Data!T$88 -> 0 | V141: =-IF(AND(COLUMN(V129)-COLUMN($E129)<Comp_V1_Years_Usage_Modeled,_Comp_Include_Charging="Yes"),Comp_Station_Maint_Cost_Modeled*Comp_Num_Stations_Modeled,0)*Data!U$88 -> 0 | W141: =-IF(AND(COLUMN(W129)-COLUMN($E129)<Comp_V1_Years_Usage_Modeled,_Comp_Include_Charging="Yes"),Comp_Station_Maint_Cost_Modeled*Comp_Num_Stations_Modeled,0)*Data!V$88 -> 0 | X141: =-IF(AND(COLUMN(X129)-COLUMN($E129)<Comp_V1_Years_Usage_Modeled,_Comp_Include_Charging="Yes"),Comp_Station_Maint_Cost_Modeled*Comp_Num_Stations_Modeled,0)*Data!W$88 -> 0 | Y141: =-IF(AND(COLUMN(Y129)-COLUMN($E129)<Comp_V1_Years_Usage_Modeled,_Comp_Include_Charging="Yes"),Comp_Station_Maint_Cost_Modeled*Comp_Num_Stations_Modeled,0)*Data!X$88 -> 0 | Z141: =-IF(AND(COLUMN(Z129)-COLUMN($E129)<Comp_V1_Years_Usage_Modeled,_Comp_Include_Charging="Yes"),Comp_Station_Maint_Cost_Modeled*Comp_Num_Stations_Modeled,0)*Data!Y$88 -> 0 | AA141: =-IF(AND(COLUMN(AA129)-COLUMN($E129)<Comp_V1_Years_Usage_Modeled,_Comp_Include_Charging="Yes"),Comp_Station_Maint_Cost_Modeled*Comp_Num_Stations_Modeled,0)*Data!Z$88 -> 0 | AB141: =-IF(AND(COLUMN(AB129)-COLUMN($E129)<Comp_V1_Years_Usage_Modeled,_Comp_Include_Charging="Yes"),Comp_Station_Maint_Cost_Modeled*Comp_Num_Stations_Modeled,0)*Data!AA$88 -> 0 | AC141: =-IF(AND(COLUMN(AC129)-COLUMN($E129)<Comp_V1_Years_Usage_Modeled,_Comp_Include_Charging="Yes"),Comp_Station_Maint_Cost_Modeled*Comp_Num_Stations_Modeled,0)*Data!AB$88 -> 0
B142: Subtotal Operating Costs | E142: =SUM(E141:E141) -> 0 | F142: 0 | G142: 0 | H142: 0 | I142: 0 | J142: 0 | K142: 0 | L142: 0 | M142: 0 | N142: 0 | O142: 0 | P142: 0 | Q142: 0 | R142: 0 | S142: 0 | T142: 0 | U142: 0 | V142: 0 | W142: 0 | X142: 0 | Y142: 0 | Z142: 0 | AA142: 0 | AB142: 0 | AC142: =SUM(AC141:AC141) -> 0
B143: Total Discounted Costs
B144: Total Annual Costs | D144: =D138+D142 -> 0 | E144: =E138+E142 -> 0 | F144: 0 | G144: 0 | H144: 0 | I144: 0 | J144: 0 | K144: 0 | L144: 0 | M144: 0 | N144: 0 | O144: 0 | P144: 0 | Q144: 0 | R144: 0 | S144: 0 | T144: 0 | U144: 0 | V144: 0 | W144: 0 | X144: 0 | Y144: 0 | Z144: 0 | AA144: 0 | AB144: 0 | AC144: 0
B145: Discount Factor | C145: =Comp_Discount_Rate_Modeled -> 0 | D145: =(1/(1+$C145))^(COLUMN(D129)-COLUMN($D129)) -> 1 | E145: 1 | F145: 1 | G145: 1 | H145: 1 | I145: 1 | J145: 1 | K145: 1 | L145: 1 | M145: 1 | N145: 1 | O145: 1 | P145: 1 | Q145: 1 | R145: 1 | S145: 1 | T145: 1 | U145: 1 | V145: 1 | W145: 1 | X145: 1 | Y145: 1 | Z145: 1 | AA145: 1 | AB145: 1 | AC145: 1
B146: Discounted Total | D146: =D144*D145 -> 0 | E146: =E144*E145 -> 0 | F146: =F144*F145 -> 0 | G146: 0 | H146: 0 | I146: 0 | J146: 0 | K146: 0 | L146: 0 | M146: 0 | N146: 0 | O146: 0 | P146: 0 | Q146: 0 | R146: 0 | S146: 0 | T146: 0 | U146: 0 | V146: 0 | W146: 0 | X146: 0 | Y146: 0 | Z146: 0 | AA146: 0 | AB146: 0 | AC146: 0
B147: Cumulative Discounted Total | D147: =IF((COLUMN(D129)-COLUMN($D129))<=Comp_V1_Years_Usage_Modeled,C147+D146,0) -> 0 | E147: 0 | F147: 0 | G147: 0 | H147: 0 | I147: 0 | J147: 0 | K147: 0 | L147: 0 | M147: 0 | N147: 0 | O147: 0 | P147: 0 | Q147: 0 | R147: 0 | S147: 0 | T147: 0 | U147: 0 | V147: 0 | W147: 0 | X147: 0 | Y147: 0 | Z147: 0 | AA147: 0 | AB147: 0 | AC147: 0
B148: Annualized NPV Total Cost of Ownership | D148: =OFFSET($D147,0,Comp_V1_Years_Usage_Modeled)/Comp_V1_Years_Usage_Modeled -> 0

Sheet FMV Regression (hidden)
A1: FMV Regression Data - EV Fleet Procurement Analysis Tool
A3: BEV | H3: R-sq = .96
B4: Coefficient | C4: Standard Error | D4: t | E4: P>|t| | F4: 95% confidence interval
A5: age | B5: -0.1002 | C5: 881.9949 | D5: -1.35 | E5: 0.179 | F5: -2935.72 | G5: 553.6236
A6: agesq | B6: 0.0063 | C6: 163.1746 | D6: -0.8 | E6: 0.423 | F6: -454.058 | G6: 191.4928
A7: msrp | C7: 0.020652 | D7: 39.26 | E7: 0 | F7: 0.76992 | G7: 0.851624
A8: all_elec_range | B8: 0.0003
A9: mileage | B9: -1.861e-06 | C9: 0.050379 | D9: -3.62 | E9: 0 | F9: -0.28195 | G9: -0.08264
A10: constant | B10: 0.8122
B11: INTERPRETATION: 1 unit change in these variables (age, age-squared, etc) results in a change in FMV price of coefficient
A13: PHEV | H13: R-sq = 0.98
B14: Coefficient | C14: Standard Error | D14: t | E14: P>|t| | F14: 95% confidence interval
A15: age | B15: -3764 | C15: 294.8351 | D15: -12.06 | E15: 0 | F15: -4138.964 | G15: -2972.855
A16: agesq | B16: 433 | C16: 73.93216 | D16: 6.01 | E16: 0 | F16: 298.2235 | G16: 590.6342
A17: msrp | B17: 0.75 | C17: 0.8015684 | D17: -4.33 | E17: 0 | F17: -5.052855 | G17: -1.882555
A18: all_elec_range | B18: 0 | C18: 86.58862 | D18: 3.8 | E18: 0 | F18: 157.6612 | G18: 500.1297
A19: mileage | B19: -0.076 | C19: 0.0115792 | D19: -6.25 | E19: 0 | F19: -0.0952357 | G19: -0.0494383
A20: _cons | B20: 0
B21: INTERPRETATION: 1 unit change in these variables (age, age-squared, etc) results in a change in FMV price of coefficient
A23: Gasoline (with MPG) | H23: R-sq = 0.98
B24: Coefficient | C24: Standard Error | D24: t | E24: P>|t| | F24: 95% confidence interval
A25: age | B25: -1013.43 | C25: 354.8791 | D25: -2.86 | E25: 0.005 | F25: -1713.94 | G25: -312.919
A26: agesq | B26: -158.85 | C26: 95.22333 | D26: -1.67 | E26: 0.097 | F26: -346.814 | G26: 29.1147
A27: msrp | B27: 0.905763 | C27: 0.017011 | D27: 53.25 | E27: 0 | F27: 0.872184 | G27: 0.939342
A28: mpg | B28: 0
A29: mileage | B29: -0.0093 | C29: 0.009258 | D29: -1 | E29: 0.317 | F29: -0.02757 | G29: 0.008974
A30: _cons | B30: 0
B31: INTERPRETATION: 1 unit change in these variables (age, age-squared, etc) results in a change in FMV price of coefficient
A35: LDV | B35: Constant Depreciation (Years 6+) | E35: Current as of 3/13/25
A37: Constant LDV Depreciation | D37: 0.9174

Sheet Environmental Model
A1: Environmental Models - Fleet Procurement Analysis Tool
C3: =Base_V1_Type_Ex&" (Baseline)" -> 2023 Chevrolet Bolt EUV BEV (Baseline) | D3: =Comp_V1_Type_Ex&" (Comparison)" -> 2024 Toyota Corolla ICE (Comparison)
B4: ="Annual V" & LEFT(Constant_Distance_Metric,1) & "T" -> Annual VMT | C4: =Base_V1_VMT_Modeled -> 10917 | D4: =Comp_V1_VMT_Modeled -> 10917
B5: =IF(_Market="U.S.", DB_Vehicles[[#Headers],[Fuel Economy Gas/Diesel City (MPG)]], DB_Vehicles__Canada[[#Headers],[Fuel Consumption Gas/Diesel City (L/100 km)]]) -> Fuel Economy Gas/Diesel City (MPG) | C5: =Base_V1_Fuel_Economy_Gas_City_Modeled -> 0 | D5: =Comp_V1_Fuel_Economy_Gas_City_Modeled -> 32
B6: =IF(_Market="U.S.", DB_Vehicles[[#Headers],[Fuel Economy Gas/Diesel Hwy (MPG)]], DB_Vehicles__Canada[[#Headers],[Fuel Consumption Gas/Diesel Hwy (L/100 km)]]) -> Fuel Economy Gas/Diesel Hwy (MPG) | C6: =Base_V1_Fuel_Economy_Gas_Hwy_Modeled -> 0 | D6: =Comp_V1_Fuel_Economy_Gas_Hwy_Modeled -> 41
B7: =IF(_Market="U.S.", DB_Vehicles[[#Headers],[Fuel Economy Electric City (MPGe)]], DB_Vehicles__Canada[[#Headers],[Fuel Consumption Electric City (Le/100 km)]]) -> Fuel Economy Electric City (MPGe) | C7: =Base_V1_Fuel_Economy_Electric_City_Modeled -> 125 | D7: =Comp_V1_Fuel_Economy_Electric_City_Modeled -> 0
B8: =IF(_Market="U.S.", DB_Vehicles[[#Headers],[Fuel Economy Electric Hwy (MPGe)]], DB_Vehicles__Canada[[#Headers],[Fuel Consumption Electric Hwy (Le/100 km)]]) -> Fuel Economy Electric Hwy (MPGe) | C8: =Base_V1_Fuel_Economy_Electric_Hwy_Modeled -> 104 | D8: =Comp_V1_Fuel_Economy_Electric_Hwy_Modeled -> 0
B9: ="% of Annual " & Constant_Distance_Metric & "s on Gasoline/Diesel*" -> % of Annual Miles on Gasoline/Diesel* | C9: =Base_V1_Miles_Gas_Modeled -> 0 | D9: =Comp_V1_Miles_Gas_Modeled -> 1
B10: ="% of Annual " & Constant_Distance_Metric & "s City Driving" -> % of Annual Miles City Driving | C10: =Base_V1_Miles_City_Modeled -> 0.55 | D10: =Comp_V1_Miles_City_Modeled -> 0.55
B11: =Constant_Volume_Metric & "s of Gasoline/Diesel per Year" -> Gallons of Gasoline/Diesel per Year | C11: =IF(C5=0,0,(C4*C10*C9)/IF(_Market="U.S.", C5, 100/C5))+IF(C6=0,0,(C4*C9*(1-C10))/IF(_Market="U.S.", C6, 100/C6)) -> 0 | D11: =IF(D5=0,0,(D4*D10*D9)/IF(_Market="U.S.", D5, 100/D5))+IF(D6=0,0,(D4*D9*(1-D10))/IF(_Market="U.S.", D6, 100/D6)) -> 307.4566692
B12: ="Well-to-Wheel Carbon Intensity of " & Constant_Volume_Metric & " of Gasoline/Diesel (" & Constant_Weight_Metric_Abbreviation & ")" -> Well-to-Wheel Carbon Intensity of Gallon of Gasoline/Diesel (lb) | C12: =(SUMIFS(DB_Gasoline_Diesel_Emissions[Emissions],DB_Gasoline_Diesel_Emissions[Key], "CO2 (g/MJ)"&_Market&"Well-to-Wheel"&_Base_V1_Vehicle_Vehicle_Class)*IF(Base_V1_Fuel_Type_Ex="Gasoline", Constant_Megajoule_Per_Gasoline_Volume, Constant_Megajoule_Per_Diesel_Volume))/Constant_Grams_Per_Weight -> 27.00820473 | D12: =(SUMIFS(DB_Gasoline_Diesel_Emissions[Emissions],DB_Gasoline_Diesel_Emissions[Key],"CO2 (g/MJ)"&_Market&"Well-to-Wheel"&_Comp_V1_Vehicle_Vehicle_Class)*IF(Comp_V1_Fuel_Type_Ex="Gasoline", Constant_Megajoule_Per_Gasoline_Volume, Constant_Megajoule_Per_Diesel_Volume))/Constant_Grams_Per_Weight -> 23.98357047
B13: kWh Electricity / Year | C13: =IF(C7=0,0,((C4*(1-C9)*C10)/IF(_Market="U.S.", C7, 100/C7)*Constant_kWh_Per_Gasoline_Volume))+IF(C8=0,0,((C4*(1-C9)*(1-C10))/IF(_Market="U.S.", C8, 100/C8)*Constant_kWh_Per_Gasoline_Volume)) -> 3210.660308 | D13: =IF(D7=0,0,((D4*(1-D9)*D10)/IF(_Market="U.S.", D7, 100/D7)*Constant_kWh_Per_Gasoline_Volume))+IF(D8=0,0,((D4*(1-D9)*(1-D10))/IF(_Market="U.S.", D8, 100/D8)*Constant_kWh_Per_Gasoline_Volume)) -> 0
B14: =IF(_Market="U.S.", "eGrid Region", "Province") -> eGrid Region | C14: =IF(_Market="U.S.", eGrid_Region_Ex, Province_Ex) -> RFCE | D14: =IF(_Market="U.S.", eGrid_Region_Ex, Province_Ex) -> RFCE
B15: ="Well-to-Wheel Carbon Intensity of kWh (" & Constant_Weight_Metric_Abbreviation & ")**" -> Well-to-Wheel Carbon Intensity of kWh (lb)** | C15: =Constant_CO2_Intensity_Electricity -> 0.76709824 | D15: =Constant_CO2_Intensity_Electricity -> 0.76709824
B16: =IF(_Market="U.S.", "Electrical Transmission Line Loss", "") -> Electrical Transmission Line Loss | C16: =IF(_Market="U.S.", VLOOKUP(eGrid_Region_Ex,DB_Electricity_Emissions[],COLUMN(DB_Electricity_Emissions[[#Headers],[Grid gross loss '[Estimated losses/(Total disposition - Direct use)']]])-COLUMN(DB_Electricity_Emissions[[#Headers],[eGRID subregion acronym]])+1,FALSE), "") -> 0.053 | D16: =IF(_Market="U.S.", VLOOKUP(eGrid_Region_Ex,DB_Electricity_Emissions[],COLUMN(DB_Electricity_Emissions[[#Headers],[Grid gross loss '[Estimated losses/(Total disposition - Direct use)']]])-COLUMN(DB_Electricity_Emissions[[#Headers],[eGRID subregion acronym]])+1,FALSE), "") -> 0.053
B17: ="Total Annual CO2 (" & Constant_Weight_Metric_Abbreviation & ")" -> Total Annual CO2 (lb) | C17: =(C11*C12)+(C13*(C15/(1-IF(_Market="U.S.", C16, 0)))) -> 2600.730593 | D17: =(D11*D12)+(D13*(D15/(1-IF(_Market="U.S.", D16, 0)))) -> 7373.908693
B18: ="Well-to-Wheel CO2 (" & Constant_Weight_Metric_Abbreviation & "/" & Constant_Distance_Metric_Abbreviation & ")" -> Well-to-Wheel CO2 (lb/mi) | C18: =C17/C4 -> 0.2382275894 | D18: =D17/D4 -> 0.6754519275
B19: Other Well-to-Wheel Emissions**
B20: ="NOx (mg/" & Constant_Distance_Metric_Abbreviation & ")" -> NOx (mg/mi) | C20: =((Constant_NOX_Intensity_Electricity*Base_V1_Electricity_Usage_Ex)+(SUMIFS(DB_Gasoline_Diesel_Emissions[Emissions],DB_Gasoline_Diesel_Emissions[Key],"NOx (mg/MJ)" &_Market&"Well-to-Wheel"&_Base_V1_Vehicle_Vehicle_Class)*Base_V1_Gas_Diesel_Usage_Ex*IF(Base_V1_Fuel_Type_Ex="Gasoline", Constant_Megajoule_Per_Gasoline_Volume, Constant_Megajoule_Per_Diesel_Volume)))/Base_V1_VMT_Modeled -> 38.81945412 | D20: =((Constant_NOX_Intensity_Electricity*Comp_V1_Electricity_Usage_Ex)+(SUMIFS(DB_Gasoline_Diesel_Emissions[Emissions],DB_Gasoline_Diesel_Emissions[Key],"NOx (mg/MJ)"&_Market&"Well-to-Wheel"&_Comp_V1_Vehicle_Vehicle_Class)*Comp_V1_Gas_Usage_Ex*IF(Comp_V1_Fuel_Type_Ex="Gasoline", Constant_Megajoule_Per_Gasoline_Volume, Constant_Megajoule_Per_Diesel_Volume)))/Comp_V1_VMT_Modeled -> 116.4802791
B21: ="SOx (mg/" & Constant_Distance_Metric_Abbreviation & ")" -> SOx (mg/mi) | C21: =((Constant_SOX_Intensity_Electricity*Base_V1_Electricity_Usage_Ex)+(SUMIFS(DB_Gasoline_Diesel_Emissions[Emissions],DB_Gasoline_Diesel_Emissions[Key],"SOx (mg/MJ)"&_Market&"Well-to-Wheel"&_Base_V1_Vehicle_Vehicle_Class)*Base_V1_Gas_Diesel_Usage_Ex*IF(Base_V1_Fuel_Type_Ex="Gasoline", Constant_Megajoule_Per_Gasoline_Volume, Constant_Megajoule_Per_Diesel_Volume)))/Base_V1_VMT_Modeled -> 34.01704743 | D21: =((Constant_SOX_Intensity_Electricity*Comp_V1_Electricity_Usage_Ex)+(SUMIFS(DB_Gasoline_Diesel_Emissions[Emissions],DB_Gasoline_Diesel_Emissions[Key],"SOx (mg/MJ)"&_Market&"Well-to-Wheel"&_Comp_V1_Vehicle_Vehicle_Class)*Comp_V1_Gas_Usage_Ex*IF(Comp_V1_Fuel_Type_Ex="Gasoline", Constant_Megajoule_Per_Gasoline_Volume, Constant_Megajoule_Per_Diesel_Volume)))/Comp_V1_VMT_Modeled -> 72.36667482
B22: ="VOC (mg/" & Constant_Distance_Metric_Abbreviation & ")" -> VOC (mg/mi) | C22: =IF(AND(Constant_VOC_Intensity_Electricity=0, Base_V1_Gas_Diesel_Usage_Ex=0),"Unknown",((Constant_VOC_Intensity_Electricity*Base_V1_Electricity_Usage_Ex)+(SUMIFS(DB_Gasoline_Diesel_Emissions[Emissions],DB_Gasoline_Diesel_Emissions[Key],"VOC (mg/MJ)"&_Market&"Well-to-Wheel"&_Base_V1_Vehicle_Vehicle_Class)*Base_V1_Gas_Diesel_Usage_Ex*IF(Base_V1_Fuel_Type_Ex="Gasoline", Constant_Megajoule_Per_Gasoline_Volume, Constant_Megajoule_Per_Diesel_Volume)))/Base_V1_VMT_Modeled) -> 2.250226951 | D22: =IF(AND(Constant_VOC_Intensity_Electricity=0, Comp_V1_Gas_Usage_Ex=0),"Unknown",((Constant_VOC_Intensity_Electricity*Comp_V1_Electricity_Usage_Ex)+(SUMIFS(DB_Gasoline_Diesel_Emissions[Emissions],DB_Gasoline_Diesel_Emissions[Key], "VOC (mg/MJ)"&_Market&"Well-to-Wheel"&_Base_V1_Vehicle_Vehicle_Class)*Comp_V1_Gas_Usage_Ex*IF(Comp_V1_Fuel_Type_Ex="Gasoline", Constant_Megajoule_Per_Gasoline_Volume, Constant_Megajoule_Per_Diesel_Volume)))/Comp_V1_VMT_Modeled) -> 197.795411
B23: ="PM10 (mg/" & Constant_Distance_Metric_Abbreviation & ")" -> PM10 (mg/mi) | C23: =((Constant_PM10_Intensity_Electricity*Base_V1_Electricity_Usage_Ex)+(SUMIFS(DB_Gasoline_Diesel_Emissions[Emissions],DB_Gasoline_Diesel_Emissions[Key],"PM10 (mg/MJ)"&_Market&"Well-to-Wheel"&_Base_V1_Vehicle_Vehicle_Class)*Base_V1_Gas_Diesel_Usage_Ex*IF(Base_V1_Fuel_Type_Ex="Gasoline", Constant_Megajoule_Per_Gasoline_Volume, Constant_Megajoule_Per_Diesel_Volume)))/Base_V1_VMT_Modeled -> 9.307485648 | D23: =((Constant_PM10_Intensity_Electricity*Comp_V1_Electricity_Usage_Ex)+(SUMIFS(DB_Gasoline_Diesel_Emissions[Emissions],DB_Gasoline_Diesel_Emissions[Key],"PM10 (mg/MJ)"&_Market&"Well-to-Wheel"&_Comp_V1_Vehicle_Vehicle_Class)*Comp_V1_Gas_Usage_Ex*IF(Comp_V1_Fuel_Type_Ex="Gasoline", Constant_Megajoule_Per_Gasoline_Volume, Constant_Megajoule_Per_Diesel_Volume)))/Comp_V1_VMT_Modeled -> 15.44369075
B24: ="PM2.5 (mg/" & Constant_Distance_Metric_Abbreviation & ")" -> PM2.5 (mg/mi) | C24: =((Constant_PM25_Intensity_Electricity*Base_V1_Electricity_Usage_Ex)+(SUMIFS(DB_Gasoline_Diesel_Emissions[Emissions],DB_Gasoline_Diesel_Emissions[Key],"PM2.5 (mg/MJ)"&_Market&"Well-to-Wheel"&_Base_V1_Vehicle_Vehicle_Class)*Base_V1_Gas_Diesel_Usage_Ex*IF(Base_V1_Fuel_Type_Ex="Gasoline", Constant_Megajoule_Per_Gasoline_Volume, Constant_Megajoule_Per_Diesel_Volume)))/Base_V1_VMT_Modeled -> 7.570586257 | D24: =((Constant_PM25_Intensity_Electricity*Comp_V1_Electricity_Usage_Ex)+(SUMIFS(DB_Gasoline_Diesel_Emissions[Emissions],DB_Gasoline_Diesel_Emissions[Key],"PM2.5 (mg/MJ)"&_Market&"Well-to-Wheel"&_Comp_V1_Vehicle_Vehicle_Class)*Comp_V1_Gas_Usage_Ex*IF(Comp_V1_Fuel_Type_Ex="Gasoline", Constant_Megajoule_Per_Gasoline_Volume, Constant_Megajoule_Per_Diesel_Volume)))/Comp_V1_VMT_Modeled -> 11.24109349
B27: *For PHEV calculations, assumes an equal number of miles driven on a daily basis, 365 days per year. No charging during the day.
B28: ** Emissions are well-to-wheel from Argonne National Laboratory's GREET model and U.S. EPA's eGRID.

Sheet Billing Model
A1: Billing Models - Fleet Procurement Analysis Tool
B3: Baseline Vehicle 1
B6: Vehicle Use | F6: Seasonal Bill
B7: Daily Energy Need (kWh) | C7: =(Daily_Miles_Modeled*Vehicle_Efficiency_Modeled*Base_V1_Num_Vehicles_Modeled) * (1 + Constant_Charging_Loss) * Base_Percent_Home_Charging -> 15.41249872 | F7: Season | G7: Months | H7: Monthly Demand Charge | I7: Monthly Energy Charge | J7: Seasonal Demand Charge | K7: Seasonal Energy Charge | L7: Total Seasonal Charge
B8: Daily Miles per Vehicle (Miles) | C8: =Base_V1_VMT / MIN(365, Base_Operating_Days_Per_Year) -> 54.585 | F8: Winter | G8: =IF(Base_Custom_Rate_Selection = "Yes", _xlfn.MAXIFS(Base_Custom_Rate_Table_Modeled[Months], Base_Custom_Rate_Table_Modeled[Season], Base_Seasonal_Bill[[#This Row],[Season]]), _xlfn.MAXIFS(Utility_Rate_Structures[Months], Utility_Rate_Structures[Rate Name], Base_V1_Fee_Structure_Input, Utility_Rate_Structures[Season], Base_Seasonal_Bill[[#This Row],[Season]], Utility_Rate_Structures[Rate Type], "Demand Charge")) -> 0 | H8: =SUMPRODUCT(Q13:Q36, R13:R36) -> 0 | I8: =SUMPRODUCT(IF(Base_Rate_Calculation_Table[Season] = Base_Seasonal_Bill[[#This Row],[Season]], Base_Rate_Calculation_Table[Hourly kWh]* Base_Rate_Calculation_Table[Energy Rate])) * (Base_Operating_Days_Per_Year / 12) -> 0 | J8: =Base_Seasonal_Bill[[#This Row],[Monthly Demand Charge]]*Base_Seasonal_Bill[[#This Row],[Months]] -> 0 | K8: =Base_Seasonal_Bill[[#This Row],[Monthly Energy Charge]]*Base_Seasonal_Bill[[#This Row],[Months]] -> 0 | L8: =Base_Seasonal_Bill[[#This Row],[Seasonal Demand Charge]]+Base_Seasonal_Bill[[#This Row],[Seasonal Energy Charge]] -> 0
B9: Vehicle Efficiency (kWh / Mile) | C9: =IFERROR(33.705/((Base_V1_Fuel_Economy_Electric_City *Base_V1_Miles_City) + (Base_V1_Fuel_Economy_Electric_Hwy * (1-Base_V1_Miles_City)) ), 1) -> 0.2916919083 | F9: Summer | G9: =IF(Base_Custom_Rate_Selection = "Yes", _xlfn.MAXIFS(Base_Custom_Rate_Table_Modeled[Months], Base_Custom_Rate_Table_Modeled[Season], Base_Seasonal_Bill[[#This Row],[Season]]), _xlfn.MAXIFS(Utility_Rate_Structures[Months], Utility_Rate_Structures[Rate Name], Base_V1_Fee_Structure_Input, Utility_Rate_Structures[Season], Base_Seasonal_Bill[[#This Row],[Season]], Utility_Rate_Structures[Rate Type], "Demand Charge")) -> 0 | H9: =SUMPRODUCT(O13:O36, P13:P36) -> 0 | I9: =SUMPRODUCT(IF(Base_Rate_Calculation_Table[Season] = Base_Seasonal_Bill[[#This Row],[Season]], Base_Rate_Calculation_Table[Hourly kWh]* Base_Rate_Calculation_Table[Energy Rate])) * (Base_Operating_Days_Per_Year / 12) -> 0 | J9: =Base_Seasonal_Bill[[#This Row],[Monthly Demand Charge]]*Base_Seasonal_Bill[[#This Row],[Months]] -> 0 | K9: =Base_Seasonal_Bill[[#This Row],[Monthly Energy Charge]]*Base_Seasonal_Bill[[#This Row],[Months]] -> 0 | L9: =Base_Seasonal_Bill[[#This Row],[Seasonal Demand Charge]]+Base_Seasonal_Bill[[#This Row],[Seasonal Energy Charge]] -> 0
B11: Vehicle Count Effects | F11: Hourly Rate Table | N11: Demand Charge Table
B12: Efficiency Gain from Charging Management as Fleet Size Grows | C12: =0.75+(0.15*(1/(100-Base_V1_Num_Vehicles_Modeled))) -> 0.7515151515 | F12: Hour | G12: Monthly Peak Demand kW | H12: Monthly Average Demand kW | I12: Hourly kWh | J12: Demand Rate | K12: Energy Rate | L12: Season | O12: Summer Rates | P12: Summer Peak Demand | Q12: Winter Rates | R12: Winter Peak Demand
